{"text_format":"1","workbook":"xlsx","n_sheets":8,"sheets":["1. INFORMACION ACUMULADA","2. PAA","3. CONSOLIDADO","Proposito_programa","Hoja1","4. INSTRUCTIVO","Tipo","Eje_Pilar_Prop1"],"not_rendered":{"charts":0,"images":1,"macros":1,"external_links":0,"defined_names":14,"comments":1,"pivot_tables":0},"unopened":[],"bounds":{"document_bytes":16777216,"sheet_cells":100000,"rows_first":2000,"rows_last":500,"rows_between":2000,"halvings":0,"cell_chars":16384,"cell_head_chars":4096},"cells_cut":0,"cells_raw":0,"read":"whole","date_system":"1900"}

{"sheet":"1. INFORMACION ACUMULADA","index":0,"n_rows":224,"n_cols":42,"rows_kept":224,"cut":false,"hidden":false,"merged":[[9,33,9,34],[10,37,10,40],[11,2,11,3],[11,8,11,12],[11,15,11,20],[11,37,11,40],[10,0,10,20],[10,21,10,26],[10,27,10,32],[10,33,10,36],[1,0,1,37],[2,0,2,37],[4,0,4,3],[4,8,4,10],[4,14,4,15],[4,22,4,37],[7,35,7,41],[8,35,8,41],[9,35,9,41],[5,0,5,3],[5,33,5,34],[6,0,6,3],[6,33,6,34],[5,35,5,41],[6,35,6,41],[7,33,7,34],[8,0,8,3],[8,6,8,7],[8,10,9,15],[8,33,8,34],[9,0,9,3],[9,5,9,7]]}
[]
["VEEDURIA DISTRITAL - INFORMACIÓN GESTION CONTRACTUAL"]
["DEL 1 DE ENERO AL 31 DE DICIEMBRE DE 2021"]
[]
["1. Entidad",null,null,null,"Fondo de Desarrollo Local de Antonio Nariño",null,null,"2. Sector","Gobierno"]
["3. Presupuesto Disponible Inversión Directa PREDIS (BOGDATA)",null,null,null,14703072000,null,null,"5. Presupuesto Disponible Funcionamiento PREDIS (BOGDATA)",2144473000,null,null,null,null,null,null,null,null,null,null,null,null,null,null,null,null,null,null,null,null,null,null,null,null,"9. Nombre de quien diligencia el formato",null,"LUZ ADRIANA SÁNCHEZ VELANDIA, BLANCA CECILIA CUERVO CHAVES, OMAIRA HEREDIA CRUZ"]
["4. Presupuesto Comprometido de Inversión Directa según PREDIS (BOGDATA)",null,null,null,11683681180,null,null,"6. Presupuesto Comprometido Funcionamiento según PREDIS (BOGDATA)",2107707660,null,null,null,null,null,null,null,null,null,null,null,null,null,null,null,null,null,null,null,null,null,null,null,null,"Cargo",null,"          CONTRATISTA -                                    AUXILIAR ADMINISTRATIVO -                                          CONTRATISTA"]
[null,null,null,null,null,null,null,null,null,null,null,null,null,null,null,null,null,null,null,null,null,null,null,null,null,null,null,null,null,null,null,null,null,"Dependencia",null,"           CONTRATACION                                   PRESUPUESTO                                                                  CONTRATACION"]
["7. Presupuesto Disponible Operación (Régimen Privado)",null,null,null,null,null,null,null,null,null,null,null,null,null,null,null,null,null,null,null,null,null,null,null,null,null,null,null,null,null,null,null,null,"Teléfono",null,"601-4432490"]
["8. Presupuesto Comprometido Operación mediante contratos",null,null,null,null,null,null,null,null,null,null,null,null,null,null,null,null,null,null,null,null,null,null,null,null,null,null,null,null,null,null,null,null,"Correo Electrónico",null,"Luz.sanchez@gobiernobogota.gov.co   Blanca.cuervo@gobiernobogota.gov.co  Omaira.heredia@gobierno.gov.co"]
["1- INFORMACION GENERAL",null,null,null,null,null,null,null,null,null,null,null,null,null,null,null,null,null,null,null,null,"2- INFORMACION FINANCIERA",null,null,null,null,null,"3 - PLAZOS ",null,null,null,null,null,"4. CESION",null,null,null,"5. ESTADO",null,null,null,"6. %  Avance y/o cumplimiento"]
[1,2,3,null,4,5,6,7,8,null,null,null,null,9,10,11,null,null,null,null,null,12,13,14,15,16,17,18,19,20,21,22,23,24,25,26,27,28,null,null,null,29]
["Número Contrato","Año","Número de proceso contractual \nSECOP","Link proceso SECOP","Tipo de contrato ","Modalidad de Selección","Procedimiento o causal","Objeto","Afectación","Plan de Desarrollo Distrital","Número Programa","Equivalencia número de programa","Propósito","Número Proyecto","Número de proponentes","Número  de Identificación del contratista\n(Cédula o NIT sin puntos, comas ni caracteres especiales y sin digito de verificación)","Nombre del contratista\n  (según el caso: nombres y apellidos o Razón social y Tipo societario)","Naturaleza Jurídica","Número  de Identificación del integrante del Consorcio o U.T.\n(Cédula o NIT sin puntos, comas ni caracteres especiales y sin digito de verificación)","Nombre del Integrante del Consorcio o U.T. y Tipo societario\n (Según el caso: nombres y apellidos o razón social y tipo societario)","% Participación (indicar solo el numero del porcentaje, sin caracteres especiales)","Valor Inicial del contrato","Valor total reducciones \n(En valor negativo)","Número de adiciones","Valor total de adiciones ","Valor Final ","Giros (Valor en pesos)","Fecha de suscripción (DD/MM/AAAA)","Fecha de inicio (DD/MM/AAAA)","Fecha de terminación (DD/MM/AAAA)","Plazo en meses","Número de prórrogas","Prorroga en días","Número  de Identificación del cesionario\n(NIT sin digito de verificación)","Nombre cesionario","Fecha cesión\n(DD/MM/AAAA)","Valor cesión","Celebrado o por iniciar","En Ejecución","Terminado","Liquidado","% Avance y/o Cumplimiento"]
[1,2021,"FDLAN-MC-001-2021","https://community.secop.gov.co/Public/Tendering/OpportunityDetail/Index?noticeUID=CO1.NTC.1699534&isFromPublicArea=True&isModal=False","Seguros","Contratación mínima cuantia","No aplica","“CONTRATAR LOS SEGUROS QUE AMPAREN LOS INTERESES PATRIMONIALES ACTUALES Y FUTUROS, ASÍ COMO LOS BIENES DE PROPIEDAD DEL FONDO DE DESARROLLO LOCAL DE ANTONIO NARIÑO, QUE ESTÉN BAJO SU RESPONSABILIDAD Y CUSTODIA Y AQUELLOS QUE SEAN ADQUIRIDOS PARA DESARROLLAR LAS FUNCIONES INHERENTES A SU ACTIVIDAD, ASÍ COMO LA EXPEDICIÓN DE UNA PÓLIZA COLECTIVA DE SEGURO DE VIDA Y CUALQUIER OTRA PÓLIZA DE SEGUROS QUE REQUIERA LA ENTIDAD EN EL DESARROLLO DE SU ACTIVIDAD”.",null,"Un Nuevo Contrato Social y Ambiental para la Bogotá del Siglo XXI","No aplica",{"$f":"IF(ISERROR(VLOOKUP(K14,Proposito_programa!$C$2:$E$59,2,FALSE)),\" \",VLOOKUP(K14,Proposito_programa!$C$2:$E$59,2,FALSE))","v":" "},{"$f":"IF(ISERROR(VLOOKUP(K14,Proposito_programa!$C$2:$E$59,3,FALSE)),\" \",VLOOKUP(K14,Proposito_programa!$C$2:$E$59,3,FALSE))","v":" "},null,null,"8600024002-2","La Previsora S.A. Compañía de Seguros","Persona Jurídica",null,null,null,25310921,null,null,null,{"$f":"+V14+W14+Y14","v":25310921},null,"2021-02-03","2021-02-03","2021-05-03","2 MESES 29 DIAS ",null,null,null,null,null,null,"x",null,null,null,1]
[2,2021,"FDLAN-CD-002-2021","https://community.secop.gov.co/Public/Tendering/OpportunityDetail/Index?noticeUID=CO1.NTC.1739146&isFromPublicArea=True&isModal=False","Contratos de prestación de servicios profesionales y de apoyo a la gestión","CONTRATACION DIRECTA","No aplica","“PRESTAR SERVICIOS PROFESIONALES DE ABOGADO ESPECIALIZADO, PARA FORTALECER EL EQUIPO DEL ÁREA DE GESTIÓN DE DESARROLLO LOCAL DE ANTONIO NARIÑO EN LOS DIFERENTES TRÁMITES JURÍDICOS Y CONTRACTUALES NECESARIOS PARA LA EJECUCIÓN DEL PLAN DE DESARROLLO LOCAL.",null,"Un Nuevo Contrato Social y Ambiental para la Bogotá del Siglo XXI","No aplica",{"$f":"IF(ISERROR(VLOOKUP(K15,Proposito_programa!$C$2:$E$59,2,FALSE)),\" \",VLOOKUP(K15,Proposito_programa!$C$2:$E$59,2,FALSE))","v":" "},{"$f":"IF(ISERROR(VLOOKUP(K15,Proposito_programa!$C$2:$E$59,3,FALSE)),\" \",VLOOKUP(K15,Proposito_programa!$C$2:$E$59,3,FALSE))","v":" "},null,null,"39725525-9","Gina Paola Cubillos Castañeda","Persona Natural",null,null,null," $                 28.008.000",null,null,null,28008000,null,"2021-02-05","2021-02-05","2021-06-06",4,null,null,null,null,null,null,"x",null,null,null,1]
[3,2021,"FDLAN-CD-003-2021","https://community.secop.gov.co/Public/Tendering/OpportunityDetail/Index?noticeUID=CO1.NTC.1739261&isFromPublicArea=True&isModal=False","Contratos de prestación de servicios profesionales y de apoyo a la gestión","CONTRATACION DIRECTA","No aplica","“PRESTAR LOS SERVICIOS PROFESIONALES COMO ABOGADO EN LOS DIVERSOS TEMAS CONTRACTUALES QUE REQUIERA EL ÁREA DE GESTIÓN DE DESARROLLO LOCAL DE ANTONIO NARIÑO”.",null,"Un Nuevo Contrato Social y Ambiental para la Bogotá del Siglo XXI","No aplica",{"$f":"IF(ISERROR(VLOOKUP(K16,Proposito_programa!$C$2:$E$59,2,FALSE)),\" \",VLOOKUP(K16,Proposito_programa!$C$2:$E$59,2,FALSE))","v":" "},{"$f":"IF(ISERROR(VLOOKUP(K16,Proposito_programa!$C$2:$E$59,3,FALSE)),\" \",VLOOKUP(K16,Proposito_programa!$C$2:$E$59,3,FALSE))","v":" "},null,null,"93418099-2","Alexander Ospina García","Persona Natural",null,null,null," $                 24.336.000",null,null,null,24336000,null,"2021-02-05","2021-02-05","2021-06-06",4,null,null,null,null,null,null,"x",null,null,null,1]
[4,2021,"FDLAN-CD-004-2021","https://community.secop.gov.co/Public/Tendering/OpportunityDetail/Index?noticeUID=CO1.NTC.1739937&isFromPublicArea=True&isModal=False","Contratos de prestación de servicios profesionales y de apoyo a la gestión","CONTRATACION DIRECTA","No aplica","“PRESTAR LOS SERVICIOS PROFESIONALES COMO ABOGADO DEL ÁREA DE GESTIÓN DE DESARROLLO LOCAL DEL FDLAN, EN EL TRÁMITE DE PROCESOS DE SELECCIÓN DE CONTRATISTAS Y EL PROCESO DE LIQUIDACIÓN DE CONTRATOS Y CONVENIOS”.",null,"Un Nuevo Contrato Social y Ambiental para la Bogotá del Siglo XXI","No aplica",{"$f":"IF(ISERROR(VLOOKUP(K17,Proposito_programa!$C$2:$E$59,2,FALSE)),\" \",VLOOKUP(K17,Proposito_programa!$C$2:$E$59,2,FALSE))","v":" "},{"$f":"IF(ISERROR(VLOOKUP(K17,Proposito_programa!$C$2:$E$59,3,FALSE)),\" \",VLOOKUP(K17,Proposito_programa!$C$2:$E$59,3,FALSE))","v":" "},null,null,"53139097-5","Angela Tatiana Tunjano Reyes","Persona Natural",null,null,null," $                 23.496.000",null,null,null,23496000,null,"2021-02-05","2021-02-05","2021-06-06",4,null,null,null,null,null,null,"x",null,null,null,1]
[5,2021,"FDLAN-CD-005-2021","https://community.secop.gov.co/Public/Tendering/OpportunityDetail/Index?noticeUID=CO1.NTC.1739482&isFromPublicArea=True&isModal=False","Contratos de prestación de servicios profesionales y de apoyo a la gestión","CONTRATACION DIRECTA","No aplica","“PRESTAR SERVICIOS PROFESIONALES AL FONDO DE DESARROLLO LOCAL DE ANTONIO NARIÑO EN EL APOYO A LOS DIFERENTES TRÁMITES Y GESTIONES CONTRACTUALES”",null,"Un Nuevo Contrato Social y Ambiental para la Bogotá del Siglo XXI","No aplica",{"$f":"IF(ISERROR(VLOOKUP(K18,Proposito_programa!$C$2:$E$59,2,FALSE)),\" \",VLOOKUP(K18,Proposito_programa!$C$2:$E$59,2,FALSE))","v":" "},{"$f":"IF(ISERROR(VLOOKUP(K18,Proposito_programa!$C$2:$E$59,3,FALSE)),\" \",VLOOKUP(K18,Proposito_programa!$C$2:$E$59,3,FALSE))","v":" "},null,null,"1024542049-4","Yurani Andrea Angulo Peñaranda","Persona Natural",null,null,null," $                 19.152.000",null,null,null,19152000,null,"2021-02-05","2021-02-05","2021-03-04",4,null,null,null,null,null,null,null,null,null,null,1]
[6,2021,"FDLAN-CD-006-2021","https://community.secop.gov.co/Public/Tendering/OpportunityDetail/Index?noticeUID=CO1.NTC.1740018&isFromPublicArea=True&isModal=False","Contratos de prestación de servicios profesionales y de apoyo a la gestión","CONTRATACION DIRECTA","No aplica","“PRESTAR SERVICIOS PROFESIONALES AL DESPACHO DEL ALCALDE LOCAL EN LA ORIENTACIÓN Y APLICACIÓN DE LA NORMATIVIDAD NACIONAL, DISTRITAL Y LOCAL, LA PROYECCIÓN DE ACTOS ADMINISTRATIVOS, RESPUESTAS A RECLAMACIONES, REQUERIMIENTOS Y DERECHOS DE PETICIÓN RELACIONADOS CON LA GESTIÓN LOCAL QUE PERMITAN EL FORTALECIMIENTO INSTITUCIONAL”.",null,"Un Nuevo Contrato Social y Ambiental para la Bogotá del Siglo XXI","No aplica",{"$f":"IF(ISERROR(VLOOKUP(K19,Proposito_programa!$C$2:$E$59,2,FALSE)),\" \",VLOOKUP(K19,Proposito_programa!$C$2:$E$59,2,FALSE))","v":" "},{"$f":"IF(ISERROR(VLOOKUP(K19,Proposito_programa!$C$2:$E$59,3,FALSE)),\" \",VLOOKUP(K19,Proposito_programa!$C$2:$E$59,3,FALSE))","v":" "},null,null,"79955083-7","Carlos Alberto Melo López","Persona Natural",null,null,null," $                 20.964.000",null,null,null,20964000,null,"2021-02-05","2021-02-05","2021-06-06",4,null,null,null,null,null,null,"x",null,null,null,1]
[7,2021,"FDLAN-007-2021","https://community.secop.gov.co/Public/Tendering/OpportunityDetail/Index?noticeUID=CO1.NTC.1740116&isFromPublicArea=True&isModal=False","Contratos de prestación de servicios profesionales y de apoyo a la gestión","CONTRATACION DIRECTA","No aplica","“PRESTAR LOS SERVICIOS PROFESIONALES AL ÁREA DE GESTIÓN DE DESARROLLO LOCAL EN LAS DIFERENTES ETAPAS DE LOS PROCESOS CONTRACTUALES QUE ADELANTA LA ENTIDAD”.",null,"Un Nuevo Contrato Social y Ambiental para la Bogotá del Siglo XXI","No aplica",{"$f":"IF(ISERROR(VLOOKUP(K20,Proposito_programa!$C$2:$E$59,2,FALSE)),\" \",VLOOKUP(K20,Proposito_programa!$C$2:$E$59,2,FALSE))","v":" "},{"$f":"IF(ISERROR(VLOOKUP(K20,Proposito_programa!$C$2:$E$59,3,FALSE)),\" \",VLOOKUP(K20,Proposito_programa!$C$2:$E$59,3,FALSE))","v":" "},null,null,"1072715196-7","Andrés Felipe Rojas Garzon","Persona Natural",null,null,null," $                 43.198.200",null,null,null,43198200,null,"2021-02-05","2021-02-05","2021-12-31","10 MESES 24 DIAS ",null,null,null,null,null,null,"x",null,null,null,1]
[8,2021,"FDLAN-CD-008-2021","https://community.secop.gov.co/Public/Tendering/OpportunityDetail/Index?noticeUID=CO1.NTC.1739894&isFromPublicArea=True&isModal=False","Contratos de prestación de servicios profesionales y de apoyo a la gestión","CONTRATACION DIRECTA","No aplica","“PRESTACIÓN DE SERVICIOS DE APOYO A LA GESTIÓN AL FONDO DE DESARROLLO LOCAL PARA LA OPERACIÓN Y GESTIÓN DE LA PLATAFORMA SECOP”.",null,"Un Nuevo Contrato Social y Ambiental para la Bogotá del Siglo XXI","No aplica",{"$f":"IF(ISERROR(VLOOKUP(K21,Proposito_programa!$C$2:$E$59,2,FALSE)),\" \",VLOOKUP(K21,Proposito_programa!$C$2:$E$59,2,FALSE))","v":" "},{"$f":"IF(ISERROR(VLOOKUP(K21,Proposito_programa!$C$2:$E$59,3,FALSE)),\" \",VLOOKUP(K21,Proposito_programa!$C$2:$E$59,3,FALSE))","v":" "},null,null,"1031157060-0","Diva Lizeth Rozo Trujillo","Persona Natural",null,null,null," $                 13.176.000",null,null,null,13176000,null,"2021-02-05","2021-02-05","2021-06-06",4,null,null,null,null,null,null,"x",null,null,null,1]
[9,2021,"FDLAN-CD-009-2021","https://community.secop.gov.co/Public/Tendering/OpportunityDetail/Index?noticeUID=CO1.NTC.1740041&isFromPublicArea=True&isModal=False","Contratos de prestación de servicios profesionales y de apoyo a la gestión","CONTRATACION DIRECTA","No aplica","“PRESTAR LOS SERVICIOS PROFESIONALES EN LOS PROCESOS ADMINISTRATIVOS, CONTABLES Y FINANCIEROS DEL FONDO DE DESARROLLO LOCAL EN EL MARCO DE LAS NORMAS DE DERECHO CONTABLE Y DE SEGURIDAD SOCIAL, EN EL ÁREA DE GESTIÓN DEL DESARROLLO, ADMINISTRATIVA Y FINANCIERA DE LA ALCALDÍA DE ANTONIO NARIÑO”.",null,"Un Nuevo Contrato Social y Ambiental para la Bogotá del Siglo XXI","No aplica",{"$f":"IF(ISERROR(VLOOKUP(K22,Proposito_programa!$C$2:$E$59,2,FALSE)),\" \",VLOOKUP(K22,Proposito_programa!$C$2:$E$59,2,FALSE))","v":" "},{"$f":"IF(ISERROR(VLOOKUP(K22,Proposito_programa!$C$2:$E$59,3,FALSE)),\" \",VLOOKUP(K22,Proposito_programa!$C$2:$E$59,3,FALSE))","v":" "},null,null,"1022342284-3","Yuly Andrea Solano Guerrero","Persona Natural",null,null,null," $                 18.840.000",null,null,null,18840000,null,"2021-02-05","2021-02-05","2021-06-06",4,null,null,null,null,null,null,"x",null,null,null,1]
[10,2021,"FDLAN-CD-010-2021","https://community.secop.gov.co/Public/Tendering/OpportunityDetail/Index?noticeUID=CO1.NTC.1740105&isFromPublicArea=True&isModal=False","Contratos de prestación de servicios profesionales y de apoyo a la gestión","CONTRATACION DIRECTA","No aplica","“PRESTACIÓN DE SERVICIOS PROFESIONALES DE INGENIERO ADMINISTRADOR DE RED DEL FONDO DE DESARROLLO LOCAL ANTONIO NARIÑO”",null,"Un Nuevo Contrato Social y Ambiental para la Bogotá del Siglo XXI","No aplica",{"$f":"IF(ISERROR(VLOOKUP(K23,Proposito_programa!$C$2:$E$59,2,FALSE)),\" \",VLOOKUP(K23,Proposito_programa!$C$2:$E$59,2,FALSE))","v":" "},{"$f":"IF(ISERROR(VLOOKUP(K23,Proposito_programa!$C$2:$E$59,3,FALSE)),\" \",VLOOKUP(K23,Proposito_programa!$C$2:$E$59,3,FALSE))","v":" "},null,null,"79890568-6","Abel Ernesto Castiblanco Duran","Persona Natural",null,null,null," $                 61.560.000",null,null,null,61560000,null,"2021-02-05","2021-02-05","2021-12-31","10 MESES 24 DIAS ",null,null,null,null,null,null,"x",null,null,null,1]
[11,2021,"FDLAN-CD-011-2021","https://community.secop.gov.co/Public/Tendering/OpportunityDetail/Index?noticeUID=CO1.NTC.1739922&isFromPublicArea=True&isModal=False","Contratos de prestación de servicios profesionales y de apoyo a la gestión","CONTRATACION DIRECTA","No aplica","“PRESTAR SERVICIOS DE APOYO ADMINISTRATIVA Y ASISTENCIALMENTE AL ÁREA DE GESTIÓN DEL DESARROLLO LOCAL DE ANTONIO NARIÑO”.",null,"Un Nuevo Contrato Social y Ambiental para la Bogotá del Siglo XXI","No aplica",{"$f":"IF(ISERROR(VLOOKUP(K24,Proposito_programa!$C$2:$E$59,2,FALSE)),\" \",VLOOKUP(K24,Proposito_programa!$C$2:$E$59,2,FALSE))","v":" "},{"$f":"IF(ISERROR(VLOOKUP(K24,Proposito_programa!$C$2:$E$59,3,FALSE)),\" \",VLOOKUP(K24,Proposito_programa!$C$2:$E$59,3,FALSE))","v":" "},null,null,"39677722-7","Silvia Milena Nieto Gómez","Persona Natural",null,null,null," $                 10.455.600",null,null,null,10455600,null,"2021-02-05","2021-02-05","2021-06-06",4,null,null,null,null,null,null,"x",null,null,null,1]
[12,2021,"FDLAN-CD-012-2021","https://community.secop.gov.co/Public/Tendering/OpportunityDetail/Index?noticeUID=CO1.NTC.1740101&isFromPublicArea=True&isModal=False","Contratos de prestación de servicios profesionales y de apoyo a la gestión","CONTRATACION DIRECTA","No aplica","“PRESTAR LOS SERVICIOS DE APOYO COMO TÉCNICO ADMINISTRATIVO EN EL ÁREA DE GESTIÓN DE DESARROLLO LOCAL ANTONIO NARIÑO PARA LOS DIFERENTES ASUNTOS CONTRACTUALES QUE ADELANTA LA ENTIDAD”.",null,"Un Nuevo Contrato Social y Ambiental para la Bogotá del Siglo XXI","No aplica",{"$f":"IF(ISERROR(VLOOKUP(K25,Proposito_programa!$C$2:$E$59,2,FALSE)),\" \",VLOOKUP(K25,Proposito_programa!$C$2:$E$59,2,FALSE))","v":" "},{"$f":"IF(ISERROR(VLOOKUP(K25,Proposito_programa!$C$2:$E$59,3,FALSE)),\" \",VLOOKUP(K25,Proposito_programa!$C$2:$E$59,3,FALSE))","v":" "},null,null,"79379005-1","Carlos Julio Patiño Bohorquez","Persona Natural",null,null,null," $                 13.188.000",null,null,null,13188000,null,"2021-02-05","2021-02-05","2021-06-06",4,null,null,null,null,null,null,"x",null,null,null,1]
[13,2021,"FDLAN-CD-013-2021","https://community.secop.gov.co/Public/Tendering/OpportunityDetail/Index?noticeUID=CO1.NTC.1740119&isFromPublicArea=True&isModal=False","Contratos de prestación de servicios profesionales y de apoyo a la gestión","CONTRATACION DIRECTA","No aplica","“PRESTACIÓN DE SERVICIOS DE APOYO EN EL MANEJO DE SISTEMAS DE INFORMACIÓN EN LO RELACIONADO CON LA CONTRATACIÓN QUE REALIZA EL ÁREA DE GESTIÓN DE DESARROLLO LOCAL DE ANTONIO NARIÑO”.",null,"Un Nuevo Contrato Social y Ambiental para la Bogotá del Siglo XXI","No aplica",{"$f":"IF(ISERROR(VLOOKUP(K26,Proposito_programa!$C$2:$E$59,2,FALSE)),\" \",VLOOKUP(K26,Proposito_programa!$C$2:$E$59,2,FALSE))","v":" "},{"$f":"IF(ISERROR(VLOOKUP(K26,Proposito_programa!$C$2:$E$59,3,FALSE)),\" \",VLOOKUP(K26,Proposito_programa!$C$2:$E$59,3,FALSE))","v":" "},null,null,"57443219-4","Jacqueline Leal Rangel","Persona Natural",null,null,null," $                 28.576.800",null,null,null,28576800,null,"2021-02-05","2021-02-05","2021-12-31","10 MESES 24 DIAS ",null,null,null,null,null,null,"x",null,null,null,1]
[14,2021,"FDLAN-CD-014-2021","https://community.secop.gov.co/Public/Tendering/OpportunityDetail/Index?noticeUID=CO1.NTC.1742957&isFromPublicArea=True&isModal=False","Contratos de prestación de servicios profesionales y de apoyo a la gestión","CONTRATACION DIRECTA","No aplica","“PRESTACIÓN DE SERVICIOS PROFESIONALES ESPECIALIZADOS PARA APOYAR AL ALCALDE EN LA FORMULACIÓN, SEGUIMIENTO E IMPLEMENTACIÓN DE LAS ACTUACIONES ADMINISTRATIVAS, PARA EL FORTALECIMIENTO DE LOS PROCESOS DE ATENCIÓN A LOS REQUERIMIENTOS DE LOS ENTES DE CONTROL, LAS DIFERENTES OFICINAS DEL GOBIERNO Y LA JUNTA ADMINISTRADORA LOCAL, APLICANDO LA NORMATIVIDAD NACIONAL, DISTRITAL Y LOCAL VIGENTE”.",null,"Un Nuevo Contrato Social y Ambiental para la Bogotá del Siglo XXI","No aplica",{"$f":"IF(ISERROR(VLOOKUP(K27,Proposito_programa!$C$2:$E$59,2,FALSE)),\" \",VLOOKUP(K27,Proposito_programa!$C$2:$E$59,2,FALSE))","v":" "},{"$f":"IF(ISERROR(VLOOKUP(K27,Proposito_programa!$C$2:$E$59,3,FALSE)),\" \",VLOOKUP(K27,Proposito_programa!$C$2:$E$59,3,FALSE))","v":" "},null,null,"1032446399-5","Sara Sofia Lancheros Ramirez","Persona Natural",null,null,null," $                 99.000.000",null,null,null,99000000,null,"2021-02-08","2021-02-08","2022-01-07","11 MESES ",null,null,null,null,null,null,"x",null,null,null,1]
[15,2021,"FDLAN-CD-015-2021","https://community.secop.gov.co/Public/Tendering/OpportunityDetail/Index?noticeUID=CO1.NTC.1743324&isFromPublicArea=True&isModal=False","Contratos de prestación de servicios profesionales y de apoyo a la gestión","CONTRATACION DIRECTA","No aplica","“PRESTACIÓN DE SERVICIOS DE APOYO A LA GESTIÓN COMO TÉCNICO JURÍDICO EN LOS TRÁMITES QUE SEAN DE LA COMPETENCIA DEL ALCALDE LOCAL”.",null,"Un Nuevo Contrato Social y Ambiental para la Bogotá del Siglo XXI","No aplica",{"$f":"IF(ISERROR(VLOOKUP(K28,Proposito_programa!$C$2:$E$59,2,FALSE)),\" \",VLOOKUP(K28,Proposito_programa!$C$2:$E$59,2,FALSE))","v":" "},{"$f":"IF(ISERROR(VLOOKUP(K28,Proposito_programa!$C$2:$E$59,3,FALSE)),\" \",VLOOKUP(K28,Proposito_programa!$C$2:$E$59,3,FALSE))","v":" "},null,null,"1010202710-6","Leidy Carolina Valdés Prada","Persona Natural",null,null,null," $                 43.857.000",null,null,null,43857000,null,"2021-02-08","2021-02-08","2022-01-07","11 MESES ",null,null,null,null,null,null,"x",null,null,null,1]
[16,2021,"FDLAN-CD-016-2021","https://community.secop.gov.co/Public/Tendering/OpportunityDetail/Index?noticeUID=CO1.NTC.1745445&isFromPublicArea=True&isModal=False","Contratos de prestación de servicios profesionales y de apoyo a la gestión","CONTRATACION DIRECTA","No aplica","“APOYAR TÉCNICAMENTE A LOS RESPONSABLES E INTEGRANTES DE LOS PROCESOS EN LA IMPLEMENTACIÓN DE HERRAMIENTAS DE GESTIÓN, SIGUIENDO LOS LINEAMIENTOS METODOLÓGICOS ESTABLECIDOS POR LA OFICINA ASESORA DE PLANEACIÓN DE LA SECRETARÍA DISTRITAL DE GOBIERNO”.",null,"Un Nuevo Contrato Social y Ambiental para la Bogotá del Siglo XXI","No aplica",{"$f":"IF(ISERROR(VLOOKUP(K29,Proposito_programa!$C$2:$E$59,2,FALSE)),\" \",VLOOKUP(K29,Proposito_programa!$C$2:$E$59,2,FALSE))","v":" "},{"$f":"IF(ISERROR(VLOOKUP(K29,Proposito_programa!$C$2:$E$59,3,FALSE)),\" \",VLOOKUP(K29,Proposito_programa!$C$2:$E$59,3,FALSE))","v":" "},null,null,"52951852-8","Angela Fernanda Díaz Torres","Persona Natural",null,null,null," $                 20.040.000",null,null,null,20040000,null,"2021-02-08","2021-02-08","2021-06-09",4,null,null,null,null,null,null,"x",null,null,null,1]
[17,2021,"FDLAN-CD-017-2021","https://community.secop.gov.co/Public/Tendering/OpportunityDetail/Index?noticeUID=CO1.NTC.1744911&isFromPublicArea=True&isModal=False","Contratos de prestación de servicios profesionales y de apoyo a la gestión","CONTRATACION DIRECTA","No aplica","“PRESTACIÓN DE SERVICIOS PERSONALES DE APOYO A LAS ACTIVIDADES ADMINISTRATIVAS EN CUANTO A NOTIFICACIÓN DE LA CORRESPONDENCIA GENERADA POR EL ÁREA DE GESTIÓN DE DESARROLLO LOCAL ANTONIO NARIÑO”.",null,"Un Nuevo Contrato Social y Ambiental para la Bogotá del Siglo XXI","No aplica",{"$f":"IF(ISERROR(VLOOKUP(K30,Proposito_programa!$C$2:$E$59,2,FALSE)),\" \",VLOOKUP(K30,Proposito_programa!$C$2:$E$59,2,FALSE))","v":" "},{"$f":"IF(ISERROR(VLOOKUP(K30,Proposito_programa!$C$2:$E$59,3,FALSE)),\" \",VLOOKUP(K30,Proposito_programa!$C$2:$E$59,3,FALSE))","v":" "},null,null,"1013646511-3","Angie Paola Bayona Contreras","Persona Natural",null,null,null," $                    9.396.000",null,null,null,9396000,null,"2021-02-08","2021-02-08","2021-06-09",4,null,null,null,null,null,null,"x",null,null,null,1]
[18,2021,"FDLAN-CD-018-2021","https://community.secop.gov.co/Public/Tendering/OpportunityDetail/Index?noticeUID=CO1.NTC.1743652&isFromPublicArea=True&isModal=False","Contratos de prestación de servicios profesionales y de apoyo a la gestión","CONTRATACION DIRECTA","No aplica","“PRESTACIÓN DE SERVICIOS PROFESIONALES DE APOYO AL DESPACHO DEL ALCALDE LOCAL DE ANTONIO NARIÑO EN EL SEGUIMIENTO Y CONTROL DE LA PLANEACIÓN Y EJECUCIÓN DEL PLAN DE DESARROLLO LOCAL, ASÍ COMO DEL SEGUIMIENTO A LA ACTUALIZACIÓN DE LOS DOCUMENTOS TÉCNICOS DE SOPORTE, FICHAS DE ESTADÍSTICA BÁSICAS DE INVERSIÓN REQUERIDAS EN LA EJECUCIÓN DE LOS PROYECTOS DE INVERSIÓN DEL FONDO DE DESARROLLO LOCAL DE ANTONIO NARIÑO”.",null,"Un Nuevo Contrato Social y Ambiental para la Bogotá del Siglo XXI","No aplica",{"$f":"IF(ISERROR(VLOOKUP(K31,Proposito_programa!$C$2:$E$59,2,FALSE)),\" \",VLOOKUP(K31,Proposito_programa!$C$2:$E$59,2,FALSE))","v":" "},{"$f":"IF(ISERROR(VLOOKUP(K31,Proposito_programa!$C$2:$E$59,3,FALSE)),\" \",VLOOKUP(K31,Proposito_programa!$C$2:$E$59,3,FALSE))","v":" "},null,null,"1010196548-2","Leidy Maydee Fonseca Linares","Persona Natural",null,null,null," $                 72.738.600",null,null,null,72738600,null,"2021-02-08","2021-02-08","2021-12-31","10 MESES 21 DIAS ",null,null,null,null,null,null,"x",null,null,null,1]
[20,2021,"FDLAN-CD-020-2021","https://community.secop.gov.co/Public/Tendering/OpportunityDetail/Index?noticeUID=CO1.NTC.1745253&isFromPublicArea=True&isModal=False","Contratos de prestación de servicios profesionales y de apoyo a la gestión","CONTRATACION DIRECTA","No aplica","“PRESTAR LOS SERVICIOS PROFESIONALES COMO ABOGADO EN LOS DIVERSOS TEMAS CONTRACTUALES QUE REQUIERA EL ÁREA DE GESTIÓN DE DESARROLLO LOCAL DE ANTONIO NARIÑO”.",null,"Un Nuevo Contrato Social y Ambiental para la Bogotá del Siglo XXI","No aplica",{"$f":"IF(ISERROR(VLOOKUP(K32,Proposito_programa!$C$2:$E$59,2,FALSE)),\" \",VLOOKUP(K32,Proposito_programa!$C$2:$E$59,2,FALSE))","v":" "},{"$f":"IF(ISERROR(VLOOKUP(K32,Proposito_programa!$C$2:$E$59,3,FALSE)),\" \",VLOOKUP(K32,Proposito_programa!$C$2:$E$59,3,FALSE))","v":" "},null,null,"53084402-0","Laura Liliana Rodriguez Jimenez","Persona Natural",null,null,null," $                 70.299.000",null,null,null,70299000,null,"2021-02-08","2021-02-08","2021-12-31",321,null,null,null,null,null,null,"x",null,null,null,1]
[21,2021,"FDLAN-CD-021-2021","https://community.secop.gov.co/Public/Tendering/OpportunityDetail/Index?noticeUID=CO1.NTC.1746063&isFromPublicArea=True&isModal=False","Contratos de prestación de servicios profesionales y de apoyo a la gestión","CONTRATACION DIRECTA","No aplica","“PRESTAR LOS SERVICIOS PROFESIONALES ESPECIALIZADOS EN LOS DIFERENTES TRÁMITES RELACIONADOS CON LOS PROCESOS DE SELECCIÓN DE CONTRATISTAS DE LA ALCALDÍA LOCAL DE ANTONIO NARIÑO”.",null,"Un Nuevo Contrato Social y Ambiental para la Bogotá del Siglo XXI","No aplica",{"$f":"IF(ISERROR(VLOOKUP(K33,Proposito_programa!$C$2:$E$59,2,FALSE)),\" \",VLOOKUP(K33,Proposito_programa!$C$2:$E$59,2,FALSE))","v":" "},{"$f":"IF(ISERROR(VLOOKUP(K33,Proposito_programa!$C$2:$E$59,3,FALSE)),\" \",VLOOKUP(K33,Proposito_programa!$C$2:$E$59,3,FALSE))","v":" "},null,null,"80778782-1","David Ricardo Molina Peñuela","Persona Natural",null,null,null," $                 99.000.000",null,null,null,99000000,null,"2021-02-08","2021-02-08","2022-01-07",4,null,null,null,null,null,null,"x",null,null,null,1]
[22,2021,"FDLAN-CD-022-2021","https://community.secop.gov.co/Public/Tendering/OpportunityDetail/Index?noticeUID=CO1.NTC.1752609&isFromPublicArea=True&isModal=False","Contratos de prestación de servicios profesionales y de apoyo a la gestión","CONTRATACION DIRECTA","No aplica","“PRESTACIÓN DE SERVICIOS PROFESIONALES ESPECIALIZADOS PARA APOYAR AL ALCALDE EN LA FORMULACIÓN, SEGUIMIENTO E IMPLEMENTACIÓN DE LAS ESTRATEGIAS LOCAL PARA LA TERMINACIÓN JURÍDICA O INACTIVACIÓN DE LAS ACTUACIONES ADMINISTRATIVAS EN LA ALCALDÍA LOCAL”.",null,"Un Nuevo Contrato Social y Ambiental para la Bogotá del Siglo XXI","No aplica",{"$f":"IF(ISERROR(VLOOKUP(K34,Proposito_programa!$C$2:$E$59,2,FALSE)),\" \",VLOOKUP(K34,Proposito_programa!$C$2:$E$59,2,FALSE))","v":" "},{"$f":"IF(ISERROR(VLOOKUP(K34,Proposito_programa!$C$2:$E$59,3,FALSE)),\" \",VLOOKUP(K34,Proposito_programa!$C$2:$E$59,3,FALSE))","v":" "},null,null,"79614602-7","Raul Antonio Vargas Camargo","Persona Natural",null,null,null," $                 82.698.000",null,null,null,82698000,null,"2021-02-10","2021-02-10","2022-01-09","11 MESES ",null,null,null,null,null,null,"x",null,null,null,1]
[23,2021,"FDLAN-CD-023-2021","https://community.secop.gov.co/Public/Tendering/OpportunityDetail/Index?noticeUID=CO1.NTC.1752292&isFromPublicArea=True&isModal=False","Contratos de prestación de servicios profesionales y de apoyo a la gestión","CONTRATACION DIRECTA","No aplica","“PRESTAR LOS SERVICIOS PROFESIONALES COMO ABOGADO PARA FORTALECER EL EQUIPO DE INSPECCIÓN, VIGILANCIA Y CONTROL DEL ÁREA DE GESTIÓN DE DESARROLLO LOCAL ANTONIO NARIÑO EN COBROS PERSUASIVOS”",null,"Un Nuevo Contrato Social y Ambiental para la Bogotá del Siglo XXI","No aplica",{"$f":"IF(ISERROR(VLOOKUP(K35,Proposito_programa!$C$2:$E$59,2,FALSE)),\" \",VLOOKUP(K35,Proposito_programa!$C$2:$E$59,2,FALSE))","v":" "},{"$f":"IF(ISERROR(VLOOKUP(K35,Proposito_programa!$C$2:$E$59,3,FALSE)),\" \",VLOOKUP(K35,Proposito_programa!$C$2:$E$59,3,FALSE))","v":" "},null,null,"33378204-9","Nathalia  Milena Roa Soler","Persona Natural",null,null,null," $                 34.884.000",null,null,null,34884000,null,"2021-02-10","2021-02-10","2021-08-11",6,null,null,null,null,null,null,"x",null,null,null,1]
[24,2021,"FDLAN-CD-024-2021(57072)","https://community.secop.gov.co/Public/Tendering/OpportunityDetail/Index?noticeUID=CO1.NTC.1758369&isFromPublicArea=True&isModal=False","Contratos de prestación de servicios profesionales y de apoyo a la gestión","CONTRATACION DIRECTA","No aplica","“PRESTACIÓN DE SERVICIOS DE APOYO A LA GESTIÓN PARA LA CONDUCCIÓN DE LOS VEHÍCULOS QUE CONFORMAN EL PARQUE AUTOMOTOR EN PROPIEDAD O CUSTODIA DEL FONDO DE DESARROLLO LOCAL DE ANTONIO NARIÑO, Y EL TRANSPORTE DE SERVIDORES PÚBLICOS PARA LA REALIZACIÓN DE LAS ACTIVIDADES MISIONALES DE LA ALCALDÍA LOCAL DE ANTONIO NARIÑO”.",null,"Un Nuevo Contrato Social y Ambiental para la Bogotá del Siglo XXI","No aplica",{"$f":"IF(ISERROR(VLOOKUP(K36,Proposito_programa!$C$2:$E$59,2,FALSE)),\" \",VLOOKUP(K36,Proposito_programa!$C$2:$E$59,2,FALSE))","v":" "},{"$f":"IF(ISERROR(VLOOKUP(K36,Proposito_programa!$C$2:$E$59,3,FALSE)),\" \",VLOOKUP(K36,Proposito_programa!$C$2:$E$59,3,FALSE))","v":" "},null,null,"79488817-2","Carlos Martín Bojaca Torres","Persona Natural",null,null,null," $                 32.130.000",null,null,null,32130000,null,"2021-02-11","2021-02-11","2021-12-25","10 MESES 15 DIAS ",null,null,null,null,null,null,"x",null,null,null,1]
[25,2021,"FDLAN-CD-025-2021(56111)","https://community.secop.gov.co/Public/Tendering/OpportunityDetail/Index?noticeUID=CO1.NTC.1758592&isFromPublicArea=True&isModal=False","Contratos de prestación de servicios profesionales y de apoyo a la gestión","CONTRATACION DIRECTA","No aplica","“PRESTACIÓN DE SERVICIOS TÉCNICOS PARA APOYAR AL ÁREA DE GESTIÓN DE DESARROLLO LOCAL EN LA ELABORACIÓN DE ESTUDIOS DE SECTOR Y ANÁLISIS DEL MERCADO NECESARIOS PARA LOS PROCESOS DE FORMULACIÓN QUE ADELANTA EL FONDO DE DESARROLLO LOCAL DE ANTONIO NARIÑO”.",null,"Un Nuevo Contrato Social y Ambiental para la Bogotá del Siglo XXI","No aplica",{"$f":"IF(ISERROR(VLOOKUP(K37,Proposito_programa!$C$2:$E$59,2,FALSE)),\" \",VLOOKUP(K37,Proposito_programa!$C$2:$E$59,2,FALSE))","v":" "},{"$f":"IF(ISERROR(VLOOKUP(K37,Proposito_programa!$C$2:$E$59,3,FALSE)),\" \",VLOOKUP(K37,Proposito_programa!$C$2:$E$59,3,FALSE))","v":" "},null,null,"1013666496-6","Eliana Katerine Rozo Quintero","Persona Natural",null,null,null," $                 28.429.200",null,null,null,28429200,null,"2021-02-11","2021-02-11","2021-12-31","10 MESES 18 DIAS ",null,null,null,null,null,null,"x",null,null,null,1]
[26,2021,"FDLAN-CD-026-2021(54471)","https://community.secop.gov.co/Public/Tendering/OpportunityDetail/Index?noticeUID=CO1.NTC.1758744&isFromPublicArea=True&isModal=False","Contratos de prestación de servicios profesionales y de apoyo a la gestión","CONTRATACION DIRECTA","No aplica","“PRESTACIÓN DE SERVICIOS PERSONALES PARA APOYAR LA GESTIÓN Y EJECUCIÓN DE ACTIVIDADES ADMINISTRATIVAS, OPERATIVAS Y LOGÍSTICAS QUE SE ADELANTAN EN EL ÁREA DE GESTIÓN DEL DESARROLLO LOCAL -ALMACÉN- DE LA ALCALDÍA LOCAL DE ANTONIO NARIÑO.”",null,"Un Nuevo Contrato Social y Ambiental para la Bogotá del Siglo XXI","No aplica",{"$f":"IF(ISERROR(VLOOKUP(K38,Proposito_programa!$C$2:$E$59,2,FALSE)),\" \",VLOOKUP(K38,Proposito_programa!$C$2:$E$59,2,FALSE))","v":" "},{"$f":"IF(ISERROR(VLOOKUP(K38,Proposito_programa!$C$2:$E$59,3,FALSE)),\" \",VLOOKUP(K38,Proposito_programa!$C$2:$E$59,3,FALSE))","v":" "},null,null,"1014253261-3","Carlos Eduardo Bravo Rodriguez","Persona Natural",null,null,null," $                 10.080.000",null,null,null,10080000,null,"2021-02-11","2021-02-11","2021-06-10",4,null,null,null,null,null,null,"x",null,null,null,1]
[27,2021,"FDLAN-CD-27-2021(56064)","https://community.secop.gov.co/Public/Tendering/OpportunityDetail/Index?noticeUID=CO1.NTC.1758387&isFromPublicArea=True&isModal=False","Contratos de prestación de servicios profesionales y de apoyo a la gestión","CONTRATACION DIRECTA","No aplica","“PRESTACIÓN DE SERVICIOS PROFESIONALES PARA APOYAR AL ALCALDE LOCAL EN LA GESTIÓN DE LOS ASUNTOS RELACIONADOS CON SEGURIDAD CIUDADANA, CONVIVENCIA Y PREVENCIÓN DE CONFLICTIVIDADES, VIOLENCIAS Y DELITOS EN LA LOCALIDAD,  VIOLENCIAS Y DELITOS EN LA LOCALIDAD, DE CONFORMIDAD CON EL MARCO NORMATIVO APLICABLE EN LA MATERIA”.",null,"Un Nuevo Contrato Social y Ambiental para la Bogotá del Siglo XXI","No aplica",{"$f":"IF(ISERROR(VLOOKUP(K39,Proposito_programa!$C$2:$E$59,2,FALSE)),\" \",VLOOKUP(K39,Proposito_programa!$C$2:$E$59,2,FALSE))","v":" "},{"$f":"IF(ISERROR(VLOOKUP(K39,Proposito_programa!$C$2:$E$59,3,FALSE)),\" \",VLOOKUP(K39,Proposito_programa!$C$2:$E$59,3,FALSE))","v":" "},null,null,"1055226889-2","Juan David Cuervo Zorro","Persona Natural",null,null,null," $                 40.824.000",null,null,null,40824000,null,"2021-02-11","2021-02-11","2021-08-11",6,null,null,null,null,null,null,"x",null,null,null,1]
[28,2021,"FDLAN-CD-028-2021(56050)","https://community.secop.gov.co/Public/Tendering/OpportunityDetail/Index?noticeUID=CO1.NTC.1762752&isFromPublicArea=True&isModal=False","Contratos de prestación de servicios profesionales y de apoyo a la gestión","CONTRATACION DIRECTA","No aplica","“APOYAR EN LAS TAREAS OPERATIVAS DE CARÁCTER ARCHIVÍSTICO DESARROLLADAS EN LA ALCALDÍA LOCAL DE ANTONIO NARIÑO PARA GARANTIZAR LA APLICACIÓN CORRECTA DE LOS PROCEDIMIENTOS TÉCNICOS”.",null,"Un Nuevo Contrato Social y Ambiental para la Bogotá del Siglo XXI","No aplica",{"$f":"IF(ISERROR(VLOOKUP(K40,Proposito_programa!$C$2:$E$59,2,FALSE)),\" \",VLOOKUP(K40,Proposito_programa!$C$2:$E$59,2,FALSE))","v":" "},{"$f":"IF(ISERROR(VLOOKUP(K40,Proposito_programa!$C$2:$E$59,3,FALSE)),\" \",VLOOKUP(K40,Proposito_programa!$C$2:$E$59,3,FALSE))","v":" "},null,null,"80794585-4","Jose Wilmer Nagles Céspedes","Persona Natural",null,null,null," $                 12.240.000",null,null,null,12240000,null,"2021-02-12","2021-02-12","2021-06-13",4,null,null,null,null,null,null,"x",null,null,null,1]
[29,2021,"FDLAN-CD-029-2021(55671)","https://community.secop.gov.co/Public/Tendering/OpportunityDetail/Index?noticeUID=CO1.NTC.1761852&isFromPublicArea=True&isModal=False","Contratos de prestación de servicios profesionales y de apoyo a la gestión","CONTRATACION DIRECTA","No aplica","“PRESTACIÓN DE SERVICIOS DE APOYO A LA GESTIÓN PARA LA CONDUCCIÓN DE LOS VEHÍCULOS QUE CONFORMAN EL PARQUE AUTOMOTOR EN PROPIEDAD O CUSTODIA DEL FONDO DE DESARROLLO LOCAL DE ANTONIO NARIÑO, Y EL TRANSPORTE DE SERVIDORES PÚBLICOS PARA LA REALIZACIÓN DE LAS ACTIVIDADES MISIONALES DE LA ALCALDÍA LOCAL DE ANTONIO NARIÑO”.",null,"Un Nuevo Contrato Social y Ambiental para la Bogotá del Siglo XXI","No aplica",{"$f":"IF(ISERROR(VLOOKUP(K41,Proposito_programa!$C$2:$E$59,2,FALSE)),\" \",VLOOKUP(K41,Proposito_programa!$C$2:$E$59,2,FALSE))","v":" "},{"$f":"IF(ISERROR(VLOOKUP(K41,Proposito_programa!$C$2:$E$59,3,FALSE)),\" \",VLOOKUP(K41,Proposito_programa!$C$2:$E$59,3,FALSE))","v":" "},null,null,"79392568-1","Hector Giovanny Ayala Rodriguez","Persona Natural",null,null,null," $                 27.674.100",null,null,null,27674100,null,"2021-02-12","2021-02-12","2021-12-31","10 MESES 17 DIAS ",null,null,null,null,null,null,"x",null,null,null,1]
[30,2021,"FDLAN-CD-030-2021(55671)","https://community.secop.gov.co/Public/Tendering/OpportunityDetail/Index?noticeUID=CO1.NTC.1761775&isFromPublicArea=True&isModal=False","Contratos de prestación de servicios profesionales y de apoyo a la gestión","CONTRATACION DIRECTA","No aplica","“PRESTACIÓN DE SERVICIOS DE APOYO A LA GESTIÓN PARA LA CONDUCCIÓN DE LOS VEHÍCULOS QUE CONFORMAN EL PARQUE AUTOMOTOR EN PROPIEDAD O CUSTODIA DEL FONDO DE DESARROLLO LOCAL DE ANTONIO NARIÑO, Y EL TRANSPORTE DE SERVIDORES PÚBLICOS PARA LA REALIZACIÓN DE LAS ACTIVIDADES MISIONALES DE LA ALCALDÍA LOCAL DE ANTONIO NARIÑO”.",null,"Un Nuevo Contrato Social y Ambiental para la Bogotá del Siglo XXI","No aplica",{"$f":"IF(ISERROR(VLOOKUP(K42,Proposito_programa!$C$2:$E$59,2,FALSE)),\" \",VLOOKUP(K42,Proposito_programa!$C$2:$E$59,2,FALSE))","v":" "},{"$f":"IF(ISERROR(VLOOKUP(K42,Proposito_programa!$C$2:$E$59,3,FALSE)),\" \",VLOOKUP(K42,Proposito_programa!$C$2:$E$59,3,FALSE))","v":" "},null,null,"79370565-3","Jorge Ramiro Ortiz Jaramillo","Persona Natural",null,null,null," $                 27.674.100",null,null,null,27674100,null,"2021-02-12","2021-02-12","2021-12-31","10 MESES 17 DIAS ",null,null,null,null,null,null,"x",null,null,null,1]
[31,2021,"FDLAN-CD-031-2021 (56229)","https://community.secop.gov.co/Public/Tendering/OpportunityDetail/Index?noticeUID=CO1.NTC.1763626&isFromPublicArea=True&isModal=False","Contratos de prestación de servicios profesionales y de apoyo a la gestión","CONTRATACION DIRECTA","No aplica","“PRESTACIÓN DE SERVICIOS PROFESIONALES ESPECIALIZADOS PARA LA FORMULACIÓN, DEFINICIÓN, SOCIALIZACIÓN Y SEGUIMIENTO DE UNA PROPUESTA INTEGRAL DE INTERVENCIÓN URBANÍSTICA EN ESPACIOS Y ESCENARIOS LOCALES Y SU INCLUSIÓN EN LOS DISTINTOS PLANES, Y PROGRAMAS Y PROYECTOS DE INVERSIÓN”.",null,"Un Nuevo Contrato Social y Ambiental para la Bogotá del Siglo XXI","No aplica",{"$f":"IF(ISERROR(VLOOKUP(K43,Proposito_programa!$C$2:$E$59,2,FALSE)),\" \",VLOOKUP(K43,Proposito_programa!$C$2:$E$59,2,FALSE))","v":" "},{"$f":"IF(ISERROR(VLOOKUP(K43,Proposito_programa!$C$2:$E$59,3,FALSE)),\" \",VLOOKUP(K43,Proposito_programa!$C$2:$E$59,3,FALSE))","v":" "},null,null,"52428551-4","Silvana Marcela Gomez Vergara","Persona Natural",null,null,null," $                 77.379.700",null,null,null,77379700,null,"2021-02-12","2021-02-12","2021-12-31","10 MESES 17 DIAS ",null,null,null,null,null,null,"x",null,null,null,1]
[32,2021,"FDLAN-CD-032-2021 (56363)","https://community.secop.gov.co/Public/Tendering/OpportunityDetail/Index?noticeUID=CO1.NTC.1763306&isFromPublicArea=True&isModal=False","Contratos de prestación de servicios profesionales y de apoyo a la gestión","CONTRATACION DIRECTA","No aplica","“PRESTACIÓN DE SERVICIOS PROFESIONALES COMO APOYO EN LA FORMULACIÓN, SEGUIMIENTO, SUPERVISIÓN Y LIQUIDACIÓN DE PROYECTOS DE OBRA E INFRAESTRUCTURA RELACIONADOS CON MALLA VIAL Y ESPACIO PÚBLICO EN LA LOCALIDAD ANTONIO NARIÑO”.",null,"Un Nuevo Contrato Social y Ambiental para la Bogotá del Siglo XXI","No aplica",{"$f":"IF(ISERROR(VLOOKUP(K44,Proposito_programa!$C$2:$E$59,2,FALSE)),\" \",VLOOKUP(K44,Proposito_programa!$C$2:$E$59,2,FALSE))","v":" "},{"$f":"IF(ISERROR(VLOOKUP(K44,Proposito_programa!$C$2:$E$59,3,FALSE)),\" \",VLOOKUP(K44,Proposito_programa!$C$2:$E$59,3,FALSE))","v":" "},null,null,"1074133645-1","Manuel Eduardo Alvarez Vanegas","Persona Natural",null,null,null," $                 63.400.000",null,null,null,63400000,null,"2021-02-12","2021-02-12","2021-12-31","10 MESES 17 DIAS ",null,null,null,null,null,null,"x",null,null,null,1]
[33,2021,"FDLAN-CD-033-2021 (56356)","https://community.secop.gov.co/Public/Tendering/OpportunityDetail/Index?noticeUID=CO1.NTC.1763616&isFromPublicArea=True&isModal=False","Contratos de prestación de servicios profesionales y de apoyo a la gestión","CONTRATACION DIRECTA","No aplica","“PRESTACIÓN DE SERVICIOS PROFESIONALES AL ÁREA DE GESTIÓN DE DESARROLLO LOCAL ANTONIO NARIÑO PARA APOYAR LA FORMULACIÓN, SOCIALIZACIÓN Y SEGUIMIENTO DE LOS PROGRAMAS Y PROYECTOS DE INVERSIÓN RELACIONADOS CON LA INFRAESTRUCTURA DEL FONDO, ASÌ COMO EN EL DILIGENCIAMIENTO, ELABORACIÓN Y ACTUALIZACIÓN DE LAS FICHAS DE ESTADÍSTICAS BÁSICAS DE INVERSIÓN Y LOS DOCUMENTOS TÉCNICOS DE SOPORTE NECESARIOS PARA PARA EL PLAN DE DESARROLLO LOCAL”.",null,"Un Nuevo Contrato Social y Ambiental para la Bogotá del Siglo XXI","No aplica",{"$f":"IF(ISERROR(VLOOKUP(K45,Proposito_programa!$C$2:$E$59,2,FALSE)),\" \",VLOOKUP(K45,Proposito_programa!$C$2:$E$59,2,FALSE))","v":" "},{"$f":"IF(ISERROR(VLOOKUP(K45,Proposito_programa!$C$2:$E$59,3,FALSE)),\" \",VLOOKUP(K45,Proposito_programa!$C$2:$E$59,3,FALSE))","v":" "},null,null,"1026570525-5","Juan Jose Londoño Salgado","Persona Natural",null,null,null," $                 52.939.000",null,null,null,52939000,null,"2021-02-12","2021-02-12","2021-12-31","10 MESES 17 DIAS ",null,null,null,null,null,null,"x",null,null,null,1]
[34,2021,"FDLAN-CD-034-2021 (56001)","https://community.secop.gov.co/Public/Tendering/OpportunityDetail/Index?noticeUID=CO1.NTC.1768647&isFromPublicArea=True&isModal=False","Contratos de prestación de servicios profesionales y de apoyo a la gestión","CONTRATACION DIRECTA","No aplica","\"PRESTACIÓN DE SERVICIOS PROFESIONALES COMO ABOGADO PARA APOYAR AL DESPACHO DEL ALCALDE LOCAL DE ANTONIO NARIÑO EN LA COORDINACIÓN DE LOS DISTINTOS ASPECTOS JURIDICOS ASOCIADOS  CON LA INSPECCIÓN, VIGILANCIA Y CONTROL RESPECTO A LOS ESTABLECIMIENTOS DE COMERCIO, EL ORDENAMIENTO TERRITORIAL Y EL USO ESPACIO PÚBLICO, CON MIRAS AL MEJORAMIENTO DE LA CONVIVENCIA LOCAL, REALIZANDO LA VERIFICACIÓN DE INFRACCIONES A LA NORMATIVA VIGENTE EN LA LOCALIDAD\"",null,"Un Nuevo Contrato Social y Ambiental para la Bogotá del Siglo XXI","No aplica",{"$f":"IF(ISERROR(VLOOKUP(K46,Proposito_programa!$C$2:$E$59,2,FALSE)),\" \",VLOOKUP(K46,Proposito_programa!$C$2:$E$59,2,FALSE))","v":" "},{"$f":"IF(ISERROR(VLOOKUP(K46,Proposito_programa!$C$2:$E$59,3,FALSE)),\" \",VLOOKUP(K46,Proposito_programa!$C$2:$E$59,3,FALSE))","v":" "},null,null,"1018405078-1","Javier Andrés Alfonso Martínez","Persona Natural",null,null,null," $                 40.050.000",null,null,null,40050000,null,"2021-02-15","2021-02-15","2021-08-16",6,null,null,null,null,null,null,"x",null,null,null,1]
[35,2021,"035-2021-CPS-P(56003)","https://community.secop.gov.co/Public/Tendering/OpportunityDetail/Index?noticeUID=CO1.NTC.1766923&isFromPublicArea=True&isModal=False","Contratos de prestación de servicios profesionales y de apoyo a la gestión","CONTRATACION DIRECTA","No aplica","\"PRESTAR SERVICIOS PROFESIONALES COMO ABOGADO PARA APOYAR LOS DISTINTOS PROCEDIMEINTOS SANCIONATORIOS Y TRÁMITES ADMINISTRATIVOS QUE ADELANTE EL EQUIPO DE INSPECCIÓN,VIGILANCIA Y CONTROL DEL AREA D EGESTIÓN POLICIVA Y JURIDICA DEL FONDO DE DESARROLLO LOCAL ANTONIO NARIÑO, CON OCASIÓN ALA INFRACCIÓN Y APLICACIÓN DE NORMAS POLICIVAS Y APOYO AL DESPACHO DEL ALCALDE LOCAL EN ASUNTOS RELACIONADOS CON DESPACHOS COMISORIOS.",null,"Un Nuevo Contrato Social y Ambiental para la Bogotá del Siglo XXI","No aplica",{"$f":"IF(ISERROR(VLOOKUP(K47,Proposito_programa!$C$2:$E$59,2,FALSE)),\" \",VLOOKUP(K47,Proposito_programa!$C$2:$E$59,2,FALSE))","v":" "},{"$f":"IF(ISERROR(VLOOKUP(K47,Proposito_programa!$C$2:$E$59,3,FALSE)),\" \",VLOOKUP(K47,Proposito_programa!$C$2:$E$59,3,FALSE))","v":" "},null,null,"80199901-7","Mauricio Nicolás Ricaurte Benítez","Persona Natural",null,null,null," $                 19.884.000",null,null,null,19884000,null,"2021-02-15","2021-02-15","2021-06-16",4,null,null,null,null,null,null,"x",null,null,null,1]
[36,2021,"036-2021 CPS-P (54485)","https://community.secop.gov.co/Public/Tendering/OpportunityDetail/Index?noticeUID=CO1.NTC.1767322&isFromPublicArea=True&isModal=False","Contratos de prestación de servicios profesionales y de apoyo a la gestión","CONTRATACION DIRECTA","No aplica","\"PRESTAR LOS SERVICIOS PROFESIONALES PARA APOYAR LA FORMULACIÓN, EJECUCIÓN, SEGUIMIENTO Y MEJORA CONTINUA DE LAS HERRAMIENTAS QUE CONFORMAN LA GESTIÓN AMBIENTAL INSTITUCIONAL DE LA ALCALDIA LOCAL ANTONIO NARIÑO\"",null,"Un Nuevo Contrato Social y Ambiental para la Bogotá del Siglo XXI","No aplica",{"$f":"IF(ISERROR(VLOOKUP(K48,Proposito_programa!$C$2:$E$59,2,FALSE)),\" \",VLOOKUP(K48,Proposito_programa!$C$2:$E$59,2,FALSE))","v":" "},{"$f":"IF(ISERROR(VLOOKUP(K48,Proposito_programa!$C$2:$E$59,3,FALSE)),\" \",VLOOKUP(K48,Proposito_programa!$C$2:$E$59,3,FALSE))","v":" "},null,null,"1013671508-6","Jonathan Caledron Peña","Persona Natural",null,null,null," $                 15.996.000",null,null,null,15996000,null,"2021-02-15","2021-02-15","2021-06-15",4,null,null,null,null,null,null,"x",null,null,null,1]
[37,2021,"037-2021 CPS-P-56356","https://community.secop.gov.co/Public/Tendering/OpportunityDetail/Index?noticeUID=CO1.NTC.1767648&isFromPublicArea=True&isModal=False","Contratos de prestación de servicios profesionales y de apoyo a la gestión","CONTRATACION DIRECTA","No aplica","“PRESTACIÓN DE SERVICIOS PROFESIONALES AL ÁREA DE GESTIÓN DE DESARROLLO LOCAL ANTONIO NARIÑO PARA APOYAR LA FORMULACIÓN, SOCIALIZACIÓN Y SEGUIMIENTO DE LOS PROGRAMAS Y PROYECTOS DE INVERSIÓN RELACIONADOS CON LA INFRAESTRUCTURA DEL FONDO, ASÌ COMO EN EL DILIGENCIAMIENTO, ELABORACIÓN Y ACTUALIZACIÓN DE LAS FICHAS DE ESTADÍSTICAS BÁSICAS DE INVERSIÓN Y LOS DOCUMENTOS TÉCNICOS DE SOPORTE NECESARIOS PARA PARA EL PLAN DE DESARROLLO LOCAL”.",null,"Un Nuevo Contrato Social y Ambiental para la Bogotá del Siglo XXI","No aplica",{"$f":"IF(ISERROR(VLOOKUP(K49,Proposito_programa!$C$2:$E$59,2,FALSE)),\" \",VLOOKUP(K49,Proposito_programa!$C$2:$E$59,2,FALSE))","v":" "},{"$f":"IF(ISERROR(VLOOKUP(K49,Proposito_programa!$C$2:$E$59,3,FALSE)),\" \",VLOOKUP(K49,Proposito_programa!$C$2:$E$59,3,FALSE))","v":" "},null,null,"1019067443-8","Juan Camillo Gallego Vives","Persona Natural",null,null,null," $                 52.438.000",null,null,null,52438000,null,"2021-02-15","2021-02-15","2021-12-31","10 MESES 14 DIAS ",null,null,null,null,null,null,"x",null,null,null,1]
[38,2021,"038-2021-CPS-AG(56044)","https://community.secop.gov.co/Public/Tendering/OpportunityDetail/Index?noticeUID=CO1.NTC.1769378&isFromPublicArea=True&isModal=False","Contratos de prestación de servicios profesionales y de apoyo a la gestión","CONTRATACION DIRECTA","No aplica","APOYAR EN LAS TAREAS OPERATIVAS DE CARÁCTER ARCHIVÍSTICO DESARROLLADAS EN LA ALCALDÍA LOCAL DE ANTONIO NARIÑO PARA GARANTIZAR LA APLICACIÓN CORRECTA DE LOS PROCEDIMIENTOS TÉCNICOS",null,"Un Nuevo Contrato Social y Ambiental para la Bogotá del Siglo XXI","No aplica",{"$f":"IF(ISERROR(VLOOKUP(K50,Proposito_programa!$C$2:$E$59,2,FALSE)),\" \",VLOOKUP(K50,Proposito_programa!$C$2:$E$59,2,FALSE))","v":" "},{"$f":"IF(ISERROR(VLOOKUP(K50,Proposito_programa!$C$2:$E$59,3,FALSE)),\" \",VLOOKUP(K50,Proposito_programa!$C$2:$E$59,3,FALSE))","v":" "},null,null,"52289797-1","Jakeline Mendez Orjuela","Persona Natural",null,null,null," $                 30.990.000",null,null,null,30990000,null,"2021-02-15","2021-02-15","2021-12-14","10 MESES ",null,null,null,null,null,null,"x",null,null,null,1]
[39,2021,"039-2021-CPS-AG(56283)","https://community.secop.gov.co/Public/Tendering/OpportunityDetail/Index?noticeUID=CO1.NTC.1773074&isFromPublicArea=True&isModal=False","Contratos de prestación de servicios profesionales y de apoyo a la gestión","CONTRATACION DIRECTA","No aplica","PRESTACIÓN DE SERVICIOS DE APOYO A LA GESTIÓN AL FONDO DE DESARROLLO LOCAL ANTONIO NARIÑO EN LOS ASUNTOS OPERATIVOS RELACIONADOS CON SEGURIDAD CIUDADANA, CONVIVENCIA Y PREVENCIÓN DE LAS CONFLICTIVIDADES, VIOLENCIAS Y DELITOS DE LA LOCALIDAD, DE CONFORMIDAD CON EL MARCO NORMATIVO APLICABLE EN LA MATERIA",null,"Un Nuevo Contrato Social y Ambiental para la Bogotá del Siglo XXI","No aplica",{"$f":"IF(ISERROR(VLOOKUP(K51,Proposito_programa!$C$2:$E$59,2,FALSE)),\" \",VLOOKUP(K51,Proposito_programa!$C$2:$E$59,2,FALSE))","v":" "},{"$f":"IF(ISERROR(VLOOKUP(K51,Proposito_programa!$C$2:$E$59,3,FALSE)),\" \",VLOOKUP(K51,Proposito_programa!$C$2:$E$59,3,FALSE))","v":" "},null,null,"79577246-9","Raúl Iván Borja Suarez","Persona Natural",null,null,null," $                    6.960.000",null,null,null,6960000,null,"2021-02-16","2021-02-16","2021-06-16",4,null,null,null,null,null,null,"x",null,null,null,1]
[40,2021,"040-2021 CPS-P (56283)","https://community.secop.gov.co/Public/Tendering/OpportunityDetail/Index?noticeUID=CO1.NTC.1773345&isFromPublicArea=True&isModal=False","Contratos de prestación de servicios profesionales y de apoyo a la gestión","CONTRATACION DIRECTA","No aplica","PRESTACIÓN DE SERVICIOS DE APOYO A LA GESTIÓN AL FONDO DE DESARROLLO LOCAL ANTONIO NARIÑO EN LOS ASUNTOS OPERATIVOS RELACIONADOS CON SEGURIDAD CIUDADANA, CONVIVENCIA Y PREVENCIÓN DE LAS CONFLICTIVIDADES, VIOLENCIAS Y DELITOS DE LA LOCALIDAD, DE CONFORMIDAD CON EL MARCO NORMATIVO APLICABLE EN LA MATERIA",null,"Un Nuevo Contrato Social y Ambiental para la Bogotá del Siglo XXI","No aplica",{"$f":"IF(ISERROR(VLOOKUP(K52,Proposito_programa!$C$2:$E$59,2,FALSE)),\" \",VLOOKUP(K52,Proposito_programa!$C$2:$E$59,2,FALSE))","v":" "},{"$f":"IF(ISERROR(VLOOKUP(K52,Proposito_programa!$C$2:$E$59,3,FALSE)),\" \",VLOOKUP(K52,Proposito_programa!$C$2:$E$59,3,FALSE))","v":" "},null,null,"80123930-4","Jaiver Alejandro Pineda Castillo","Persona Natural",null,null,null," $                    6.960.000",null,null,null,6960000,null,"2021-02-16","2021-02-16","2021-06-16",4,null,null,null,null,null,null,"x",null,null,null,1]
[41,2021,"041-2021 CPS-AG(56283)","https://community.secop.gov.co/Public/Tendering/OpportunityDetail/Index?noticeUID=CO1.NTC.1773347&isFromPublicArea=True&isModal=False","Contratos de prestación de servicios profesionales y de apoyo a la gestión","CONTRATACION DIRECTA","No aplica","PRESTACIÓN DE SERVICIOS DE APOYO A LA GESTIÓN AL FONDO DE DESARROLLO LOCAL ANTONIO NARIÑO EN LOS ASUNTOS OPERATIVOS RELACIONADOS CON SEGURIDAD CIUDADANA, CONVIVENCIA Y PREVENCIÓN DE LAS CONFLICTIVIDADES, VIOLENCIAS Y DELITOS DE LA LOCALIDAD, DE CONFORMIDAD CON EL MARCO NORMATIVO APLICABLE EN LA MATERIA",null,"Un Nuevo Contrato Social y Ambiental para la Bogotá del Siglo XXI","No aplica",{"$f":"IF(ISERROR(VLOOKUP(K53,Proposito_programa!$C$2:$E$59,2,FALSE)),\" \",VLOOKUP(K53,Proposito_programa!$C$2:$E$59,2,FALSE))","v":" "},{"$f":"IF(ISERROR(VLOOKUP(K53,Proposito_programa!$C$2:$E$59,3,FALSE)),\" \",VLOOKUP(K53,Proposito_programa!$C$2:$E$59,3,FALSE))","v":" "},null,null,"79320109-4","Jose Rafael Sanchez Quito","Persona Natural",null,null,null," $                    6.960.000",null,null,null,6960000,null,"2021-02-16","2021-02-16","2021-06-16",4,null,null,null,null,null,null,"x",null,null,null,1]
[42,2021,"042-2021-CPS-AG(56340)","https://community.secop.gov.co/Public/Tendering/OpportunityDetail/Index?noticeUID=CO1.NTC.1773342&isFromPublicArea=True&isModal=False","Contratos de prestación de servicios profesionales y de apoyo a la gestión","CONTRATACION DIRECTA","No aplica","PRESTAR SERVICIOS DE APOYO A LA ALCALDÍA LOCAL DE ANTONIO NARIÑO A LA GESTIÓN ADMINISTRATIVA DEL TEATRO VILLA MAYOR",null,"Un Nuevo Contrato Social y Ambiental para la Bogotá del Siglo XXI","No aplica",{"$f":"IF(ISERROR(VLOOKUP(K54,Proposito_programa!$C$2:$E$59,2,FALSE)),\" \",VLOOKUP(K54,Proposito_programa!$C$2:$E$59,2,FALSE))","v":" "},{"$f":"IF(ISERROR(VLOOKUP(K54,Proposito_programa!$C$2:$E$59,3,FALSE)),\" \",VLOOKUP(K54,Proposito_programa!$C$2:$E$59,3,FALSE))","v":" "},null,null,"1143835530-6","Sara Jimenez Nieto","Persona Natural",null,null,null," $                 23.490.000",null,null,null,23490000,null,"2021-02-16","2021-02-16","2021-12-15",10,null,null,null,null,null,null,"x",null,null,null,1]
[43,2021,"FDLAN-CD-043-2021 (56035)","https://community.secop.gov.co/Public/Tendering/OpportunityDetail/Index?noticeUID=CO1.NTC.1771950&isFromPublicArea=True&isModal=False","Contratos de prestación de servicios profesionales y de apoyo a la gestión","CONTRATACION DIRECTA","No aplica","PRESTACIÓN DE SERVICIOS PROFESIONALES PARA APOYAR TÉCNICAMENTE LAS DISTINTAS ETAPAS DE LOS PROCESOS DE COMPETENCIA DE LA ALCALDÍA LOCAL PARA LA DEPURACIÓN DE LAS ACTUACIONES ADMINISTRATIVAS",null,"Un Nuevo Contrato Social y Ambiental para la Bogotá del Siglo XXI","No aplica",{"$f":"IF(ISERROR(VLOOKUP(K55,Proposito_programa!$C$2:$E$59,2,FALSE)),\" \",VLOOKUP(K55,Proposito_programa!$C$2:$E$59,2,FALSE))","v":" "},{"$f":"IF(ISERROR(VLOOKUP(K55,Proposito_programa!$C$2:$E$59,3,FALSE)),\" \",VLOOKUP(K55,Proposito_programa!$C$2:$E$59,3,FALSE))","v":" "},null,null,"1074129871-4","Santiago Nicolás Mora Gutiérrez","Persona Natural",null,null,null," $                 20.040.000",null,null,null,20040000,null,"2021-02-16","2021-02-16","2021-06-17",4,null,null,null,null,null,null,"x",null,null,null,1]
[44,2021,"FDLAN-CD-44-2021(56283)","https://community.secop.gov.co/Public/Tendering/OpportunityDetail/Index?noticeUID=CO1.NTC.1777151&isFromPublicArea=True&isModal=False","Contratos de prestación de servicios profesionales y de apoyo a la gestión","CONTRATACION DIRECTA","No aplica","“PRESTACIÓN DE SERVICIOS DE APOYO A LA GESTIÓN AL FONDO DE DESARROLLO LOCAL ANTONIO NARIÑO EN LOS ASUNTOS OPERATIVOS RELACIONADOS CON SEGURIDAD CIUDADANA, CONVIVENCIA Y PREVENCIÓN DE LAS CONFLICTIVIDADES, VIOLENCIAS Y DELITOS DE LA LOCALIDAD, DE CONFORMIDAD CON EL MARCO NORMATIVO APLICABLE EN LA MATERIA”",null,"Un Nuevo Contrato Social y Ambiental para la Bogotá del Siglo XXI","No aplica",{"$f":"IF(ISERROR(VLOOKUP(K56,Proposito_programa!$C$2:$E$59,2,FALSE)),\" \",VLOOKUP(K56,Proposito_programa!$C$2:$E$59,2,FALSE))","v":" "},{"$f":"IF(ISERROR(VLOOKUP(K56,Proposito_programa!$C$2:$E$59,3,FALSE)),\" \",VLOOKUP(K56,Proposito_programa!$C$2:$E$59,3,FALSE))","v":" "},null,null,"51876386-5","Claudia lomara Ayala Beltrán","Persona Natural",null,null,null," $                    6.960.000",null,null,null,6960000,null,"2021-02-17","2021-02-17","2021-06-17",4,null,null,null,null,null,null,"x",null,null,null,1]
[45,2021,"FDLAN-CD-045-2021(56070)","https://community.secop.gov.co/Public/Tendering/OpportunityDetail/Index?noticeUID=CO1.NTC.1776986&isFromPublicArea=True&isModal=False","Contratos de prestación de servicios profesionales y de apoyo a la gestión","CONTRATACION DIRECTA","No aplica","“PRESTACIÓN DE SERVICIOS PROFESIONALES DE APOYO ADMINISTRATIVO EN EL ÁREA DE GESTIÓN DE DESARROLLO LOCAL DEL FONDO DE DESARROLLO LOCAL DE ANTONIO NARIÑO”.",null,"Un Nuevo Contrato Social y Ambiental para la Bogotá del Siglo XXI","No aplica",{"$f":"IF(ISERROR(VLOOKUP(K57,Proposito_programa!$C$2:$E$59,2,FALSE)),\" \",VLOOKUP(K57,Proposito_programa!$C$2:$E$59,2,FALSE))","v":" "},{"$f":"IF(ISERROR(VLOOKUP(K57,Proposito_programa!$C$2:$E$59,3,FALSE)),\" \",VLOOKUP(K57,Proposito_programa!$C$2:$E$59,3,FALSE))","v":" "},null,null,"53118341-8","Zaida Liliana Salinas Saavedra","Persona Natural",null,null,null," $                 17.444.000",null,null,null,17444000,null,"2021-02-17","2021-02-17","2021-06-17",4,null,null,null,null,null,null,"x",null,null,null,1]
[46,2021,"FDLAN- CD-046-2021(55993)","https://community.secop.gov.co/Public/Tendering/OpportunityDetail/Index?noticeUID=CO1.NTC.1780215&isFromPublicArea=True&isModal=False","Contratos de prestación de servicios profesionales y de apoyo a la gestión","CONTRATACION DIRECTA","No aplica","“PRESTAR SERVICIOS PROFESIONALES COMO ABOGADO PARA APOYAR LOS DISTINTOS PROCEDIMIENTOS SANCIONATORIOS Y TRÁMITES ADMINISTRATIVOS QUE ADELANTA EL EQUIPO DE INSPECCIÓN, VIGILANCIA Y CONTROL DEL ÁREA DE GESTIÓN POLICIVA Y JURÍDICA DEL FONDO DE DESARROLLO LOCAL ANTONIO NARIÑO, CON OCASIÓN A LA INFRACCIÓN Y APLICACIÓN DE NORMAS POLICIVAS EN MATERIA DE PROTECCIÓN AL CONSUMIDOR, CONTROL DE CALIDAD, PRECIOS, PESAS Y MEDIDAS”.",null,"Un Nuevo Contrato Social y Ambiental para la Bogotá del Siglo XXI","No aplica",{"$f":"IF(ISERROR(VLOOKUP(K58,Proposito_programa!$C$2:$E$59,2,FALSE)),\" \",VLOOKUP(K58,Proposito_programa!$C$2:$E$59,2,FALSE))","v":" "},{"$f":"IF(ISERROR(VLOOKUP(K58,Proposito_programa!$C$2:$E$59,3,FALSE)),\" \",VLOOKUP(K58,Proposito_programa!$C$2:$E$59,3,FALSE))","v":" "},null,null,"1013631878-5","Adriana Katherine Herrera Uribe","Persona Natural",null,null,null," $                 16.488.000",null,null,null,16488000,null,"2021-02-18","2021-02-18","2021-06-19",4,null,null,null,null,null,null,"x",null,null,null,1]
[47,2021,"FDLAN-CD-047-2021 (56351)","https://community.secop.gov.co/Public/Tendering/OpportunityDetail/Index?noticeUID=CO1.NTC.1780115&isFromPublicArea=True&isModal=False","Contratos de prestación de servicios profesionales y de apoyo a la gestión","CONTRATACION DIRECTA","No aplica","“PRESTAR SERVICIOS DE APOYO A LAS LABORES DE CARÁCTER OPERACIONAL Y/O ADMINISTRATIVAS QUE SE ADELANTEN EN EL ÁREA DE GESTIÓN DE DESARROLLO LOCAL ESPECIALMENTE EN LOS RELACIONADOS CON INFRAESTRUCTURA DE LA ALCALDÍA LOCAL DE ANTONIO NARIÑO”.",null,"Un Nuevo Contrato Social y Ambiental para la Bogotá del Siglo XXI","No aplica",{"$f":"IF(ISERROR(VLOOKUP(K59,Proposito_programa!$C$2:$E$59,2,FALSE)),\" \",VLOOKUP(K59,Proposito_programa!$C$2:$E$59,2,FALSE))","v":" "},{"$f":"IF(ISERROR(VLOOKUP(K59,Proposito_programa!$C$2:$E$59,3,FALSE)),\" \",VLOOKUP(K59,Proposito_programa!$C$2:$E$59,3,FALSE))","v":" "},null,null,"1013664030-9","Laura Estefania Sierra Castañeda","Persona Natural",null,null,null," $                 10.800.000",null,null,null,10800000,null,"2021-02-18","2021-02-18","2021-08-19",6,null,null,null,null,null,null,"x",null,null,null,1]
[48,2021,"FDLAN-CD-048-2021(56283)","https://community.secop.gov.co/Public/Tendering/OpportunityDetail/Index?noticeUID=CO1.NTC.1779336&isFromPublicArea=True&isModal=False","Contratos de prestación de servicios profesionales y de apoyo a la gestión","CONTRATACION DIRECTA","No aplica","“PRESTACIÓN DE SERVICIOS DE APOYO A LA GESTIÓN AL FONDO DE DESARROLLO LOCAL ANTONIO NARIÑO EN LOS ASUNTOS OPERATIVOS RELACIONADOS CON SEGURIDAD CIUDADANA, CONVIVENCIA Y PREVENCIÓN DE LAS CONFLICTIVIDADES, VIOLENCIAS Y DELITOS DE LA LOCALIDAD, DE CONFORMIDAD CON EL MARCO NORMATIVO APLICABLE EN LA MATERIA”.",null,"Un Nuevo Contrato Social y Ambiental para la Bogotá del Siglo XXI","No aplica",{"$f":"IF(ISERROR(VLOOKUP(K60,Proposito_programa!$C$2:$E$59,2,FALSE)),\" \",VLOOKUP(K60,Proposito_programa!$C$2:$E$59,2,FALSE))","v":" "},{"$f":"IF(ISERROR(VLOOKUP(K60,Proposito_programa!$C$2:$E$59,3,FALSE)),\" \",VLOOKUP(K60,Proposito_programa!$C$2:$E$59,3,FALSE))","v":" "},null,null,"19341321-1","Alvaro Amaris Rojas","Persona Natural",null,null,null," $                    6.960.000",null,null,null,6960000,null,"2021-02-18","2021-02-18","2021-06-18",4,null,null,null,null,null,null,"x",null,null,null,1]
[49,2021,"FDLAN-CD-049-2021(57142)","https://community.secop.gov.co/Public/Tendering/OpportunityDetail/Index?noticeUID=CO1.NTC.1780795&isFromPublicArea=True&isModal=False","Contratos de prestación de servicios profesionales y de apoyo a la gestión","CONTRATACION DIRECTA","No aplica","“PRESTAR LOS SERVICIOS PROFESIONALES AL DESPACHO DE LA ALCALDÍA LOCAL DE ANTONIO NARIÑO PARA LA COORDINACIÓN DEL GRUPO DE PROFESIONALES ENCARGADOS DE LA FORMULACIÓN, SEGUIMIENTO, EVALUACIÓN Y ACOMPAÑAMIENTO A LOS PROCESOS DE INFRAESTRUCTURA DE LA LOCALIDAD DE ANTONIO NARIÑO”.",null,"Un Nuevo Contrato Social y Ambiental para la Bogotá del Siglo XXI","No aplica",{"$f":"IF(ISERROR(VLOOKUP(K61,Proposito_programa!$C$2:$E$59,2,FALSE)),\" \",VLOOKUP(K61,Proposito_programa!$C$2:$E$59,2,FALSE))","v":" "},{"$f":"IF(ISERROR(VLOOKUP(K61,Proposito_programa!$C$2:$E$59,3,FALSE)),\" \",VLOOKUP(K61,Proposito_programa!$C$2:$E$59,3,FALSE))","v":" "},null,null,"1013656467-1","David Felipe Giraldo Rios ","Persona Natural",null,null,null," $                 71.215.200",null,null,null,71215200,null,"2021-02-18","2021-02-18","2021-12-31","10 MESES 14 DIAS ",null,null,null,null,null,null,"x",null,null,null,1]
[50,2021,"FDLAN-CD-050-2021(56082)","https://community.secop.gov.co/Public/Tendering/OpportunityDetail/Index?noticeUID=CO1.NTC.1780654&isFromPublicArea=True&isModal=False","Contratos de prestación de servicios profesionales y de apoyo a la gestión","CONTRATACION DIRECTA","No aplica","“EL CONTRATO QUE SE PRETENDE CELEBRAR, TENDRÁ POR OBJETO APOYAR AL EQUIPO DE PRENSA Y COMUNICACIONES DE LA ALCALDÍA LOCAL DE ANTONIO NARIÑO EN LA REALIZACIÓN DE PRODUCTOS Y PIEZAS DIGITALES, IMPRESAS Y PUBLICITARIAS DE GRAN FORMATO Y DE ANIMACIÓN GRÁFICA, ASÍ COMO APOYAR LA PRODUCCIÓN Y MONTAJE DE EVENTOS”.",null,"Un Nuevo Contrato Social y Ambiental para la Bogotá del Siglo XXI","No aplica",{"$f":"IF(ISERROR(VLOOKUP(K62,Proposito_programa!$C$2:$E$59,2,FALSE)),\" \",VLOOKUP(K62,Proposito_programa!$C$2:$E$59,2,FALSE))","v":" "},{"$f":"IF(ISERROR(VLOOKUP(K62,Proposito_programa!$C$2:$E$59,3,FALSE)),\" \",VLOOKUP(K62,Proposito_programa!$C$2:$E$59,3,FALSE))","v":" "},null,null,"53140769-8","Johanna Marcela Gonzalez Abril","Persona Natural",null,null,null," $                 55.500.000",null,null,null,55500000,null,"2021-02-18","2021-02-18","2021-07-12",10,null,null,null,null,null,null,"x",null,null,null,1]
[51,2021,"FDLAN-CD-051-2021(57142)","https://community.secop.gov.co/Public/Tendering/ContractNoticePhases/View?PPI=CO1.PPI.12159659&isFromPublicArea=True&isModal=False","Contratos de prestación de servicios profesionales y de apoyo a la gestión","CONTRATACION DIRECTA","No aplica","“PRESTAR LOS SERVICIOS PROFESIONALES AL DESPACHO DE LA ALCALDÍA LOCAL DE ANTONIO NARIÑO PARA LA COORDINACIÓN DEL GRUPO DE PROFESIONALES ENCARGADOS DE LA FORMULACIÓN, SEGUIMIENTO, EVALUACIÓN Y ACOMPAÑAMIENTO A LOS PROCESOS DE INFRAESTRUCTURA DE LA LOCALIDAD DE ANTONIO NARIÑO”.",null,"Un Nuevo Contrato Social y Ambiental para la Bogotá del Siglo XXI","No aplica",{"$f":"IF(ISERROR(VLOOKUP(K63,Proposito_programa!$C$2:$E$59,2,FALSE)),\" \",VLOOKUP(K63,Proposito_programa!$C$2:$E$59,2,FALSE))","v":" "},{"$f":"IF(ISERROR(VLOOKUP(K63,Proposito_programa!$C$2:$E$59,3,FALSE)),\" \",VLOOKUP(K63,Proposito_programa!$C$2:$E$59,3,FALSE))","v":" "},null,null,"79600820-5","Juan Antonio Zafra Ruiz","Persona Natural",null,null,null," $                 71.215.200",null,null,null,71215200,null,"2021-02-22","2021-02-22","2022-01-07","10 MESES 14 DIAS ",null,null,null,null,null,null,"x",null,null,null,1]
[52,2021,"FDLAN-CD-052-2021(56048)","https://community.secop.gov.co/Public/Tendering/OpportunityDetail/Index?noticeUID=CO1.NTC.1789936&isFromPublicArea=True&isModal=False","Contratos de prestación de servicios profesionales y de apoyo a la gestión","CONTRATACION DIRECTA","No aplica","“PRESTACIÓN DE SERVICIOS DE APOYO ADMINISTRATIVA Y ASISTENCIALMENTE AL ÁREA DE GESTIÓN POLICIVA DEL FONDO DE DESARROLLO LOCAL DE ANTONIO NARIÑO”.",null,"Un Nuevo Contrato Social y Ambiental para la Bogotá del Siglo XXI","No aplica",{"$f":"IF(ISERROR(VLOOKUP(K64,Proposito_programa!$C$2:$E$59,2,FALSE)),\" \",VLOOKUP(K64,Proposito_programa!$C$2:$E$59,2,FALSE))","v":" "},{"$f":"IF(ISERROR(VLOOKUP(K64,Proposito_programa!$C$2:$E$59,3,FALSE)),\" \",VLOOKUP(K64,Proposito_programa!$C$2:$E$59,3,FALSE))","v":" "},null,null,"1069176392-1","Nataly Acevedo Buitrago","Persona Natural",null,null,null," $                 10.152.000",null,null,null,10152000,null,"2021-02-22","2021-02-22","2021-06-23",4,null,null,null,null,null,null,"x",null,null,null,1]
[53,2021,"FDLAN-CD-053-2021(56162)","https://community.secop.gov.co/Public/Tendering/OpportunityDetail/Index?noticeUID=CO1.NTC.1790821&isFromPublicArea=True&isModal=False","Contratos de prestación de servicios profesionales y de apoyo a la gestión","CONTRATACION DIRECTA","No aplica","“EL CONTRATO QUE SE PRETENDE CELEBRAR, TENDRÁ POR OBJETO PRESTACIÓN DE SERVICIOS PROFESIONALES PARA BRINDAR APOYO EN LA PUESTA EN MARCHA DE LA EMISORA LOCAL, EL ACERCAMIENTO CON LA COMUNIDAD ESTUDIANTIL Y LOS DIFERENTES GRUPOS DE INTERÉS”.",null,"Un Nuevo Contrato Social y Ambiental para la Bogotá del Siglo XXI","No aplica",{"$f":"IF(ISERROR(VLOOKUP(K65,Proposito_programa!$C$2:$E$59,2,FALSE)),\" \",VLOOKUP(K65,Proposito_programa!$C$2:$E$59,2,FALSE))","v":" "},{"$f":"IF(ISERROR(VLOOKUP(K65,Proposito_programa!$C$2:$E$59,3,FALSE)),\" \",VLOOKUP(K65,Proposito_programa!$C$2:$E$59,3,FALSE))","v":" "},null,null,"1010198449-0","Sergio Arley Salazar Salvador","Persona Natural",null,null,null," $                 28.800.000",null,null,null,28800000,null,"2021-02-22","2021-02-22","2021-08-21",6,null,null,null,null,null,null,"x",null,null,null,1]
[54,2021,"FDLAN-CD-054-2021(55917)","https://community.secop.gov.co/Public/Tendering/OpportunityDetail/Index?noticeUID=CO1.NTC.1792541&isFromPublicArea=True&isModal=False","Contratos de prestación de servicios profesionales y de apoyo a la gestión","CONTRATACION DIRECTA","No aplica","“PRESTACIÓN DE SERVICIOS DE APOYO EN LA EJECUCIÓN DE ACTIVIDADES ADMINISTRATIVAS Y OPERATIVAS ADELANTADAS EN LA JUNTA ADMINISTRADORA LOCAL DE ANTONIO NARIÑO”.",null,"Un Nuevo Contrato Social y Ambiental para la Bogotá del Siglo XXI","No aplica",{"$f":"IF(ISERROR(VLOOKUP(K66,Proposito_programa!$C$2:$E$59,2,FALSE)),\" \",VLOOKUP(K66,Proposito_programa!$C$2:$E$59,2,FALSE))","v":" "},{"$f":"IF(ISERROR(VLOOKUP(K66,Proposito_programa!$C$2:$E$59,3,FALSE)),\" \",VLOOKUP(K66,Proposito_programa!$C$2:$E$59,3,FALSE))","v":" "},null,null,"1013643851-9","Paula Andrea Pedraza Quiñones","Persona Natural",null,null,null," $                    9.000.000",null,null,null,9000000,null,"2021-02-23","2021-02-23","2021-06-23",4,null,null,null,null,null,null,"x",null,null,null,1]
[55,2021,"FDLAN-CD-055-2021 (55961)","https://community.secop.gov.co/Public/Tendering/OpportunityDetail/Index?noticeUID=CO1.NTC.1797157&isFromPublicArea=True&isModal=False","Contratos de prestación de servicios profesionales y de apoyo a la gestión","CONTRATACION DIRECTA","No aplica","“EL CONTRATO QUE SE PRETENDE CELEBRAR, TENDRÁ POR OBJETO PRESTACIÓN DE SERVICIOS PERSONALES DE APOYO A LAS ACTIVIDADES ADMINISTRATIVAS EN CUANTO A NOTIFICACIÓN DE LA CORRESPONDENCIA GENERADA POR EL ÁREA DE GESTIÓN DE DESARROLLO LOCAL ANTONIO NARIÑO”.",null,"Un Nuevo Contrato Social y Ambiental para la Bogotá del Siglo XXI","No aplica",{"$f":"IF(ISERROR(VLOOKUP(K67,Proposito_programa!$C$2:$E$59,2,FALSE)),\" \",VLOOKUP(K67,Proposito_programa!$C$2:$E$59,2,FALSE))","v":" "},{"$f":"IF(ISERROR(VLOOKUP(K67,Proposito_programa!$C$2:$E$59,3,FALSE)),\" \",VLOOKUP(K67,Proposito_programa!$C$2:$E$59,3,FALSE))","v":" "},null,null,"79469325-9","Everardo Yara Yara","Persona Natural",null,null,null," $                    9.396.000",null,null,null,9396000,null,"2021-02-24","2021-02-24","2021-06-23",4,null,null,null,null,null,null,"x",null,null,null,1]
[56,2021,"FDLAN-CD-056-2021 (55985)","https://community.secop.gov.co/Public/Tendering/OpportunityDetail/Index?noticeUID=CO1.NTC.1810349&isFromPublicArea=True&isModal=False","Contratos de prestación de servicios profesionales y de apoyo a la gestión","CONTRATACION DIRECTA","No aplica","“PRESTACIÓN DE SERVICIOS PROFESIONAL PARA APOYAR JURÍDICAMENTE LA EJECUCIÓN DE LAS ACCIONES REQUERIDAS PARA LA DEPURACIÓN DE LAS ACTUACIONES ADMINISTRATIVAS QUE CURSAN EN LA ALCALDÍA LOCAL”.",null,"Un Nuevo Contrato Social y Ambiental para la Bogotá del Siglo XXI","No aplica",{"$f":"IF(ISERROR(VLOOKUP(K68,Proposito_programa!$C$2:$E$59,2,FALSE)),\" \",VLOOKUP(K68,Proposito_programa!$C$2:$E$59,2,FALSE))","v":" "},{"$f":"IF(ISERROR(VLOOKUP(K68,Proposito_programa!$C$2:$E$59,3,FALSE)),\" \",VLOOKUP(K68,Proposito_programa!$C$2:$E$59,3,FALSE))","v":" "},null,null,"1013621385-3","Harol Stik Gomez Gomez","Persona Natural",null,null,null," $                 50.100.000",null,null,null,50100000,null,"2021-03-01","2021-03-01","2021-12-31",10,null,null,null,null,null,null,"x",null,null,null,1]
[57,2021,"FDLAN-CD-057-2021 (55994","https://community.secop.gov.co/Public/Tendering/OpportunityDetail/Index?noticeUID=CO1.NTC.1810515&isFromPublicArea=True&isModal=False","Contratos de prestación de servicios profesionales y de apoyo a la gestión","CONTRATACION DIRECTA","No aplica","“PRESTACIÓN DE SERVICIOS PROFESIONAL PARA APOYAR JURÍDICAMENTE LA EJECUCIÓN DE LAS ACCIONES REQUERIDAS PARA LA DEPURACIÓN DE LAS ACTUACIONES ADMINISTRATIVAS QUE CURSAN EN LA ALCALDÍA LOCAL”.",null,"Un Nuevo Contrato Social y Ambiental para la Bogotá del Siglo XXI","No aplica",{"$f":"IF(ISERROR(VLOOKUP(K69,Proposito_programa!$C$2:$E$59,2,FALSE)),\" \",VLOOKUP(K69,Proposito_programa!$C$2:$E$59,2,FALSE))","v":" "},{"$f":"IF(ISERROR(VLOOKUP(K69,Proposito_programa!$C$2:$E$59,3,FALSE)),\" \",VLOOKUP(K69,Proposito_programa!$C$2:$E$59,3,FALSE))","v":" "},null,null,"1013609653-3","Julio Cesar Gonzales Gómez","Persona Natural",null,null,null," $                 30.060.000",null,null,null,30060000,null,"2021-03-01","2021-03-01","2021-08-31",6,null,null,null,null,null,null,"x",null,null,null,1]
[58,2021,"FDLAN-CD-058-2021(56161)","https://community.secop.gov.co/Public/Tendering/OpportunityDetail/Index?noticeUID=CO1.NTC.1810791&isFromPublicArea=True&isModal=False","Contratos de prestación de servicios profesionales y de apoyo a la gestión","CONTRATACION DIRECTA","No aplica","EL CONTRATO QUE SE PRETENDE CELEBRAR, TENDRÁ POR OBJETO APOYAR AL EQUIPO DE PRENSA Y COMUNICACIONES DE LA ALCALDÍA LOCAL DE ANTONIO NARIÑO EN LA REALIZACIÓN DE PRODUCTOS Y PIEZAS DIGITALES, IMPRESAS Y PUBLICITARIAS DE GRAN FORMATO Y DE ANIMACIÓN GRÁFICA, ASÍ COMO APOYAR LA PRODUCCIÓN Y MONTAJE DE EVENTOS",null,"Un Nuevo Contrato Social y Ambiental para la Bogotá del Siglo XXI","No aplica",{"$f":"IF(ISERROR(VLOOKUP(K70,Proposito_programa!$C$2:$E$59,2,FALSE)),\" \",VLOOKUP(K70,Proposito_programa!$C$2:$E$59,2,FALSE))","v":" "},{"$f":"IF(ISERROR(VLOOKUP(K70,Proposito_programa!$C$2:$E$59,3,FALSE)),\" \",VLOOKUP(K70,Proposito_programa!$C$2:$E$59,3,FALSE))","v":" "},null,null,"79803649-3","Alexis López Romero","Persona Natural",null,null,null," $                 17.444.000",null,null,null,17444000,null,"2021-03-01","2021-03-01","2021-06-30",4,null,null,null,null,null,null,"x",null,null,null,1]
[59,2021,"FDLAN-CD-059-2021","https://community.secop.gov.co/Public/Tendering/OpportunityDetail/Index?noticeUID=CO1.NTC.1811191&isFromPublicArea=True&isModal=False","Contratos de prestación de servicios profesionales y de apoyo a la gestión","CONTRATACION DIRECTA","No aplica","EL CONTRATO QUE SE PRETENDE CELEBRAR, TENDRÁ POR OBJETO PRESTACIÓN DE SERVICIOS PROFESIONALES PARA BRINDAR APOYO AL ALCALDE LOCAL DE ANTONIO NARIÑO EN EL CONTROL, EVALUACIÓN Y SEGUIMIENTO JURÍDICO-ADMINISTRATIVO, EN LOS PROCESOS DE PLANEACIÓN Y GESTIÓN INSTITUCIONAL DEL FONDO DE DESARROLLO LOCAL DE ANTONIO NARIÑO",null,"Un Nuevo Contrato Social y Ambiental para la Bogotá del Siglo XXI","No aplica",{"$f":"IF(ISERROR(VLOOKUP(K71,Proposito_programa!$C$2:$E$59,2,FALSE)),\" \",VLOOKUP(K71,Proposito_programa!$C$2:$E$59,2,FALSE))","v":" "},{"$f":"IF(ISERROR(VLOOKUP(K71,Proposito_programa!$C$2:$E$59,3,FALSE)),\" \",VLOOKUP(K71,Proposito_programa!$C$2:$E$59,3,FALSE))","v":" "},null,null,"1022379187-7","Natalia Delgado Puentes","Persona Natural",null,null,null," $                 66.000.000",null,null,null,66000000,null,"2021-03-01","2021-03-01","2021-12-31",10,null,null,null,null,null,null,"x",null,null,null,1]
[60,2021,"FDLAN-CD-060-2021 (57511)","https://community.secop.gov.co/Public/Tendering/OpportunityDetail/Index?noticeUID=CO1.NTC.1813756&isFromPublicArea=True&isModal=False","Contratos de prestación de servicios profesionales y de apoyo a la gestión","CONTRATACION DIRECTA","No aplica","PRESTACIÓN DE SERVICIOS TÉCNICO ADMINISTRATIVO DE APOYO AL DESPACHO DEL ALCALDE LOCAL DE ANTONIO NARIÑO EN EL MANEJO DE LOS DISTINTOS ASUNTOS Y TRAMITES ASOCIADOS CON LA GESTIÓN ADMINISTRATIVA LOCAL",null,"Un Nuevo Contrato Social y Ambiental para la Bogotá del Siglo XXI","No aplica",{"$f":"IF(ISERROR(VLOOKUP(K72,Proposito_programa!$C$2:$E$59,2,FALSE)),\" \",VLOOKUP(K72,Proposito_programa!$C$2:$E$59,2,FALSE))","v":" "},{"$f":"IF(ISERROR(VLOOKUP(K72,Proposito_programa!$C$2:$E$59,3,FALSE)),\" \",VLOOKUP(K72,Proposito_programa!$C$2:$E$59,3,FALSE))","v":" "},null,null,"1126908588-5","Angelica Hernández","Persona Natural",null,null,null," $                 38.400.000",null,null,null,38400000,null,"2021-03-02","2021-03-02","2021-12-31",10,null,null,null,null,null,null,"x",null,null,null,1]
[61,2021,"FDLAN-CD-061-2021(56081)","https://community.secop.gov.co/Public/Tendering/OpportunityDetail/Index?noticeUID=CO1.NTC.1821171&isFromPublicArea=True&isModal=False","Contratos de prestación de servicios profesionales y de apoyo a la gestión","CONTRATACION DIRECTA","No aplica","PRESTACIÓN DE SERVICIOS DE APOYO A LA GESTIÓN AL FONDO DE DESARROLLO LOCAL ANTONIO NARIÑO EN LOS ASUNTOS RELACIONADOS CON SEGURIDAD CIUDADANA, CONVIVENCIA Y PREVENCIÓN DE LAS CONFLICTIVIDADES, VIOLENCIAS Y DELITOS DE LA LOCALIDAD, DE CONFORMIDAD CON EL MARCO NORMATIVO APLICABLE EN LA MATERIA.",null,"Un Nuevo Contrato Social y Ambiental para la Bogotá del Siglo XXI","No aplica",{"$f":"IF(ISERROR(VLOOKUP(K73,Proposito_programa!$C$2:$E$59,2,FALSE)),\" \",VLOOKUP(K73,Proposito_programa!$C$2:$E$59,2,FALSE))","v":" "},{"$f":"IF(ISERROR(VLOOKUP(K73,Proposito_programa!$C$2:$E$59,3,FALSE)),\" \",VLOOKUP(K73,Proposito_programa!$C$2:$E$59,3,FALSE))","v":" "},null,null,"51591147-4","Rosa María Patiño","Persona Natural",null,null,null," $                 10.512.000",null,null,null,10512000,null,"2021-03-04","2021-03-04","2021-07-04",4,null,null,null,null,null,null,"x",null,null,null,1]
[62,2021,"FDLAN-CD-062-2021(56081)","https://community.secop.gov.co/Public/Tendering/OpportunityDetail/Index?noticeUID=CO1.NTC.1821464&isFromPublicArea=True&isModal=False","Contratos de prestación de servicios profesionales y de apoyo a la gestión","CONTRATACION DIRECTA","No aplica","PRESTACIÓN DE SERVICIOS DE APOYO A LA GESTIÓN AL FONDO DE DESARROLLO LOCAL ANTONIO NARIÑO EN LOS ASUNTOS RELACIONADOS CON SEGURIDAD CIUDADANA, CONVIVENCIA Y PREVENCIÓN DE LAS CONFLICTIVIDADES, VIOLENCIAS Y DELITOS DE LA LOCALIDAD, DE CONFORMIDAD CON EL MARCO NORMATIVO APLICABLE EN LA MATERIA.",null,"Un Nuevo Contrato Social y Ambiental para la Bogotá del Siglo XXI","No aplica",{"$f":"IF(ISERROR(VLOOKUP(K74,Proposito_programa!$C$2:$E$59,2,FALSE)),\" \",VLOOKUP(K74,Proposito_programa!$C$2:$E$59,2,FALSE))","v":" "},{"$f":"IF(ISERROR(VLOOKUP(K74,Proposito_programa!$C$2:$E$59,3,FALSE)),\" \",VLOOKUP(K74,Proposito_programa!$C$2:$E$59,3,FALSE))","v":" "},null,null,"1013659896-1","Felipe Arango Morales","Persona Natural",null,null,null," $                 10.512.000",null,null,null,10512000,null,"2021-03-04","2021-03-04","2021-07-04",4,null,null,null,null,null,null,"x",null,null,null,1]
[63,2021,"FDLAN-CD-063-2021 (57535)","https://community.secop.gov.co/Public/Tendering/OpportunityDetail/Index?noticeUID=CO1.NTC.1823781&isFromPublicArea=True&isModal=False","Contratos de prestación de servicios profesionales y de apoyo a la gestión","CONTRATACION DIRECTA","No aplica","APOYAR JURIDICAMENTE LAS ACCIONES REQUERIDAS PARA LA DEPARACIÓN DE LAS ACTUACIONES ADMINISTRATIVAS QUE CURSAN EN LA ALCALDIA LOCAL",null,"Un Nuevo Contrato Social y Ambiental para la Bogotá del Siglo XXI","No aplica",{"$f":"IF(ISERROR(VLOOKUP(K75,Proposito_programa!$C$2:$E$59,2,FALSE)),\" \",VLOOKUP(K75,Proposito_programa!$C$2:$E$59,2,FALSE))","v":" "},{"$f":"IF(ISERROR(VLOOKUP(K75,Proposito_programa!$C$2:$E$59,3,FALSE)),\" \",VLOOKUP(K75,Proposito_programa!$C$2:$E$59,3,FALSE))","v":" "},null,null,"80206681-2","Andrés Felix Barriga Escarraga","Persona Natural",null,null,null," $                 17.448.000",null,null,null,17448000,null,"2021-03-05","2021-03-05","2021-07-03",4,null,null,null,null,null,null,"x",null,null,null,1]
[65,2021,"FDLAN-CD-065-2021 (57535)","https://community.secop.gov.co/Public/Tendering/OpportunityDetail/Index?noticeUID=CO1.NTC.1824839&isFromPublicArea=True&isModal=False","Contratos de prestación de servicios profesionales y de apoyo a la gestión","CONTRATACION DIRECTA","No aplica","APOYAR JURIDICAMENTE LAS ACCIONES REQUERIDAS PARA LA DEPARACIÓN DE LAS ACTUACIONES ADMINISTRATIVAS QUE CURSAN EN LA ALCALDIA LOCAL",null,"Un Nuevo Contrato Social y Ambiental para la Bogotá del Siglo XXI","No aplica",{"$f":"IF(ISERROR(VLOOKUP(K76,Proposito_programa!$C$2:$E$59,2,FALSE)),\" \",VLOOKUP(K76,Proposito_programa!$C$2:$E$59,2,FALSE))","v":" "},{"$f":"IF(ISERROR(VLOOKUP(K76,Proposito_programa!$C$2:$E$59,3,FALSE)),\" \",VLOOKUP(K76,Proposito_programa!$C$2:$E$59,3,FALSE))","v":" "},null,null,"1033744712-1","Adriana Yineth Jojoa Soler","Persona Natural",null,null,null," $                 17.448.000",null,null,null,17448000,null,"2021-03-05","2021-03-05","2021-07-04",4,null,null,null,null,null,null,"x",null,null,null,1]
[66,2021,"FDLAN-CD-066-2021 (57461)","https://community.secop.gov.co/Public/Tendering/OpportunityDetail/Index?noticeUID=CO1.NTC.1829355&isFromPublicArea=True&isModal=False","Contratos de prestación de servicios profesionales y de apoyo a la gestión","CONTRATACION DIRECTA","No aplica","PRESTACIÓN DE SERVICIOS PROFESIONALES PARA APOYAR LA FORMULACIÓN, GESTIÓN Y SEGUIMIENTO DE ACTIVIDADES ENFOCADAS A LA GESTIÓN AMBIENTAL EXTERNA, ENCAMINADAS A LA MITIGACIÓN DE LOS DIFERENTES IMPACTOS AMBIENTALES Y LA CONSERVACIÓN DE LOS RECURSOS NATURALES DE LA LOCALIDAD DE ANTONIO NARIÑO",null,"Un Nuevo Contrato Social y Ambiental para la Bogotá del Siglo XXI","No aplica",{"$f":"IF(ISERROR(VLOOKUP(K77,Proposito_programa!$C$2:$E$59,2,FALSE)),\" \",VLOOKUP(K77,Proposito_programa!$C$2:$E$59,2,FALSE))","v":" "},{"$f":"IF(ISERROR(VLOOKUP(K77,Proposito_programa!$C$2:$E$59,3,FALSE)),\" \",VLOOKUP(K77,Proposito_programa!$C$2:$E$59,3,FALSE))","v":" "},null,null,"1033788653-4","Duvan David Rubio Tellez","Persona Natural",null,null,null," $                 34.896.000",null,null,null,34896000,null,"2021-03-08","2021-03-08","2021-11-06",8,null,null,null,null,null,null,"x",null,null,null,1]
[67,2021,"067-2021-CPS-P (56210)","https://community.secop.gov.co/Public/Tendering/OpportunityDetail/Index?noticeUID=CO1.NTC.1829612&isFromPublicArea=True&isModal=False","Contratos de prestación de servicios profesionales y de apoyo a la gestión","CONTRATACION DIRECTA","No aplica","“PRESTAR SERVICIOS PROFESIONALES COMO ABOGADO , PARA FORTALECER EL EQUIPO DEL ÁREA DE GESTIÓN DE DESARROLLO LOCAL DE ANTONIO NARIÑO EN LOS DIFERENTES TRÁMITES JURÍDICOS Y CONTRACTUALES NECESARIOS PARA LA EJECUCIÓN DEL PLAN DE DESARROLLO LOCAL”.",null,"Un Nuevo Contrato Social y Ambiental para la Bogotá del Siglo XXI","No aplica",{"$f":"IF(ISERROR(VLOOKUP(K78,Proposito_programa!$C$2:$E$59,2,FALSE)),\" \",VLOOKUP(K78,Proposito_programa!$C$2:$E$59,2,FALSE))","v":" "},{"$f":"IF(ISERROR(VLOOKUP(K78,Proposito_programa!$C$2:$E$59,3,FALSE)),\" \",VLOOKUP(K78,Proposito_programa!$C$2:$E$59,3,FALSE))","v":" "},null,null,"1024542049-4","Yurani Andrea Angulo Peñaranda","Persona Natural",null,null,null," $                 24.000.000",null,null,null,24000000,null,"2021-03-08","2021-03-08","2021-07-06",4,null,null,null,null,null,null,"x",null,null,null,1]
[68,2021,"FDLAN-CD-068-2021(57190)","https://community.secop.gov.co/Public/Tendering/OpportunityDetail/Index?noticeUID=CO1.NTC.1828597&isFromPublicArea=True&isModal=False","Contratos de prestación de servicios profesionales y de apoyo a la gestión","CONTRATACION DIRECTA","No aplica","“PRESTAR SERVICIOS PROFESIONALES COMO ABOGADO , PARA FORTALECER EL EQUIPO DEL ÁREA DE GESTIÓN DE DESARROLLO LOCAL DE ANTONIO NARIÑO EN LOS DIFERENTES TRÁMITES JURÍDICOS Y CONTRACTUALES NECESARIOS PARA LA EJECUCIÓN DEL PLAN DE DESARROLLO LOCAL”.",null,"Un Nuevo Contrato Social y Ambiental para la Bogotá del Siglo XXI","No aplica",{"$f":"IF(ISERROR(VLOOKUP(K79,Proposito_programa!$C$2:$E$59,2,FALSE)),\" \",VLOOKUP(K79,Proposito_programa!$C$2:$E$59,2,FALSE))","v":" "},{"$f":"IF(ISERROR(VLOOKUP(K79,Proposito_programa!$C$2:$E$59,3,FALSE)),\" \",VLOOKUP(K79,Proposito_programa!$C$2:$E$59,3,FALSE))","v":" "},null,null,"1022367862-9","Jessica Paola Barón Gómez","Persona Natural",null,null,null," $                 28.046.016",null,null,null,28046016,null,"2021-03-08","2021-03-08","2021-09-07",6,null,null,null,null,null,null,"x",null,null,null,1]
[69,2021,"FLDAN-CD-069-2021(56090)","https://community.secop.gov.co/Public/Tendering/OpportunityDetail/Index?noticeUID=CO1.NTC.1829189&isFromPublicArea=True&isModal=False","Contratos de prestación de servicios profesionales y de apoyo a la gestión","CONTRATACION DIRECTA","No aplica","“EL CONTRATO QUE SE PRETENDE CELEBRAR, TENDRÁ POR OBJETO PRESTACIÓN DE SERVICIOS PROFESIONALES PARA COORDINAR, LIDERAR Y ASESORAR LOS PLANES Y ESTRATEGIAS DE COMUNICACIÓN INTERNA Y EXTERNA PARA LA DIVULGACIÓN DE LOS PROGRAMAS, PROYECTOS Y ACTIVIDADES DE LA ALCALDÍA LOCAL DE ANTONIO NARIÑO”.",null,"Un Nuevo Contrato Social y Ambiental para la Bogotá del Siglo XXI","No aplica",{"$f":"IF(ISERROR(VLOOKUP(K80,Proposito_programa!$C$2:$E$59,2,FALSE)),\" \",VLOOKUP(K80,Proposito_programa!$C$2:$E$59,2,FALSE))","v":" "},{"$f":"IF(ISERROR(VLOOKUP(K80,Proposito_programa!$C$2:$E$59,3,FALSE)),\" \",VLOOKUP(K80,Proposito_programa!$C$2:$E$59,3,FALSE))","v":" "},null,null,"52884848-0","Andrea Carolina López Carreño","Persona Natural",null,null,null," $                 26.340.000",null,null,null,26340000,null,"2021-03-08","2021-03-08","2021-07-08",4,null,null,null,null,null,null,"x",null,null,null,1]
[70,2021,"FDLAN-CD-070-2021(56283)","https://community.secop.gov.co/Public/Tendering/OpportunityDetail/Index?noticeUID=CO1.NTC.1835702&isFromPublicArea=True&isModal=False","Contratos de prestación de servicios profesionales y de apoyo a la gestión","CONTRATACION DIRECTA","No aplica","“PRESTACIÓN DE SERVICIOS DE APOYO A LA GESTIÓN AL FONDO DE DESARROLLO LOCAL ANTONIO NARIÑO EN LOS ASUNTOS OPERATIVOS RELACIONADOS CON SEGURIDAD CIUDADANA, CONVIVENCIA Y PREVENCIÓN DE LAS CONFLICTIVIDADES, VIOLENCIAS Y DELITOS DE LA LOCALIDAD, DE CONFORMIDAD CON EL MARCO NORMATIVO APLICABLE EN LA MATERIA”.",null,"Un Nuevo Contrato Social y Ambiental para la Bogotá del Siglo XXI","No aplica",{"$f":"IF(ISERROR(VLOOKUP(K81,Proposito_programa!$C$2:$E$59,2,FALSE)),\" \",VLOOKUP(K81,Proposito_programa!$C$2:$E$59,2,FALSE))","v":" "},{"$f":"IF(ISERROR(VLOOKUP(K81,Proposito_programa!$C$2:$E$59,3,FALSE)),\" \",VLOOKUP(K81,Proposito_programa!$C$2:$E$59,3,FALSE))","v":" "},null,null,"51678981-6","Blanca Idaly Suarez Hernandez","Persona Natural",null,null,null," $                    6.960.000",null,null,null,6960000,null,"2021-03-10","2021-03-10","2021-07-10",4,null,null,null,null,null,null,"x",null,null,null,1]
[71,2021,"FDLAN-CD-071-2021 (57535).","https://community.secop.gov.co/Public/Tendering/OpportunityDetail/Index?noticeUID=CO1.NTC.1835087&isFromPublicArea=True&isModal=False","Contratos de prestación de servicios profesionales y de apoyo a la gestión","CONTRATACION DIRECTA","No aplica","APOYAR JURÍDICAMENTE LA EJECUCIÓN DE LAS ACCIONES REQUERIDAS PARA LA DEPURACIÓN DE LAS ACTUACIONES ADMINISTRATIVAS QUE CURSAN EN LA ALCALDÍA LOCAL",null,"Un Nuevo Contrato Social y Ambiental para la Bogotá del Siglo XXI","No aplica",{"$f":"IF(ISERROR(VLOOKUP(K82,Proposito_programa!$C$2:$E$59,2,FALSE)),\" \",VLOOKUP(K82,Proposito_programa!$C$2:$E$59,2,FALSE))","v":" "},{"$f":"IF(ISERROR(VLOOKUP(K82,Proposito_programa!$C$2:$E$59,3,FALSE)),\" \",VLOOKUP(K82,Proposito_programa!$C$2:$E$59,3,FALSE))","v":" "},null,null,"1022328042-1","Oscar Andrés Godoy Melo","Persona Natural",null,null,null," $                 17.448.000",null,null,null,17448000,null,"2021-03-10","2021-03-10","2021-07-08",4,null,null,null,null,null,null,"x",null,null,null,1]
[72,2021,"FDLAN-CD-072-2021(57707)","https://community.secop.gov.co/Public/Tendering/OpportunityDetail/Index?noticeUID=CO1.NTC.1838165&isFromPublicArea=True&isModal=False","Contratos de prestación de servicios profesionales y de apoyo a la gestión","CONTRATACION DIRECTA","No aplica","“EL CONTRATO QUE SE PRETENDE CELEBRAR TENDRÁ POR OBJETO PRESTAR SERVICIOS DE APOYO AL FONDO DE DESARROLLO LOCAL DE ANTONIO NARIÑO EN LOS DIFERENTES TRÁMITES REQUERIDOS POR LAS ENTIDADES DISTRITALES Y/O LOCALES EN LOS PROCESOS DE PLANEACIÓN”.",null,"Un Nuevo Contrato Social y Ambiental para la Bogotá del Siglo XXI","No aplica",{"$f":"IF(ISERROR(VLOOKUP(K83,Proposito_programa!$C$2:$E$59,2,FALSE)),\" \",VLOOKUP(K83,Proposito_programa!$C$2:$E$59,2,FALSE))","v":" "},{"$f":"IF(ISERROR(VLOOKUP(K83,Proposito_programa!$C$2:$E$59,3,FALSE)),\" \",VLOOKUP(K83,Proposito_programa!$C$2:$E$59,3,FALSE))","v":" "},null,null,"79967743-1","Robinson Leandro Giraldo Cardona","Persona Natural",null,null,null," $                    8.040.000",null,null,null,{"$f":"+V83+W83+Y83","v":8040000},null,"2021-03-11","2021-03-11","2021-07-10",4,null,null,null,null,null,null,"x",null,null,null,1]
[73,2021,"FDLAN-CD-073-2021 (56014)","https://community.secop.gov.co/Public/Tendering/OpportunityDetail/Index?noticeUID=CO1.NTC.1838164&isFromPublicArea=True&isModal=False","Contratos de prestación de servicios profesionales y de apoyo a la gestión","CONTRATACION DIRECTA","No aplica","PRESTAR SERVICIOS DE APOYO EN LOS DISTINTOS ASPECTOS JURÍDICOS ASOCIADOS CON LA INSPECCIÓN, VIGILANCIA Y CONTROL, RESPETO A LOS ESTABLECIMIENTOS DE COMERCIO, EL ORDENAMIENTO TERRITORIAL Y EL USO DEL ESPACIO PÚBLICO, ACOMPAÑANDO LA VERIFICACIÓN DE INFRACCIONES A LA NORMATIVIDAD URBANÍSTICA Y POLICÍA VIGENTE.",null,"Un Nuevo Contrato Social y Ambiental para la Bogotá del Siglo XXI","No aplica",{"$f":"IF(ISERROR(VLOOKUP(K84,Proposito_programa!$C$2:$E$59,2,FALSE)),\" \",VLOOKUP(K84,Proposito_programa!$C$2:$E$59,2,FALSE))","v":" "},{"$f":"IF(ISERROR(VLOOKUP(K84,Proposito_programa!$C$2:$E$59,3,FALSE)),\" \",VLOOKUP(K84,Proposito_programa!$C$2:$E$59,3,FALSE))","v":" "},null,null,"12189901-7","Hugo Tovar Garces","Persona Natural",null,null,null," $                 11.940.000",null,null,null,11940000,null,"2021-03-11","2021-03-11","2021-07-09",4,null,null,null,null,null,null,"x",null,null,null,1]
[74,2021,"FDLAN-CD-074-2021(56004)","https://community.secop.gov.co/Public/Tendering/OpportunityDetail/Index?noticeUID=CO1.NTC.1839935&isFromPublicArea=True&isModal=False","Contratos de prestación de servicios profesionales y de apoyo a la gestión","CONTRATACION DIRECTA","No aplica","“PRESTACIÓN DE SERVICIOS DE APOYO A LA GESTIÓN EN LAS LABORES ASISTENCIALES DEL ÁREA DE GESTIÓN POLICIVA, PARA LOS DISTINTOS PROCEDIMIENTOS SANCIONATORIOS Y TRÁMITES ADMINISTRATIVOS QUE ADELANTA EL EQUIPO DE INSPECCIÓN, VIGILANCIA Y CONTROL DEL FONDO DE DESARROLLO LOCAL”.",null,"Un Nuevo Contrato Social y Ambiental para la Bogotá del Siglo XXI","No aplica",{"$f":"IF(ISERROR(VLOOKUP(K85,Proposito_programa!$C$2:$E$59,2,FALSE)),\" \",VLOOKUP(K85,Proposito_programa!$C$2:$E$59,2,FALSE))","v":" "},{"$f":"IF(ISERROR(VLOOKUP(K85,Proposito_programa!$C$2:$E$59,3,FALSE)),\" \",VLOOKUP(K85,Proposito_programa!$C$2:$E$59,3,FALSE))","v":" "},null,null,"39550798-1","Berenice Romero Caballero","Persona Natural",null,null,null," $                    6.960.000",null,null,null,6960000,null,"2021-03-11","2021-03-12","2021-07-11",4,null,null,null,null,null,null,"x",null,null,null,1]
[75,2021,"FDLAN-CD-075-2021(57709)","https://community.secop.gov.co/Public/Tendering/OpportunityDetail/Index?noticeUID=CO1.NTC.1839027&isFromPublicArea=True&isModal=False","Contratos de prestación de servicios profesionales y de apoyo a la gestión","CONTRATACION DIRECTA","No aplica","“PRESTACIÓN DE SERVICIOS PROFESIONALES PARA APOYAR EL ÁREA DE GESTIÓN DE DESARROLLO LOCAL EN EL DILIGENCIAMIENTO DE LAS ACTUACIONES DE LOS DOCUMENTOS TÉCNICOS DE SOPORTE Y FICHAS DE ESTADÍSTICA BÁSICAS DE INVERSIÓN Y ELABORACIÓN DE LOS DOCUMENTOS SOPORTE NECESARIOS PARA EJECUTAR LOS PROYECTOS DE INVERSIÓN DEL FONDO DE DESARROLLO LOCAL DE ANTONIO NARIÑO”.",null,"Un Nuevo Contrato Social y Ambiental para la Bogotá del Siglo XXI","No aplica",{"$f":"IF(ISERROR(VLOOKUP(K86,Proposito_programa!$C$2:$E$59,2,FALSE)),\" \",VLOOKUP(K86,Proposito_programa!$C$2:$E$59,2,FALSE))","v":" "},{"$f":"IF(ISERROR(VLOOKUP(K86,Proposito_programa!$C$2:$E$59,3,FALSE)),\" \",VLOOKUP(K86,Proposito_programa!$C$2:$E$59,3,FALSE))","v":" "},null,null,"79969466-5","Ivan Arturo Vargas Cuellar","Persona Natural",null,null,null," $                 28.044.000",null,null,null,28044000,null,"2021-03-11","2021-03-11","2021-09-11",6,null,null,null,null,null,null,"x",null,null,null,1]
[76,2021,"FDLAN-CD-076-2021 (56052)","https://community.secop.gov.co/Public/Tendering/OpportunityDetail/Index?noticeUID=CO1.NTC.1850505&isFromPublicArea=True&isModal=False","Contratos de prestación de servicios profesionales y de apoyo a la gestión","CONTRATACION DIRECTA","No aplica","“APOYAR Y DAR SOPORTE TÉCNICO AL ADMINISTRADOR Y USUARIO FINAL DE LA RED DE SISTEMAS Y TECNOLOGÍA E INFORMACIÓN DE LA ALCALDÍA LOCAL”.",null,"Un Nuevo Contrato Social y Ambiental para la Bogotá del Siglo XXI","No aplica",{"$f":"IF(ISERROR(VLOOKUP(K87,Proposito_programa!$C$2:$E$59,2,FALSE)),\" \",VLOOKUP(K87,Proposito_programa!$C$2:$E$59,2,FALSE))","v":" "},{"$f":"IF(ISERROR(VLOOKUP(K87,Proposito_programa!$C$2:$E$59,3,FALSE)),\" \",VLOOKUP(K87,Proposito_programa!$C$2:$E$59,3,FALSE))","v":" "},null,null,"79938677-1","Javier Andres Ceballos Gonzalez","Persona Natural",null,null,null," $                 15.600.000",null,null,null,15600000,null,"2021-03-16","2021-03-16","2021-07-14",4,null,null,null,null,null,null,"x",null,null,null,1]
[77,2021,"FDLAN-CD-077-2021(57829)","https://community.secop.gov.co/Public/Tendering/OpportunityDetail/Index?noticeUID=CO1.NTC.1859773&isFromPublicArea=True&isModal=False","Contratos de prestación de servicios profesionales y de apoyo a la gestión","CONTRATACION DIRECTA","No aplica","“PRESTAR LOS SERVICIOS PROFESIONALES COMO ABOGADO DEL ÁREA DE GESTIÓN DE DESARROLLO LOCAL DEL FDLAN, EN EL TRÁMITE DE PROCESOS DE SELECCIÓN DE CONTRATISTAS Y EL PROCESO DE LIQUIDACIÓN DE CONTRATOS Y CONVENIOS”.",null,"Un Nuevo Contrato Social y Ambiental para la Bogotá del Siglo XXI","No aplica",{"$f":"IF(ISERROR(VLOOKUP(K88,Proposito_programa!$C$2:$E$59,2,FALSE)),\" \",VLOOKUP(K88,Proposito_programa!$C$2:$E$59,2,FALSE))","v":" "},{"$f":"IF(ISERROR(VLOOKUP(K88,Proposito_programa!$C$2:$E$59,3,FALSE)),\" \",VLOOKUP(K88,Proposito_programa!$C$2:$E$59,3,FALSE))","v":" "},null,null,"1118814555-9","Yulis Paola Brito Guerra","Persona Natural",null,null,null," $                 52.380.000",null,null,null,52380000,null,"2021-03-19","2021-03-19","2021-12-18",9,null,null,null,null,null,null,"x",null,null,null,1]
[78,2021,"FDLAN-CD-078-2021(57719)","https://community.secop.gov.co/Public/Tendering/OpportunityDetail/Index?noticeUID=CO1.NTC.1860638&isFromPublicArea=True&isModal=False","Contratos de prestación de servicios profesionales y de apoyo a la gestión","CONTRATACION DIRECTA","No aplica","EL CONTRATO QUE SE PRETENDE CELEBRAR, TENDRÁ POR OBJETO PRESTAR SERVICIOS PROFESIONALES, PARA APOYAR LA FORMULACIÓN, EJECUCIÓN, SUPERVISIÓN, SEGUIMIENTO CIERRE Y/O LIQUIDACIÓN DE LOS PROCESO CONTRACTUALES QUE DEN RESPUESTA AL PROYECTO DE INVERSIÓN 2191 DE LA LOCALIDAD DE ANTONIO NARIÑO",null,"Un Nuevo Contrato Social y Ambiental para la Bogotá del Siglo XXI","No aplica",{"$f":"IF(ISERROR(VLOOKUP(K89,Proposito_programa!$C$2:$E$59,2,FALSE)),\" \",VLOOKUP(K89,Proposito_programa!$C$2:$E$59,2,FALSE))","v":" "},{"$f":"IF(ISERROR(VLOOKUP(K89,Proposito_programa!$C$2:$E$59,3,FALSE)),\" \",VLOOKUP(K89,Proposito_programa!$C$2:$E$59,3,FALSE))","v":" "},null,null,"1..016.009.101-6","Cristian Andrés Albarracín Márquez","Persona Natural",null,null,null," $                 28.044.000",null,null,null,28044000,null,"2021-03-19","2021-03-19","2021-07-18",6,null,null,null,null,null,null,"x",null,null,null,1]
[79,2021,"FDLAN-CD-079-2021(57835)","https://community.secop.gov.co/Public/Tendering/OpportunityDetail/Index?noticeUID=CO1.NTC.1867421&isFromPublicArea=True&isModal=False","Contratos de prestación de servicios profesionales y de apoyo a la gestión","CONTRATACION DIRECTA","No aplica","“APOYAR TÉCNICAMENTE LAS DISTINTAS ETAPAS DE LOS PROCESOS DE COMPETENCIA DE LAS INSPECCIONES DE POLICÍA DE LA LOCALIDAD, SEGÚN REPARTO”.",null,"Un Nuevo Contrato Social y Ambiental para la Bogotá del Siglo XXI","No aplica",{"$f":"IF(ISERROR(VLOOKUP(K90,Proposito_programa!$C$2:$E$59,2,FALSE)),\" \",VLOOKUP(K90,Proposito_programa!$C$2:$E$59,2,FALSE))","v":" "},{"$f":"IF(ISERROR(VLOOKUP(K90,Proposito_programa!$C$2:$E$59,3,FALSE)),\" \",VLOOKUP(K90,Proposito_programa!$C$2:$E$59,3,FALSE))","v":" "},null,null,"26459517-1","Dollys  Herrera Ramírez","Persona Natural",null,null,null," $                 23.136.000",null,null,null,23136000,null,"2021-03-23","2021-03-23","2021-07-23",4,null,null,null,null,null,null,"x",null,null,null,1]
[80,2021,"FDLAN-CD-080-2021(57831)","https://community.secop.gov.co/Public/Tendering/OpportunityDetail/Index?noticeUID=CO1.NTC.1865849&isFromPublicArea=True&isModal=False","Contratos de prestación de servicios profesionales y de apoyo a la gestión","CONTRATACION DIRECTA","No aplica","PRESTAR SERVICIOS PROFESIONALES AL FONDO DE DESARROLLO LOCAL DE ANTONIO NARIÑO EN LOS DIFERENTES TRÁMITES REQUERIDOS POR LAS ENTIDADES DISTRITALES Y/O LOCALES RELACIONADOS CON EL ESPACIO PÚBLICO SU USO Y APROVECHAMIENTO, ASÍ COMO EN LOS PROCESOS DE PARTICIPACIÓN CIUDADANA EN LA LOCALIDAD",null,"Un Nuevo Contrato Social y Ambiental para la Bogotá del Siglo XXI","No aplica",{"$f":"IF(ISERROR(VLOOKUP(K91,Proposito_programa!$C$2:$E$59,2,FALSE)),\" \",VLOOKUP(K91,Proposito_programa!$C$2:$E$59,2,FALSE))","v":" "},{"$f":"IF(ISERROR(VLOOKUP(K91,Proposito_programa!$C$2:$E$59,3,FALSE)),\" \",VLOOKUP(K91,Proposito_programa!$C$2:$E$59,3,FALSE))","v":" "},null,null,"51922115-0","Berenice Cuevas Pinzón","Persona Natural",null,null,null,17448000,null,null,null,17448000,null,"2021-03-23","2021-03-23","2021-07-23",4,null,null,null,null,null,null,"x",null,null,null,1]
[81,2021,"FDLAN-CD-081-2021 (57708)","https://community.secop.gov.co/Public/Tendering/OpportunityDetail/Index?noticeUID=CO1.NTC.1866891&isFromPublicArea=True&isModal=False","Contratos de prestación de servicios profesionales y de apoyo a la gestión","CONTRATACION DIRECTA","No aplica","“PRESTAR SERVICIOS PROFESIONALES, PARA APOYAR LA FORMULACIÓN, EJECUCIÓN, SUPERVISIÓN, SEGUIMIENTO CIERRE Y/O LIQUIDACIÓN DE LOS PROCESOS CONTRACTUALES QUE FOMENTEN LA ATENCIÓN A PRIMERA INFANCIA, EDUCACIÓN INICIAL Y EDUCACIÓN SUPERIOR”.",null,"Un Nuevo Contrato Social y Ambiental para la Bogotá del Siglo XXI","No aplica",{"$f":"IF(ISERROR(VLOOKUP(K92,Proposito_programa!$C$2:$E$59,2,FALSE)),\" \",VLOOKUP(K92,Proposito_programa!$C$2:$E$59,2,FALSE))","v":" "},{"$f":"IF(ISERROR(VLOOKUP(K92,Proposito_programa!$C$2:$E$59,3,FALSE)),\" \",VLOOKUP(K92,Proposito_programa!$C$2:$E$59,3,FALSE))","v":" "},null,null,"80730063-7","Jorge Alexander Esquivel Garcia","Persona Natural",null,null,null," $            28.044.000,00",null,null,null,28044000,null,"2021-03-23","2021-03-23","2021-09-21",6,null,null,null,null,null,null,"x",null,null,null,1]
[82,2021,"FDLAN-CD-082-2021 (57644)","https://community.secop.gov.co/Public/Tendering/OpportunityDetail/Index?noticeUID=CO1.NTC.1869920&isFromPublicArea=True&isModal=False","Contratos de prestación de servicios profesionales y de apoyo a la gestión","CONTRATACION DIRECTA","No aplica","“PRESTAR SERVICIOS PROFESIONALES AL FONDO DE DESARROLLO LOCAL DE ANTONIO NARIÑO EN EL APOYO A LOS DIFERENTES TRÁMITES Y GESTIONES CONTRACTUALES ASÍ COMO EL SEGUIMIENTO, LIQUIDACIÓN, DEPURACIÓN Y CONSOLIDACIÓN DE LAS OBLIGACIONES POR PAGAR  VIGENTES”.",null,"Un Nuevo Contrato Social y Ambiental para la Bogotá del Siglo XXI","No aplica",{"$f":"IF(ISERROR(VLOOKUP(K93,Proposito_programa!$C$2:$E$59,2,FALSE)),\" \",VLOOKUP(K93,Proposito_programa!$C$2:$E$59,2,FALSE))","v":" "},{"$f":"IF(ISERROR(VLOOKUP(K93,Proposito_programa!$C$2:$E$59,3,FALSE)),\" \",VLOOKUP(K93,Proposito_programa!$C$2:$E$59,3,FALSE))","v":" "},null,null,"13717182-8","José Mauricio Martínez Ascencio","Persona Natural",null,null,null," $            40.421.200,00",null,null,null,40421200,null,"2021-03-24","2021-03-24","2021-12-31","9 MESES 8 DIAS ",null,null,null,null,null,null,"x",null,null,null,1]
[83,2021,"FDLAN-CD-083-2021(57636)","https://community.secop.gov.co/Public/Tendering/OpportunityDetail/Index?noticeUID=CO1.NTC.1870768&isFromPublicArea=True&isModal=False","Contratos de prestación de servicios profesionales y de apoyo a la gestión","CONTRATACION DIRECTA","No aplica","“PRESTAR LOS SERVICIOS PROFESIONALES PARA LA OPERACIÓN, PRESTACIÓN, SEGUIMIENTO Y CUMPLIMIENTO DE LOS PROCEDIMIENTOS ADMINISTRATIVOS, OPERATIVOS Y PROGRAMÁTICOS DEL SERVICIO APOYO ECONÓMICO TIPO C, QUE CONTRIBUYAN A LA GARANTÍA DE LOS DERECHOS DE LA POBLACIÓN MAYOR EN EL MARCO DE LA POLÍTICA PÚBLICA SOCIAL PARA EL ENVEJECIMIENTO Y LA VEJEZ EN EL DISTRITO CAPITAL A CARGO DE LA ALCALDÍA LOCAL DE ANTONIO NARIÑO”.",null,"Un Nuevo Contrato Social y Ambiental para la Bogotá del Siglo XXI","No aplica",{"$f":"IF(ISERROR(VLOOKUP(K94,Proposito_programa!$C$2:$E$59,2,FALSE)),\" \",VLOOKUP(K94,Proposito_programa!$C$2:$E$59,2,FALSE))","v":" "},{"$f":"IF(ISERROR(VLOOKUP(K94,Proposito_programa!$C$2:$E$59,3,FALSE)),\" \",VLOOKUP(K94,Proposito_programa!$C$2:$E$59,3,FALSE))","v":" "},null,null,"1014220601-2","Jenny Paola Lagos Diaz","Persona Natural",null,null,null," $            46.995.900,00",null,null,null,46995900,null,"2021-03-24","2021-03-24","2021-12-31","9 MESES 8 DIAS ",null,null,null,null,null,null,"x",null,null,null,1]
[84,2021,"FDLAN-CD-084-2021(57835)","https://community.secop.gov.co/Public/Tendering/OpportunityDetail/Index?noticeUID=CO1.NTC.1873600&isFromPublicArea=True&isModal=False","Contratos de prestación de servicios profesionales y de apoyo a la gestión","CONTRATACION DIRECTA","No aplica","“APOYAR TÉCNICAMENTE LAS DISTINTAS ETAPAS DE LOS PROCESOS DE COMPETENCIA DE LAS INSPECCIONES DE POLICÍA DE LA LOCALIDAD, SEGÚN REPARTO”.",null,"Un Nuevo Contrato Social y Ambiental para la Bogotá del Siglo XXI","No aplica",{"$f":"IF(ISERROR(VLOOKUP(K95,Proposito_programa!$C$2:$E$59,2,FALSE)),\" \",VLOOKUP(K95,Proposito_programa!$C$2:$E$59,2,FALSE))","v":" "},{"$f":"IF(ISERROR(VLOOKUP(K95,Proposito_programa!$C$2:$E$59,3,FALSE)),\" \",VLOOKUP(K95,Proposito_programa!$C$2:$E$59,3,FALSE))","v":" "},null,null,"79421325-2","Prudencio Becerra Fino","Persona Natural",null,null,null," $            23.136.000,00",null,null,null,23136000,null,"2021-03-25","2021-03-25","2021-07-25",4,null,null,null,null,null,null,"x",null,null,null,1]
[85,2021,"FDLAN-CD-085-2021(57835)","https://community.secop.gov.co/Public/Tendering/OpportunityDetail/Index?noticeUID=CO1.NTC.1873599&isFromPublicArea=True&isModal=False","Contratos de prestación de servicios profesionales y de apoyo a la gestión","CONTRATACION DIRECTA","No aplica","“APOYAR TÉCNICAMENTE LAS DISTINTAS ETAPAS DE LOS PROCESOS DE COMPETENCIA DE LAS INSPECCIONES DE POLICÍA DE LA LOCALIDAD, SEGÚN REPARTO”.",null,"Un Nuevo Contrato Social y Ambiental para la Bogotá del Siglo XXI","No aplica",{"$f":"IF(ISERROR(VLOOKUP(K96,Proposito_programa!$C$2:$E$59,2,FALSE)),\" \",VLOOKUP(K96,Proposito_programa!$C$2:$E$59,2,FALSE))","v":" "},{"$f":"IF(ISERROR(VLOOKUP(K96,Proposito_programa!$C$2:$E$59,3,FALSE)),\" \",VLOOKUP(K96,Proposito_programa!$C$2:$E$59,3,FALSE))","v":" "},null,null,"52314199-4","Hellen Mayue Barreto Ordoñez","Persona Natural",null,null,null," $            23.136.000,00",null,null,null,23136000,null,"2021-03-25","2021-03-25","2021-07-25",4,null,null,null,null,null,null,"x",null,null,null,1]
[86,2021,"FDLAN -CD-086-2021 (58020)","https://community.secop.gov.co/Public/Tendering/OpportunityDetail/Index?noticeUID=CO1.NTC.1882903&isFromPublicArea=True&isModal=False","Contratos de prestación de servicios profesionales y de apoyo a la gestión","CONTRATACION DIRECTA","No aplica","“PRESTACIÓN DE SERVICIOS PROFESIONALES PARA LA ADMINISTRACIÓN, DESARROLLO Y FORTALECIMIENTO DE LAS ACTIVIDADES CULTURALES Y ARTÍSTICAS QUE SE BRINDAN A LA COMUNIDAD EN EL TEATRO VILLA MAYOR DE LA LOCALIDAD ANTONIO NARIÑO”",null,"Un Nuevo Contrato Social y Ambiental para la Bogotá del Siglo XXI","No aplica",{"$f":"IF(ISERROR(VLOOKUP(K97,Proposito_programa!$C$2:$E$59,2,FALSE)),\" \",VLOOKUP(K97,Proposito_programa!$C$2:$E$59,2,FALSE))","v":" "},{"$f":"IF(ISERROR(VLOOKUP(K97,Proposito_programa!$C$2:$E$59,3,FALSE)),\" \",VLOOKUP(K97,Proposito_programa!$C$2:$E$59,3,FALSE))","v":" "},null,null,"80871795-4","Alvaro Andres Martínez Coronel","Persona Natural",null,null,null," $            60.868.000,00",null,null,null,60868000,null,"2021-03-30","2021-03-30","2021-12-28",9,null,null,null,null,null,null,"x",null,null,null,1]
[87,2021,"FDLAN-CD-087-2021(57717)","https://community.secop.gov.co/Public/Tendering/OpportunityDetail/Index?noticeUID=CO1.NTC.1882719&isFromPublicArea=True&isModal=False","Contratos de prestación de servicios profesionales y de apoyo a la gestión","CONTRATACION DIRECTA","No aplica","“PRESTAR SERVICIOS PROFESIONALES, PARA APOYAR LA FORMULACIÓN, EJECUCIÓN, SUPERVISIÓN, SEGUIMIENTO CIERRE Y/O LIQUIDACIÓN DE LOS PROCESOS CONTRACTUALES DE SECTOR DEPORTIVO Y CULTURAL DE LA LOCALIDAD DE ANTONIO NARIÑO”.",null,"Un Nuevo Contrato Social y Ambiental para la Bogotá del Siglo XXI","No aplica",{"$f":"IF(ISERROR(VLOOKUP(K98,Proposito_programa!$C$2:$E$59,2,FALSE)),\" \",VLOOKUP(K98,Proposito_programa!$C$2:$E$59,2,FALSE))","v":" "},{"$f":"IF(ISERROR(VLOOKUP(K98,Proposito_programa!$C$2:$E$59,3,FALSE)),\" \",VLOOKUP(K98,Proposito_programa!$C$2:$E$59,3,FALSE))","v":" "},null,null,"53107139-9","Diana Carolina Jiménez Rodriguez","Persona Natural",null,null,null," $            18.696.000,00",null,null,null,18696000,null,"2021-03-30","2021-03-30","2021-07-28",4,null,null,null,null,null,null,"x",null,null,null,1]
[88,2021,"FDLAN-CD-088-2021(57719)","https://community.secop.gov.co/Public/Tendering/OpportunityDetail/Index?noticeUID=CO1.NTC.1882720&isFromPublicArea=True&isModal=False","Contratos de prestación de servicios profesionales y de apoyo a la gestión","CONTRATACION DIRECTA","No aplica","“PRESTAR SERVICIOS PROFESIONALES, PARA APOYAR LA FORMULACIÓN, EJECUCIÓN, SUPERVISIÓN, SEGUIMIENTO CIERRE Y/O LIQUIDACIÓN DE LOS PROCESO CONTRACTUALES QUE DEN RESPUESTA AL PROYECTO DE INVERSIÓN 2191 DE LA LOCALIDAD DE ANTONIO NARIÑO”.",null,"Un Nuevo Contrato Social y Ambiental para la Bogotá del Siglo XXI","No aplica",{"$f":"IF(ISERROR(VLOOKUP(K99,Proposito_programa!$C$2:$E$59,2,FALSE)),\" \",VLOOKUP(K99,Proposito_programa!$C$2:$E$59,2,FALSE))","v":" "},{"$f":"IF(ISERROR(VLOOKUP(K99,Proposito_programa!$C$2:$E$59,3,FALSE)),\" \",VLOOKUP(K99,Proposito_programa!$C$2:$E$59,3,FALSE))","v":" "},null,null,"1023866994-7","Zayra Catalina Bernal Cabrera","Persona Natural",null,null,null," $            28.044.000,00",null,null,null,28044000,null,"2021-03-30","2021-03-30","2021-09-28",6,null,null,null,null,null,null,"x",null,null,null,1]
[89,2021,"FDLAN-CD-089-2021","https://community.secop.gov.co/Public/Tendering/OpportunityDetail/Index?noticeUID=CO1.NTC.1885215&isFromPublicArea=True&isModal=False","Contratos de prestación de servicios profesionales y de apoyo a la gestión","CONTRATACION DIRECTA","No aplica","“PRESTAR LOS SERVICIOS TÉCNICOS PARA LA OPERACIÓN, SEGUIMIENTO Y CUMPLIMIENTO DE LOS PROCESOS Y PROCEDIMIENTOS DEL SERVICIO SOCIAL APOYO ECONÓMICO TIPO C, REQUERIDOS PARA EL OPORTUNO Y ADECUADO REGISTRO, CRUCE Y REPORTE DE LOS DATOS DEL SISTEMA DE INFORMACIÓN Y REGISTRO DE BENEFICIARIOS-SIRBE, QUE CONTRIBUYAN A LA GARANTÍA DE LOS DERECHOS DE LA POBLACIÓN MAYOR EN EL MARCO DE LA POLÍTICA PÚBLICA SOCIAL PARA ENVEJECIMIENTO Y LA VEJEZ EN EL DISTRITO CAPITAL A CARGO DE LA ALCALDÍA LOCAL”.",null,"Un Nuevo Contrato Social y Ambiental para la Bogotá del Siglo XXI","No aplica",{"$f":"IF(ISERROR(VLOOKUP(K100,Proposito_programa!$C$2:$E$59,2,FALSE)),\" \",VLOOKUP(K100,Proposito_programa!$C$2:$E$59,2,FALSE))","v":" "},{"$f":"IF(ISERROR(VLOOKUP(K100,Proposito_programa!$C$2:$E$59,3,FALSE)),\" \",VLOOKUP(K100,Proposito_programa!$C$2:$E$59,3,FALSE))","v":" "},null,null,"423466-4","Susana Patricia Enriquez Ugalde","Persona Natural",null,null,null," $            35.397.000,00",null,null,null,35397000,null,"2021-03-31","2021-03-31","2021-12-29",9,null,null,null,null,null,null,"x",null,null,null,1]
[90,2021,"FDLAN-CD-090-2021 (57889)","https://community.secop.gov.co/Public/Tendering/OpportunityDetail/Index?noticeUID=CO1.NTC.1885213&isFromPublicArea=True&isModal=False","Contratos de prestación de servicios profesionales y de apoyo a la gestión","CONTRATACION DIRECTA","No aplica","APOYAR ADMINISTRATIVA Y ASISTENCIALMENTE A LAS INSPECCIONES DE POLICÍA DE LA LOCALIDAD",null,"Un Nuevo Contrato Social y Ambiental para la Bogotá del Siglo XXI","No aplica",{"$f":"IF(ISERROR(VLOOKUP(K101,Proposito_programa!$C$2:$E$59,2,FALSE)),\" \",VLOOKUP(K101,Proposito_programa!$C$2:$E$59,2,FALSE))","v":" "},{"$f":"IF(ISERROR(VLOOKUP(K101,Proposito_programa!$C$2:$E$59,3,FALSE)),\" \",VLOOKUP(K101,Proposito_programa!$C$2:$E$59,3,FALSE))","v":" "},null,null,"53012692-1","Viviana Baron Vallarino cedido a  Sandro Vásquez González","Persona Natural",null,null,null," $              7.224.000,00",null,null,null,7224000,null,"2021-03-31","2021-03-31","2021-07-30",4,null,null,null,null,null,null,"x",null,null,null,1]
[91,2021,"FDLAN-CD-091-2021(57412)","https://community.secop.gov.co/Public/Tendering/OpportunityDetail/Index?noticeUID=CO1.NTC.1891129&isFromPublicArea=True&isModal=False","Contratos de prestación de servicios profesionales y de apoyo a la gestión","CONTRATACION DIRECTA","No aplica","“PRESTAR LOS SERVICIOS PROFESIONALES PARA APOYAR AL ALCALDE LOCAL EN LA PROMOCIÓN, ARTICULACIÓN, ACOMPAÑAMIENTO Y SEGUIMIENTO PARA LA ATENCIÓN Y PROTECCIÓN DE LOS ANIMALES DOMÉSTICOS Y SILVESTRES DE LA LOCALIDAD ANTONIO NARIÑO”.",null,"Un Nuevo Contrato Social y Ambiental para la Bogotá del Siglo XXI","No aplica",{"$f":"IF(ISERROR(VLOOKUP(K102,Proposito_programa!$C$2:$E$59,2,FALSE)),\" \",VLOOKUP(K102,Proposito_programa!$C$2:$E$59,2,FALSE))","v":" "},{"$f":"IF(ISERROR(VLOOKUP(K102,Proposito_programa!$C$2:$E$59,3,FALSE)),\" \",VLOOKUP(K102,Proposito_programa!$C$2:$E$59,3,FALSE))","v":" "},null,null,"53116436-1","Viviana Peña Florez","Persona Natural",null,null,null," $            38.676.400,00",null,null,null,38676400,null,"2021-04-05","2021-04-05","2021-12-31","8 MESES 26 DIAS ",null,null,null,null,null,null,"x",null,null,null,1]
[92,2021,"FDLAN-CD-092-2021(57811)","https://community.secop.gov.co/Public/Tendering/OpportunityDetail/Index?noticeUID=CO1.NTC.1891023&isFromPublicArea=True&isModal=False","Contratos de prestación de servicios profesionales y de apoyo a la gestión","CONTRATACION DIRECTA","No aplica","“PRESTAR SERVICIOS PROFESIONALES PARA COORDINAR LA ARTICULACIÓN, ASISTENCIA Y ACOMPAÑAMIENTO DE LOS PROCESOS DE PLANEACIÓN LOCAL, PARA LA PROMOCIÓN DE LA PARTICIPACIÓN DE LAS MUJERES Y DE LA EQUIDAD DE GÉNERO, PARA MATERIALIZAR EN LA LOCALIDAD LAS ESTRATEGIAS DE TERRITORIALIZACION Y TRANSVERSALIZACIÓN DE LA POLÍTICA PÚBLICA DE MUJERES Y EQUIDAD DE GÉNERO, PPMYEG”.",null,"Un Nuevo Contrato Social y Ambiental para la Bogotá del Siglo XXI","No aplica",{"$f":"IF(ISERROR(VLOOKUP(K103,Proposito_programa!$C$2:$E$59,2,FALSE)),\" \",VLOOKUP(K103,Proposito_programa!$C$2:$E$59,2,FALSE))","v":" "},{"$f":"IF(ISERROR(VLOOKUP(K103,Proposito_programa!$C$2:$E$59,3,FALSE)),\" \",VLOOKUP(K103,Proposito_programa!$C$2:$E$59,3,FALSE))","v":" "},null,null,"1013668763-7","Camila Andrea Villegas Mosquera","Persona Natural",null,null,null," $            19.992.000,00",null,null,null,19992000,null,"2021-04-05","2021-04-05","2021-08-04",4,null,null,null,null,null,null,"x",null,null,null,1]
[93,2021,"FDLAN -CD-093-2021 (57833)","https://community.secop.gov.co/Public/Tendering/OpportunityDetail/Index?noticeUID=CO1.NTC.1900301&isFromPublicArea=True&isModal=False","Contratos de prestación de servicios profesionales y de apoyo a la gestión","CONTRATACION DIRECTA","No aplica","“PRESTAR SERVICIOS DE APOYO A LA GESTIÓN AL FONDO DE DESARROLLO LOCAL DE ANTONIO NARIÑO EN EL SEGUIMIENTO A LOS PROCESOS CON JÓVENES, ASÍ COMO EN LOS PROCESOS DE PARTICIPACIÓN CIUDADANA EN LA LOCALIDAD”.",null,"Un Nuevo Contrato Social y Ambiental para la Bogotá del Siglo XXI","No aplica",{"$f":"IF(ISERROR(VLOOKUP(K104,Proposito_programa!$C$2:$E$59,2,FALSE)),\" \",VLOOKUP(K104,Proposito_programa!$C$2:$E$59,2,FALSE))","v":" "},{"$f":"IF(ISERROR(VLOOKUP(K104,Proposito_programa!$C$2:$E$59,3,FALSE)),\" \",VLOOKUP(K104,Proposito_programa!$C$2:$E$59,3,FALSE))","v":" "},null,null,"1013604823-6","Juan Gerardo Arevalo Giraldo","Persona Natural",null,null,null," $              8.040.000,00",null,null,null,8040000,null,"2021-04-08","2021-04-08","2021-08-07",4,null,null,null,null,null,null,"x",null,null,null,1]
[94,2021,"  ","https://community.secop.gov.co/Public/Tendering/OpportunityDetail/Index?noticeUID=CO1.NTC.1906050&isFromPublicArea=True&isModal=False","Contratos de prestación de servicios profesionales y de apoyo a la gestión","CONTRATACION DIRECTA","No aplica","“APOYAR JURÍDICAMENTE LA EJECUCIÓN DE LAS ACCIONES REQUERIDAS PARA EL TRÁMITE E IMPULSO PROCESAL DE LAS ACTUACIONES CONTRAVENCIONALES Y/O QUERELLAS QUE CURSEN EN LAS INSPECCIONES DE POLICÍA DE LA LOCAL”.",null,"Un Nuevo Contrato Social y Ambiental para la Bogotá del Siglo XXI","No aplica",{"$f":"IF(ISERROR(VLOOKUP(K105,Proposito_programa!$C$2:$E$59,2,FALSE)),\" \",VLOOKUP(K105,Proposito_programa!$C$2:$E$59,2,FALSE))","v":" "},{"$f":"IF(ISERROR(VLOOKUP(K105,Proposito_programa!$C$2:$E$59,3,FALSE)),\" \",VLOOKUP(K105,Proposito_programa!$C$2:$E$59,3,FALSE))","v":" "},null,null,"1031127320-2","Yaniz Lisset Vargas Garcia","Persona Natural",null,null,null," $            17.520.000,00",null,null,null,17520000,null,"2021-04-12","2021-04-12","2021-08-11",4,null,null,null,null,null,null,"x",null,null,null,1]
[95,2021,"FDLAN-CD-095-2021(57889)","https://community.secop.gov.co/Public/Tendering/OpportunityDetail/Index?noticeUID=CO1.NTC.1906518&isFromPublicArea=True&isModal=False","Contratos de prestación de servicios profesionales y de apoyo a la gestión","CONTRATACION DIRECTA","No aplica","“APOYAR ADMINISTRATIVA Y ASISTENCIALMENTE A LAS INSPECCIONES DE POLICÍA DE LA LOCALIDAD”.",null,"Un Nuevo Contrato Social y Ambiental para la Bogotá del Siglo XXI","No aplica",{"$f":"IF(ISERROR(VLOOKUP(K106,Proposito_programa!$C$2:$E$59,2,FALSE)),\" \",VLOOKUP(K106,Proposito_programa!$C$2:$E$59,2,FALSE))","v":" "},{"$f":"IF(ISERROR(VLOOKUP(K106,Proposito_programa!$C$2:$E$59,3,FALSE)),\" \",VLOOKUP(K106,Proposito_programa!$C$2:$E$59,3,FALSE))","v":" "},null,null,"1012439847-1","Angie Lizeth Cante Casallas","Persona Natural",null,null,null," $              7.224.000,00",null,null,null,7224000,null,"2021-04-12","2021-04-12","2021-08-11",4,null,null,null,null,null,null,"x",null,null,null,1]
[96,2021,"FDLAN-CD-096-2021(57834)","https://community.secop.gov.co/Public/Tendering/OpportunityDetail/Index?noticeUID=CO1.NTC.1913365&isFromPublicArea=True&isModal=False","Contratos de prestación de servicios profesionales y de apoyo a la gestión","CONTRATACION DIRECTA","No aplica","“APOYAR JURÍDICAMENTE LA EJECUCIÓN DE LAS ACCIONES REQUERIDAS PARA EL TRÁMITE E IMPULSO PROCESAL DE LAS ACTUACIONES CONTRAVENCIONALES Y/O QUERELLAS QUE CURSEN EN LAS INSPECCIONES DE POLICÍA DE LA LOCALIDAD”.",null,"Un Nuevo Contrato Social y Ambiental para la Bogotá del Siglo XXI","No aplica",{"$f":"IF(ISERROR(VLOOKUP(K107,Proposito_programa!$C$2:$E$59,2,FALSE)),\" \",VLOOKUP(K107,Proposito_programa!$C$2:$E$59,2,FALSE))","v":" "},{"$f":"IF(ISERROR(VLOOKUP(K107,Proposito_programa!$C$2:$E$59,3,FALSE)),\" \",VLOOKUP(K107,Proposito_programa!$C$2:$E$59,3,FALSE))","v":" "},null,null,"80214248-1","Rober Jackson Ibarguen Rodriguez","Persona Natural",null,null,null," $            17.520.000,00",null,null,null,17520000,null,"2021-04-15","2021-04-15","2021-08-14",4,null,null,null,null,null,null,"x",null,null,null,1]
[97,2021,"FDLAN-CD-097-2021 (57515)","https://community.secop.gov.co/Public/Tendering/OpportunityDetail/Index?noticeUID=CO1.NTC.1915179&isFromPublicArea=True&isModal=False","Contratos de prestación de servicios profesionales y de apoyo a la gestión","CONTRATACION DIRECTA","No aplica","“PRESTACIÓN DE SERVICIOS PROFESIONALES AL ÁREA DE GESTIÓN DE DESARROLLO LOCAL DE ANTONIO NARIÑO PARA APOYAR EL SEGUIMIENTO DEL PLAN DE DESARROLLO LOCAL RELACIONADO CON LA INFRAESTRUCTURA DE LA LOCALIDAD”.",null,"Un Nuevo Contrato Social y Ambiental para la Bogotá del Siglo XXI","No aplica",{"$f":"IF(ISERROR(VLOOKUP(K108,Proposito_programa!$C$2:$E$59,2,FALSE)),\" \",VLOOKUP(K108,Proposito_programa!$C$2:$E$59,2,FALSE))","v":" "},{"$f":"IF(ISERROR(VLOOKUP(K108,Proposito_programa!$C$2:$E$59,3,FALSE)),\" \",VLOOKUP(K108,Proposito_programa!$C$2:$E$59,3,FALSE))","v":" "},null,null,"79395150-9","Carlos Alfonso Hernandez Potes","Persona Natural",null,null,null," $            17.448.000,00",null,null,null,17448000,null,"2021-04-15","2021-04-15","2021-08-14",4,null,null,null,null,null,null,"x",null,null,null,1]
[98,2021,"FDLAN-CD-098-2021(57830)","https://community.secop.gov.co/Public/Tendering/OpportunityDetail/Index?noticeUID=CO1.NTC.1914811&isFromPublicArea=True&isModal=False","Contratos de prestación de servicios profesionales y de apoyo a la gestión","CONTRATACION DIRECTA","No aplica","“PRESTACIÓN DE SERVICIOS PROFESIONALES DE APOYO AL ALCALDE LOCAL EN LA PROMOCIÓN, ACOMPAÑAMIENTO, COORDINACIÓN Y ATENCIÓN DE LAS INSTANCIAS DE COORDINACIÓN INTERINSTITUCIONALES Y LAS INSTANCIAS DE PARTICIPACIÓN LOCALES, ASÍ COMO LOS PROCESOS COMUNITARIOS EN LA LOCALIDAD.”",null,"Un Nuevo Contrato Social y Ambiental para la Bogotá del Siglo XXI","No aplica",{"$f":"IF(ISERROR(VLOOKUP(K109,Proposito_programa!$C$2:$E$59,2,FALSE)),\" \",VLOOKUP(K109,Proposito_programa!$C$2:$E$59,2,FALSE))","v":" "},{"$f":"IF(ISERROR(VLOOKUP(K109,Proposito_programa!$C$2:$E$59,3,FALSE)),\" \",VLOOKUP(K109,Proposito_programa!$C$2:$E$59,3,FALSE))","v":" "},null,null,"1082896812-8","Angela Vanessa Abella Alvarez","Persona Natural",null,null,null," $            29.988.000,00",null,null,null,29988000,null,"2021-04-15","2021-04-15","2021-10-14",6,null,null,null,null,null,null,"x",null,null,null,1]
[99,2021,"FDLAN-CD-099-2021-(57889)","https://community.secop.gov.co/Public/Tendering/OpportunityDetail/Index?noticeUID=CO1.NTC.1917762&isFromPublicArea=True&isModal=False","Contratos de prestación de servicios profesionales y de apoyo a la gestión","CONTRATACION DIRECTA","No aplica","“APOYAR ADMINISTRATIVA Y ASISTENCIALMENTE A LAS INSPECCIONES DE POLICÍA DE LA LOCALIDAD”.",null,"Un Nuevo Contrato Social y Ambiental para la Bogotá del Siglo XXI","No aplica",{"$f":"IF(ISERROR(VLOOKUP(K110,Proposito_programa!$C$2:$E$59,2,FALSE)),\" \",VLOOKUP(K110,Proposito_programa!$C$2:$E$59,2,FALSE))","v":" "},{"$f":"IF(ISERROR(VLOOKUP(K110,Proposito_programa!$C$2:$E$59,3,FALSE)),\" \",VLOOKUP(K110,Proposito_programa!$C$2:$E$59,3,FALSE))","v":" "},null,null,"51752075-4","Lilia Camacho Cadena","Persona Natural",null,null,null," $               7.224.000,00",null,null,null,7224000,null,"2021-04-16","2021-04-16","2021-08-15",4,null,null,null,null,null,null,"x",null,null,null,1]
[100,2021,"FDLAN-CD-100-2021 (58267)","https://community.secop.gov.co/Public/Tendering/OpportunityDetail/Index?noticeUID=CO1.NTC.1918115&isFromPublicArea=True&isModal=False","Contratos de prestación de servicios profesionales y de apoyo a la gestión","CONTRATACION DIRECTA","No aplica","\"PRESTAR SERVICIOS DE APOYO A LA GESTIÓN COMO ACOMPAÑAMIENTO A LAS ACTIVIDADES ENCOMENDADAS AL REFERENTE DE PARTICIPACIÓN PRINCIPALMENTE AQUELLAS INHERENTES PARA LLEVAR A CABO LA CONSOLIDACIÓN LOS DIAGNÓSTICOS SECTORIALES O POBLACIONALES DE LA LOCALIDAD ANTONIO NARIÑO\"",null,"Un Nuevo Contrato Social y Ambiental para la Bogotá del Siglo XXI","No aplica",{"$f":"IF(ISERROR(VLOOKUP(K111,Proposito_programa!$C$2:$E$59,2,FALSE)),\" \",VLOOKUP(K111,Proposito_programa!$C$2:$E$59,2,FALSE))","v":" "},{"$f":"IF(ISERROR(VLOOKUP(K111,Proposito_programa!$C$2:$E$59,3,FALSE)),\" \",VLOOKUP(K111,Proposito_programa!$C$2:$E$59,3,FALSE))","v":" "},null,null,"1013681550-9","Norella del Pilar Flechas Guerrero","Persona Natural",null,null,null," $               6.480.000,00",null,null,null,6480000,null,"2021-04-16","2021-04-16","2021-08-15",4,null,null,null,null,null,null,"x",null,null,null,1]
[102,2021,"FDLAN-CD-102-2021-(58076)","https://community.secop.gov.co/Public/Tendering/OpportunityDetail/Index?noticeUID=CO1.NTC.1917287&isFromPublicArea=True&isModal=False","Contratos de prestación de servicios profesionales y de apoyo a la gestión","CONTRATACION DIRECTA","No aplica","APOYAR ADMINISTRATIVA Y ASISTENCIALMENTE AL ÁREA DE GESTIÓN POLICIVA DE LA ALCALDÍA LOCAL DE ANTONIO NARIÑO”",null,"Un Nuevo Contrato Social y Ambiental para la Bogotá del Siglo XXI","No aplica",{"$f":"IF(ISERROR(VLOOKUP(K112,Proposito_programa!$C$2:$E$59,2,FALSE)),\" \",VLOOKUP(K112,Proposito_programa!$C$2:$E$59,2,FALSE))","v":" "},{"$f":"IF(ISERROR(VLOOKUP(K112,Proposito_programa!$C$2:$E$59,3,FALSE)),\" \",VLOOKUP(K112,Proposito_programa!$C$2:$E$59,3,FALSE))","v":" "},null,null,"1023954141-9","Camila Andrea Granada Ayala","Persona Natural",null,null,null," $               5.520.000,00",null,null,null,5520000,null,"2021-04-16","2021-04-16","2021-08-15",4,null,null,null,null,null,null,"x",null,null,null,1]
[103,2021,"FDLAN-SAMC-002-2021(58041) ","https://community.secop.gov.co/Public/Tendering/OpportunityDetail/Index?noticeUID=CO1.NTC.1900267&isFromPublicArea=True&isModal=False","Contratos de prestación de servicios profesionales y de apoyo a la gestión","SELECCIÓN ABREVIADA ","No aplica","“PRESTACIÓN DEL SERVICIO DE VIGILANCIA Y SEGURIDAD PRIVADA PARA LA SEDE ADMINISTRATIVA DE LA ALCALDÍA LOCAL DE ANTONIO NARIÑO, EL TEATRO VILLA MAYOR, EL SALÓN COMUNAL DE LA FRAGUA Y TODOS AQUELLOS BIENES MUEBLES O INMUEBLES DE LOS CUALES SEA O LLEGARE A SER LEGALMENTE RESPONSABLE”.",null,"Un Nuevo Contrato Social y Ambiental para la Bogotá del Siglo XXI","No aplica",{"$f":"IF(ISERROR(VLOOKUP(K113,Proposito_programa!$C$2:$E$59,2,FALSE)),\" \",VLOOKUP(K113,Proposito_programa!$C$2:$E$59,2,FALSE))","v":" "},{"$f":"IF(ISERROR(VLOOKUP(K113,Proposito_programa!$C$2:$E$59,3,FALSE)),\" \",VLOOKUP(K113,Proposito_programa!$C$2:$E$59,3,FALSE))","v":" "},null,null,"804.000.353-1","Cooperativa de Vigilancia y Servicios de Bucaramanga Cta- Coovimac C.T.A.","Persona Natural",null,null,null," $          230.316.407,00",null,null,null,230316407,null,"2021-04-19","2021-04-19","2021-12-18",8,null,null,null,null,null,null,"x",null,null,null,1]
[104,2021,"FDLAN-CD-104-2021 (57832)","https://community.secop.gov.co/Public/Tendering/OpportunityDetail/Index?noticeUID=CO1.NTC.1923752&isFromPublicArea=True&isModal=False","Contratos de prestación de servicios profesionales y de apoyo a la gestión","CONTRATACION DIRECTA","No aplica","“PRESTAR SERVICIOS DE APOYO A LA GESTIÓN AL FONDO DE DESARROLLO LOCAL DE ANTONIO NARIÑO EN EL SEGUIMIENTO A CASOS DE VIOLENCIA INTRAFAMILIAR Y SEXUAL EN POBLACIONES VULNERABLES, ASÍ COMO EN LOS PROCESOS DE PARTICIPACIÓN CIUDADANA EN LA LOCALIDAD”.",null,"Un Nuevo Contrato Social y Ambiental para la Bogotá del Siglo XXI","No aplica",{"$f":"IF(ISERROR(VLOOKUP(K114,Proposito_programa!$C$2:$E$59,2,FALSE)),\" \",VLOOKUP(K114,Proposito_programa!$C$2:$E$59,2,FALSE))","v":" "},{"$f":"IF(ISERROR(VLOOKUP(K114,Proposito_programa!$C$2:$E$59,3,FALSE)),\" \",VLOOKUP(K114,Proposito_programa!$C$2:$E$59,3,FALSE))","v":" "},null,null,"1007749906-1","Lizeth Dayana Rubiano Pulido","Persona Natural",null,null,null," $               8.040.000,00",null,null,null,8040000,null,"2021-04-20","2021-04-20","2021-08-19",4,null,null,null,null,null,null,"x",null,null,null,1]
[105,2021,"FDLAN-CD-105-2021(58343","https://community.secop.gov.co/Public/Tendering/OpportunityDetail/Index?noticeUID=CO1.NTC.1928733&isFromPublicArea=True&isModal=False","Contratos de prestación de servicios profesionales y de apoyo a la gestión","CONTRATACION DIRECTA","No aplica","PRESTACION DE SERVICIOS DE APOYO A LA GESTION COMO AUXILAR PARA LA TRANSCRIPCION DE LAS ACTAS QUE EXPIDA LA JUNTA ADMINISTRADORA LOCAL DE ANTONIO NARIÑO",null,"Un Nuevo Contrato Social y Ambiental para la Bogotá del Siglo XXI","No aplica",{"$f":"IF(ISERROR(VLOOKUP(K115,Proposito_programa!$C$2:$E$59,2,FALSE)),\" \",VLOOKUP(K115,Proposito_programa!$C$2:$E$59,2,FALSE))","v":" "},{"$f":"IF(ISERROR(VLOOKUP(K115,Proposito_programa!$C$2:$E$59,3,FALSE)),\" \",VLOOKUP(K115,Proposito_programa!$C$2:$E$59,3,FALSE))","v":" "},null,null,"1017222066-1","PAULA ANDREA VILLADA LOPEZ","Persona Natural",null,null,null," $            11.040.000,00",null,null,null,11040000,null,"2021-04-21","2021-04-22","2021-12-21",8,null,null,null,null,null,null,"x",null,null,null,1]
[106,2021,"FDLAN-CD-106-2021(58131)","https://community.secop.gov.co/Public/Tendering/OpportunityDetail/Index?noticeUID=CO1.NTC.1928652&isFromPublicArea=True&isModal=False","Contratos de prestación de servicios profesionales y de apoyo a la gestión","CONTRATACION DIRECTA","No aplica","EL CONTRATO QUE SE PRETENDE CELEBRAR, TENDRÁ POR OBJETO PRESTAR SERVICIOS PROFESIONALES, PARA APOYAR LA FORMULACIÓN, EJECUCIÓN, SUPERVISIÓN, SEGUIMIENTO CIERRE Y/O LIQUIDACIÓN DE LOS PROCESOS CONTRACTUALES QUE DEN RESPUESTA AL PROYECTO DE INVERSIÓN 2193, 2194, 2195 Y 2197 DE LA LOCALIDAD DE ANTONIO NARIÑO",null,"Un Nuevo Contrato Social y Ambiental para la Bogotá del Siglo XXI","No aplica",{"$f":"IF(ISERROR(VLOOKUP(K116,Proposito_programa!$C$2:$E$59,2,FALSE)),\" \",VLOOKUP(K116,Proposito_programa!$C$2:$E$59,2,FALSE))","v":" "},{"$f":"IF(ISERROR(VLOOKUP(K116,Proposito_programa!$C$2:$E$59,3,FALSE)),\" \",VLOOKUP(K116,Proposito_programa!$C$2:$E$59,3,FALSE))","v":" "},null,null,"80853106-3","Hector Dario Brito Solano","Persona Natural",null,null,null," $            17.520.000,00",null,null,null,17520000,null,"2021-04-21","2021-04-21","2021-08-20",4,null,null,null,null,null,null,"x",null,null,null,1]
[107,2021,"FDLAN-CD-107-2021(58374)","https://community.secop.gov.co/Public/Tendering/OpportunityDetail/Index?noticeUID=CO1.NTC.1938730&isFromPublicArea=True&isModal=False","Contratos de prestación de servicios profesionales y de apoyo a la gestión","CONTRATACION DIRECTA","No aplica","PRESTACIÓN DE SERVICIOS TÉCNICOS DE APOYO A LA GESTIÓN DEL FONDO DE DESARROLLO LOCAL COMO ADMINISTRADOR DEL PUNTO VIVE DIGITAL DE LA ALCALDIA LOCAL DE ANTONIO NARIÑO - PVD",null,"Un Nuevo Contrato Social y Ambiental para la Bogotá del Siglo XXI","No aplica",{"$f":"IF(ISERROR(VLOOKUP(K117,Proposito_programa!$C$2:$E$59,2,FALSE)),\" \",VLOOKUP(K117,Proposito_programa!$C$2:$E$59,2,FALSE))","v":" "},{"$f":"IF(ISERROR(VLOOKUP(K117,Proposito_programa!$C$2:$E$59,3,FALSE)),\" \",VLOOKUP(K117,Proposito_programa!$C$2:$E$59,3,FALSE))","v":" "},null,null,"1013657111-8","Oscar Mauricio Ramírez Sánchez","Persona Natural",null,null,null," $            10.600.000,00",null,null,null,10600000,null,"2021-04-26","2021-04-27","2021-08-26",4,null,null,null,null,null,null,"x",null,null,null,1]
[108,2021,"FDLAN-SAMC-003-2021 ","https://community.secop.gov.co/Public/Tendering/OpportunityDetail/Index?noticeUID=CO1.NTC.1931204&isFromPublicArea=True&isModal=False","Seguros","SELECCIÓN ABREVIADA ","No aplica","CONTRATAR LOS SEGUROS QUE AMPAREN LOS INTERESES PATRIMONIALES ACTUALES Y FUTUROS, ASÍ COMO LOS BIENES DE PROPIEDAD DEL FONDO DE DESARROLLO LOCAL DE ANTONIO NARIÑO, QUE ESTÉN BAJO SU RESPONSABILIDAD Y CUSTODIA Y AQUELLOS QUE SEAN ADQUIRIDOS PARA DESARROLLAR LAS FUNCIONES INHERENTES A SU ACTIVIDAD, ASÍ COMO LA EXPEDICIÓN DE UNA PÓLIZA COLECTIVA DE SEGURO DE VIDA Y CUALQUIER OTRA PÓLIZA DE SEGUROS QUE REQUIERA LA ENTIDAD EN EL DESARROLLO DE SU ACTIVIDAD",null,"Un Nuevo Contrato Social y Ambiental para la Bogotá del Siglo XXI","No aplica",{"$f":"IF(ISERROR(VLOOKUP(K118,Proposito_programa!$C$2:$E$59,2,FALSE)),\" \",VLOOKUP(K118,Proposito_programa!$C$2:$E$59,2,FALSE))","v":" "},{"$f":"IF(ISERROR(VLOOKUP(K118,Proposito_programa!$C$2:$E$59,3,FALSE)),\" \",VLOOKUP(K118,Proposito_programa!$C$2:$E$59,3,FALSE))","v":" "},null,null,"8600024002-2","La Previsora S.A. Compañía de Seguros","Persona Jurídica",null,null,null,64253393,null,null,null,64253393,null,"2021-04-30","2021-05-04","2022-01-04","8 MESES 6 DIAS ",null,null,null,null,null,null,"x",null,null,null,1]
[109,2021,"FDLAN-CD-109-2021(58272)","https://community.secop.gov.co/Public/Tendering/OpportunityDetail/Index?noticeUID=CO1.NTC.1952864&isFromPublicArea=True&isModal=False","Contratos de prestación de servicios profesionales y de apoyo a la gestión","CONTRATACION DIRECTA","No aplica","EL CONTRATO QUE SE PRETENDE CELEBRAR, TENDRÁ POR OBJETO PRESTAR SERVICIOS DE APOYO A LA GESTIÓN EN EL ACOMPAÑAMIENTO DE LOS PROCESOS DE BIENESTAR Y PROTECCIÓN ANIMAL DE LA ALCALDÍA LOCAL DE ANTONIO NARIÑO",null,"Un Nuevo Contrato Social y Ambiental para la Bogotá del Siglo XXI","No aplica",{"$f":"IF(ISERROR(VLOOKUP(K119,Proposito_programa!$C$2:$E$59,2,FALSE)),\" \",VLOOKUP(K119,Proposito_programa!$C$2:$E$59,2,FALSE))","v":" "},{"$f":"IF(ISERROR(VLOOKUP(K119,Proposito_programa!$C$2:$E$59,3,FALSE)),\" \",VLOOKUP(K119,Proposito_programa!$C$2:$E$59,3,FALSE))","v":" "},null,null,52737810,"Diana Marcela Aristizabal Noreña","Persona Natural",null,null,null,6480000,null,null,null,6480000,null,"2021-05-03","2021-05-03","2021-09-01",4,null,null,null,null,null,null,"x",null,null,null,1]
[110,2021,"FDLAN-CD-110-2021","https://community.secop.gov.co/Public/Tendering/OpportunityDetail/Index?noticeUID=CO1.NTC.2007973&isFromPublicArea=True&isModal=False","Otros","CONTRATACION DIRECTA","No aplica","EL COMODANTE, HACE ENTREGA REAL Y MATERIAL EN CALIDAD DE COMODATO O PRÉSTAMO DE USO AL COMODATARIO, LOS SIGUIENTES BIENES MUEBLES E INMUEBLES DE SU PROPIEDAD",null,"Un Nuevo Contrato Social y Ambiental para la Bogotá del Siglo XXI","No aplica",{"$f":"IF(ISERROR(VLOOKUP(K120,Proposito_programa!$C$2:$E$59,2,FALSE)),\" \",VLOOKUP(K120,Proposito_programa!$C$2:$E$59,2,FALSE))","v":" "},{"$f":"IF(ISERROR(VLOOKUP(K120,Proposito_programa!$C$2:$E$59,3,FALSE)),\" \",VLOOKUP(K120,Proposito_programa!$C$2:$E$59,3,FALSE))","v":" "},null,null,"800030637-1","J.A.C. Barrio la Fragua","Persona Jurídica",null,null,null,0,null,null,null,0,null,"2021-05-31","Suscrito sin Iniciar","Suscrito sin Iniciar",12,null,null,null,null,null,null,"x",null,null,null,1]
[111,2021,"FDLAN-CD-111-2021(59005)","https://community.secop.gov.co/Public/Tendering/OpportunityDetail/Index?noticeUID=CO1.NTC.2034562&isFromPublicArea=True&isModal=False","Contratos de prestación de servicios profesionales y de apoyo a la gestión","CONTRATACION DIRECTA","No aplica","PRESTAR SERVICIOS PROFESIONALES PARA APOYAR LA FORMULACIÓN, SUPERVISIÓN Y SEGUIMIENTO CIERRE Y/O LIQUIDACIÓN DE LOS PROCESOS CONTRACTUALES QUE DEN RESÚESTA A LOS PROYECTOS DE INVERSIÓN 2190 Y 2201 DEL FONDO DE DESARROLLO LOCAL DE ANTONIO NARIÑO",null,"Un Nuevo Contrato Social y Ambiental para la Bogotá del Siglo XXI","No aplica",{"$f":"IF(ISERROR(VLOOKUP(K121,Proposito_programa!$C$2:$E$59,2,FALSE)),\" \",VLOOKUP(K121,Proposito_programa!$C$2:$E$59,2,FALSE))","v":" "},{"$f":"IF(ISERROR(VLOOKUP(K121,Proposito_programa!$C$2:$E$59,3,FALSE)),\" \",VLOOKUP(K121,Proposito_programa!$C$2:$E$59,3,FALSE))","v":" "},null,null,"57072921-6","Luz Nancy Fajardo Celis","Persona Natural",null,null,null," $              17.520.000,00",null,null,null,17520000,null,"2021-06-17","2021-06-15","2021-10-14",4,null,null,null,null,null,null,"x",null,null,null,1]
[112,2021,"FDLAN-CD-112-2021(59326)","https://community.secop.gov.co/Public/Tendering/OpportunityDetail/Index?noticeUID=CO1.NTC.2039548&isFromPublicArea=True&isModal=False","Contratos de prestación de servicios profesionales y de apoyo a la gestión","CONTRATACION DIRECTA","No aplica","PRESTAR SERVICIOS PROFESIONALES PARA APOYAR LA FORMULACIÓN, SUPERVISIÓN Y SEGUIMIENTO CIERRE Y/O LIQUIDACIÓN DE LOS PROCESOS CONTRACTUALES QUE DEN RESÚESTA A LOS PROYECTOS DE INVERSIÓN 2190 Y 2201 DEL FONDO DE DESARROLLO LOCAL DE ANTONIO NARIÑO",null,"Un Nuevo Contrato Social y Ambiental para la Bogotá del Siglo XXI","No aplica",{"$f":"IF(ISERROR(VLOOKUP(K122,Proposito_programa!$C$2:$E$59,2,FALSE)),\" \",VLOOKUP(K122,Proposito_programa!$C$2:$E$59,2,FALSE))","v":" "},{"$f":"IF(ISERROR(VLOOKUP(K122,Proposito_programa!$C$2:$E$59,3,FALSE)),\" \",VLOOKUP(K122,Proposito_programa!$C$2:$E$59,3,FALSE))","v":" "},null,null," 1022342284-3 ","Yuly Andrea Solano Guerrero","Persona Natural",null,null,null," $                   14.130.000",null,null,null,14130000,null,"2021-06-17","2021-06-17","2021-09-16",3,null,null,null,null,null,null,"x",null,null,null,1]
[113,2021,"FDLAN-CD-113-2021(59025)","https://community.secop.gov.co/Public/Tendering/OpportunityDetail/Index?noticeUID=CO1.NTC.2046206&isFromPublicArea=True&isModal=False","Contratos de prestación de servicios profesionales y de apoyo a la gestión","CONTRATACION DIRECTA","No aplica","PRESTACIÓN DE SERVICIOS DE APOYO COMO AUXILIAR ADMINISTRATIVO EN EL ÁREA DE GESTIÓN DE DESARROLLO LOCAL DEL FONDO DE DESARROLLO LOCAL ANTONIO NARIÑO",null,"Un Nuevo Contrato Social y Ambiental para la Bogotá del Siglo XXI","No aplica",{"$f":"IF(ISERROR(VLOOKUP(K123,Proposito_programa!$C$2:$E$59,2,FALSE)),\" \",VLOOKUP(K123,Proposito_programa!$C$2:$E$59,2,FALSE))","v":" "},{"$f":"IF(ISERROR(VLOOKUP(K123,Proposito_programa!$C$2:$E$59,3,FALSE)),\" \",VLOOKUP(K123,Proposito_programa!$C$2:$E$59,3,FALSE))","v":" "},null,null," 53118341-8 ","Zaida Liliana Salinas Saavedra","Persona Natural",null,null,null," $                   10.575.360",null,null,null,10575360,null,"2021-06-21","2021-06-21","2021-10-20",4,null,null,null,null,null,null,"x",null,null,null,1]
[114,2021,"FDLAN-CD-114-2021-(59495)","https://community.secop.gov.co/Public/Tendering/OpportunityDetail/Index?noticeUID=CO1.NTC.2050729&isFromPublicArea=True&isModal=False","Contratos de prestación de servicios profesionales y de apoyo a la gestión","CONTRATACION DIRECTA","No aplica","PRESTAR LOS SERVICIOS DE APOYO A LA GESTIÓN PARA LA ACTUALIZACIÓN, REGISTRO Y CONTROL DE INFORMACION FISICA Y VIRTUAL DE LAS ACCIONES DE FOMENTO Y FORTALECIMIENTO DE PROCESOS PARTICIPATIVOS ASI COMO ACOMPAÑAMIENTO A LAS ACTIVIDADES PROPIAS DEL AREA DE GESTION DEL FONDO DE DESARROLLO LOCAL ANTONIO NARIÑO",null,"Un Nuevo Contrato Social y Ambiental para la Bogotá del Siglo XXI","No aplica",{"$f":"IF(ISERROR(VLOOKUP(K124,Proposito_programa!$C$2:$E$59,2,FALSE)),\" \",VLOOKUP(K124,Proposito_programa!$C$2:$E$59,2,FALSE))","v":" "},{"$f":"IF(ISERROR(VLOOKUP(K124,Proposito_programa!$C$2:$E$59,3,FALSE)),\" \",VLOOKUP(K124,Proposito_programa!$C$2:$E$59,3,FALSE))","v":" "},null,null,"79379005-1","Carlos Julio Patiño Bohorquez","Persona Natural",null,null,null," $                      7.841.700",null,null,null,7841700,null,"2021-06-23","2021-06-23","2021-09-22",3,null,null,null,null,null,null,"x",null,null,null,1]
[115,2021,"FDLAN-CD-0115-2021/SED-2267-2021","https://www.contratos.gov.co/consultas/detalleProceso.do?numConstancia=21-22-27176&g-recaptcha-response=03AGdBq26bD9A-yGjcpHKLzeVxmOv0gFnbGOkr33irnGDQXqFQLG7NQHz4ypaldsa3fBs1ExFKeRJMcKLZ7FpUs8psB8Dl_4Ul-ZJTX2yLZvs3A3b1hXkWz8LRZS1ayAF3x0sjc5NK0byEE2KvnR-zFmBlrNPmxNej7c5OpIY9URaq8rBTD_V256IcMlrZsDjvtvHu6DsnmKRDCwAoLDeCJxPPiLx5zoGvi_oquLxu-qyRLI8v1DEVB02RKHBMyJtvwyeLMkDD8vzJ36Ytjp5iOx7LNTU0J4e3VMsqg_4S-H-xBnMiRNfEJJZS6hZ-rnV9rU3Edp6LBbq-h5N8ERU5H_BnYRo-DD4bL-kWb_5-3pg0ldO-6aTnhl_IOs8DYEVQ9CrQcY9AQqAePGQXBb1DySrl2gBHZUN2no9QkVeq7hg3ay0jx6WLFE56ybuItc1aRgXI-0aorxV-eCpS0sZQjei7-rv-sbB3gw","Convenios de cooperacion","CONTRATACION DIRECTA","No aplica","AUNAR ESFUERZOS TÉCNICOS, ADMINISTRATIVOS, JURÍDICOS Y FINANCIEROS ENTRE LA SECRETARÍA DE EDUCACIÓN DEL DISTRITO Y LOS FONDOS DE DESARROLLO LOCAL QUE HACEN PARTE DEL DISTRITO CAPITAL, PARA LA IMPLEMENTACIÓN DE UN NUEVO MODELO INCLUSIVO, EFICIENTE Y FLEXIBLE PARA EL ACCESO Y LA PERMANENCIA DE LAS Y LOS JÓVENES EGRESADOS DE INSTITUCIONES DE EDUCACIÓN MEDIA A PROGRAMAS DE EDUCACIÓN SUPERIOR",null,"Un Nuevo Contrato Social y Ambiental para la Bogotá del Siglo XXI","No aplica",{"$f":"IF(ISERROR(VLOOKUP(K125,Proposito_programa!$C$2:$E$59,2,FALSE)),\" \",VLOOKUP(K125,Proposito_programa!$C$2:$E$59,2,FALSE))","v":" "},{"$f":"IF(ISERROR(VLOOKUP(K125,Proposito_programa!$C$2:$E$59,3,FALSE)),\" \",VLOOKUP(K125,Proposito_programa!$C$2:$E$59,3,FALSE))","v":" "},null,null,"899999061-1","Secretaria de Educación del Distrito \"SED\"","Persona Jurídica",null,null,null,1292898200,null,null,null,1292898200,null,"28/06/021","Desde la suscripción desde el acta de incio hasta el 30 de junio de 2027","Desde la suscripción desde el acta de incio hasta el 30 de junio de 2027","60 MESES 25 DIAS ",null,null,null,null,null,null,"x",null,null,null,1]
[116,2021,"FDLAN-CD-116-2021-(58954)","https://community.secop.gov.co/Public/Tendering/OpportunityDetail/Index?noticeUID=CO1.NTC.2060453&isFromPublicArea=True&isModal=False","Contratos de prestación de servicios profesionales y de apoyo a la gestión","CONTRATACION DIRECTA","No aplica","PRESTACIÓN DE SERVICIOS TÉCNICOS PARA APOYAR LA EJECUCIÓN DE ACTIVIDADES ADMINISTRATIVAS Y OPERATIVAS ADELANTADAS EN EL ÁREA DE GESTIÓN DEL DESARROLLO LOCAL, ADMINISTRATIVA Y FINANCIERA DE LA ALCALDÍA LOCAL DE ANTONIO NARIÑO",null,"Un Nuevo Contrato Social y Ambiental para la Bogotá del Siglo XXI","No aplica",{"$f":"IF(ISERROR(VLOOKUP(K126,Proposito_programa!$C$2:$E$59,2,FALSE)),\" \",VLOOKUP(K126,Proposito_programa!$C$2:$E$59,2,FALSE))","v":" "},{"$f":"IF(ISERROR(VLOOKUP(K126,Proposito_programa!$C$2:$E$59,3,FALSE)),\" \",VLOOKUP(K126,Proposito_programa!$C$2:$E$59,3,FALSE))","v":" "},null,null,"52951852-8","Angela Fernanda Díaz Torres","Persona Natural",null,null,null," $                 7.931.520,00",null,null,null,7931520,null,"2021-06-29","2021-06-29","2021-09-28",3,null,null,null,null,null,null,"x",null,null,null,1]
[117,2021,"FDLAN-CD-117-2021(59696)","https://community.secop.gov.co/Public/Tendering/OpportunityDetail/Index?noticeUID=CO1.NTC.2060434&isFromPublicArea=True&isModal=False","Contratos de prestación de servicios profesionales y de apoyo a la gestión","CONTRATACION DIRECTA","No aplica","PRESTAR SERVICIOS PROFESIONALES PARA APOYAR LA FORMULACIÓN, EJECUCIÓN, SUPERVISIÓN, SEGUIMIENTO, CIERRE Y/O LIQUIDACIÓN DE LOS PROCESO CONTRACTUALES QUE DEN RESPUESTA A LOS PROYECTOS DE INVERSIÓN 2205 Y 2210 DEL FONDO DE DESARROLLO LOCAL DE ANTONIO NARIÑO",null,"Un Nuevo Contrato Social y Ambiental para la Bogotá del Siglo XXI","No aplica",{"$f":"IF(ISERROR(VLOOKUP(K127,Proposito_programa!$C$2:$E$59,2,FALSE)),\" \",VLOOKUP(K127,Proposito_programa!$C$2:$E$59,2,FALSE))","v":" "},{"$f":"IF(ISERROR(VLOOKUP(K127,Proposito_programa!$C$2:$E$59,3,FALSE)),\" \",VLOOKUP(K127,Proposito_programa!$C$2:$E$59,3,FALSE))","v":" "},null,null,"1013671508-6","Jonathan Caledron Peña","Persona Natural",null,null,null," $              17.443.800,00",null,null,null,17443800,null,"2021-06-29","2021-06-29","2021-10-28",4,null,null,null,null,null,null,"x",null,null,null,1]
[118,2021,"FDLAN-CD-118-2021(59250)","https://community.secop.gov.co/Public/Tendering/OpportunityDetail/Index?noticeUID=CO1.NTC.2066568&isFromPublicArea=True&isModal=False","Contratos de prestación de servicios profesionales y de apoyo a la gestión","CONTRATACION DIRECTA","No aplica","PRESTACIÓN DE SERVICIOS DE APOYO A LAS ACTIVIDADES ADMINISTRATIVAS EN CUANTO A NOTIFICACIÓN DE LA CORRESPONDENCIA GENERADA POR EL ÁREA DE GESTIÓN DEL DESARROLLO LOCAL Y ÁREA DE GESTIÓN POLICIVA DE ANTONIO NARIÑO.",null,"Un Nuevo Contrato Social y Ambiental para la Bogotá del Siglo XXI","No aplica",{"$f":"IF(ISERROR(VLOOKUP(K128,Proposito_programa!$C$2:$E$59,2,FALSE)),\" \",VLOOKUP(K128,Proposito_programa!$C$2:$E$59,2,FALSE))","v":" "},{"$f":"IF(ISERROR(VLOOKUP(K128,Proposito_programa!$C$2:$E$59,3,FALSE)),\" \",VLOOKUP(K128,Proposito_programa!$C$2:$E$59,3,FALSE))","v":" "},null,null,"79469325-9","Everardo Yara Yara","Persona Natural",null,null,null," $                 4.140.000,00",null,null,null,4140000,null,"2021-07-01","2021-07-02","2021-09-30",3,null,null,null,null,null,null,"x",null,null,null,1]
[119,2021,"FDLAN-CD-119-2021(59795","https://www.contratos.gov.co/consultas/detalleProceso.do?numConstancia=21-22-27271&g-recaptcha-response=03AGdBq24-K8vKjRDUBquN187gC3S2nQ7kv1QYYei7p-PVInjlc2QvQOhVztJbpebl9ggkG38GetDQRe18FThwuFmicYVxtI0-zZoSfJxffHdonhOE9A0EqvCkA61QsLQ2FhyFgV8o0bPM8fT0SQT6X-fWjyklUCYZQicn4psm2ACSmKNWoT1YgDdsEo1hiAkWF5btJjOdcYqNEMG4BGtqpOR9EV5SfRev09FWOmdP8NBJkeph8t7jZoKHbtRCoKblox0H0PjNOsFhs1ocgqopnyaQrondUsX-DJqde3oRSSoh6ORy3FVWMGtpeJuEosUBk-QAgezyigaIV3pY8EujVxzbzRwJHjnG1ww3eDEWsq2KCrtezTN-uP41HFJH5oF4P1F68ZPlGOM3KXdGrsXeRKT_c2p3FC_Vv4TRYUCRvcdQTc1r2RAkPKmd1nFJ_6yv1RFaWIuP2rAC3x-0ZAzUCs1nWe4-brh93xKMwPsHXIDdjYcfzI9_dwQ","Convenios de cooperacion","CONTRATACION DIRECTA","No aplica","AUNAR ESFUERZOS TÉCNICOS, ADMINISTRATIVOS Y FINANCIEROS CON EL FIN DE DESARROLLAR ACCIONES ARTICULADAS ENTRE LAS PARTES ORIENTADAS A FOMENTAR LA GENERACIÓN Y CIRCULACIÓN DE BIENES Y SERVICIOS CULTURALES, ARTÍSTICOS Y PATRIMONIALES, ASÍ COMO AL FORTALECIMIENTO DE LOS AGENTES DE ESTOS SECTORES EN LAS LOCALIDADES DEL DISTRITO CAPITAL DE ACUERDO CON LOS PROYECTOS PRESENTADOS A LOS FONDOS DE DESARROLLO LOCAL QUE FORMAN PARTE DEL CONVENIO EN EL MARCO DEL PROGRAMA “ES CULTURA LOCAL 2021”",null,"Un Nuevo Contrato Social y Ambiental para la Bogotá del Siglo XXI","No aplica",{"$f":"IF(ISERROR(VLOOKUP(K129,Proposito_programa!$C$2:$E$59,2,FALSE)),\" \",VLOOKUP(K129,Proposito_programa!$C$2:$E$59,2,FALSE))","v":" "},{"$f":"IF(ISERROR(VLOOKUP(K129,Proposito_programa!$C$2:$E$59,3,FALSE)),\" \",VLOOKUP(K129,Proposito_programa!$C$2:$E$59,3,FALSE))","v":" "},null,null,"899999061-9","Secretaria Distrital de Cultura Recreación y Deporte","Persona Jurídica",null,null,null,190000000,null,null,null,190000000,null,"2021-06-30","2021-07-07","2021-12-31",6,null,null,null,null,null,null,"x",null,null,null,1]
[120,2021,"FDLAN-CD-120-2021(59733)","https://community.secop.gov.co/Public/Tendering/OpportunityDetail/Index?noticeUID=CO1.NTC.2070120&isFromPublicArea=True&isModal=False","Contratos de prestación de servicios profesionales y de apoyo a la gestión","CONTRATACION DIRECTA","No aplica","PRESTACIÓN DE SERVICIOS DE APOYO EN LA EJECUCIÓN DE ACTIVIDADES ADMINISTRATIVAS Y OPERATIVAS ADELANTADAS EN LA JUNTA ADMINISTRADORA LOCAL DE ANTONIO NARIÑO",null,"Un Nuevo Contrato Social y Ambiental para la Bogotá del Siglo XXI","No aplica",{"$f":"IF(ISERROR(VLOOKUP(K130,Proposito_programa!$C$2:$E$59,2,FALSE)),\" \",VLOOKUP(K130,Proposito_programa!$C$2:$E$59,2,FALSE))","v":" "},{"$f":"IF(ISERROR(VLOOKUP(K130,Proposito_programa!$C$2:$E$59,3,FALSE)),\" \",VLOOKUP(K130,Proposito_programa!$C$2:$E$59,3,FALSE))","v":" "},null,null,"1074129871-4","Santiago Nicolás Mora Gutiérrez","Persona Natural",null,null,null," $                    15.030.000",null,null,null,15030000,null,"2021-07-02","2021-07-02","2021-09-30",3,null,null,null,null,null,null,"x",null,null,null,1]
[121,2021,"FDLAN-CD-121-2021(58968)","https://community.secop.gov.co/Public/Tendering/OpportunityDetail/Index?noticeUID=CO1.NTC.2070741&isFromPublicArea=True&isModal=False","Contratos de prestación de servicios profesionales y de apoyo a la gestión","CONTRATACION DIRECTA","No aplica","“PRESTACIÓN DE SERVICIOS DE APOYO ADMINISTRATIVA Y ASISTENCIALMENTE AL ÁREA DE GESTIÓN POLICIVA DEL FONDO DE DESARROLLO LOCAL DE ANTONIO NARIÑO”.",null,"Un Nuevo Contrato Social y Ambiental para la Bogotá del Siglo XXI","No aplica",{"$f":"IF(ISERROR(VLOOKUP(K131,Proposito_programa!$C$2:$E$59,2,FALSE)),\" \",VLOOKUP(K131,Proposito_programa!$C$2:$E$59,2,FALSE))","v":" "},{"$f":"IF(ISERROR(VLOOKUP(K131,Proposito_programa!$C$2:$E$59,3,FALSE)),\" \",VLOOKUP(K131,Proposito_programa!$C$2:$E$59,3,FALSE))","v":" "},null,null,"1013643851-9","Paula Andrea Pedraza Quiñones","Persona Natural",null,null,null," $                       8.096.000",null,null,null,8096000,null,"2021-07-02","2021-07-06","2021-12-31","5 MESES 26 DIAS ",null,null,null,null,null,null,"x",null,null,null,1]
[122,2021,"FDLAN-CD-122-2021-(59727)","https://community.secop.gov.co/Public/Tendering/OpportunityDetail/Index?noticeUID=CO1.NTC.2078486&isFromPublicArea=True&isModal=False","Contratos de prestación de servicios profesionales y de apoyo a la gestión","CONTRATACION DIRECTA","No aplica","“PRESTACIÓN DE SERVICIOS DE APOYO ADMINISTRATIVA Y ASISTENCIALMENTE AL ÁREA DE GESTIÓN POLICIVA DEL FONDO DE DESARROLLO LOCAL DE ANTONIO NARIÑO”.",null,"Un Nuevo Contrato Social y Ambiental para la Bogotá del Siglo XXI","No aplica",{"$f":"IF(ISERROR(VLOOKUP(K132,Proposito_programa!$C$2:$E$59,2,FALSE)),\" \",VLOOKUP(K132,Proposito_programa!$C$2:$E$59,2,FALSE))","v":" "},{"$f":"IF(ISERROR(VLOOKUP(K132,Proposito_programa!$C$2:$E$59,3,FALSE)),\" \",VLOOKUP(K132,Proposito_programa!$C$2:$E$59,3,FALSE))","v":" "},null,null,"1069176392-1","Nataly Acevedo Buitrago","Persona Natural",null,null,null," $                       6.030.000",null,null,null,6030000,null,"2021-07-06","2021-07-06","2021-07-05",3,null,null,null,null,null,null,"x",null,null,null,1]
[123,2021,"FDLAN-CD-123-2021-(59729)","https://community.secop.gov.co/Public/Tendering/OpportunityDetail/Index?noticeUID=CO1.NTC.2078868&isFromPublicArea=True&isModal=False","Contratos de prestación de servicios profesionales y de apoyo a la gestión","CONTRATACION DIRECTA","No aplica","PRESTAR SERVICIOS PROFESIONALES COMO ABOGADO PARA APOYAR LOS PROCEDIMIENTOS SANCIONATORIOS Y TRÁMITES ADMINISTRATIVOS QUE ADELANTA EL EQUIPO DE INSPECCIÓN, VIGILANCIA Y CONTROL DEL ÁREA DE GESTIÓN POLICIVA Y JURÍDICA DEL FONDO DE DESARROLLO LOCAL ANTONIO NARIÑO, CON OCASIÓN A LA INFRACCIÓN Y APLICACIÓN DE NORMAS POLICIVAS APOYO AL ALCALDE EN ASUNTOS RELACIONADOS CON DESPACHO COMISORIO",null,"Un Nuevo Contrato Social y Ambiental para la Bogotá del Siglo XXI","No aplica",{"$f":"IF(ISERROR(VLOOKUP(K133,Proposito_programa!$C$2:$E$59,2,FALSE)),\" \",VLOOKUP(K133,Proposito_programa!$C$2:$E$59,2,FALSE))","v":" "},{"$f":"IF(ISERROR(VLOOKUP(K133,Proposito_programa!$C$2:$E$59,3,FALSE)),\" \",VLOOKUP(K133,Proposito_programa!$C$2:$E$59,3,FALSE))","v":" "},null,null,"1013631878-5","Adriana Katherine Herrera Uribe","Persona Natural",null,null,null," $                    13.230.000",null,null,null,13230000,null,"2021-07-06","2021-07-06","2021-10-05",3,null,null,null,null,null,null,"x",null,null,null,1]
[124,2021,"FDLSC-CD-124-2021-(59248)","https://community.secop.gov.co/Public/Tendering/OpportunityDetail/Index?noticeUID=CO1.NTC.2088007&isFromPublicArea=True&isModal=False","Contratos de prestación de servicios profesionales y de apoyo a la gestión","CONTRATACION DIRECTA","No aplica","PRESTACIÓN DE SERVICIOS PARA APOYAR LA GESTIÓN Y EJECUCIÓN DE ACTIVIDADES ADMINISTRATIVAS Y OPERATIVAS QUE SE ADELANTAN EN EL ÁREA DE GESTIÓN DEL DESARROLLO LOCAL DE LA LCALDÍA LOCAL DE ANTONIO NARIÑO",null,"Un Nuevo Contrato Social y Ambiental para la Bogotá del Siglo XXI","No aplica",{"$f":"IF(ISERROR(VLOOKUP(K134,Proposito_programa!$C$2:$E$59,2,FALSE)),\" \",VLOOKUP(K134,Proposito_programa!$C$2:$E$59,2,FALSE))","v":" "},{"$f":"IF(ISERROR(VLOOKUP(K134,Proposito_programa!$C$2:$E$59,3,FALSE)),\" \",VLOOKUP(K134,Proposito_programa!$C$2:$E$59,3,FALSE))","v":" "},null,null,1022351156,"JHON FREDY ALVAREZ BARRERA","Persona Natural",null,null,null," $                       6.000.000",null,null,null,6000000,null,"2021-07-09","2021-07-09","2021-10-08",3,null,null,null,null,null,null,"x",null,null,null,1]
[125,2021,"FDLAN-CD-125-2021(59737)","https://community.secop.gov.co/Public/Tendering/OpportunityDetail/Index?noticeUID=CO1.NTC.2094942&isFromPublicArea=True&isModal=False","Contratos de prestación de servicios profesionales y de apoyo a la gestión","CONTRATACION DIRECTA","No aplica","PRESTACIÓN DE SERVICIOS PARA APOYAR LA GESTIÓN Y EJECUCIÓN DE ACTIVIDADES ADMINISTRATIVAS Y OPERATIVAS QUE SE ADELANTAN EN EL ÁREA DE GESTIÓN DEL DESARROLLO LOCAL DE LA LCALDÍA LOCAL DE ANTONIO NARIÑO",null,"Un Nuevo Contrato Social y Ambiental para la Bogotá del Siglo XXI","No aplica",{"$f":"IF(ISERROR(VLOOKUP(K135,Proposito_programa!$C$2:$E$59,2,FALSE)),\" \",VLOOKUP(K135,Proposito_programa!$C$2:$E$59,2,FALSE))","v":" "},{"$f":"IF(ISERROR(VLOOKUP(K135,Proposito_programa!$C$2:$E$59,3,FALSE)),\" \",VLOOKUP(K135,Proposito_programa!$C$2:$E$59,3,FALSE))","v":" "},null,null,"53139097-5","Angela Tatiana Tunjano Reyes","Persona Natural",null,null,null," $                    13.500.000",null,null,null,13500000,null,"2021-07-13","2021-07-13","2021-10-11",3,null,null,null,null,null,null,"x",null,null,null,1]
[126,2021,"FDLAN-CD-126-2021(60101)","https://community.secop.gov.co/Public/Tendering/OpportunityDetail/Index?noticeUID=CO1.NTC.2094852&isFromPublicArea=True&isModal=False","Contratos de prestación de servicios profesionales y de apoyo a la gestión","CONTRATACION DIRECTA","No aplica","COORDINAR, LIDERAR Y ASESORAR LOS PLANES Y ESTRATEGIAS DE COMUNICACIÓN INTERNA Y EXTERNA PARA LA DIVULGACIÓN DE LOS PROGRAMAS, PROYECTOS Y ACTIVIDADES DE LA ALCALDÍA LOCAL",null,"Un Nuevo Contrato Social y Ambiental para la Bogotá del Siglo XXI","No aplica",{"$f":"IF(ISERROR(VLOOKUP(K136,Proposito_programa!$C$2:$E$59,2,FALSE)),\" \",VLOOKUP(K136,Proposito_programa!$C$2:$E$59,2,FALSE))","v":" "},{"$f":"IF(ISERROR(VLOOKUP(K136,Proposito_programa!$C$2:$E$59,3,FALSE)),\" \",VLOOKUP(K136,Proposito_programa!$C$2:$E$59,3,FALSE))","v":" "},null,null,"53140769-8","Johanna Marcela Gonzalez Abril","Persona Natural",null,null,null," $                    31.350.000",null,null,null,31350000,null,"2021-07-13","2021-07-13","2021-12-27","5 MESES 15 DIAS ",null,null,null,null,null,null,"x",null,null,null,1]
[127,2021,"FDLAN-CD-127-2021","https://community.secop.gov.co/Public/Tendering/ContractNoticePhases/View?PPI=CO1.PPI.14155933&isFromPublicArea=True&isModal=False","Convenios de cooperacion","REGIMEN ESPECIAL ","No aplica","AUNAR ESFUERZOS PARA LA COOPERACIÓN ADMINISTRATIVA, TÉCNICA Y ECONÓMICA, ENTRE EL PROGRAMA PARA LAS NACIONES UNIDAS PARA EL DESARROLLO (PNUD) Y EL FONDO DE DESARROLLO LOCAL, CON EL FIN DE IMPLEMENTAR ESTRATEGIAS QUE PROMUEVAN EL FORTALECIMIENTO A LOS EMPRENDIMIENTOS DE LA ECONOMÍA POPULAR DE LA LOCALIDAD DE ANTONIO NARIÑO Y LAS UNIDADES PRODUCTIVAS FAMILIARES Y/O POBLACIONES DEDICADAS A ACTIVIDADES TRADICIONALES QUE PERMITEN GENERAR INGRESOS (AUTOEMPLEO), Y EL FORTALECIMIENTO DE MIPYMES.",null,"Un Nuevo Contrato Social y Ambiental para la Bogotá del Siglo XXI","No aplica",{"$f":"IF(ISERROR(VLOOKUP(K137,Proposito_programa!$C$2:$E$59,2,FALSE)),\" \",VLOOKUP(K137,Proposito_programa!$C$2:$E$59,2,FALSE))","v":" "},{"$f":"IF(ISERROR(VLOOKUP(K137,Proposito_programa!$C$2:$E$59,3,FALSE)),\" \",VLOOKUP(K137,Proposito_programa!$C$2:$E$59,3,FALSE))","v":" "},null,null,"800091076-0","Programa de las Naciones Unidas Para el Desarrollo- PNUD - ","Persona Jurídica",null,null,null,592553375,null,null,null,592553375,null,"2021-07-19","2021-07-19","2022-06-17",12,null,null,null,null,null,null,"x",null,null,null,1]
[128,2021,"FDLAN-CD-128-2021-(59952)","https://community.secop.gov.co/Public/Tendering/OpportunityDetail/Index?noticeUID=CO1.NTC.2102745&isFromPublicArea=True&isModal=False","Contratos de prestación de servicios profesionales y de apoyo a la gestión","CONTRATACION DIRECTA","No aplica","PRESTACIÓN DE SERVICIOS DE APOYO A LA GESTIÓN AL FONDO DE DESARROLLO LOCAL ANTONIO NARIÑO EN LOS ASUNTOS OPERATIVOS CON SEGURIDAD CIUDADANA, CONVIVENCIA Y PREVENCIÓN DE LAS CONFLICTIVIDADES, VIOLENCIAS Y DELITOS DE LA LOCALIDAD, DE CONFORMIDAD CON EL MARCO NORMATIVO APLICABLE EN LA MATERIA.",null,"Un Nuevo Contrato Social y Ambiental para la Bogotá del Siglo XXI","No aplica",{"$f":"IF(ISERROR(VLOOKUP(K138,Proposito_programa!$C$2:$E$59,2,FALSE)),\" \",VLOOKUP(K138,Proposito_programa!$C$2:$E$59,2,FALSE))","v":" "},{"$f":"IF(ISERROR(VLOOKUP(K138,Proposito_programa!$C$2:$E$59,3,FALSE)),\" \",VLOOKUP(K138,Proposito_programa!$C$2:$E$59,3,FALSE))","v":" "},null,null,"51591147-4","Rosa María Patiño","Persona Natural",null,null,null," $                       5.220.000",null,null,null,5220000,null,"2021-07-15","2021-07-15","2021-10-14",3,null,null,null,null,null,null,"x",null,null,null,1]
[129,2021,"FDLSC-CD-129-2021-(59952)","https://community.secop.gov.co/Public/Tendering/OpportunityDetail/Index?noticeUID=CO1.NTC.2104829&isFromPublicArea=True&isModal=False","Contratos de prestación de servicios profesionales y de apoyo a la gestión","CONTRATACION DIRECTA","No aplica","PRESTACIÓN DE SERVICIOS DE APOYO A LA GESTIÓN AL FONDO DE DESARROLLO LOCAL ANTONIO NARIÑO EN LOS ASUNTOS OPERATIVOS CON SEGURIDAD CIUDADANA, CONVIVENCIA Y PREVENCIÓN DE LAS CONFLICTIVIDADES, VIOLENCIAS Y DELITOS DE LA LOCALIDAD, DE CONFORMIDAD CON EL MARCO NORMATIVO APLICABLE EN LA MATERIA.",null,"Un Nuevo Contrato Social y Ambiental para la Bogotá del Siglo XXI","No aplica",{"$f":"IF(ISERROR(VLOOKUP(K139,Proposito_programa!$C$2:$E$59,2,FALSE)),\" \",VLOOKUP(K139,Proposito_programa!$C$2:$E$59,2,FALSE))","v":" "},{"$f":"IF(ISERROR(VLOOKUP(K139,Proposito_programa!$C$2:$E$59,3,FALSE)),\" \",VLOOKUP(K139,Proposito_programa!$C$2:$E$59,3,FALSE))","v":" "},null,null,"1013659896-1","Felipe Arango Morales","Persona Natural",null,null,null," $                       5.220.000",null,null,null,5220000,null,"2021-07-16","2021-07-16","2021-10-15",3,null,null,null,null,null,null,"x",null,null,null,1]
[130,2021,"FDLAN-CD-130-2021-(59952)","https://community.secop.gov.co/Public/Tendering/OpportunityDetail/Index?noticeUID=CO1.NTC.2105206&isFromPublicArea=True&isModal=False","Contratos de prestación de servicios profesionales y de apoyo a la gestión","CONTRATACION DIRECTA","No aplica","PRESTACIÓN DE SERVICIOS DE APOYO A LA GESTIÓN AL FONDO DE DESARROLLO LOCAL ANTONIO NARIÑO EN LOS ASUNTOS OPERATIVOS CON SEGURIDAD CIUDADANA, CONVIVENCIA Y PREVENCIÓN DE LAS CONFLICTIVIDADES, VIOLENCIAS Y DELITOS DE LA LOCALIDAD, DE CONFORMIDAD CON EL MARCO NORMATIVO APLICABLE EN LA MATERIA.",null,"Un Nuevo Contrato Social y Ambiental para la Bogotá del Siglo XXI","No aplica",{"$f":"IF(ISERROR(VLOOKUP(K140,Proposito_programa!$C$2:$E$59,2,FALSE)),\" \",VLOOKUP(K140,Proposito_programa!$C$2:$E$59,2,FALSE))","v":" "},{"$f":"IF(ISERROR(VLOOKUP(K140,Proposito_programa!$C$2:$E$59,3,FALSE)),\" \",VLOOKUP(K140,Proposito_programa!$C$2:$E$59,3,FALSE))","v":" "},null,null,"51678981-6","Blanca Idaly Suarez Hernandez","Persona Natural",null,null,null," $                       5.220.000",null,null,null,5220000,null,"2021-07-16","2021-07-16","2021-10-15",3,null,null,null,null,null,null,"x",null,null,null,1]
[131,2021,"FDLAN-CD-131-2021(59952)","https://community.secop.gov.co/Public/Tendering/ContractNoticePhases/View?PPI=CO1.PPI.14269747&isFromPublicArea=True&isModal=False","Contratos de prestación de servicios profesionales y de apoyo a la gestión","CONTRATACION DIRECTA","No aplica","PRESTACIÓN DE SERVICIOS DE APOYO A LA GESTIÓN AL FONDO DE DESARROLLO LOCAL ANTONIO NARIÑO EN LOS ASUNTOS OPERATIVOS RELACIONADOS CON SEGURIDAD CIUDADANA,CONVIVENCIA Y PREVENCIÓN DE LAS CONFLICTIVIDADES, VIOLENCIAS Y DELITOS DE LA LOCALIDAD, DE CONFORMIDAD CON EL MARCO NORMATIVO APLICABLE EN LA MATERIA",null,"Un Nuevo Contrato Social y Ambiental para la Bogotá del Siglo XXI","No aplica",{"$f":"IF(ISERROR(VLOOKUP(K141,Proposito_programa!$C$2:$E$59,2,FALSE)),\" \",VLOOKUP(K141,Proposito_programa!$C$2:$E$59,2,FALSE))","v":" "},{"$f":"IF(ISERROR(VLOOKUP(K141,Proposito_programa!$C$2:$E$59,3,FALSE)),\" \",VLOOKUP(K141,Proposito_programa!$C$2:$E$59,3,FALSE))","v":" "},null,null,"19341321-1","Alvaro Amaris Rojas","Persona Natural",null,null,null," $                      5.220.000",null,null,null,5220000,null,"2021-07-23","2021-07-23","2021-10-21",3,null,null,null,null,null,null,"x",null,null,null,1]
[132,2021,"FDLAN-CD-132-2021(60435)","https://community.secop.gov.co/Public/Tendering/ContractNoticePhases/View?PPI=CO1.PPI.14278057&isFromPublicArea=True&isModal=False","Contratos de prestación de servicios profesionales y de apoyo a la gestión","CONTRATACION DIRECTA","No aplica","PRESTACIÓN DE SERVICIOS DE APOYO A LA GESTIÓN AL FONDO DE DESARROLLO LOCAL ANTONIO NARIÑO EN LOS ASUNTOS OPERATIVOS RELACIONADOS CON SEGURIDAD CIUDADANA, LA PROMOCIÓN DE LA CONVIVENCIA ARMÓNICA  Y LA PREVENCIÓN DE LAS CONFLICTIVIDADES, DE CONFORMIDAD CON EL MARCO NORMATIVO APLICABLE EN LA MATERIA",null,"Un Nuevo Contrato Social y Ambiental para la Bogotá del Siglo XXI","No aplica",{"$f":"IF(ISERROR(VLOOKUP(K142,Proposito_programa!$C$2:$E$59,2,FALSE)),\" \",VLOOKUP(K142,Proposito_programa!$C$2:$E$59,2,FALSE))","v":" "},{"$f":"IF(ISERROR(VLOOKUP(K142,Proposito_programa!$C$2:$E$59,3,FALSE)),\" \",VLOOKUP(K142,Proposito_programa!$C$2:$E$59,3,FALSE))","v":" "},null,null,"79577246-9","Raúl Iván Borja Suarez","Persona Natural",null,null,null," $                      5.220.000",null,null,null,5220000,null,"2021-07-23","2021-07-26","2021-10-24",3,null,null,null,null,null,null,"x",null,null,null,1]
[133,2021,"FDLAN-CD-133-2021-(60435)","https://community.secop.gov.co/Public/Tendering/OpportunityDetail/Index?noticeUID=CO1.NTC.2121688&isFromPublicArea=True&isModal=False","Contratos de prestación de servicios profesionales y de apoyo a la gestión","CONTRATACION DIRECTA","No aplica","PRESTACIÓN DE SERVICIOS DE APOYO A LA GESTIÓN AL FONDO DE DESARROLLO LOCAL ANTONIO NARIÑO EN LOS ASUNTOS OPERATIVOS RELACIONADOS CON SEGURIDAD CIUDADANA, LA PROMOCIÓN DE LA CONVIVENCIA ARMÓNICA Y LA PREVENCIÓN DE LAS CONFLICTIVIDADES DE CONFORMIDAD CON EL MARCO NORMATIVO APLICABLE EN LA MATERIA",null,"Un Nuevo Contrato Social y Ambiental para la Bogotá del Siglo XXI","No aplica",{"$f":"IF(ISERROR(VLOOKUP(K143,Proposito_programa!$C$2:$E$59,2,FALSE)),\" \",VLOOKUP(K143,Proposito_programa!$C$2:$E$59,2,FALSE))","v":" "},{"$f":"IF(ISERROR(VLOOKUP(K143,Proposito_programa!$C$2:$E$59,3,FALSE)),\" \",VLOOKUP(K143,Proposito_programa!$C$2:$E$59,3,FALSE))","v":" "},null,null,"51876386-5","Claudia lomara Ayala Beltrán","Persona Natural",null,null,null," $                      5.220.000",null,null,null,5220000,null,"2021-07-23","2021-07-23","2021-10-22",3,null,null,null,null,null,null,"x",null,null,null,1]
[134,2021,"FDLAN-CD-134-2021-(60186)","https://community.secop.gov.co/Public/Tendering/OpportunityDetail/Index?noticeUID=CO1.NTC.2121697&isFromPublicArea=True&isModal=False","Contratos de prestación de servicios profesionales y de apoyo a la gestión","CONTRATACION DIRECTA","No aplica","PRESTAR SERVICIOS DE APOYO AL FONDO DE DESARROLLO LOCAL DE ANTONIO NARIÑO EN LOS DIFERENTES TRÁMITES REQUERIDOS POR LAS ENTIDADES DISTRITALES Y/O LOCALES EN LOS PROCESOS DE PLANEACION",null,"Un Nuevo Contrato Social y Ambiental para la Bogotá del Siglo XXI","No aplica",{"$f":"IF(ISERROR(VLOOKUP(K144,Proposito_programa!$C$2:$E$59,2,FALSE)),\" \",VLOOKUP(K144,Proposito_programa!$C$2:$E$59,2,FALSE))","v":" "},{"$f":"IF(ISERROR(VLOOKUP(K144,Proposito_programa!$C$2:$E$59,3,FALSE)),\" \",VLOOKUP(K144,Proposito_programa!$C$2:$E$59,3,FALSE))","v":" "},null,null,"79967743-1","Robinson Leandro Giraldo Cardona","Persona Natural",null,null,null," $                      4.020.000",null,null,null,4020000,null,"2021-07-23","2021-07-23","2021-09-22",2,null,null,null,null,null,null,"x",null,null,null,1]
[135,2021,"FDLAN-CD-135-2021(60435)","https://community.secop.gov.co/Public/Tendering/ContractNoticePhases/View?PPI=CO1.PPI.14278190&isFromPublicArea=True&isModal=False","Contratos de prestación de servicios profesionales y de apoyo a la gestión","CONTRATACION DIRECTA","No aplica","PRESTACIÓN DE SERVICIOS DE APOYO A LA GESTIÓN AL FONDO DE DESARROLLO LOCAL ANTONIO NARIÑO EN LOS ASUNTOS OPERATIVOS RELACIONADOS CON SEGURIDAD CIUDADANA, LA PROMOCIÓN DE LA CONVIVENCIA ARMÓNICA Y LA PREVENCIÓN DE LAS CONFLICTIVIDADES DE CONFORMIDAD CON EL MARCO NORMATIVO APLICABLE EN LA MATERIA",null,"Un Nuevo Contrato Social y Ambiental para la Bogotá del Siglo XXI","No aplica",{"$f":"IF(ISERROR(VLOOKUP(K145,Proposito_programa!$C$2:$E$59,2,FALSE)),\" \",VLOOKUP(K145,Proposito_programa!$C$2:$E$59,2,FALSE))","v":" "},{"$f":"IF(ISERROR(VLOOKUP(K145,Proposito_programa!$C$2:$E$59,3,FALSE)),\" \",VLOOKUP(K145,Proposito_programa!$C$2:$E$59,3,FALSE))","v":" "},null,null,"79320109-4","Jose Rafael Sanchez Quito","Persona Natural",null,null,null," $                      5.220.000",null,null,null,5220000,null,"2021-07-23","2021-07-26","2021-10-24",3,null,null,null,null,null,null,"x",null,null,null,1]
[136,2021,"FDLAN-MC-003-2021(","https://community.secop.gov.co/Public/Tendering/ContractNoticePhases/View?PPI=CO1.PPI.14236558&isFromPublicArea=True&isModal=False","Contratos de prestación de servicios profesionales y de apoyo a la gestión","CONTRATACION DIRECTA","No aplica","REALIZAR EL MANTENIMIENTO TÉCNICO, PREVENTIVO Y CORRECTIVO PARA PARA EL ÓPTIMO FUNCIONAMIENTO DEL ASCENSOR QUE SE ENCUENTRA AL SERVICIO DE LA SEDE ADMINISTRATIVA DE LA ALCALDÍA LOCAL DE ANTONIO NARIÑO Y LA COMUNIDAD",null,"Un Nuevo Contrato Social y Ambiental para la Bogotá del Siglo XXI","No aplica",{"$f":"IF(ISERROR(VLOOKUP(K146,Proposito_programa!$C$2:$E$59,2,FALSE)),\" \",VLOOKUP(K146,Proposito_programa!$C$2:$E$59,2,FALSE))","v":" "},{"$f":"IF(ISERROR(VLOOKUP(K146,Proposito_programa!$C$2:$E$59,3,FALSE)),\" \",VLOOKUP(K146,Proposito_programa!$C$2:$E$59,3,FALSE))","v":" "},null,null,"830146855-9","Grupo de Ascensores Milenium  Gram Ltda","Persona Natural",null,null,null,7024767,null,null,null,7024767,null,"2021-08-04","2021-08-23","2022-08-22",12,null,null,null,null,null,null,"x",null,null,null,1]
[137,2021,"FDLAN-CD-137-2021(60775)"," https://community.secop.gov.co/Public/Tendering/OpportunityDetail/Index?noticeUID=CO1.NTC.2154510&isFromPublicArea=True&isModal=False","Contratos de prestación de servicios profesionales y de apoyo a la gestión","CONTRATACION DIRECTA","No aplica","PRESTAR SERVICIOS PROFESIONALES ESPECIALIZADOS COMO ABOGADO PARA APOYAR AL DESPACHO DEL ALCALDE LOCAL DE ANTONIO NARIÑO EN LOS DISTINTOS ASPECTOS JURÍDICOS ASOCIADOS CON LA INSPECCIÓN, VIGILANCIA Y CONTROL DE LA ALCALDÍA LOCAL DE ANTONIO NARIÑO",null,"Un Nuevo Contrato Social y Ambiental para la Bogotá del Siglo XXI","No aplica",{"$f":"IF(ISERROR(VLOOKUP(K147,Proposito_programa!$C$2:$E$59,2,FALSE)),\" \",VLOOKUP(K147,Proposito_programa!$C$2:$E$59,2,FALSE))","v":" "},{"$f":"IF(ISERROR(VLOOKUP(K147,Proposito_programa!$C$2:$E$59,3,FALSE)),\" \",VLOOKUP(K147,Proposito_programa!$C$2:$E$59,3,FALSE))","v":" "},null,null,"87090158-6","Luis Carlos Erira Tupaz","Persona Natural",null,null,null,31500000,null,null,null,{"$f":"+V147+W147+Y147","v":31500000},null,"2021-08-05","2021-08-05","2021-12-19","4 MESES 15 DIAS ",null,null,null,null,null,null,"x",null,null,null,1]
[138,2021,"FDLAN-CD-138-2021(60670)","https://community.secop.gov.co/Public/Tendering/OpportunityDetail/Index?noticeUID=CO1.NTC.2165245&isFromPublicArea=True&isModal=False","Contratos de prestación de servicios profesionales y de apoyo a la gestión","CONTRATACION DIRECTA","No aplica","PRESTACIÓN DE SERVICIOS PROFESIONALES DE APOYO EN EL SEGUIMIENTO Y CONTROL\nDE LA PLANEACIÓN Y EJECUCIÓN DEL PLAN DE DESARROLLO LOCAL, ASÍ COMO LA FORMULACION, EJECUCION, SUPERVISIÓN, SEGUMIENTO CIERRE Y/O LIQUIDACION DE LOS\nPROCESOS CONTRACTUALES QUE DEN RESPUESTA A LOS PROYECTOS DE INVERSIÓN\n2193, 2194 Y EN GENERAL DEL PLAN DE DESARROLLO LOCAL DE ANTONIO NARIÑO",null,"Un Nuevo Contrato Social y Ambiental para la Bogotá del Siglo XXI","No aplica",{"$f":"IF(ISERROR(VLOOKUP(K148,Proposito_programa!$C$2:$E$59,2,FALSE)),\" \",VLOOKUP(K148,Proposito_programa!$C$2:$E$59,2,FALSE))","v":" "},{"$f":"IF(ISERROR(VLOOKUP(K148,Proposito_programa!$C$2:$E$59,3,FALSE)),\" \",VLOOKUP(K148,Proposito_programa!$C$2:$E$59,3,FALSE))","v":" "},null,null,"1085930172-9","Luisa María Ramírez Riascos","Persona Natural",null,null,null,27000000,null,null,null,27000000,null,"2021-08-11","2021-08-11","2021-12-24","4 MESES 15 DIAS ",null,null,null,null,null,null,"x",null,null,null,1]
[139,2021,"FDLAN-CD-139(60709)","https://community.secop.gov.co/Public/Tendering/ContractNoticePhases/View?PPI=CO1.PPI.14553805&isFromPublicArea=True&isModal=False","Contratos de prestación de servicios profesionales y de apoyo a la gestión","CONTRATACION DIRECTA","No aplica","PRESTAR SERVICIOS PROFESIONALES ESPECIALIZADOS AL DESPACHO DE LA ALCALDÍA LOCAL DE ANTONIO NARIÑO EN LOS DIFERENTES TRÁMITES Y PROCEDIMIENTOS PARA EL CUMPLIMIENTO DE LAS METAS DEL PLAN DE DESARROLLO LOCAL 2021-2024",null,"Un Nuevo Contrato Social y Ambiental para la Bogotá del Siglo XXI","No aplica",{"$f":"IF(ISERROR(VLOOKUP(K149,Proposito_programa!$C$2:$E$59,2,FALSE)),\" \",VLOOKUP(K149,Proposito_programa!$C$2:$E$59,2,FALSE))","v":" "},{"$f":"IF(ISERROR(VLOOKUP(K149,Proposito_programa!$C$2:$E$59,3,FALSE)),\" \",VLOOKUP(K149,Proposito_programa!$C$2:$E$59,3,FALSE))","v":" "},null,null,"1026270893-3","Jorge Eduardo Salgado Ardila","Persona Natural",null,null,null,40500000,null,null,null,40500000,null,"2021-08-11","2021-08-11","2021-12-24","4 MESES 15 DIAS ",null,null,null,null,null,null,"x",null,null,null,1]
[140,2021,"FDLAN-CD-140-2021(","https://community.secop.gov.co/Public/Tendering/OpportunityDetail/Index?noticeUID=CO1.NTC.2166855&isFromPublicArea=True&isModal=False","Contratos de prestación de servicios profesionales y de apoyo a la gestión","CONTRATACION DIRECTA","No aplica","“PRESTACIÓN DE SERVICIOS PROFESIONALES COMO APOYO EN\nEL SEGUIMIENTO, LIQUIDACIÓN, SUPERVISIÓN Y FORMULACIONES DE\nPROYECTOS DE INFRAESTRUCTURA DEL FONDO, ASÍ COMO LA\nREVISIÓN DE NUEVOS PROYECTOS Y CIERRE DE OBLIGACIONES POR\nPAGAR DEL ÁREA DE GESTION DE DESARROLLO\"",null,"Un Nuevo Contrato Social y Ambiental para la Bogotá del Siglo XXI","No aplica",{"$f":"IF(ISERROR(VLOOKUP(K150,Proposito_programa!$C$2:$E$59,2,FALSE)),\" \",VLOOKUP(K150,Proposito_programa!$C$2:$E$59,2,FALSE))","v":" "},{"$f":"IF(ISERROR(VLOOKUP(K150,Proposito_programa!$C$2:$E$59,3,FALSE)),\" \",VLOOKUP(K150,Proposito_programa!$C$2:$E$59,3,FALSE))","v":" "},null,null,"5820742-3","Hector Julián Orjuela Parra","Persona Natural",null,null,null,27000000,null,null,null,27000000,null,"2021-08-11","2021-08-11","2021-12-25","4 MESES 15 DIAS ",null,null,null,null,null,null,"x",null,null,null,1]
[141,2021,"FDLAN-CD-141-2021(60963)","https://community.secop.gov.co/Public/Tendering/ContractNoticePhases/View?PPI=CO1.PPI.14599257&isFromPublicArea=True&isModal=False","Contratos de prestación de servicios profesionales y de apoyo a la gestión","CONTRATACION DIRECTA","No aplica","APOYAR TÉCNICAMENTE LAS DISTINTAS ETAPAS  DE LOS PROCESOS DE COMPETENCIA DE LAS INSPECCIONES DE POLICÍA DE LA LOCALIDAD, SEGÚN REPARTO”",null,"Un Nuevo Contrato Social y Ambiental para la Bogotá del Siglo XXI","No aplica",{"$f":"IF(ISERROR(VLOOKUP(K151,Proposito_programa!$C$2:$E$59,2,FALSE)),\" \",VLOOKUP(K151,Proposito_programa!$C$2:$E$59,2,FALSE))","v":" "},{"$f":"IF(ISERROR(VLOOKUP(K151,Proposito_programa!$C$2:$E$59,3,FALSE)),\" \",VLOOKUP(K151,Proposito_programa!$C$2:$E$59,3,FALSE))","v":" "},null,null,"5230855-5","Wilfredo Muñoz Araujo","Persona Natural",null,null,null,15030000,null,null,null,15030000,null,"2021-08-13","2021-08-13","2021-11-12",3,null,null,null,null,null,null,"x",null,null,null,1]
[142,2021,"FDLAN-CD-142-2021(61099)","https://community.secop.gov.co/Public/Tendering/ContractNoticePhases/View?PPI=CO1.PPI.14752132&isFromPublicArea=True&isModal=False","Contratos de prestación de servicios profesionales y de apoyo a la gestión","CONTRATACION DIRECTA","No aplica","PRESTAR SERVICIOS DE APOYO AL ALCALDE LOCAL EN LA IMPLEMENTACIÓN DE ESTRATEGIAS QUE GARANTICEN LA PROMOCIÓN Y PROTECCIÓN DEL DERECHO A LA PARTICIPACIÓN DEMOCRÁTICA DE LOS HABITANTES DE LA LOCALIDAD ANTONIO NARIÑO.",null,"Un Nuevo Contrato Social y Ambiental para la Bogotá del Siglo XXI","No aplica",{"$f":"IF(ISERROR(VLOOKUP(K152,Proposito_programa!$C$2:$E$59,2,FALSE)),\" \",VLOOKUP(K152,Proposito_programa!$C$2:$E$59,2,FALSE))","v":" "},{"$f":"IF(ISERROR(VLOOKUP(K152,Proposito_programa!$C$2:$E$59,3,FALSE)),\" \",VLOOKUP(K152,Proposito_programa!$C$2:$E$59,3,FALSE))","v":" "},null,null,"1022928883-1","Yesid Eduardo Forero Sanabria","Persona Natural",null,null,null,15240000,null,null,null,15240000,null,"2021-08-25","2021-08-26","2021-12-25",4,null,null,null,null,null,null,"x",null,null,null,1]
[143,2021,"FDLAN-CD-143-2021(60402)","https://community.secop.gov.co/Public/Tendering/ContractNoticePhases/View?PPI=CO1.PPI.14792035&isFromPublicArea=True&isModal=False","Contratos de prestación de servicios profesionales y de apoyo a la gestión","CONTRATACION DIRECTA","No aplica","PRESTACIÓN DE SERVICIOS PROFESIONALES\nPARA APOYAR AL ALCALDE LOCAL EN LA GESTIÓN DE LOS ASUNTOS RELACIONADOS CON SEGURIDAD CIUDADANA, CONVIVENCIA Y PREVENCIÓN DE CONFLICTIVIDADES, VIOLENCIAS Y DELITOS EN LA LOCALIDAD, DE CONFORMIDAD CON EL MARCO NORMATIVO APLICABLE EN LA MATERIA",null,"Un Nuevo Contrato Social y Ambiental para la Bogotá del Siglo XXI","No aplica",{"$f":"IF(ISERROR(VLOOKUP(K153,Proposito_programa!$C$2:$E$59,2,FALSE)),\" \",VLOOKUP(K153,Proposito_programa!$C$2:$E$59,2,FALSE))","v":" "},{"$f":"IF(ISERROR(VLOOKUP(K153,Proposito_programa!$C$2:$E$59,3,FALSE)),\" \",VLOOKUP(K153,Proposito_programa!$C$2:$E$59,3,FALSE))","v":" "},null,null,"1055226889-2","Juan David Cuervo Zorro","Persona Natural",null,null,null,20040000,null,null,null,20040000,null,"2021-08-27","2021-09-01","2021-12-31",4,null,null,null,null,null,null,"x",null,null,null,1]
[144,2021,"FDLAN-CD-144-2021(61260)","https://community.secop.gov.co/Public/Tendering/ContractNoticePhases/View?PPI=CO1.PPI.14793684&isFromPublicArea=True&isModal=False","Contratos de prestación de servicios profesionales y de apoyo a la gestión","CONTRATACION DIRECTA","No aplica","PRESTAR SERVICIOS PROFESIONALES, PARA APOYAR LA FORMULACIÓN, EJECUCIÓN, SUPERVISIÓN, SEGUIMIENTO CIERRE Y/O LIQUIDACIÓN DE LOS PROCESOS CONTRACTUALES DEL SECTOR DEPORTIVO  Y CULTURAL DE LA LOCALIDAD DE ANTONIO NARIÑO",null,"Un Nuevo Contrato Social y Ambiental para la Bogotá del Siglo XXI","No aplica",{"$f":"IF(ISERROR(VLOOKUP(K154,Proposito_programa!$C$2:$E$59,2,FALSE)),\" \",VLOOKUP(K154,Proposito_programa!$C$2:$E$59,2,FALSE))","v":" "},{"$f":"IF(ISERROR(VLOOKUP(K154,Proposito_programa!$C$2:$E$59,3,FALSE)),\" \",VLOOKUP(K154,Proposito_programa!$C$2:$E$59,3,FALSE))","v":" "},null,null,"79436634-9","Jaime Arias Guzmán","Persona Natural",null,null,null,17448000,null,null,null,17448000,null,"2021-08-27","2021-08-27","2021-12-26",4,null,null,null,null,null,null,"x",null,null,null,1]
[145,2021,"FDLAN-CD-145-2021(60963)","https://community.secop.gov.co/Public/Tendering/ContractNoticePhases/View?PPI=CO1.PPI.14820463&isFromPublicArea=True&isModal=False","Contratos de prestación de servicios profesionales y de apoyo a la gestión","CONTRATACION DIRECTA","No aplica","APOYAR TÉCNICAMENTE LAS DISTINTAS ETAPAS DE LOS PROCESOS DE COMPETENCIA DE LAS INSPECCIONES DE POLICÍA DE LA LOCALIDAD, SEGÚN REPARTO",null,"Un Nuevo Contrato Social y Ambiental para la Bogotá del Siglo XXI","No aplica",{"$f":"IF(ISERROR(VLOOKUP(K155,Proposito_programa!$C$2:$E$59,2,FALSE)),\" \",VLOOKUP(K155,Proposito_programa!$C$2:$E$59,2,FALSE))","v":" "},{"$f":"IF(ISERROR(VLOOKUP(K155,Proposito_programa!$C$2:$E$59,3,FALSE)),\" \",VLOOKUP(K155,Proposito_programa!$C$2:$E$59,3,FALSE))","v":" "},null,null,"79421325-2","Prudencio Becerra Fino","Persona Natural",null,null,null,15030000,null,null,null,15030000,null,"2021-08-30","2021-08-30","2021-11-29",4,null,null,null,null,null,null,"x",null,null,null,1]
[146,2021,"FDLAN-CD-146-2021(61147)","https://community.secop.gov.co/Public/Tendering/ContractNoticePhases/View?PPI=CO1.PPI.14821026&isFromPublicArea=True&isModal=False","Contratos de prestación de servicios profesionales y de apoyo a la gestión","CONTRATACION DIRECTA","No aplica","PRESTAR SERVICIOS PROFESIONALES A LA ALCALDÍA LOCAL DE ANTONIO NARIÑO PARA REALIZAR ACOMPAÑAMIENTO A PROCESOS COMUNITARIOS Y ANIZACIONALES Y APOYAR LA REALIZACIÓN DE LAS ACTIVIDADES DE\nASOCIADOS AL DESARROLLO E IMPLEMENTACIÓN DE PRESUPUESTOS PARTICIPATIVOS",null,"Un Nuevo Contrato Social y Ambiental para la Bogotá del Siglo XXI","No aplica",{"$f":"IF(ISERROR(VLOOKUP(K156,Proposito_programa!$C$2:$E$59,2,FALSE)),\" \",VLOOKUP(K156,Proposito_programa!$C$2:$E$59,2,FALSE))","v":" "},{"$f":"IF(ISERROR(VLOOKUP(K156,Proposito_programa!$C$2:$E$59,3,FALSE)),\" \",VLOOKUP(K156,Proposito_programa!$C$2:$E$59,3,FALSE))","v":" "},null,null,"11449740-0","Yeisson Gerardo Sua Cajamarca","Persona Natural",null,null,null,17448000,null,null,null,17448000,null,"2021-08-30","2021-08-30","2021-12-29",4,null,null,null,null,null,null,"x",null,null,null,1]
[147,2021,"FDLAN-CD-147-2021(61260)","https://community.secop.gov.co/Public/Tendering/ContractNoticePhases/View?PPI=CO1.PPI.14885280&isFromPublicArea=True&isModal=False","Contratos de prestación de servicios profesionales y de apoyo a la gestión","CONTRATACION DIRECTA","No aplica","PRESTAR SERVICIOS PROFESIONALES, PARA APOYAR LA FORMULACIÓN, EJECUCIÓN, SUPERVISIÓN, SEGUIMIENTO CIERRE Y/O LIQUIDACIÓN DE LOS PROCESO CONTRACTUALES DE SECTOR DEPORTIVO Y CULTURAL DE LA LOCALIDAD DE ANTONIO NARIÑO",null,"Un Nuevo Contrato Social y Ambiental para la Bogotá del Siglo XXI","No aplica",{"$f":"IF(ISERROR(VLOOKUP(K157,Proposito_programa!$C$2:$E$59,2,FALSE)),\" \",VLOOKUP(K157,Proposito_programa!$C$2:$E$59,2,FALSE))","v":" "},{"$f":"IF(ISERROR(VLOOKUP(K157,Proposito_programa!$C$2:$E$59,3,FALSE)),\" \",VLOOKUP(K157,Proposito_programa!$C$2:$E$59,3,FALSE))","v":" "},null,null,52265349,"Paola Gutierrez Valencia","Persona Natural",null,null,null,17448000,null,null,null,17448000,null,"2021-09-02","2021-09-13","2021-01-12",4,null,null,null,null,null,null,"x",null,null,null,1]
[148,2021,"FDLAN-CD-148-2020(61308)","https://community.secop.gov.co/Public/Tendering/ContractNoticePhases/View?PPI=CO1.PPI.14947256&isFromPublicArea=True&isModal=False","Contratos de prestación de servicios profesionales y de apoyo a la gestión","CONTRATACION DIRECTA","No aplica","APOYAR ADMINISTRATIVA Y ASISTENCIALMENTEAL AREA DE GESTION POLICIVA DE LA ALCALDÍA LOCAL DE ANTONIO NARIÑO",null,"Un Nuevo Contrato Social y Ambiental para la Bogotá del Siglo XXI","No aplica",{"$f":"IF(ISERROR(VLOOKUP(K158,Proposito_programa!$C$2:$E$59,2,FALSE)),\" \",VLOOKUP(K158,Proposito_programa!$C$2:$E$59,2,FALSE))","v":" "},{"$f":"IF(ISERROR(VLOOKUP(K158,Proposito_programa!$C$2:$E$59,3,FALSE)),\" \",VLOOKUP(K158,Proposito_programa!$C$2:$E$59,3,FALSE))","v":" "},null,null,1013684748,"Nicol Daniela Parra García","Persona Natural",null,null,null,5122666,null,null,null,5122666,null,"2021-09-07","2021-09-08","2021-12-30","3 MESES 23 DIAS ",null,null,null,null,null,null,"x",null,null,null,1]
[149,2021,"FDLAN-CD-149-2021-(59104)","https://community.secop.gov.co/Public/Tendering/ContractNoticePhases/View?PPI=CO1.PPI.14951155&isFromPublicArea=True&isModal=False","Contratos de prestación de servicios profesionales y de apoyo a la gestión","CONTRATACION DIRECTA","No aplica","APOYAR LA GESTIÓN DOCUMENTAL DE LA ALCALDÍA LOCAL EN LA IMPLEMENTACIÓN DE LOS PROCESOS DE CLASIFICACIÓN, ORDENACIÓN, SELECCIÓN NATURAL, FOLIACIÓN, IDENTIFICACIÓN, LEVANTAMIENTO DE INVENTARIOS, ALMACENAMIENTO Y APLICACIÓN DE PROTOCOLOS DE ELIMINACIÓN Y TRANSFERENCIAS DOCUMENTALES",null,"Un Nuevo Contrato Social y Ambiental para la Bogotá del Siglo XXI","No aplica",{"$f":"IF(ISERROR(VLOOKUP(K159,Proposito_programa!$C$2:$E$59,2,FALSE)),\" \",VLOOKUP(K159,Proposito_programa!$C$2:$E$59,2,FALSE))","v":" "},{"$f":"IF(ISERROR(VLOOKUP(K159,Proposito_programa!$C$2:$E$59,3,FALSE)),\" \",VLOOKUP(K159,Proposito_programa!$C$2:$E$59,3,FALSE))","v":" "},null,null,"39677722-7","Silvia Milena Nieto Gómez","Persona Natural",null,null,null,5775000,null,null,null,5775000,null,"2021-09-07","2021-09-07","2021-12-21","3MESES 15 DIAS ",null,null,null,null,null,null,"x",null,null,null,1]
[150,2021,"FDLAN-CD-150-2021(61673)","https://community.secop.gov.co/Public/Tendering/ContractNoticePhases/View?PPI=CO1.PPI.14968179&isFromPublicArea=True&isModal=False","Contratos de prestación de servicios profesionales y de apoyo a la gestión","CONTRATACION DIRECTA","No aplica","PRESTACION SE SERVICIOS PROFESIONALES COMO ABOGADO PARA APOYAR LA ESTRUCTURACIÓN, SEGUIMIENTO Y CONTROL DE PROCESOS CONTRACTUALES QUE DERIVEN DE LOS PROYECTOS DE INVERSIÓN 2193, 2194 Y 2197 CONFORME A LAS ACCIONES DE FOMENTO Y PROMOCIÓN DE LAS CONDICIONES DE SALUD EN LA LOCALIDAD DE ANTONIO NARIÑO. ",null,"Un Nuevo Contrato Social y Ambiental para la Bogotá del Siglo XXI","No aplica",{"$f":"IF(ISERROR(VLOOKUP(K160,Proposito_programa!$C$2:$E$59,2,FALSE)),\" \",VLOOKUP(K160,Proposito_programa!$C$2:$E$59,2,FALSE))","v":" "},{"$f":"IF(ISERROR(VLOOKUP(K160,Proposito_programa!$C$2:$E$59,3,FALSE)),\" \",VLOOKUP(K160,Proposito_programa!$C$2:$E$59,3,FALSE))","v":" "},null,null,"1010217460-5","Paola Ginnary Gutiérrez Valderrama","Persona Natural",null,null,null,13086000,null,null,null,13086000,null,"2021-09-08","2021-09-09","2021-12-08",3,null,null,null,null,null,null,"x",null,null,null,1]
[153,2021,"FDLAN-MC- 004-2021","https://community.secop.gov.co/Public/Tendering/ContractNoticePhases/View?PPI=CO1.PPI.14843005&isFromPublicArea=True&isModal=False","Contratos de prestación de servicios profesionales y de apoyo a la gestión","MINIMA CUANTIA ","No aplica","\nCONTRATAR EL SERVICIO DE OUTSOURCING DE MAQUINAS FOTOCOPIADORAS MULTIFUNCIONALES, INCLUIDO SU MANTENIMIENTO PREVENTIVO Y CORRECTIVO, SOPORTE TÉCNICO, REPUESTOS E INSUMOS REQUERIDOS POR LAS MISMAS Y DISPOSICIÓN FINAL DE LOS MISMOS, PARA SER INSTALADAS EN LAS DIFERENTES DEPENDENCIAS DE LA ALCALDÍA LOCAL DE ANTONIO NARIÑO, DE CONFORMIDAD CON LAS ESPECIFICACIONES TÉCNICAS",null,"Un Nuevo Contrato Social y Ambiental para la Bogotá del Siglo XXI","No aplica",{"$f":"IF(ISERROR(VLOOKUP(K161,Proposito_programa!$C$2:$E$59,2,FALSE)),\" \",VLOOKUP(K161,Proposito_programa!$C$2:$E$59,2,FALSE))","v":" "},{"$f":"IF(ISERROR(VLOOKUP(K161,Proposito_programa!$C$2:$E$59,3,FALSE)),\" \",VLOOKUP(K161,Proposito_programa!$C$2:$E$59,3,FALSE))","v":" "},null,null,830053669,"Solution Copy Ltda","Persona Natural",null,null,null,18920000,null,null,null,18920000,null,"2021-09-16","2021-09-20","2022-01-19",4,null,null,null,null,null,null,"x",null,null,null,1]
[154,2021,"FDLAN-CD-154-2021(61476)","https://community.secop.gov.co/Public/Tendering/ContractNoticePhases/View?PPI=CO1.PPI.15145088&isFromPublicArea=True&isModal=False","Contratos de prestación de servicios profesionales y de apoyo a la gestión","CONTRATACION DIRECTA","No aplica","PRESTAR SERVICIOS DE APOYO A LAS LABORES DE CARÁCTER OPERACIONAL Y/O ADMINISTRATIVAS QUE SE ADELANTEN EN EL AREA DE GESTION DE DESARROLLO LOCAL ESPECIALMENTE EN LOS RELACIONADOS CON INFRAESTRUCTURA DE LA ALCALDIA LOCAL DE ANTONIO NARIÑO",null,"Un Nuevo Contrato Social y Ambiental para la Bogotá del Siglo XXI","No aplica",{"$f":"IF(ISERROR(VLOOKUP(K162,Proposito_programa!$C$2:$E$59,2,FALSE)),\" \",VLOOKUP(K162,Proposito_programa!$C$2:$E$59,2,FALSE))","v":" "},{"$f":"IF(ISERROR(VLOOKUP(K162,Proposito_programa!$C$2:$E$59,3,FALSE)),\" \",VLOOKUP(K162,Proposito_programa!$C$2:$E$59,3,FALSE))","v":" "},null,null,1013664030,"Laura Stefania Sierra Castañeda","Persona Natural",null,null,null,6000000,null,null,null,6000000,null,"2021-09-20","2021-09-21","2021-12-30","3 MESES 10 DIAS ",null,null,null,null,null,null,"x",null,null,null,1]
[155,2021,"FDLAN-CD-155-2021(61401)","https://community.secop.gov.co/Public/Tendering/ContractNoticePhases/View?PPI=CO1.PPI.15145599&isFromPublicArea=True&isModal=False","Contratos de prestación de servicios profesionales y de apoyo a la gestión","CONTRATACION DIRECTA","No aplica","PRESTAR SERVICIOS DE APOYO A LA GESTIÓN AL FONDO DE DESARROLLO LOCAL DE ANTONIO NARIÑO EN EL SEGUIMIENTO A CASOS DE VIOLENCIA INTRAFAMILIAR Y SEXUAL EN POBLACIONES VULNERABLES, ASÍ COMO EN LOS PROCESOS DE PARTICIPACIÓN CIUDADANA EN LA LOCALIDAD",null,"Un Nuevo Contrato Social y Ambiental para la Bogotá del Siglo XXI","No aplica",{"$f":"IF(ISERROR(VLOOKUP(K163,Proposito_programa!$C$2:$E$59,2,FALSE)),\" \",VLOOKUP(K163,Proposito_programa!$C$2:$E$59,2,FALSE))","v":" "},{"$f":"IF(ISERROR(VLOOKUP(K163,Proposito_programa!$C$2:$E$59,3,FALSE)),\" \",VLOOKUP(K163,Proposito_programa!$C$2:$E$59,3,FALSE))","v":" "},null,null,1007749906,"Lizeth Dayana Rubiano Pulido","Persona Natural",null,null,null,6767000,null,null,null,6767000,null,"2021-09-20","2021-09-29","2021-12-31","3 MESES 11 DIAS ",null,null,null,null,null,null,"x",null,null,null,1]
[156,2021,"FDLAN-CD-156-2021 (61623)","https://community.secop.gov.co/Public/Tendering/ContractNoticePhases/View?PPI=CO1.PPI.15173083&isFromPublicArea=True&isModal=False","Contratos de prestación de servicios profesionales y de apoyo a la gestión","CONTRATACION DIRECTA","No aplica","PRESTAR SERVICIOS DE APOYO A LA GESTIÓN AL FONDO DE DESARROLLO LOCAL DE ANTONIO NARIÑO EN EL SEGUIMIENTO A LOS PROCESOS CON JÓVENES, ASÍ COMO EN LOS PROCESOS DE PARTICIPACIÓN CIUDADANA EN LA LOCALIDAD",null,"Un Nuevo Contrato Social y Ambiental para la Bogotá del Siglo XXI","No aplica",{"$f":"IF(ISERROR(VLOOKUP(K164,Proposito_programa!$C$2:$E$59,2,FALSE)),\" \",VLOOKUP(K164,Proposito_programa!$C$2:$E$59,2,FALSE))","v":" "},{"$f":"IF(ISERROR(VLOOKUP(K164,Proposito_programa!$C$2:$E$59,3,FALSE)),\" \",VLOOKUP(K164,Proposito_programa!$C$2:$E$59,3,FALSE))","v":" "},null,null,1013632075,"Juan Sebastián Marín Marín","Persona Natural",null,null,null,6566000,null,null,null,6566000,null,"2021-09-22","2021-09-22","2021-12-30","3 MESES 9 DIAS ",null,null,null,null,null,null,"x",null,null,null,1]
[157,2021,"FDLAN-CD-157-2021 (61713)","https://community.secop.gov.co/Public/Tendering/ContractNoticePhases/View?PPI=CO1.PPI.15184201&isFromPublicArea=True&isModal=False","Contratos de prestación de servicios profesionales y de apoyo a la gestión","CONTRATACION DIRECTA","No aplica","PRESTAR SERVICIOS PROFESIONALES AL FONDO DE DESARROLLO LOCAL DE ANTONIO NARIÑO EN LOS DIFERENTES TRÁMITES REQUERIDOS POR LAS ENTIDADES DISTRITALES Y/O LOCALES RELACIONADOS CON EL ESPACIO PÚBLICO SU USO Y APROVECHAMIENTO, ASÍ COMO EN LOS PROCESOS DE PARTICIPACIÓN CIUDADANA EN LA LOCALIDAD",null,"Un Nuevo Contrato Social y Ambiental para la Bogotá del Siglo XXI","No aplica",{"$f":"IF(ISERROR(VLOOKUP(K165,Proposito_programa!$C$2:$E$59,2,FALSE)),\" \",VLOOKUP(K165,Proposito_programa!$C$2:$E$59,2,FALSE))","v":" "},{"$f":"IF(ISERROR(VLOOKUP(K165,Proposito_programa!$C$2:$E$59,3,FALSE)),\" \",VLOOKUP(K165,Proposito_programa!$C$2:$E$59,3,FALSE))","v":" "},null,null,1013649960,"Cristian Alfonso Moncada Lugo","Persona Natural",null,null,null,13086000,null,null,null,13086000,null,"2021-09-22","2021-09-22","2021-12-22",3,null,null,null,null,null,null,"x",null,null,null,1]
[158,2021,"FDLAN-CD-158-2021(60976)","https://community.secop.gov.co/Public/Tendering/ContractNoticePhases/View?PPI=CO1.PPI.15182389&isFromPublicArea=True&isModal=False","Contratos de prestación de servicios profesionales y de apoyo a la gestión","CONTRATACION DIRECTA","No aplica","PRESTACIÓN DE SERVICIOS PROFESIONALES COMO ABOGADO PARA APOYAR LA ESTRUCTURACIÓN, SEGUIMIENTO Y CONTROL DE PROCESOS CONTRACTUALES QUE DERIVEN DE LOS PROYECTOS DE INVERSIÓN 2200 Y 2201 CONFORME A LAS ACCIONES DE FOMENTO Y PROMOCIÓN DE ACTIVIDADES ARTÍSTICAS, INTERCULTURALES Y/O PATRIMONIALES EN LA LOCALIDAD DE ANTONIO NARIÑO.”",null,"Un Nuevo Contrato Social y Ambiental para la Bogotá del Siglo XXI","No aplica",{"$f":"IF(ISERROR(VLOOKUP(K166,Proposito_programa!$C$2:$E$59,2,FALSE)),\" \",VLOOKUP(K166,Proposito_programa!$C$2:$E$59,2,FALSE))","v":" "},{"$f":"IF(ISERROR(VLOOKUP(K166,Proposito_programa!$C$2:$E$59,3,FALSE)),\" \",VLOOKUP(K166,Proposito_programa!$C$2:$E$59,3,FALSE))","v":" "},null,null,"1022363943-9","Maria Natalia Marcillo Vela","Persona Natural",null,null,null,14394600,null,null,null,14394600,null,"2021-09-22","2021-09-22","2021-12-31","3 MESES 9 DIAS ",null,null,null,null,null,null,"x",null,null,null,1]
[159,2021,"FDLAN-CD-158-2021()","https://community.secop.gov.co/Public/Tendering/ContractNoticePhases/View?PPI=CO1.PPI.15184482&isFromPublicArea=True&isModal=False","Contratos de prestación de servicios profesionales y de apoyo a la gestión","CONTRATACION DIRECTA","No aplica","PRESTAR SERVICIOS PROFESIONALES COMO ABOGADO PARA FORTALECER EL EQUIPO DEL ÁREA DE GESTIÓN DE DESARROLLO LOCAL DE ANTONIO NARIÑO EN LOS DIFERENTES TRÁMITES JURÍDICOS Y CONTRACTUALES NECESARIOS PARA LA EJECUCIÓN DEL PLAN DE DESARROLLO LOCAL RELACIONADOS CON PROCESOS DE INFRAESTRUCTURA ",null,"Un Nuevo Contrato Social y Ambiental para la Bogotá del Siglo XXI","No aplica",{"$f":"IF(ISERROR(VLOOKUP(K167,Proposito_programa!$C$2:$E$59,2,FALSE)),\" \",VLOOKUP(K167,Proposito_programa!$C$2:$E$59,2,FALSE))","v":" "},{"$f":"IF(ISERROR(VLOOKUP(K167,Proposito_programa!$C$2:$E$59,3,FALSE)),\" \",VLOOKUP(K167,Proposito_programa!$C$2:$E$59,3,FALSE))","v":" "},null,null,1024542049,"Yurani Andrea Angulo Peñaranda","Persona Natural",null,null,null,16533000,null,null,null,16533000,null,"2021-09-22","2021-09-22","2021-12-31","3 MESES 9 DIAS ",null,null,null,null,null,null,"x",null,null,null,1]
[160,2021,"FDLAN-CD-160-2021(61711)","https://community.secop.gov.co/Public/Tendering/ContractNoticePhases/View?PPI=CO1.PPI.15204485&isFromPublicArea=True&isModal=False","Contratos de prestación de servicios profesionales y de apoyo a la gestión","CONTRATACION DIRECTA","No aplica","PRESTAR SERVICIOS PROFESIONALES, PARA APOYAR LA FORMULACIÓN, EJECUCIÓN, SUPERVISIÓN, SEGUIMIENTO CIERRE Y/O LIQUIDACION DE LOS PROCESO CONTRACTUALES QUE DEN RESPUESTA AL PROYECTO DE INVERSIÓN 2191 DE LA LOCALIDAD DE ANTONIO NARIÑO",null,"Un Nuevo Contrato Social y Ambiental para la Bogotá del Siglo XXI","No aplica",{"$f":"IF(ISERROR(VLOOKUP(K168,Proposito_programa!$C$2:$E$59,2,FALSE)),\" \",VLOOKUP(K168,Proposito_programa!$C$2:$E$59,2,FALSE))","v":" "},{"$f":"IF(ISERROR(VLOOKUP(K168,Proposito_programa!$C$2:$E$59,3,FALSE)),\" \",VLOOKUP(K168,Proposito_programa!$C$2:$E$59,3,FALSE))","v":" "},null,null,79330371,"Nestor Vargas Lozano","Persona Natural",null,null,null,13086000,null,null,null,13086000,null,"2021-09-23","2021-09-23","2021-12-22",3,null,null,null,null,null,null,"x",null,null,null,1]
[161,2021,"FDLAN-CD-161-2021(61711)","https://community.secop.gov.co/Public/Tendering/ContractNoticePhases/View?PPI=CO1.PPI.15272784&isFromPublicArea=True&isModal=False","Contratos de prestación de servicios profesionales y de apoyo a la gestión","CONTRATACION DIRECTA","No aplica","PRESTAR SERVICIOS PROFESIONALES, PARA APOYAR LA FORMULACIÓN, EJECUCIÓN, SUPERVISIÓN, SEGUIMIENTO CIERRE Y/O LIQUIDACION DE LOS PROCESO CONTRACTUALES QUE DEN RESPUESTA AL PROYECTO DE INVERSIÓN 2191 DE LA LOCALIDAD DE ANTONIO NARIÑO",null,"Un Nuevo Contrato Social y Ambiental para la Bogotá del Siglo XXI","No aplica",{"$f":"IF(ISERROR(VLOOKUP(K169,Proposito_programa!$C$2:$E$59,2,FALSE)),\" \",VLOOKUP(K169,Proposito_programa!$C$2:$E$59,2,FALSE))","v":" "},{"$f":"IF(ISERROR(VLOOKUP(K169,Proposito_programa!$C$2:$E$59,3,FALSE)),\" \",VLOOKUP(K169,Proposito_programa!$C$2:$E$59,3,FALSE))","v":" "},null,null,1016009101,"Cristian Andrés Albarracín Márquez","Persona Natural",null,null,null,13086000,null,null,null,13086000,null,"2021-09-28","2021-01-29","2021-12-28",3,null,null,null,null,null,null,"x",null,null,null,1]
[162,2021,"FDLAN-CD-162-2021(62676)","https://community.secop.gov.co/Public/Tendering/ContractNoticePhases/View?PPI=CO1.PPI.15329312&isFromPublicArea=True&isModal=False","Contratos de prestación de servicios profesionales y de apoyo a la gestión","CONTRATACION DIRECTA","No aplica","PRESTAR SERVICIOS DE APOYO A LA GESTIÓN COMO ACOMPAÑAMIENTO A LAS ACTIVIDADES ENCOMENDADAS AL REFERENTE DE PARTICIPACIÓN, PRINCIPALMENTE AQUELLAS INHERENTES PARA LLEVAR A CABO LA CONSOLIDACIÓN DE LOS DIAGNÓSTICOS SECTORIALES O POBLACIONALES DE LA LOCALIDAD DE LOCAL ANTONIO NARIÑO",null,"Un Nuevo Contrato Social y Ambiental para la Bogotá del Siglo XXI","No aplica",{"$f":"IF(ISERROR(VLOOKUP(K170,Proposito_programa!$C$2:$E$59,2,FALSE)),\" \",VLOOKUP(K170,Proposito_programa!$C$2:$E$59,2,FALSE))","v":" "},{"$f":"IF(ISERROR(VLOOKUP(K170,Proposito_programa!$C$2:$E$59,3,FALSE)),\" \",VLOOKUP(K170,Proposito_programa!$C$2:$E$59,3,FALSE))","v":" "},null,null,1013681550,"Norella del Pilar Flechas Guerrero","Persona Natural",null,null,null," $                              6.030.000",null,null,null,6030000,null,"2021-10-01","2021-10-01","2021-12-31",3,null,null,null,null,null,null,"x",null,null,null,1]
[163,2021,"FDLAN-CD-163-2021 (62748)","https://community.secop.gov.co/Public/Tendering/ContractNoticePhases/View?PPI=CO1.PPI.15331264&isFromPublicArea=True&isModal=False","Contratos de prestación de servicios profesionales y de apoyo a la gestión","CONTRATACION DIRECTA","No aplica","PRESTAR SERVICIOS PROFESIONALES COMO ABOGADO PARA APOYAR LOS DISTINTOS PROCEDIMIENTOS SANCIONATORIOS Y TRÁMITES ADMINISTRATIVOS QUE ADELANTA EL EQUIPO DE INSPECCIÓN, VIGILANCIA Y CONTROL DEL ÁREA DE GESTIÓN POLICIVA DEL FONDO DE DESARROLLO LOCAL ANDEYAR ALCUNTAR LOS RELATIVOS ALCANTARIÑO LOCAL",null,"Un Nuevo Contrato Social y Ambiental para la Bogotá del Siglo XXI","No aplica",{"$f":"IF(ISERROR(VLOOKUP(K171,Proposito_programa!$C$2:$E$59,2,FALSE)),\" \",VLOOKUP(K171,Proposito_programa!$C$2:$E$59,2,FALSE))","v":" "},{"$f":"IF(ISERROR(VLOOKUP(K171,Proposito_programa!$C$2:$E$59,3,FALSE)),\" \",VLOOKUP(K171,Proposito_programa!$C$2:$E$59,3,FALSE))","v":" "},null,null,1015447288,"ADRIANA KATHERIN AVILA TORRES","Persona Natural",null,null,null," $                            10.178.000",null,null,null,10178000,null,"2021-10-01","2021-10-01","2021-12-10","2 MESES 10 DIAS ",null,null,null,null,null,null,"x",null,null,null,1]
[164,2021,"FDLAN-CD-164-2021(60963)","https://community.secop.gov.co/Public/Tendering/ContractNoticePhases/View?PPI=CO1.PPI.15331833&isFromPublicArea=True&isModal=False","Contratos de prestación de servicios profesionales y de apoyo a la gestión","CONTRATACION DIRECTA","No aplica","APOYAR TÉCNICAMENTE LAS DISTINTAS ETAPAS DE LOS PROCESOS DE COMPETENCIA DE LAS INSPECCIONES DE POLICÍA DE LA LOCALIDAD, SEGÚN REPARTO",null,"Un Nuevo Contrato Social y Ambiental para la Bogotá del Siglo XXI","No aplica",{"$f":"IF(ISERROR(VLOOKUP(K172,Proposito_programa!$C$2:$E$59,2,FALSE)),\" \",VLOOKUP(K172,Proposito_programa!$C$2:$E$59,2,FALSE))","v":" "},{"$f":"IF(ISERROR(VLOOKUP(K172,Proposito_programa!$C$2:$E$59,3,FALSE)),\" \",VLOOKUP(K172,Proposito_programa!$C$2:$E$59,3,FALSE))","v":" "},null,null,79795187,"JORGE ENRIQUE MURILLO RODRIGUEZ","Persona Natural",null,null,null," $                            15.030.000",null,null,null,15030000,null,"2021-10-01","2021-10-01","2021-12-31",3,null,null,null,null,null,null,"x",null,null,null,1]
[165,2021,"FDLAN-CPS-165-2021 (61716)","https://community.secop.gov.co/Public/Tendering/ContractNoticePhases/View?PPI=CO1.PPI.15336278&isFromPublicArea=True&isModal=False","Contratos de prestación de servicios profesionales y de apoyo a la gestión","CONTRATACION DIRECTA","No aplica","PRESTACIÓN SERVICIOS PROFESIONALES PARA APOYAR LA FORMULACIÓN, EJECUCIÓN, SUPERVISIÓN, SEGUIMIENTO CIERRE Y / O LIQUIDACIÓN DE LOS PROCESOS CONTRACTUALES QUE DEN RESPUESTA A LOS PROYECTOS DE INVERSIÓN 2190 Y 2201 DEL FONDO DE DESARROLLO LOCAL DE ANTONIO NARIÑO.",null,"Un Nuevo Contrato Social y Ambiental para la Bogotá del Siglo XXI","No aplica",{"$f":"IF(ISERROR(VLOOKUP(K173,Proposito_programa!$C$2:$E$59,2,FALSE)),\" \",VLOOKUP(K173,Proposito_programa!$C$2:$E$59,2,FALSE))","v":" "},{"$f":"IF(ISERROR(VLOOKUP(K173,Proposito_programa!$C$2:$E$59,3,FALSE)),\" \",VLOOKUP(K173,Proposito_programa!$C$2:$E$59,3,FALSE))","v":" "},null,null,1022342284,"Yuly Andrea Solano Guerrero","Persona Natural",null,null,null," $                            14.130.000",null,null,null,14130000,null,"2021-10-01","2021-10-01","2021-12-31",3,null,null,null,null,null,null,"x",null,null,null,1]
[166,2021,"PRESTACIÓN DE SERVICIOS TÉCNICOS PARA APOYAR LA EJ","https://community.secop.gov.co/Public/Tendering/ContractNoticePhases/View?PPI=CO1.PPI.15375541&isFromPublicArea=True&isModal=False","Contratos de prestación de servicios profesionales y de apoyo a la gestión","CONTRATACION DIRECTA","No aplica","PRESTACIÓN DE SERVICIOS TÉCNICOS PARA APOYAR LA EJECUCIÓN DE ACTIVIDADES ADMINISTRATIVAS Y OPERATIVAS ADELANTADAS EN EL ÁREA DE GESTIÓN DEL DESARROLLO LOCAL, ADMINISTRATIVA Y FINANCIERA DE LA ALCALDÍA LOCAL DE ANTONIO NARIÑO.",null,"Un Nuevo Contrato Social y Ambiental para la Bogotá del Siglo XXI","No aplica",{"$f":"IF(ISERROR(VLOOKUP(K174,Proposito_programa!$C$2:$E$59,2,FALSE)),\" \",VLOOKUP(K174,Proposito_programa!$C$2:$E$59,2,FALSE))","v":" "},{"$f":"IF(ISERROR(VLOOKUP(K174,Proposito_programa!$C$2:$E$59,3,FALSE)),\" \",VLOOKUP(K174,Proposito_programa!$C$2:$E$59,3,FALSE))","v":" "},null,null,52951852,"Angela Fernanda Díaz Torres","Persona Natural",null,null,null," $                              7.667.136",null,null,null,7667136,null,"2021-10-05","2021-10-05","2021-12-31","2 MESES 27 DIAS",null,null,null,null,null,null,"x",null,null,null,1]
[167,2021,"FDLAN-CD-167-2021(62762)","https://community.secop.gov.co/Public/Tendering/ContractNoticePhases/View?PPI=CO1.PPI.15454432&isFromPublicArea=True&isModal=False","Contratos de prestación de servicios profesionales y de apoyo a la gestión","CONTRATACION DIRECTA","No aplica","PRESTAR LOS SERVICIOS DE APOYO A LA GESTIÓN PARA LA ACTUALIZACIÓN, REGISTRO Y CONTROL DE INFORMACION FISICA Y VIRTUAL DE LAS ACCIONES DE FOMENTO Y FORTALECIMIENTO DE PROCESOS PARTICIPATIVOS ASI COMO ACOMPAÑAMIENTO A LAS ACTIVIDADES PROPIAS DEL AREA DE GESTION DE DESARROLLO LOCAL.",null,"Un Nuevo Contrato Social y Ambiental para la Bogotá del Siglo XXI","No aplica",{"$f":"IF(ISERROR(VLOOKUP(K175,Proposito_programa!$C$2:$E$59,2,FALSE)),\" \",VLOOKUP(K175,Proposito_programa!$C$2:$E$59,2,FALSE))","v":" "},{"$f":"IF(ISERROR(VLOOKUP(K175,Proposito_programa!$C$2:$E$59,3,FALSE)),\" \",VLOOKUP(K175,Proposito_programa!$C$2:$E$59,3,FALSE))","v":" "},null,null,80793701,"JAIME ERNESTO ALARCON LOPEZ","Persona Natural",null,null,null," $                              5.360.000",null,null,null,5360000,null,"2021-10-11","2021-10-10","2021-12-31","2 MESES 20 DIAS ",null,null,null,null,null,null,"x",null,null,null,1]
[168,2021,"FDLAN-CD- 168-2021 (62478)","https://community.secop.gov.co/Public/Tendering/ContractNoticePhases/View?PPI=CO1.PPI.15474142&isFromPublicArea=True&isModal=False","Contratos de prestación de servicios profesionales y de apoyo a la gestión","CONTRATACION DIRECTA","No aplica","APOYAR LAS LABORES DE ENTREGA Y RECIBO DE LAS COMUNICACIONES EMITIDAS O RECIBIDAS POR LAS INSPECCIONES DE POLICÍA DE LA LOCALIDAD",null,"Un Nuevo Contrato Social y Ambiental para la Bogotá del Siglo XXI","No aplica",{"$f":"IF(ISERROR(VLOOKUP(K176,Proposito_programa!$C$2:$E$59,2,FALSE)),\" \",VLOOKUP(K176,Proposito_programa!$C$2:$E$59,2,FALSE))","v":" "},{"$f":"IF(ISERROR(VLOOKUP(K176,Proposito_programa!$C$2:$E$59,3,FALSE)),\" \",VLOOKUP(K176,Proposito_programa!$C$2:$E$59,3,FALSE))","v":" "},null,null,79469325,"Everardo Yara Yara","Persona Natural",null,null,null," $                              6.185.700",null,null,null,6185700,null,"2021-10-12","2021-10-12","2021-12-31","2 MESES 19 DIAS ",null,null,null,null,null,null,"x",null,null,null,1]
[169,2021,"FDLAN-CD-169-2021-CPS-2021-P(63346)","https://community.secop.gov.co/Public/Tendering/ContractNoticePhases/View?PPI=CO1.PPI.15590333&isFromPublicArea=True&isModal=False","Contratos de prestación de servicios profesionales y de apoyo a la gestión","CONTRATACION DIRECTA","No aplica","PRESTACIÓN DE SERVICIOS DE APOYO ADMINISTRATIVO Y ASISTENCIAL AL AREA DE GESTION POLICIVA DEL FONDO DE DESARROLLO LOCAL DE ANTONIO NARIÑO",null,"Un Nuevo Contrato Social y Ambiental para la Bogotá del Siglo XXI","No aplica",{"$f":"IF(ISERROR(VLOOKUP(K177,Proposito_programa!$C$2:$E$59,2,FALSE)),\" \",VLOOKUP(K177,Proposito_programa!$C$2:$E$59,2,FALSE))","v":" "},{"$f":"IF(ISERROR(VLOOKUP(K177,Proposito_programa!$C$2:$E$59,3,FALSE)),\" \",VLOOKUP(K177,Proposito_programa!$C$2:$E$59,3,FALSE))","v":" "},null,null,1069176392,"Nataly Acevedo Buitrago","Persona Natural",null,null,null," $                              3.082.000",null,null,null,3082000,null,"2021-10-20","2021-10-21","2021-12-05","1 MES 16 DIAS ",null,null,null,null,null,null,"x",null,null,null,1]
[170,2021,"FDLAN-CD-170-2021","https://community.secop.gov.co/Public/Tendering/ContractNoticePhases/View?PPI=CO1.PPI.15592026&isFromPublicArea=True&isModal=False","Contratos de prestación de servicios profesionales y de apoyo a la gestión","CONTRATACION DIRECTA","No aplica","PRESTACIÓN DE SERVICIOS PARA APOYAR LA GESTIÓN Y EJECUCIÓN DE ACTIVIDADES ADMINISTRATIVAS Y OPERATIVAS QUE SE ADELANTAN EN EL ÁREA DE GESTIÓN DEL DESARROLLO LOCAL DE LA ALCALDÍA LOCAL DE ANTONIO NARIÑO",null,"Un Nuevo Contrato Social y Ambiental para la Bogotá del Siglo XXI","No aplica",{"$f":"IF(ISERROR(VLOOKUP(K178,Proposito_programa!$C$2:$E$59,2,FALSE)),\" \",VLOOKUP(K178,Proposito_programa!$C$2:$E$59,2,FALSE))","v":" "},{"$f":"IF(ISERROR(VLOOKUP(K178,Proposito_programa!$C$2:$E$59,3,FALSE)),\" \",VLOOKUP(K178,Proposito_programa!$C$2:$E$59,3,FALSE))","v":" "},null,null,1022351156,"JHON FREDY ALVAREZ BARRERA","Persona Natural",null,null,null," $                              4.020.000",null,null,null,4020000,null,"2021-10-21","2021-10-25","2021-12-23",2,null,null,null,null,null,null,"x",null,null,null,1]
[171,2021,"FDLAN-171-2021-CPS-2021-(61399)","https://community.secop.gov.co/Public/Tendering/ContractNoticePhases/View?PPI=CO1.PPI.15618554&isFromPublicArea=True&isModal=False","Contratos de prestación de servicios profesionales y de apoyo a la gestión","CONTRATACION DIRECTA","No aplica","PRESTAR SERVICIOS PROFESIONALES PARA COORDINAR LA ARTICULACIÓN, ASISTENCIA Y ACOMPAÑAMIENTO DE LOS PROCESOS DE PLANEACIÓN LOCAL, PARA LA PROMOCIÓN DE LA PARTICIPACIÓN DE LAS MUJERES Y DE LA EQUIDAD DE GÉNERO, PARA MATERIALIZAR EN LA LOCALIDAD LAS ESTRATEGIAS DE TERRITORIALIZACIÓN DEVERSALIZACIÓN Y ESTRATEGIAS DE TERRITORIALIZACIÓN DEVERSALIZACIÓN MUJERES Y EQUIDAD DE GÉNERO, PPMYEG.",null,"Un Nuevo Contrato Social y Ambiental para la Bogotá del Siglo XXI","No aplica",{"$f":"IF(ISERROR(VLOOKUP(K179,Proposito_programa!$C$2:$E$59,2,FALSE)),\" \",VLOOKUP(K179,Proposito_programa!$C$2:$E$59,2,FALSE))","v":" "},{"$f":"IF(ISERROR(VLOOKUP(K179,Proposito_programa!$C$2:$E$59,3,FALSE)),\" \",VLOOKUP(K179,Proposito_programa!$C$2:$E$59,3,FALSE))","v":" "},null,null," 1018438731","MARIA FERNANDA GUARÍN ROMERO","Persona Natural",null,null,null," $                            11.662.000",null,null,null,11662000,null,"2021-10-21","2021-10-22","2021-12-31","2 MESES 10 DIAS ",null,null,null,null,null,null,"x",null,null,null,1]
[172,2021,"FDLAN-CD-172-2021 (61553)","https://community.secop.gov.co/Public/Tendering/ContractNoticePhases/View?PPI=CO1.PPI.15614504&isFromPublicArea=True&isModal=False","Contratos de prestación de servicios profesionales y de apoyo a la gestión","CONTRATACION DIRECTA","No aplica","PRESTAR SERVICIOS PROFESIONALES, PARA APOYAR LA FORMULACIÓN, EJECUCIÓN, SUPERVISIÓN, SEGUIMIENTO CIERRE Y / O LIQUIDACIÓN DE LOS PROCESOS CONTRACTUALES QUE DERIVEN DE LOS PROYECTOS DE INVERSIÓN 2193 Y 2194 CONFORME A LAS ACCIONES DE FOMENTO Y PROMOCIÓN DE LAS CONDICIONES DE SALUD ANTONIO NARIÑO.",null,"Un Nuevo Contrato Social y Ambiental para la Bogotá del Siglo XXI","No aplica",{"$f":"IF(ISERROR(VLOOKUP(K180,Proposito_programa!$C$2:$E$59,2,FALSE)),\" \",VLOOKUP(K180,Proposito_programa!$C$2:$E$59,2,FALSE))","v":" "},{"$f":"IF(ISERROR(VLOOKUP(K180,Proposito_programa!$C$2:$E$59,3,FALSE)),\" \",VLOOKUP(K180,Proposito_programa!$C$2:$E$59,3,FALSE))","v":" "},null,null,1013681219,"JENNIFER ROJAS HERNANDÉZ","Persona Natural",null,null,null," $                            10.178.000",null,null,null,10178000,null,"2021-10-21","2021-10-25","2022-01-03","2 MESES 10 DIAS ",null,null,null,null,null,null,"x",null,null,null,1]
[173,2021,"FDLAN-CD-173-2021(61551)","https://community.secop.gov.co/Public/Tendering/ContractNoticePhases/View?PPI=CO1.PPI.15720860&isFromPublicArea=True&isModal=False","Contratos de prestación de servicios profesionales y de apoyo a la gestión","CONTRATACION DIRECTA","No aplica","PRESTACIÓN DE SERVICIOS DE APOYO A LA GESTIÓN DEL FONDO DE DESARROLLO LOCAL COMO ADMINISTRADOR DEL PUNTO VIVE DIGITAL DE LA ALCALDIA LOCAL DE ANTONIO NARIÑO - PVD",null,"Un Nuevo Contrato Social y Ambiental para la Bogotá del Siglo XXI","No aplica",{"$f":"IF(ISERROR(VLOOKUP(K181,Proposito_programa!$C$2:$E$59,2,FALSE)),\" \",VLOOKUP(K181,Proposito_programa!$C$2:$E$59,2,FALSE))","v":" "},{"$f":"IF(ISERROR(VLOOKUP(K181,Proposito_programa!$C$2:$E$59,3,FALSE)),\" \",VLOOKUP(K181,Proposito_programa!$C$2:$E$59,3,FALSE))","v":" "},null,null,1069728200,"LUIS VARGAS","Persona Natural",null,null,null," $                              7.035.000",null,null,null,7035000,null,"2021-10-28","2021-10-29","2021-12-31","2 MESES 3 DIAS ",null,null,null,null,null,null,"x",null,null,null,1]
[177,2021,"FDLAN-CPS-177 (65239)","https://www.secop.gov.co/CO1ContractsManagement/Tendering/ProcurementContractEdit/View?docUniqueIdentifier=CO1.PCCNTR.3084885&awardUniqueIdentifier=&buyerDossierUniqueIdentifier=CO1.BDOS.2421773&id=1374214&prevCtxUrl=https%3a%2f%2fwww.secop.gov.co%2fCO1BusinessLine%2fTendering%2fBuyerDossierWorkspace%2fIndex%3fsortingState%3dLastModifiedDESC%26showAdvancedSearch%3dFalse%26showAdvancedSearchFields%3dFalse%26selectedDossier%3dCO1.BDOS.2421773%26selectedRequest%3dCO1.REQ.2497080%26&prevCtxLbl=Procesos+de+la+Entidad+Estatal","Contratos de prestación de servicios profesionales y de apoyo a la gestión","CONTRATACION DIRECTA","No aplica","PRESTAR LOS SERVICIOS PROFESIONALES COMO ABOGADO EN LOS DIVERSOS TEMAS CONTRACTUALES QUE REQUIERA EL AREA DE GESTION DEL FONDO DE DESARROLLO LOCAL ANTONIO NARIÑO",null,"Un Nuevo Contrato Social y Ambiental para la Bogotá del Siglo XXI","No aplica",{"$f":"IF(ISERROR(VLOOKUP(K182,Proposito_programa!$C$2:$E$59,2,FALSE)),\" \",VLOOKUP(K182,Proposito_programa!$C$2:$E$59,2,FALSE))","v":" "},{"$f":"IF(ISERROR(VLOOKUP(K182,Proposito_programa!$C$2:$E$59,3,FALSE)),\" \",VLOOKUP(K182,Proposito_programa!$C$2:$E$59,3,FALSE))","v":" "},null,null,1015449672,"JULIANA ANDREA PINILLOS SANCHEZ","Persona Natural",null,null,null,5010000,null,null,null,5010000,null,"2021-12-01","2021-12-01","2022-01-01",1,null,null,null,null,null,null,"x",null,null,null,1]
[178,2021,"FDLAN-178-2021-CPS-P (61551)","https://www.secop.gov.co/CO1ContractsManagement/Tendering/ProcurementContractEdit/View?docUniqueIdentifier=CO1.PCCNTR.3095225&prevCtxUrl=https%3a%2f%2fwww.secop.gov.co%2fCO1ContractsManagement%2fTendering%2fProcurementContractManagement%2fIndex&prevCtxLbl=Contratos+","Contratos de prestación de servicios profesionales y de apoyo a la gestión","CONTRATACION DIRECTA","No aplica","APOYAR JURIDICAMENTE LA EJECUCION DE LAS ACCIONES REQUERIDAS PARA EL TRAMITE E IMPULSO PROCESAL DE LAS ACTUACIONES CONTRAVENCIONALES Y /O QUERELLAS QUE CURSEN EN LAS INSPECCIONES DE POLICIA DE LA LOCALIDAD",null,"Un Nuevo Contrato Social y Ambiental para la Bogotá del Siglo XXI","No aplica",{"$f":"IF(ISERROR(VLOOKUP(K183,Proposito_programa!$C$2:$E$59,2,FALSE)),\" \",VLOOKUP(K183,Proposito_programa!$C$2:$E$59,2,FALSE))","v":" "},{"$f":"IF(ISERROR(VLOOKUP(K183,Proposito_programa!$C$2:$E$59,3,FALSE)),\" \",VLOOKUP(K183,Proposito_programa!$C$2:$E$59,3,FALSE))","v":" "},null,null,1013609653,"JULIO CESAR GONZALEZ GOMEZ","Persona Natural",null,null,null,5610000,null,null,null,5610000,null,"2021-12-06","2021-12-06","2022-01-02","26 DIAS ",null,null,null,null,null,null,"x",null,null,null,1]
[179,2021,"FDLAN-CPS-179-2021 (65238)","https://www.secop.gov.co/CO1ContractsManagement/Tendering/ProcurementContractEdit/View?docUniqueIdentifier=CO1.PCCNTR.3099280&prevCtxUrl=https%3a%2f%2fwww.secop.gov.co%2fCO1ContractsManagement%2fTendering%2fProcurementContractManagement%2fIndex&prevCtxLbl=Contratos+","Contratos de prestación de servicios profesionales y de apoyo a la gestión","CONTRATACION DIRECTA","No aplica","PRESTACIÓN DE SERVICIOS PROFESIONALES PARA APOYAR EL ÁREA DE GESTIÓN DE DESARROLLO LOCAL EN EL DILIGENCIAMIENTO DE LAS ACTUACIONES DE LOS DOCUMENTOS TÉCNICOS DE SOPORTE Y FICHAS DE ESTADÍSTICA BÁSICAS DE INVERSIÓN Y ELABORACIÓN DE LOS DOCUMENTOS SOPORTE NECESARIOS PARA  LOS PROYECTOS DE INVERSIÓN DEL FONDO DE DESARROLLO LOCAL DE ANTONIO NARIÑO",null,"Un Nuevo Contrato Social y Ambiental para la Bogotá del Siglo XXI","No aplica",{"$f":"IF(ISERROR(VLOOKUP(K184,Proposito_programa!$C$2:$E$59,2,FALSE)),\" \",VLOOKUP(K184,Proposito_programa!$C$2:$E$59,2,FALSE))","v":" "},{"$f":"IF(ISERROR(VLOOKUP(K184,Proposito_programa!$C$2:$E$59,3,FALSE)),\" \",VLOOKUP(K184,Proposito_programa!$C$2:$E$59,3,FALSE))","v":" "},null,null,51922115,"BERENICE  CUEVAS PINZON","Persona Natural",null,null,null,10020000,null,null,null,10020000,null,"2021-12-07","2021-12-07","2022-01-01","25 DIAS",null,null,null,null,null,null,"x",null,null,null,1]
[180,2021,"FDLAN-CD-180-2021(65526)","https://www.secop.gov.co/CO1ContractsManagement/Tendering/ProcurementContractEdit/View?docUniqueIdentifier=CO1.PCCNTR.3099819&prevCtxUrl=https%3a%2f%2fwww.secop.gov.co%2fCO1ContractsManagement%2fTendering%2fProcurementContractManagement%2fIndex&prevCtxLbl=Contratos+","Contratos de prestación de servicios profesionales y de apoyo a la gestión","CONTRATACION DIRECTA","No aplica","PRESTACIÓN DE SERVICIOS PROFESIONALES ESPECIALIZADOS PARA APOYAR AL ALCALDE LOCAL EN EL DISEÑO DE ESTRATEGIAS Y ACCIONES DE SEGUIMIENTO A LOS DIFERENTES ASUNTOS COMPETENCIA DEL DESPACHO",null,"Un Nuevo Contrato Social y Ambiental para la Bogotá del Siglo XXI","No aplica",{"$f":"IF(ISERROR(VLOOKUP(K185,Proposito_programa!$C$2:$E$59,2,FALSE)),\" \",VLOOKUP(K185,Proposito_programa!$C$2:$E$59,2,FALSE))","v":" "},{"$f":"IF(ISERROR(VLOOKUP(K185,Proposito_programa!$C$2:$E$59,3,FALSE)),\" \",VLOOKUP(K185,Proposito_programa!$C$2:$E$59,3,FALSE))","v":" "},null,null,1026270893,"JORGE EDUARDO SALGADO ARDILA","Persona Natural",null,null,null,7500000,null,null,null,7500000,null,"2021-12-07","2021-12-07","2022-01-01","25 DIAS",null,null,null,null,null,null,"x",null,null,null,1]
[181,2021,"FDLAN-CPS-181-2021 (65220)","https://www.secop.gov.co/CO1ContractsManagement/Tendering/ProcurementContractEdit/View?docUniqueIdentifier=CO1.PCCNTR.3099044&prevCtxUrl=https%3a%2f%2fwww.secop.gov.co%2fCO1ContractsManagement%2fTendering%2fProcurementContractManagement%2fIndex&prevCtxLbl=Contratos+","Contratos de prestación de servicios profesionales y de apoyo a la gestión","CONTRATACION DIRECTA","No aplica","PRESTACIÓN DE SERVICIOS DE APOYO A LA GESTIÓN AL FONDO DE DESARROLLO LOCAL ANTONIO NARIÑO EN LOS ASUNTOS OPERATIVOS RELACIONADOS CON SEGURIDAD CIUDADANA, CONVIVENCIA Y PREVENCIÓN DE LAS CONFLICTIVIDADES  VIOLENCIAS Y DELITOS DE LA LOCALIDAD,DE CONFORMIDAD CON EL MARCO NORMATIVO APLICABLE EN LA MATERIA",null,"Un Nuevo Contrato Social y Ambiental para la Bogotá del Siglo XXI","No aplica",{"$f":"IF(ISERROR(VLOOKUP(K186,Proposito_programa!$C$2:$E$59,2,FALSE)),\" \",VLOOKUP(K186,Proposito_programa!$C$2:$E$59,2,FALSE))","v":" "},{"$f":"IF(ISERROR(VLOOKUP(K186,Proposito_programa!$C$2:$E$59,3,FALSE)),\" \",VLOOKUP(K186,Proposito_programa!$C$2:$E$59,3,FALSE))","v":" "},null,null,51678981,"BLANCA IDALY SUAREZ HERNANDEZ","Persona Natural",null,null,null,2175000,null,null,null,2175000,null,"2021-12-07","2021-12-07","2022-01-01","25 DIAS ",null,null,null,null,null,null,"x",null,null,null,1]
[182,2021,"FDLAN-CD-182-2021(65239)","https://www.secop.gov.co/CO1ContractsManagement/Tendering/ProcurementContractEdit/View?docUniqueIdentifier=CO1.PCCNTR.3102917&prevCtxUrl=https%3a%2f%2fwww.secop.gov.co%2fCO1ContractsManagement%2fTendering%2fProcurementContractManagement%2fIndex&prevCtxLbl=Contratos+","Contratos de prestación de servicios profesionales y de apoyo a la gestión","CONTRATACION DIRECTA","No aplica","PRESTAR LOS SERVICIOS PROFESIONALES COMO ABOGADO EN LOS DIVERSOS TEMAS CONTRACTUALES QUE REQUIERA EL AREA DE GESTION DE DESAROLLO LOCAL DE ANTONIO NARIÑO",null,"Un Nuevo Contrato Social y Ambiental para la Bogotá del Siglo XXI","No aplica",{"$f":"IF(ISERROR(VLOOKUP(K187,Proposito_programa!$C$2:$E$59,2,FALSE)),\" \",VLOOKUP(K187,Proposito_programa!$C$2:$E$59,2,FALSE))","v":" "},{"$f":"IF(ISERROR(VLOOKUP(K187,Proposito_programa!$C$2:$E$59,3,FALSE)),\" \",VLOOKUP(K187,Proposito_programa!$C$2:$E$59,3,FALSE))","v":" "},null,null,1010217460,"PAOLA GINNARY GUTIERREZ VALDERRAMA","Persona Natural",null,null,null,3841000,null,null,null,3841000,null,"2021-12-09","2021-12-09","2022-01-01","23 DIAS",null,null,null,null,null,null,"x",null,null,null,1]
[183,2021,"FDLAN-CD-183-2021 (65225)","https://www.secop.gov.co/CO1ContractsManagement/Tendering/ProcurementContractEdit/View?docUniqueIdentifier=CO1.PCCNTR.3101875&prevCtxUrl=https%3a%2f%2fwww.secop.gov.co%2fCO1ContractsManagement%2fTendering%2fProcurementContractManagement%2fIndex&prevCtxLbl=Contratos+","Contratos de prestación de servicios profesionales y de apoyo a la gestión","CONTRATACION DIRECTA","No aplica","PRESTAR SUS SERVICIOS PROFESIONALES PARA APOYAR TÉCNICAMENTE  LAS DISTINTAS ETAPAS DE LOS PROCESOS DE COMPETENCIA DE LA ALCALDÍA LOCAL PARA LA DEPURACIÓN DE LAS ACTUACIONES ADMINISTRATIVAS",null,"Un Nuevo Contrato Social y Ambiental para la Bogotá del Siglo XXI","No aplica",{"$f":"IF(ISERROR(VLOOKUP(K188,Proposito_programa!$C$2:$E$59,2,FALSE)),\" \",VLOOKUP(K188,Proposito_programa!$C$2:$E$59,2,FALSE))","v":" "},{"$f":"IF(ISERROR(VLOOKUP(K188,Proposito_programa!$C$2:$E$59,3,FALSE)),\" \",VLOOKUP(K188,Proposito_programa!$C$2:$E$59,3,FALSE))","v":" "},null,null,1074129871,"SANTIAGO NICOLAS MORA GUTIERREZ","Persona Natural",null,null,null,4301000,null,null,null,4301000,null,"2021-12-09","2021-12-09","2022-01-01","23 DIAS",null,null,null,null,null,null,"x",null,null,null,1]
[184,2021,"FDLAN-CD-184-2021-(65585)","https://www.secop.gov.co/CO1ContractsManagement/Tendering/ProcurementContractEdit/View?docUniqueIdentifier=CO1.PCCNTR.3104052&prevCtxUrl=https%3a%2f%2fwww.secop.gov.co%2fCO1ContractsManagement%2fTendering%2fProcurementContractManagement%2fIndex&prevCtxLbl=Contratos+","Contratos de prestación de servicios profesionales y de apoyo a la gestión","CONTRATACION DIRECTA","No aplica","PRESTACIÓN DE SERVICIOS DE APOYO ADMINISTRATIVA AL AREA DE GESTION  POLICIVA DEL FONDO DE DESARROLLO LOCAL DE ANTONIO NARIÑO",null,"Un Nuevo Contrato Social y Ambiental para la Bogotá del Siglo XXI","No aplica",{"$f":"IF(ISERROR(VLOOKUP(K189,Proposito_programa!$C$2:$E$59,2,FALSE)),\" \",VLOOKUP(K189,Proposito_programa!$C$2:$E$59,2,FALSE))","v":" "},{"$f":"IF(ISERROR(VLOOKUP(K189,Proposito_programa!$C$2:$E$59,3,FALSE)),\" \",VLOOKUP(K189,Proposito_programa!$C$2:$E$59,3,FALSE))","v":" "},null,null,1069176391,"NATALY  ACEVEDO BUITRAGO","Persona Natural",null,null,null,2001000,null,null,null,2001000,null,"2021-12-09","2021-12-09","2022-01-01","23 DIAS",null,null,null,null,null,null,"x",null,null,null,1]
[185,2021,"FDLAN-CPS-185-2021 (65220)","https://www.secop.gov.co/CO1ContractsManagement/Tendering/ProcurementContractEdit/View?docUniqueIdentifier=CO1.PCCNTR.3105858&prevCtxUrl=https%3a%2f%2fwww.secop.gov.co%2fCO1ContractsManagement%2fTendering%2fProcurementContractManagement%2fIndex&prevCtxLbl=Contratos+","Contratos de prestación de servicios profesionales y de apoyo a la gestión","CONTRATACION DIRECTA","No aplica","PRESTACIÓN DE SERVICIOS DE APOYO A LA GESTIÓN AL FONDO DE DESARROLLO LOCAL ANTONIO NARIÑO EN LOS ASUNTOS OPERATIVOS RELACIONADOS CON SEGURIDAD CIUDADANA, CONVIVENCIA Y PREVENCIÓN DE LAS CONFLICTIVIDADES  VIOLENCIAS Y DELITOS DE LA LOCALIDAD,DE CONFORMIDAD CON EL MARCO NORMATIVO APLICABLE EN LA MATERIA",null,"Un Nuevo Contrato Social y Ambiental para la Bogotá del Siglo XXI","No aplica",{"$f":"IF(ISERROR(VLOOKUP(K190,Proposito_programa!$C$2:$E$59,2,FALSE)),\" \",VLOOKUP(K190,Proposito_programa!$C$2:$E$59,2,FALSE))","v":" "},{"$f":"IF(ISERROR(VLOOKUP(K190,Proposito_programa!$C$2:$E$59,3,FALSE)),\" \",VLOOKUP(K190,Proposito_programa!$C$2:$E$59,3,FALSE))","v":" "},null,null,51876386,"CLAUDIA IOMARA AYALA BELTRAN","Persona Natural",null,null,null,1914000,null,null,null,1914000,null,"2021-12-10","2021-12-10","2022-01-01","22 DIAS",null,null,null,null,null,null,"x",null,null,null,1]
[186,2021,"FDLAN-CPS-186-2021 (65220)","https://www.secop.gov.co/CO1ContractsManagement/Tendering/ProcurementContractEdit/View?docUniqueIdentifier=CO1.PCCNTR.3103599&prevCtxUrl=https%3a%2f%2fwww.secop.gov.co%2fCO1ContractsManagement%2fTendering%2fProcurementContractManagement%2fIndex&prevCtxLbl=Contratos+","Contratos de prestación de servicios profesionales y de apoyo a la gestión","CONTRATACION DIRECTA","No aplica","PRESTACIÓN DE SERVICIOS DE APOYO A LA GESTIÓN AL FONDO DE DESARROLLO LOCAL ANTONIO NARIÑO EN LOS ASUNTOS OPERATIVOS RELACIONADOS CON SEGURIDAD CIUDADANA, CONVIVENCIA Y PREVENCIÓN DE LAS CONFLICTIVIDADES, VIOLENCIAS Y DELITOS DE LA LOCALIDAD, DE CONFORMIDAD CON ELMARCO NORMATIVO APLICABLE EN LA MATERIA",null,"Un Nuevo Contrato Social y Ambiental para la Bogotá del Siglo XXI","No aplica",{"$f":"IF(ISERROR(VLOOKUP(K191,Proposito_programa!$C$2:$E$59,2,FALSE)),\" \",VLOOKUP(K191,Proposito_programa!$C$2:$E$59,2,FALSE))","v":" "},{"$f":"IF(ISERROR(VLOOKUP(K191,Proposito_programa!$C$2:$E$59,3,FALSE)),\" \",VLOOKUP(K191,Proposito_programa!$C$2:$E$59,3,FALSE))","v":" "},null,null,51591147,"ROSA MARIA PATIÑO ","Persona Natural",null,null,null,2001000,null,null,null,2001000,null,"2021-12-09","2021-12-09","2022-01-01","23 DIAS ",null,null,null,null,null,null,"x",null,null,null,1]
[187,2021,"FDLAN-CPS-187-2021 (65220)","https://www.secop.gov.co/CO1ContractsManagement/Tendering/ProcurementContractEdit/View?docUniqueIdentifier=CO1.PCCNTR.3103586&prevCtxUrl=https%3a%2f%2fwww.secop.gov.co%2fCO1ContractsManagement%2fTendering%2fProcurementContractManagement%2fIndex&prevCtxLbl=Contratos+","Contratos de prestación de servicios profesionales y de apoyo a la gestión","CONTRATACION DIRECTA","No aplica","PRESTACIÓN DE SERVICIOS DE APOYO A LA GESTIÓN AL FONDO DE DESARROLLO LOCAL ANTONIO NARIÑO EN LOS ASUNTOS OPERATIVOS RELACIONADOS CON SEGURIDAD CIUDADANA, CONVIVENCIA Y PREVENCIÓN DE LAS CONFLICTIVIDADES, VIOLENCIAS Y DELITOS DE LA LOCALIDAD, DE CONFORMIDAD CON ELMARCO NORMATIVO APLICABLE EN LA MATERIA",null,"Un Nuevo Contrato Social y Ambiental para la Bogotá del Siglo XXI","No aplica",{"$f":"IF(ISERROR(VLOOKUP(K192,Proposito_programa!$C$2:$E$59,2,FALSE)),\" \",VLOOKUP(K192,Proposito_programa!$C$2:$E$59,2,FALSE))","v":" "},{"$f":"IF(ISERROR(VLOOKUP(K192,Proposito_programa!$C$2:$E$59,3,FALSE)),\" \",VLOOKUP(K192,Proposito_programa!$C$2:$E$59,3,FALSE))","v":" "},null,null,1013659896,"FELIPE  ARANGO MORALES ","Persona Natural",null,null,null,2001000,null,null,null,2001000,null,"2021-12-09","2021-12-09","2022-01-01","23 DIAS ",null,null,null,null,null,null,"x",null,null,null,1]
[188,2021,"FDLAN-CD-188-2021(65221)","https://www.secop.gov.co/CO1ContractsManagement/Tendering/ProcurementContractEdit/View?docUniqueIdentifier=CO1.PCCNTR.3103557&prevCtxUrl=https%3a%2f%2fwww.secop.gov.co%2fCO1ContractsManagement%2fTendering%2fProcurementContractManagement%2fIndex&prevCtxLbl=Contratos+","Contratos de prestación de servicios profesionales y de apoyo a la gestión","CONTRATACION DIRECTA","No aplica","PRESTACIÓN DE SERVICIOS PROFESIONALES PARA APOYAR JURÍDICAMENTE LA EJECUCIÓN DE LAS ACCIONES REQUERIDAS PARA LA DEPURACIÓN DE LAS ACTUACIONES ADMINISTRATIVAS QUE CURSAN EN LA ALCALDÍA LOCAL.",null,"Un Nuevo Contrato Social y Ambiental para la Bogotá del Siglo XXI","No aplica",{"$f":"IF(ISERROR(VLOOKUP(K193,Proposito_programa!$C$2:$E$59,2,FALSE)),\" \",VLOOKUP(K193,Proposito_programa!$C$2:$E$59,2,FALSE))","v":" "},{"$f":"IF(ISERROR(VLOOKUP(K193,Proposito_programa!$C$2:$E$59,3,FALSE)),\" \",VLOOKUP(K193,Proposito_programa!$C$2:$E$59,3,FALSE))","v":" "},null,null,1013631878,"ADRIANA KATTERINE HERRERA URIBE","Persona Natural",null,null,null,4301000,null,null,null,4301000,null,"2021-12-09","2021-12-09","2022-01-01","23 DIAS ",null,null,null,null,null,null,"x",null,null,null,1]
[189,2021,"FDLAN-CD-189-2021(65223)","https://www.secop.gov.co/CO1ContractsManagement/Tendering/ProcurementContractEdit/View?docUniqueIdentifier=CO1.PCCNTR.3105118&prevCtxUrl=https%3a%2f%2fwww.secop.gov.co%2fCO1ContractsManagement%2fTendering%2fProcurementContractManagement%2fIndex&prevCtxLbl=Contratos+","Contratos de prestación de servicios profesionales y de apoyo a la gestión","CONTRATACION DIRECTA","No aplica","PRESTACIÓN DE SERVICIOS PROFESIONALES PARA APOYAR JURÍDICAMENTE LA EJECUCIÓN DE LAS ACCIONES REQUERIDAS PARA LA DEPURACIÓN DE LAS ACTUACIONES ADMINISTRATIVAS QUE CURSAN EN LA ALCALDÍA LOCAL.",null,"Un Nuevo Contrato Social y Ambiental para la Bogotá del Siglo XXI","No aplica",{"$f":"IF(ISERROR(VLOOKUP(K194,Proposito_programa!$C$2:$E$59,2,FALSE)),\" \",VLOOKUP(K194,Proposito_programa!$C$2:$E$59,2,FALSE))","v":" "},{"$f":"IF(ISERROR(VLOOKUP(K194,Proposito_programa!$C$2:$E$59,3,FALSE)),\" \",VLOOKUP(K194,Proposito_programa!$C$2:$E$59,3,FALSE))","v":" "},null,null,1144024602,"MARCELA ALEJANDRA  AYALA  PERDOMO ","Persona Natural",null,null,null,4114000,null,null,null,4114000,null,"2021-12-09","2021-12-09","2022-01-01","22 DIAS ",null,null,null,null,null,null,"x",null,null,null,1]
[190,2021,"FDLAN-CPS-190-2021 (65232)","https://www.secop.gov.co/CO1ContractsManagement/Tendering/ProcurementContractEdit/View?docUniqueIdentifier=CO1.PCCNTR.3107333&prevCtxUrl=https%3a%2f%2fwww.secop.gov.co%2fCO1ContractsManagement%2fTendering%2fProcurementContractManagement%2fIndex&prevCtxLbl=Contratos+","Contratos de prestación de servicios profesionales y de apoyo a la gestión","CONTRATACION DIRECTA","No aplica","APOYAR TÉCNICAMENTE LAS DISTINTAS ETAPAS DE LOS PROCESOS DE COMPETENCIA DE LAS INSPECCIONES DE POLICÍA DE LA LOCALIDAD, SEGÚN REPARTO",null,"Un Nuevo Contrato Social y Ambiental para la Bogotá del Siglo XXI","No aplica",{"$f":"IF(ISERROR(VLOOKUP(K195,Proposito_programa!$C$2:$E$59,2,FALSE)),\" \",VLOOKUP(K195,Proposito_programa!$C$2:$E$59,2,FALSE))","v":" "},{"$f":"IF(ISERROR(VLOOKUP(K195,Proposito_programa!$C$2:$E$59,3,FALSE)),\" \",VLOOKUP(K195,Proposito_programa!$C$2:$E$59,3,FALSE))","v":" "},null,null,5230855,"WILFREDO  MUÑOZ ARAUJO","Persona Natural",null,null,null,4114000,null,null,null,4114000,null,"2021-12-10","2021-12-10","2022-01-01","22 DIAS",null,null,null,null,null,null,"x",null,null,null,1]
[191,2021,"FDLAN-SIE-001-2021 (64595)","https://www.secop.gov.co/CO1ContractsManagement/Tendering/ProcurementContractEdit/View?docUniqueIdentifier=CO1.PCCNTR.3104838&prevCtxUrl=https%3a%2f%2fwww.secop.gov.co%2fCO1ContractsManagement%2fTendering%2fProcurementContractManagement%2fIndex&prevCtxLbl=Contratos+","Compraventa de bienes muebles","SELECCION ABREVIADA","No aplica","CONTRATAR A TITULO DE COMPRAVENTA, BAJO LA MODALIDAD DE PRECIOS FIJOS UNITARIOS LA ADQUISICIÓN DE ELEMENTOS PARA LA REALIZACIÓN DE ACTIVIDADES LÚDICAS INFANTILES EN LA LOCALIDAD DE ANTONIO NARIÑO",null,"Un Nuevo Contrato Social y Ambiental para la Bogotá del Siglo XXI","No aplica",{"$f":"IF(ISERROR(VLOOKUP(K196,Proposito_programa!$C$2:$E$59,2,FALSE)),\" \",VLOOKUP(K196,Proposito_programa!$C$2:$E$59,2,FALSE))","v":" "},{"$f":"IF(ISERROR(VLOOKUP(K196,Proposito_programa!$C$2:$E$59,3,FALSE)),\" \",VLOOKUP(K196,Proposito_programa!$C$2:$E$59,3,FALSE))","v":" "},null,null,5230855,"LILIA FANNY GUEVARA PARRADO","Persona Jurídica",null,null,null,97972300,null,null,null,97972300,null,"2021-12-14","2021-12-14","2021-12-29","15 DIAS ",null,null,null,null,null,null,"x",null,null,null,1]
[192,2021,"FDLAN-CD-192-2021(65221)","https://www.secop.gov.co/CO1ContractsManagement/Tendering/ProcurementContractEdit/View?docUniqueIdentifier=CO1.PCCNTR.3116420&prevCtxUrl=https%3a%2f%2fwww.secop.gov.co%2fCO1ContractsManagement%2fTendering%2fProcurementContractManagement%2fIndex&prevCtxLbl=Contratos+","Contratos de prestación de servicios profesionales y de apoyo a la gestión","CONTRATACION DIRECTA","No aplica","PRESTACIÓN DE SERVICIOS PROFESIONALES COMO ABOGADO PARA APOYAR LOS DISTINTOS PROCEDIMIENTOS SANCIONATORIOS Y TRÁMITESADMINISTRATIVOS QUE ADELANTA EL EQUIPO DE INSPECCIÓN, VIGILANCIA Y CONTROL DELÁREA DE GESTIÓN POLICIVA Y JURÍDICA DEL FONDO DE DESARROLLO LOCAL ANTONIO NARIÑO, CON OCASIÓN A LA INFRACCIÓN Y APLICACIÓN DE NORMAS POLICIVAS EN MATERIA DEPROTECCIÓN AL CONSUMIDOR Y CONTROL DE CALIDAD PRECIOS, PESAS Y MEDIDAS. ",null,"Un Nuevo Contrato Social y Ambiental para la Bogotá del Siglo XXI","No aplica",{"$f":"IF(ISERROR(VLOOKUP(K197,Proposito_programa!$C$2:$E$59,2,FALSE)),\" \",VLOOKUP(K197,Proposito_programa!$C$2:$E$59,2,FALSE))","v":" "},{"$f":"IF(ISERROR(VLOOKUP(K197,Proposito_programa!$C$2:$E$59,3,FALSE)),\" \",VLOOKUP(K197,Proposito_programa!$C$2:$E$59,3,FALSE))","v":" "},null,null,20546554,"ERIKA ANDREA MACIAS CARDENAS ","Persona Natural",null,null,null,3179000,null,null,null,3179000,null,"2021-12-15","2021-12-15","2022-06-15",6,null,null,null,null,null,null,null,"x",null,null,{"$f":"IF(ISERROR(AA197/Z197),\"-\",(AA197/Z197))","v":0}]
[193,2021,"FDLAN-CPS-193-2021 (65220)","https://www.secop.gov.co/CO1ContractsManagement/Tendering/ProcurementContractEdit/View?docUniqueIdentifier=CO1.PCCNTR.3117468&prevCtxUrl=https%3a%2f%2fwww.secop.gov.co%2fCO1ContractsManagement%2fTendering%2fProcurementContractManagement%2fIndex&prevCtxLbl=Contratos+","Contratos de prestación de servicios profesionales y de apoyo a la gestión","CONTRATACION DIRECTA","No aplica","PRESTACIÓN DE SERVICIOS DE APOYO A LA GESTIÓN AL FONDO DE DESARROLLO LOCAL ANTONIO NARIÑO EN LOS ASUNTOS OPERATIVOS RELACIONADOS CON SEGURIDAD CIUDADANA, CONVIVENCIA Y PREVENCIÓN DE LAS CONFLICTIVIDADES, VIOLENCIAS Y DELITOS DE LA LOCALIDAD, DE CONFORMIDAD CON EL MARCO NORMATIVO APLICABLE EN LA MATERIA",null,"Un Nuevo Contrato Social y Ambiental para la Bogotá del Siglo XXI","No aplica",{"$f":"IF(ISERROR(VLOOKUP(K198,Proposito_programa!$C$2:$E$59,2,FALSE)),\" \",VLOOKUP(K198,Proposito_programa!$C$2:$E$59,2,FALSE))","v":" "},{"$f":"IF(ISERROR(VLOOKUP(K198,Proposito_programa!$C$2:$E$59,3,FALSE)),\" \",VLOOKUP(K198,Proposito_programa!$C$2:$E$59,3,FALSE))","v":" "},null,null,19341321,"ALVARO  AMARIS ROJAS ","Persona Natural",null,null,null,1479000,null,null,null,1479000,null,"2021-12-15","2021-12-15","2022-01-01","17 DIAS ",null,null,null,null,null,null,"x",null,null,null,1]
[194,2021,"FDLAN-CPS-194-2021 (65220)","https://www.secop.gov.co/CO1ContractsManagement/Tendering/ProcurementContractEdit/View?docUniqueIdentifier=CO1.PCCNTR.3117481&prevCtxUrl=https%3a%2f%2fwww.secop.gov.co%2fCO1ContractsManagement%2fTendering%2fProcurementContractManagement%2fIndex&prevCtxLbl=Contratos+","Contratos de prestación de servicios profesionales y de apoyo a la gestión","CONTRATACION DIRECTA","No aplica","PRESTACIÓN DE SERVICIOS DE APOYO A LA GESTIÓN AL FONDO DE DESARROLLO LOCAL ANTONIO NARIÑO EN LOS ASUNTOS OPERATIVOS RELACIONADOS CON SEGURIDAD CIUDADANA, CONVIVENCIA Y PREVENCIÓN DE LAS CONFLICTIVIDADES  VIOLENCIAS Y DELITOS DE LA LOCALIDAD,DE CONFORMIDAD CON EL MARCO NORMATIVO APLICABLE. ",null,"Un Nuevo Contrato Social y Ambiental para la Bogotá del Siglo XXI","No aplica",{"$f":"IF(ISERROR(VLOOKUP(K199,Proposito_programa!$C$2:$E$59,2,FALSE)),\" \",VLOOKUP(K199,Proposito_programa!$C$2:$E$59,2,FALSE))","v":" "},{"$f":"IF(ISERROR(VLOOKUP(K199,Proposito_programa!$C$2:$E$59,3,FALSE)),\" \",VLOOKUP(K199,Proposito_programa!$C$2:$E$59,3,FALSE))","v":" "},null,null,71594128,"JHON JAIRO MORENO PANIAGUA","Persona Natural",null,null,null,1479000,null,null,null,1479000,null,"2021-12-15","2021-12-15","2022-01-01","17 DIAS ",null,null,null,null,null,null,"x",null,null,null,1]
[195,2021,"FDLAN-SAMC-005-2021","https://www.secop.gov.co/CO1ContractsManagement/Tendering/ProcurementContractEdit/Update?ProfileName=CCE-06-Seleccion_Abreviada_Menor_Cuantia&PPI=CO1.PPI.15978069&DocUniqueName=ContratoDeCompra&DocTypeName=NextWay.Entities.Marketplace.Tendering.ProcurementContract&ProfileVersion=8&DocUniqueIdentifier=CO1.PCCNTR.3122928&prevCtxUrl=https%3a%2f%2fwww.secop.gov.co%2fCO1ContractsManagement%2fTendering%2fProcurementContractManagement%2fIndex&prevCtxLbl=Contratos+","Otros","SELECCIÓN ABREVIADA ","No aplica","PRESTAR EL SERVICIO DE APOYO LOGISTICO PARA LA ORGANIZACIÓN Y REALIZACION DE LOS EVENTOS CULTURALES DENOMINADOS \"SERENATA\" EN LA LOCALIDAD ANTONIO NARIÑO.",null,"Un Nuevo Contrato Social y Ambiental para la Bogotá del Siglo XXI","No aplica",{"$f":"IF(ISERROR(VLOOKUP(K200,Proposito_programa!$C$2:$E$59,2,FALSE)),\" \",VLOOKUP(K200,Proposito_programa!$C$2:$E$59,2,FALSE))","v":" "},{"$f":"IF(ISERROR(VLOOKUP(K200,Proposito_programa!$C$2:$E$59,3,FALSE)),\" \",VLOOKUP(K200,Proposito_programa!$C$2:$E$59,3,FALSE))","v":" "},null,null,"900843188-3","FUNDACION G3","Persona Jurídica",null,null,null,157137715,null,null,null,157137715,null,"2021-12-20","2021-12-20","2022-04-20",4,null,null,null,null,null,null,null,"x",null,null,0]
[196,2021,"FDLAN-CD-196-2021(65292)","https://www.secop.gov.co/CO1ContractsManagement/Tendering/ProcurementContractEdit/View?docUniqueIdentifier=CO1.PCCNTR.3126032&prevCtxUrl=https%3a%2f%2fwww.secop.gov.co%2fCO1ContractsManagement%2fTendering%2fProcurementContractManagement%2fIndex&prevCtxLbl=Contratos+","Contratos de prestación de servicios profesionales y de apoyo a la gestión","CONTRATACION DIRECTA","No aplica","PRESTAR SERVICIOS DE APOYO ADMINISTRATIVA Y ASISTENCIALMENTE AL AREA DE GESTION DEL DESARROLLO LOCAL DE ANTONIO NARIÑO",null,"Un Nuevo Contrato Social y Ambiental para la Bogotá del Siglo XXI","No aplica",{"$f":"IF(ISERROR(VLOOKUP(K201,Proposito_programa!$C$2:$E$59,2,FALSE)),\" \",VLOOKUP(K201,Proposito_programa!$C$2:$E$59,2,FALSE))","v":" "},{"$f":"IF(ISERROR(VLOOKUP(K201,Proposito_programa!$C$2:$E$59,3,FALSE)),\" \",VLOOKUP(K201,Proposito_programa!$C$2:$E$59,3,FALSE))","v":" "},null,null,52289797,"JAKELIN MENDEZ ORJUELA","Persona Natural",null,null,null,1005000,null,null,null,1005000,null,"2021-12-17","2021-12-17","2022-01-01","15 DIAS ",null,null,null,null,null,null,"x",null,null,null,1]
[197,2021,"FDLAN-SAMC-004-2021","https://www.secop.gov.co/CO1ContractsManagement/Tendering/ProcurementContractEdit/Update?ProfileName=CCE-06-Seleccion_Abreviada_Menor_Cuantia&PPI=CO1.PPI.15841259&DocUniqueName=ContratoDeCompra&DocTypeName=NextWay.Entities.Marketplace.Tendering.ProcurementContract&ProfileVersion=8&DocUniqueIdentifier=CO1.PCCNTR.3104716&prevCtxUrl=https%3a%2f%2fwww.secop.gov.co%2fCO1ContractsManagement%2fTendering%2fProcurementContractManagement%2fIndex&prevCtxLbl=Contratos+","Otros","SELECCIÓN ABREVIADA ","No aplica","PRESTAR LOS SERVICIOS DE OPERADOR LOGISTICO PARA SENSIBILIZAR A LOS NIÑOS, NIÑAS Y ADOLESCENTES DE LA LOCALIDAD DE ANTONIO NARIÑO EN ACCIONES QUE SE ENCAMINEN HACIA LA PAZ, LA MEMORIA Y LA RECONCILIACIÓN",null,"Un Nuevo Contrato Social y Ambiental para la Bogotá del Siglo XXI","No aplica",{"$f":"IF(ISERROR(VLOOKUP(K202,Proposito_programa!$C$2:$E$59,2,FALSE)),\" \",VLOOKUP(K202,Proposito_programa!$C$2:$E$59,2,FALSE))","v":" "},{"$f":"IF(ISERROR(VLOOKUP(K202,Proposito_programa!$C$2:$E$59,3,FALSE)),\" \",VLOOKUP(K202,Proposito_programa!$C$2:$E$59,3,FALSE))","v":" "},null,null,"900004535-1","CORPORACION DE SERVICIOS COLOMBIA CORSERVICOL","Persona Jurídica",null,null,null,93849994,null,null,null,93849994,null,"2021-12-17","2021-12-17","2022-04-17",4,null,null,null,null,null,null,null,"x",null,null,0]
[198,2021,"FDLAN-CPS-198-2021 (65220)","https://www.secop.gov.co/CO1ContractsManagement/Tendering/ProcurementContractEdit/View?docUniqueIdentifier=CO1.PCCNTR.3131188&prevCtxUrl=https%3a%2f%2fwww.secop.gov.co%2fCO1ContractsManagement%2fTendering%2fProcurementContractManagement%2fIndex&prevCtxLbl=Contratos+","Contratos de prestación de servicios profesionales y de apoyo a la gestión","CONTRATACION DIRECTA","No aplica","PRESTACIÓN DE SERVICIOS DE APOYO A LA GESTIÓN AL FONDO DE DESARROLLO LOCAL ANTONIO NARIÑO EN LOS ASUNTOS OPERATIVOS RELACIONADOS CON SEGURIDAD CIUDADANA, CONVIVENCIA Y PREVENCIÓN DE LAS CONFLICTIVIDADES  VIOLENCIAS Y DELITOS DE LA LOCALIDAD,DE CONFORMIDAD CON EL MARCO NORMATIVO APLICABLE. ",null,"Un Nuevo Contrato Social y Ambiental para la Bogotá del Siglo XXI","No aplica",{"$f":"IF(ISERROR(VLOOKUP(K203,Proposito_programa!$C$2:$E$59,2,FALSE)),\" \",VLOOKUP(K203,Proposito_programa!$C$2:$E$59,2,FALSE))","v":" "},{"$f":"IF(ISERROR(VLOOKUP(K203,Proposito_programa!$C$2:$E$59,3,FALSE)),\" \",VLOOKUP(K203,Proposito_programa!$C$2:$E$59,3,FALSE))","v":" "},null,null,51879613,"YAZMIN PARRA MARQUEZ","Persona Natural",null,null,null,1044000,null,null,null,1044000,null,"2021-12-20","2021-12-20","2022-01-01","12 DIAS ",null,null,null,null,null,null,"x",null,null,null,1]
[200,2021,"FDLAN-CD-200-2021(65292)","https://www.secop.gov.co/CO1ContractsManagement/Tendering/ProcurementContractEdit/View?docUniqueIdentifier=CO1.PCCNTR.3137777&prevCtxUrl=https%3a%2f%2fwww.secop.gov.co%2fCO1ContractsManagement%2fTendering%2fProcurementContractManagement%2fIndex&prevCtxLbl=Contratos+","Contratos de prestación de servicios profesionales y de apoyo a la gestión","CONTRATACION DIRECTA","No aplica","PRESTAR SERVICIOS DE APOYO ADMINISTRATIVA Y ASISTENCIALMENTE AL AREA DE GESTION DEL DESARROLLO LOCAL DE ANTONIO NARIÑO",null,"Un Nuevo Contrato Social y Ambiental para la Bogotá del Siglo XXI","No aplica",{"$f":"IF(ISERROR(VLOOKUP(K204,Proposito_programa!$C$2:$E$59,2,FALSE)),\" \",VLOOKUP(K204,Proposito_programa!$C$2:$E$59,2,FALSE))","v":" "},{"$f":"IF(ISERROR(VLOOKUP(K204,Proposito_programa!$C$2:$E$59,3,FALSE)),\" \",VLOOKUP(K204,Proposito_programa!$C$2:$E$59,3,FALSE))","v":" "},null,null,39677722,"SILVIA MILENA NIETO GOMEZ","Persona Natural",null,null,null,670,null,null,null,670,null,"2021-12-22","2021-12-22","2022-01-01","10 DIAS ",null,null,null,null,null,null,"x",null,null,null,1]
[201,2021,"FDLAN-CD-201-2021(65233)","https://www.secop.gov.co/CO1ContractsManagement/Tendering/ProcurementContractEdit/View?docUniqueIdentifier=CO1.PCCNTR.3134629&prevCtxUrl=https%3a%2f%2fwww.secop.gov.co%2fCO1ContractsManagement%2fTendering%2fProcurementContractManagement%2fIndex&prevCtxLbl=Contratos+","Contratos de prestación de servicios profesionales y de apoyo a la gestión","CONTRATACION DIRECTA","No aplica","APOYAR AL EQUIPO DE PRENSA Y COMUNICACIONES DE LA ALCALDÍA LOCAL DE ANTONIO NARIÑO EN LA REALIZACIÓN DE PRODUCTOS Y PIEZAS DIGITALES, IMPRESAS Y PUBLICITARIAS DE GRAN FORMATO Y DE ANIMACIÓN GRÁFICA, ASÍ COMO APOYAR LA PRODUCCIÓN Y MONTAJE DE EVENTOS",null,"Un Nuevo Contrato Social y Ambiental para la Bogotá del Siglo XXI","No aplica",{"$f":"IF(ISERROR(VLOOKUP(K205,Proposito_programa!$C$2:$E$59,2,FALSE)),\" \",VLOOKUP(K205,Proposito_programa!$C$2:$E$59,2,FALSE))","v":" "},{"$f":"IF(ISERROR(VLOOKUP(K205,Proposito_programa!$C$2:$E$59,3,FALSE)),\" \",VLOOKUP(K205,Proposito_programa!$C$2:$E$59,3,FALSE))","v":" "},null,null,1018456962,"JUAN CAMILO MONTENEGRO SANCHEZ ","Persona Natural",null,null,null,1837000,null,null,null,1837000,null,"2021-12-21","2021-12-21","2022-01-01","11 DIAS ",null,null,null,null,null,null,"x",null,null,null,1]
[202,2021,"FDLAN-CMA-001-2021 (63764)","https://www.secop.gov.co/CO1ContractsManagement/Tendering/ProcurementContractEdit/Update?ProfileName=CCE-20-Concurso_Meritos_Sin_Lista_Corta_1Sobre&PPI=CO1.PPI.16021248&DocUniqueName=ContratoDeCompra&DocTypeName=NextWay.Entities.Marketplace.Tendering.ProcurementContract&ProfileVersion=1&DocUniqueIdentifier=CO1.PCCNTR.3134459&prevCtxUrl=https%3a%2f%2fwww.secop.gov.co%2fCO1ContractsManagement%2fTendering%2fProcurementContractManagement%2fIndex&prevCtxLbl=Contratos+","Consultoría","CONCURSO DE MERITOS ","No aplica","REALIZAR LA INTERVENTORÍA TÉCNICA, ADMINISTRATIVA JURÍDICA (LEGAL) FINANCIERA (CONTABLE) AMBIENTAL, SOCIAL Y SST AL CONTRATO QUE TIENE POR OBJETO REALIZAR A TRAVÉS DEL SISTEMA DE PRECIOS UNITARIOS FIJOS SIN FÓRMULA DE REAJUSTE LAS ACTIVIDADES DE CONSERVACIÓN EN LAS QUE SE INCLUYEN EL MANTENIMIENTO BACHEO PARCHEO REHABILITACIÓN O RECONSTRUCCIÓN DE LA MALLA VIAL Y DEL ESPACIO PÚBLICO DE LA LOCALIDAD ANTONIO NARIÑO.",null,"Un Nuevo Contrato Social y Ambiental para la Bogotá del Siglo XXI","No aplica",{"$f":"IF(ISERROR(VLOOKUP(K206,Proposito_programa!$C$2:$E$59,2,FALSE)),\" \",VLOOKUP(K206,Proposito_programa!$C$2:$E$59,2,FALSE))","v":" "},{"$f":"IF(ISERROR(VLOOKUP(K206,Proposito_programa!$C$2:$E$59,3,FALSE)),\" \",VLOOKUP(K206,Proposito_programa!$C$2:$E$59,3,FALSE))","v":" "},null,null,"860509943-7","CB INGENIEROS  S.A.S ","Persona Jurídica",null,null,null,183540840,null,null,null,183540840,null,"2021-12-27","2021-12-27","2022-06-27",6,null,null,null,null,null,null,null,"x",null,null,0]
[203,2021,"FDLAN-SIE-003-2021(60786)","https://www.secop.gov.co/CO1ContractsManagement/Tendering/ProcurementContractEdit/Update?ProfileName=CCE-07-Seleccion_Abreviada_Subasta&PPI=CO1.PPI.16149893&DocUniqueName=ContratoDeCompra&DocTypeName=NextWay.Entities.Marketplace.Tendering.ProcurementContract&ProfileVersion=12&DocUniqueIdentifier=CO1.PCCNTR.3143713&prevCtxUrl=https%3a%2f%2fwww.secop.gov.co%2fCO1ContractsManagement%2fTendering%2fProcurementContractManagement%2fIndex&prevCtxLbl=Contratos+","Compraventa de bienes inmuebles","SELECCIÓN ABREVIADA ","No aplica","ADQUISICIÓN DE BIENES PARA LA DOTACIÓN DE LOS JARDINES INFANTILES DE LA LOCALIDAD DE ANTONIO NARIÑO, A CARGO DE LA SECRETARIA DE INTEGRACIÓN SOCIAL",null,"Un Nuevo Contrato Social y Ambiental para la Bogotá del Siglo XXI","No aplica",{"$f":"IF(ISERROR(VLOOKUP(K207,Proposito_programa!$C$2:$E$59,2,FALSE)),\" \",VLOOKUP(K207,Proposito_programa!$C$2:$E$59,2,FALSE))","v":" "},{"$f":"IF(ISERROR(VLOOKUP(K207,Proposito_programa!$C$2:$E$59,3,FALSE)),\" \",VLOOKUP(K207,Proposito_programa!$C$2:$E$59,3,FALSE))","v":" "},null,null,"901151389-5","S&S SERVICIOS Y SUMINISTROS STELAR SAS","Persona Jurídica",null,null,null,47939626,null,null,null,47939626,null,"2021-12-28","2021-12-28","2022-02-28",2,null,null,null,null,null,null,null,"x",null,null,0]
[204,2021,"FDLAN-SAMC-012-2021 (65809)","https://www.secop.gov.co/CO1ContractsManagement/Tendering/ProcurementContractEdit/Update?ProfileName=CCE-06-Seleccion_Abreviada_Menor_Cuantia&PPI=CO1.PPI.16273830&DocUniqueName=ContratoDeCompra&DocTypeName=NextWay.Entities.Marketplace.Tendering.ProcurementContract&ProfileVersion=8&DocUniqueIdentifier=CO1.PCCNTR.3149301&prevCtxUrl=https%3a%2f%2fwww.secop.gov.co%2fCO1ContractsManagement%2fTendering%2fProcurementContractManagement%2fIndex&prevCtxLbl=Contratos+","Otros","SELECCIÓN ABREVIADA ","No aplica","IMPLEMENTAR ACCIONES PARA RECONOCER, PROTEGER Y BRINDAR ATENCIÓN MÉDICO-VETERINARIA PARA ANIMALES DE COMPAÑÍA, PROMOVIENDO EL BIENESTAR Y LA TENENCIA RESPONSABLE",null,"Un Nuevo Contrato Social y Ambiental para la Bogotá del Siglo XXI","No aplica",{"$f":"IF(ISERROR(VLOOKUP(K208,Proposito_programa!$C$2:$E$59,2,FALSE)),\" \",VLOOKUP(K208,Proposito_programa!$C$2:$E$59,2,FALSE))","v":" "},{"$f":"IF(ISERROR(VLOOKUP(K208,Proposito_programa!$C$2:$E$59,3,FALSE)),\" \",VLOOKUP(K208,Proposito_programa!$C$2:$E$59,3,FALSE))","v":" "},null,null,"900017592-8","ASOCIACIÓN ARKAMBIENTAL","Persona Jurídica",null,null,null,97843600,null,null,null,97843600,null,"2021-12-30","2021-12-30","2022-04-30",4,null,null,null,null,null,null,null,"x",null,null,0]
[205,2021,"FDLAN-SAMC-016-2021(63642)","https://www.secop.gov.co/CO1ContractsManagement/Tendering/ProcurementContractEdit/Update?ProfileName=CCE-06-Seleccion_Abreviada_Menor_Cuantia&PPI=CO1.PPI.16305804&DocUniqueName=ContratoDeCompra&DocTypeName=NextWay.Entities.Marketplace.Tendering.ProcurementContract&ProfileVersion=8&DocUniqueIdentifier=CO1.PCCNTR.3153944&prevCtxUrl=https%3a%2f%2fwww.secop.gov.co%2fCO1ContractsManagement%2fTendering%2fProcurementContractManagement%2fIndex&prevCtxLbl=Contratos+","Obra pública","SELECCIÓN ABREVIADA ","No aplica","CONTRATAR BAJO LA MODALIDAD DE PRECIOS UNITARIOS FIJOS SIN FORMULA DE REAJUSTE Y A MONTO AGOTABLE LAS OBRAS PARA EL MANTENIMIENTO, ADECUACIÓN, REHABILITACIÓN Y RECUPERACIÓN DE PARQUES UBICADOS EN LA LOCALIDAD ANTONIO NARIÑO",null,"Un Nuevo Contrato Social y Ambiental para la Bogotá del Siglo XXI","No aplica",{"$f":"IF(ISERROR(VLOOKUP(K209,Proposito_programa!$C$2:$E$59,2,FALSE)),\" \",VLOOKUP(K209,Proposito_programa!$C$2:$E$59,2,FALSE))","v":" "},{"$f":"IF(ISERROR(VLOOKUP(K209,Proposito_programa!$C$2:$E$59,3,FALSE)),\" \",VLOOKUP(K209,Proposito_programa!$C$2:$E$59,3,FALSE))","v":" "},null,null,"800011687-9","INCIVIAS SAS","Persona Jurídica",null,null,null,167820300,null,null,null,167820300,null,"2021-12-29","2021-12-29","2022-03-29",3,null,null,null,null,null,null,null,"x",null,null,0]
[206,2021,"FDLAN-SAMC-008-2021","https://www.secop.gov.co/CO1ContractsManagement/Tendering/ProcurementContractEdit/Update?ProfileName=CCE-06-Seleccion_Abreviada_Menor_Cuantia&PPI=CO1.PPI.16216102&DocUniqueName=ContratoDeCompra&DocTypeName=NextWay.Entities.Marketplace.Tendering.ProcurementContract&ProfileVersion=8&DocUniqueIdentifier=CO1.PCCNTR.3154903&prevCtxUrl=https%3a%2f%2fwww.secop.gov.co%2fCO1ContractsManagement%2fTendering%2fProcurementContractManagement%2fIndex&prevCtxLbl=Contratos+","Otros","SELECCIÓN ABREVIADA ","No aplica","PRESTAR EL SERVICIO DE APOYO LOGISTICO PARA DESARROLLAR Y REALIZAR LAS ACTIVIDADES RECREATIVAS, CULTURALES Y DE ACTIVIDAD FISICA DENOMINADAS MAÑANAS SALUDABLES DE LA LOCALIDAD ANTONIO NARIÑO 2021",null,"Un Nuevo Contrato Social y Ambiental para la Bogotá del Siglo XXI","No aplica",{"$f":"IF(ISERROR(VLOOKUP(K210,Proposito_programa!$C$2:$E$59,2,FALSE)),\" \",VLOOKUP(K210,Proposito_programa!$C$2:$E$59,2,FALSE))","v":" "},{"$f":"IF(ISERROR(VLOOKUP(K210,Proposito_programa!$C$2:$E$59,3,FALSE)),\" \",VLOOKUP(K210,Proposito_programa!$C$2:$E$59,3,FALSE))","v":" "},null,null,"900004535-1","CORPORACION DE SERVICIOS COLOMBIA CORSERVICOL ONG- CORSERVICOL","Persona Jurídica",null,null,null,97309800,null,null,null,97309800,null,"2021-12-31","2021-12-31","31/04/2022",4,null,null,null,null,null,null,null,"x",null,null,0]
[207,2021,"FDLAN-SAMC-008-2021","https://www.secop.gov.co/CO1ContractsManagement/Tendering/ProcurementContractEdit/Update?ProfileName=CCE-06-Seleccion_Abreviada_Menor_Cuantia&PPI=CO1.PPI.16216102&DocUniqueName=ContratoDeCompra&DocTypeName=NextWay.Entities.Marketplace.Tendering.ProcurementContract&ProfileVersion=8&DocUniqueIdentifier=CO1.PCCNTR.3154903&prevCtxUrl=https%3a%2f%2fwww.secop.gov.co%2fCO1ContractsManagement%2fTendering%2fProcurementContractManagement%2fIndex&prevCtxLbl=Contratos+","Compraventa de bienes muebles","SELECCIÓN ABREVIADA ","No aplica","ADQUIRIR INSTRUMENTOS MUSICALES EN FORMATO DE ORQUESTA SINFÓNICA PARA EL CENTRO FILARMÓNICO LOCAL DE ANTONIO NARIÑO, CON EL FIN DE FORTALECER LOS PROCESOS DE FORMACIÓN MUSICAL DE NIÑOS, NIÑAS, ADOLESCENTES Y JÓVENES DE LA LOCALIDAD",null,"Un Nuevo Contrato Social y Ambiental para la Bogotá del Siglo XXI","No aplica",{"$f":"IF(ISERROR(VLOOKUP(K211,Proposito_programa!$C$2:$E$59,2,FALSE)),\" \",VLOOKUP(K211,Proposito_programa!$C$2:$E$59,2,FALSE))","v":" "},{"$f":"IF(ISERROR(VLOOKUP(K211,Proposito_programa!$C$2:$E$59,3,FALSE)),\" \",VLOOKUP(K211,Proposito_programa!$C$2:$E$59,3,FALSE))","v":" "},null,null,"890206354-7","ORTIZO S.A.S","Persona Jurídica",null,null,null,49983120,null,null,null,{"$f":"+V211+W211+Y211","v":49983120},null,"2021-12-31","2021-12-31","2022-03-02",2,null,null,null,null,null,null,null,"x",null,null,{"$f":"IF(ISERROR(AA211/Z211),\"-\",(AA211/Z211))","v":0}]
[208,2021,"FDLAN-SIE-005-2021","https://www.secop.gov.co/CO1ContractsManagement/Tendering/ProcurementContractEdit/Update?ProfileName=CCE-07-Seleccion_Abreviada_Subasta&PPI=CO1.PPI.16167310&DocUniqueName=ContratoDeCompra&DocTypeName=NextWay.Entities.Marketplace.Tendering.ProcurementContract&ProfileVersion=12&DocUniqueIdentifier=CO1.PCCNTR.3151199&prevCtxUrl=https%3a%2f%2fwww.secop.gov.co%2fCO1ContractsManagement%2fTendering%2fProcurementContractManagement%2fIndex&prevCtxLbl=Contratos+","Compraventa de bienes muebles","SELECCIÓN ABREVIADA ","No aplica","REALIZAR LA ADQUISICIÓN Y DOTACION DE COMPUTADORES PARA LAS INSTITUCIONES DE EDUCACIÓN DISTRITAL DE LA LOCALIDAD DE ANTONIO NARIÑO",null,"Un Nuevo Contrato Social y Ambiental para la Bogotá del Siglo XXI","No aplica",{"$f":"IF(ISERROR(VLOOKUP(K212,Proposito_programa!$C$2:$E$59,2,FALSE)),\" \",VLOOKUP(K212,Proposito_programa!$C$2:$E$59,2,FALSE))","v":" "},{"$f":"IF(ISERROR(VLOOKUP(K212,Proposito_programa!$C$2:$E$59,3,FALSE)),\" \",VLOOKUP(K212,Proposito_programa!$C$2:$E$59,3,FALSE))","v":" "},null,null,"830016004-0","RED COMPUTO LTDA","Persona Jurídica",null,null,null,109689401,null,null,null,109689401,null,"2021-12-31","2021-12-31","2022-04-01",3,null,null,null,null,null,null,null,"x",null,null,0]
[209,2021,"FDLAN-SAMC-010-2021","https://www.secop.gov.co/CO1ContractsManagement/Tendering/ProcurementContractEdit/Update?ProfileName=CCE-06-Seleccion_Abreviada_Menor_Cuantia&PPI=CO1.PPI.16233292&DocUniqueName=ContratoDeCompra&DocTypeName=NextWay.Entities.Marketplace.Tendering.ProcurementContract&ProfileVersion=8&DocUniqueIdentifier=CO1.PCCNTR.3151531&prevCtxUrl=https%3a%2f%2fwww.secop.gov.co%2fCO1ContractsManagement%2fTendering%2fProcurementContractManagement%2fIndex&prevCtxLbl=Contratos+","Otros","SELECCIÓN ABREVIADA ","No aplica","PROMOCIONAR LAS PRÁCTICAS AGROECOLÓGICAS A TRAVÉS DE LA AGRICULTURA URBANA Y DESARROLLAR PROYECTOS CUIDADANOS DE EDUCACIÓN AMBIENTAL (PROCEDAS) EN LA LOCALIDAD DE ANTONIO NARIÑO",null,"Un Nuevo Contrato Social y Ambiental para la Bogotá del Siglo XXI","No aplica",{"$f":"IF(ISERROR(VLOOKUP(K213,Proposito_programa!$C$2:$E$59,2,FALSE)),\" \",VLOOKUP(K213,Proposito_programa!$C$2:$E$59,2,FALSE))","v":" "},{"$f":"IF(ISERROR(VLOOKUP(K213,Proposito_programa!$C$2:$E$59,3,FALSE)),\" \",VLOOKUP(K213,Proposito_programa!$C$2:$E$59,3,FALSE))","v":" "},null,null,19423640,"JOSÉ NICANOR NUMPAQUE BALLESTEROS","Persona Jurídica",null,null,null,77856481,null,null,null,77856481,null,"2021-12-31","2021-12-31","2022-04-01",3,null,null,null,null,null,null,null,"x",null,null,0]
[210,2021,"FDLAN-MC-008-2021","https://www.secop.gov.co/CO1ContractsManagement/Tendering/ProcurementContractEdit/Update?ProfileName=CCE-10-Minima_Cuantia&PPI=CO1.PPI.16453918&DocUniqueName=ContratoDeCompra&DocTypeName=NextWay.Entities.Marketplace.Tendering.ProcurementContract&ProfileVersion=8&DocUniqueIdentifier=CO1.PCCNTR.3155080&prevCtxUrl=https%3a%2f%2fwww.secop.gov.co%2fCO1ContractsManagement%2fTendering%2fProcurementContractManagement%2fIndex&prevCtxLbl=Contratos+","Otros","MINIMA CUANTIA ","No aplica","CONTRATAR A MONTO AGOTABLE EL SERVICIO DE MANTENIMIENTO TÉCNICO PREVENTIVO Y CORRECTIVO, REPARACION Y SUMINISTRO DE REPUESTOS ORIGINALES PARA LOS TRES VEHICULOS DE PROPIEDAD DEL FONDO DE DESARROLLO LOCAL DE ANTONIO NARIÑO",null,"Un Nuevo Contrato Social y Ambiental para la Bogotá del Siglo XXI","No aplica",{"$f":"IF(ISERROR(VLOOKUP(K214,Proposito_programa!$C$2:$E$59,2,FALSE)),\" \",VLOOKUP(K214,Proposito_programa!$C$2:$E$59,2,FALSE))","v":" "},{"$f":"IF(ISERROR(VLOOKUP(K214,Proposito_programa!$C$2:$E$59,3,FALSE)),\" \",VLOOKUP(K214,Proposito_programa!$C$2:$E$59,3,FALSE))","v":" "},null,null,"900693270-1","CAR SCANNERS S.A.S","Persona Jurídica",null,null,null,25438728,null,null,null,25438728,null,"2021-12-30","2021-12-30","2022-06-30",6,null,null,null,null,null,null,null,"x",null,null,0]
[211,2021,"FDLAN-SAMC-007-2021 (65807)","https://www.secop.gov.co/CO1ContractsManagement/Tendering/ProcurementContractEdit/Update?ProfileName=CCE-06-Seleccion_Abreviada_Menor_Cuantia&PPI=CO1.PPI.16252337&DocUniqueName=ContratoDeCompra&DocTypeName=NextWay.Entities.Marketplace.Tendering.ProcurementContract&ProfileVersion=8&DocUniqueIdentifier=CO1.PCCNTR.3153877&prevCtxUrl=https%3a%2f%2fwww.secop.gov.co%2fCO1ContractsManagement%2fTendering%2fProcurementContractManagement%2fIndex&prevCtxLbl=Contratos+","Otros","SELECCIÓN ABREVIADA ","No aplica","PRESTACIÓN DE SERVICIOS DE APOYO LOGÍSTICO PARA EL DESARROLLO Y REALIZACIÓN DE LAS ESCUELAS DE FORMACIÓN DEPORTIVA DE LA LOCALIDAD DE ANTONIO NARIÑO 2021",null,"Un Nuevo Contrato Social y Ambiental para la Bogotá del Siglo XXI","No aplica",{"$f":"IF(ISERROR(VLOOKUP(K215,Proposito_programa!$C$2:$E$59,2,FALSE)),\" \",VLOOKUP(K215,Proposito_programa!$C$2:$E$59,2,FALSE))","v":" "},{"$f":"IF(ISERROR(VLOOKUP(K215,Proposito_programa!$C$2:$E$59,3,FALSE)),\" \",VLOOKUP(K215,Proposito_programa!$C$2:$E$59,3,FALSE))","v":" "},null,null,"900018217-5","FUNDACIÓN OTRO ROLLO SOCIAL","Persona Jurídica",null,null,null,126536900,null,null,null,126536900,null,"2021-12-30","2021-12-30","2022-06-30",6,null,null,null,null,null,null,null,"x",null,null,0]
[212,2021,"FDLAN-LP-001-2021","https://www.secop.gov.co/CO1ContractsManagement/Tendering/ProcurementContractEdit/Update?ProfileName=CCE-17-Licitacion_Publica_Obra_Publica&PPI=CO1.PPI.15846668&DocUniqueName=ContratoDeCompra&DocTypeName=NextWay.Entities.Marketplace.Tendering.ProcurementContract&ProfileVersion=4&DocUniqueIdentifier=CO1.PCCNTR.3157074&prevCtxUrl=https%3a%2f%2fwww.secop.gov.co%2fCO1ContractsManagement%2fTendering%2fProcurementContractManagement%2fIndex&prevCtxLbl=Contratos+","Obra pública","LICITACION PUBLICA ","No aplica","REALIZAR A TRAVÉS DEL SISTEMA DE PRECIOS UNITARIOS FIJOS SIN FÓRMULA DE REAJUSTE LAS ACTIVIDADES DE CONSERVACIÓN EN LAS QUE SE INCLUYEN EL MANTENIMIENTO, BACHEO, PARCHEO, REHABILITACIÓN O RECONSTRUCCIÓN DE LA MALLA VIAL Y DEL ESPACIO PÚBLICO DE LA LOCALIDAD ANTONIO NARIÑO",null,"Un Nuevo Contrato Social y Ambiental para la Bogotá del Siglo XXI","No aplica",{"$f":"IF(ISERROR(VLOOKUP(K216,Proposito_programa!$C$2:$E$59,2,FALSE)),\" \",VLOOKUP(K216,Proposito_programa!$C$2:$E$59,2,FALSE))","v":" "},{"$f":"IF(ISERROR(VLOOKUP(K216,Proposito_programa!$C$2:$E$59,3,FALSE)),\" \",VLOOKUP(K216,Proposito_programa!$C$2:$E$59,3,FALSE))","v":" "},null,null,"901552497-3","UNION TEMPORAL SOLUCIONES VIALES BOGOTA","Persona Jurídica",null,null,null,1218523298,null,null,null,1218523298,null,"2021-12-30","2021-12-30","2022-06-30",6,null,null,null,null,null,null,null,"x",null,null,0]
[213,2021,"FDLAN-SAMC-014-2021","https://www.secop.gov.co/CO1ContractsManagement/Tendering/ProcurementContractEdit/Update?ProfileName=CCE-06-Seleccion_Abreviada_Menor_Cuantia&PPI=CO1.PPI.16291665&DocUniqueName=ContratoDeCompra&DocTypeName=NextWay.Entities.Marketplace.Tendering.ProcurementContract&ProfileVersion=8&DocUniqueIdentifier=CO1.PCCNTR.3157334&prevCtxUrl=https%3a%2f%2fwww.secop.gov.co%2fCO1ContractsManagement%2fTendering%2fProcurementContractManagement%2fIndex&prevCtxLbl=Contratos+","Contratos de prestación de servicios profesionales y de apoyo a la gestión","SELECCIÓN ABREVIADA ","No aplica","JORNADA DE CONMEMORACIÓN DE LOS SABERES ANCESTRALES DE LAS COMUNIDADES AFRO E INDÍGENAS EN MEDICINA DE LA LOCALIDAD ANTONIO NARIÑO",null,"Un Nuevo Contrato Social y Ambiental para la Bogotá del Siglo XXI","No aplica",{"$f":"IF(ISERROR(VLOOKUP(K217,Proposito_programa!$C$2:$E$59,2,FALSE)),\" \",VLOOKUP(K217,Proposito_programa!$C$2:$E$59,2,FALSE))","v":" "},{"$f":"IF(ISERROR(VLOOKUP(K217,Proposito_programa!$C$2:$E$59,3,FALSE)),\" \",VLOOKUP(K217,Proposito_programa!$C$2:$E$59,3,FALSE))","v":" "},null,null,"900142466-2","CORPORACION CON CIENCIA","Persona Jurídica",null,null,null,59929127,null,null,null,59929127,null,"2021-12-30","2021-12-30","2022-02-28",2,null,null,null,null,null,null,null,"x",null,null,0]
[214,2021,"FDLAN-SAMC-015-2021(65896)","https://www.secop.gov.co/CO1ContractsManagement/Tendering/ProcurementContractEdit/Update?ProfileName=CCE-06-Seleccion_Abreviada_Menor_Cuantia&PPI=CO1.PPI.16292277&DocUniqueName=ContratoDeCompra&DocTypeName=NextWay.Entities.Marketplace.Tendering.ProcurementContract&ProfileVersion=8&DocUniqueIdentifier=CO1.PCCNTR.3158210&prevCtxUrl=https%3a%2f%2fwww.secop.gov.co%2fCO1ContractsManagement%2fTendering%2fProcurementContractManagement%2fIndex&prevCtxLbl=Contratos+","Otros","SELECCIÓN ABREVIADA ","No aplica","PRESTACIÓN DE SERVICIOS PARA LAS JORNADAS DE ATENCIÓN POR LA SALUD PLENA DE LAS PERSONAS CUIDADORAS DE LA LOCALIDAD ANTONIO NARIÑO",null,"Un Nuevo Contrato Social y Ambiental para la Bogotá del Siglo XXI","No aplica",{"$f":"IF(ISERROR(VLOOKUP(K218,Proposito_programa!$C$2:$E$59,2,FALSE)),\" \",VLOOKUP(K218,Proposito_programa!$C$2:$E$59,2,FALSE))","v":" "},{"$f":"IF(ISERROR(VLOOKUP(K218,Proposito_programa!$C$2:$E$59,3,FALSE)),\" \",VLOOKUP(K218,Proposito_programa!$C$2:$E$59,3,FALSE))","v":" "},null,null,"900142466-2","CORPORACION CON CIENCIA","Persona Jurídica",null,null,null,129257500,null,null,null,129257500,null,"2021-12-31","2021-12-31","2022-04-30",4,null,null,null,null,null,null,null,"x",null,null,0]
[215,2021,"FDLAN-MC-07-2021","https://www.secop.gov.co/CO1ContractsManagement/Tendering/ProcurementContractEdit/Update?ProfileName=CCE-10-Minima_Cuantia&PPI=CO1.PPI.16444564&DocUniqueName=ContratoDeCompra&DocTypeName=NextWay.Entities.Marketplace.Tendering.ProcurementContract&ProfileVersion=8&DocUniqueIdentifier=CO1.PCCNTR.3156959&prevCtxUrl=https%3a%2f%2fwww.secop.gov.co%2fCO1ContractsManagement%2fTendering%2fProcurementContractManagement%2fIndex&prevCtxLbl=Contratos+","Consultoría","MINIMA CUANTIA ","No aplica","CONTRATAR LA CONSULTORÍA PARA ELABORAR LOS ESTUDIOS, DISEÑOS TÉCNICOS GENERALES, DE DETALLE Y DE EFICIENCIA ENERGÉTICA, ASÍ COMO EL PRESUPUESTO NECESARIO, PARA EJECUTAR EL PROYECTO DE COMPRAVENTA, INSTALACIÓN Y FUNCIONAMIENTO DE UN SISTEMA DE PANELES SOLARES FOTOVOLTAICOS PARA EL FORTALECIMIENTO DE MIPYMES CON ENERGÍAS LIMPIAS EN LA LOCALIDAD ANTONIO NARIÑO",null,"Un Nuevo Contrato Social y Ambiental para la Bogotá del Siglo XXI","No aplica",{"$f":"IF(ISERROR(VLOOKUP(K219,Proposito_programa!$C$2:$E$59,2,FALSE)),\" \",VLOOKUP(K219,Proposito_programa!$C$2:$E$59,2,FALSE))","v":" "},{"$f":"IF(ISERROR(VLOOKUP(K219,Proposito_programa!$C$2:$E$59,3,FALSE)),\" \",VLOOKUP(K219,Proposito_programa!$C$2:$E$59,3,FALSE))","v":" "},null,null,"901406373-4","EI INGENIERIA ELÉCTRICA Y ESPACIOS INTELIGENTES ","Persona Jurídica",null,null,null,19186000,null,null,null,19186000,null,"2021-12-31","2021-12-31","2022-03-21","2 MESES 18 DIAS ",null,null,null,null,null,null,null,"x",null,null,0]
[216,2021,"FDLAN-MC-06-2021","https://www.secop.gov.co/CO1ContractsManagement/Tendering/ProcurementContractEdit/Update?ProfileName=CCE-10-Minima_Cuantia&PPI=CO1.PPI.16443824&DocUniqueName=ContratoDeCompra&DocTypeName=NextWay.Entities.Marketplace.Tendering.ProcurementContract&ProfileVersion=8&DocUniqueIdentifier=CO1.PCCNTR.3157950&prevCtxUrl=https%3a%2f%2fwww.secop.gov.co%2fCO1ContractsManagement%2fTendering%2fProcurementContractManagement%2fIndex&prevCtxLbl=Contratos+","Otros","MINIMA CUANTIA ","No aplica","ADELANTAR LABORES DE MANTENIMIENTO FITOSANITARIO DEL ARBOLADO JOVEN DE LA LOCALIDAD DE ANTONIO NARIÑO",null,"Un Nuevo Contrato Social y Ambiental para la Bogotá del Siglo XXI","No aplica",{"$f":"IF(ISERROR(VLOOKUP(K220,Proposito_programa!$C$2:$E$59,2,FALSE)),\" \",VLOOKUP(K220,Proposito_programa!$C$2:$E$59,2,FALSE))","v":" "},{"$f":"IF(ISERROR(VLOOKUP(K220,Proposito_programa!$C$2:$E$59,3,FALSE)),\" \",VLOOKUP(K220,Proposito_programa!$C$2:$E$59,3,FALSE))","v":" "},null,null,"820005398-3","REFORESTADORA PALOS VERDES SAS","Persona Jurídica",null,null,null,25000000,null,null,null,25000000,null,"2021-12-31","2021-12-31","2022-05-01",4,null,null,null,null,null,null,null,"x",null,null,0]
[217,2021,"FDLAN-MC-09-2021","https://www.secop.gov.co/CO1ContractsManagement/Tendering/ProcurementContractEdit/Update?ProfileName=CCE-10-Minima_Cuantia&PPI=CO1.PPI.16454069&DocUniqueName=ContratoDeCompra&DocTypeName=NextWay.Entities.Marketplace.Tendering.ProcurementContract&ProfileVersion=8&DocUniqueIdentifier=CO1.PCCNTR.3158207&prevCtxUrl=https%3a%2f%2fwww.secop.gov.co%2fCO1ContractsManagement%2fTendering%2fProcurementContractManagement%2fIndex&prevCtxLbl=Contratos+","Suministro","MINIMA CUANTIA ","No aplica","CONTRATAR A MONTO AGOTABLE EL SUMINISTRO DE MATERIALES Y ELEMENTOS DE FERRETERIA PARA EL MANTENIMIENTO PREVENTIVO Y CORRECTIVO DE LAS INSTALACIONES DE LA ALCALDIA LOCAL DE ANTONIO NARIÑO Y LOS BIENES INMUEBLES DE PROPIEDAD DEL FONDO DE DESARROLLO LOCAL",null,"Un Nuevo Contrato Social y Ambiental para la Bogotá del Siglo XXI","No aplica",{"$f":"IF(ISERROR(VLOOKUP(K221,Proposito_programa!$C$2:$E$59,2,FALSE)),\" \",VLOOKUP(K221,Proposito_programa!$C$2:$E$59,2,FALSE))","v":" "},{"$f":"IF(ISERROR(VLOOKUP(K221,Proposito_programa!$C$2:$E$59,3,FALSE)),\" \",VLOOKUP(K221,Proposito_programa!$C$2:$E$59,3,FALSE))","v":" "},null,null,"901044822-5","GRUPO EMPRESARIAL LCS S.A.S","Persona Jurídica",null,null,null,24037090,null,null,null,24037090,null,"2021-12-31","2021-12-31","2022-06-30",6,null,null,null,null,null,null,null,"x",null,null,0]
[218,2021,"FDLAN-MC-010-2021","https://www.secop.gov.co/CO1ContractsManagement/Tendering/ProcurementContractEdit/Update?ProfileName=CCE-10-Minima_Cuantia&PPI=CO1.PPI.16454533&DocUniqueName=ContratoDeCompra&DocTypeName=NextWay.Entities.Marketplace.Tendering.ProcurementContract&ProfileVersion=8&DocUniqueIdentifier=CO1.PCCNTR.3157960&prevCtxUrl=https%3a%2f%2fwww.secop.gov.co%2fCO1ContractsManagement%2fTendering%2fProcurementContractManagement%2fIndex&prevCtxLbl=Contratos+","Suministro","MINIMA CUANTIA ","No aplica","SUMINISTRAR A MONTO AGOTABLE LOS ELEMENTOS DE PAPELERIA, OFICINA Y UTILES DE ESCRITORIO REQUERIDOS PARA EL DESARROLLO DE LAS ACTIVIDADES ADMINISTRATIVAS QUE REALICE LA ALCALDIA LOCAL DE ANTONIO NARIÑO, EL TEATRO VILLAMAYOR Y LAS INSPECCIONES DE POLICIA",null,"Un Nuevo Contrato Social y Ambiental para la Bogotá del Siglo XXI","No aplica",{"$f":"IF(ISERROR(VLOOKUP(K222,Proposito_programa!$C$2:$E$59,2,FALSE)),\" \",VLOOKUP(K222,Proposito_programa!$C$2:$E$59,2,FALSE))","v":" "},{"$f":"IF(ISERROR(VLOOKUP(K222,Proposito_programa!$C$2:$E$59,3,FALSE)),\" \",VLOOKUP(K222,Proposito_programa!$C$2:$E$59,3,FALSE))","v":" "},null,null,"830040054-1","LA CASA DE  SERVICIOS SUMINISTRO Y S.A.S- CAPROSUM SAS","Persona Jurídica",null,null,null,23000000,null,null,null,23000000,null,"2021-12-31","2021-12-31","2022-06-30",6,null,null,null,null,null,null,null,"x",null,null,0]
[219,2021,"FDLAN-SAMC-013-2021","https://www.secop.gov.co/CO1ContractsManagement/Tendering/ProcurementContractEdit/Update?ProfileName=CCE-06-Seleccion_Abreviada_Menor_Cuantia&PPI=CO1.PPI.16291287&DocUniqueName=ContratoDeCompra&DocTypeName=NextWay.Entities.Marketplace.Tendering.ProcurementContract&ProfileVersion=8&DocUniqueIdentifier=CO1.PCCNTR.3158213&prevCtxUrl=https%3a%2f%2fwww.secop.gov.co%2fCO1ContractsManagement%2fTendering%2fProcurementContractManagement%2fIndex&prevCtxLbl=Contratos+","Contratos de prestación de servicios profesionales y de apoyo a la gestión","SELECCIÓN ABREVC209:C213IADA","No aplica","PRESTACIÓN DE SERVICIOS DE APOYO LOGÍSTICO PARA LA SENSIBILIZACIÓN SOBRE PREVENCIÓN EN VIOLENCIA INTRAFAMILIAR EN TODOS LOS CICLOS VITALES, PREVENCION DEL FEMINICIDIO Y FORMACIÓN EN DERECHOS Y POR EL DERECHO A LA PARTICIPACIÓN Y REPRESENTACIÓN POLÍTICA DE LAS MUJERES DE ANTONIO NARIÑO",null,"Un Nuevo Contrato Social y Ambiental para la Bogotá del Siglo XXI","No aplica",{"$f":"IF(ISERROR(VLOOKUP(K223,Proposito_programa!$C$2:$E$59,2,FALSE)),\" \",VLOOKUP(K223,Proposito_programa!$C$2:$E$59,2,FALSE))","v":" "},{"$f":"IF(ISERROR(VLOOKUP(K223,Proposito_programa!$C$2:$E$59,3,FALSE)),\" \",VLOOKUP(K223,Proposito_programa!$C$2:$E$59,3,FALSE))","v":" "},null,null,"900216251-5","ASOCIACION PARA EL DESARROLLO INTEGRAL DE LA FAMILIA COLOMBIANA - ADIFCOL","Persona Jurídica",null,null,null,220450772,null,null,null,220450772,null,"2021-12-31","2021-12-31","2022-05-02",4,null,null,null,null,null,null,null,"x",null,null,0]
["Total",null,null,null,null,null,null,null,null,null,null,null,null,null,null,null,null,null,null,null,null,{"$f":"SUM(V14:V223)","v":5693304184},{"$f":"SUM(W14:W223)","v":0},{"$f":"SUM(X14:X223)","v":0},{"$f":"SUM(Y14:Y223)","v":0},{"$f":"SUM(Z14:Z223)","v":9089441023},null,null,null,null,null,null,null,null,null,null,null,null,null,null,null,{"$f":"SUM(AP14:AP223)","v":189}]

{"sheet":"2. PAA","index":1,"n_rows":13,"n_cols":7,"rows_kept":13,"cut":false,"hidden":false,"merged":[[9,1,9,6],[6,2,6,3],[6,5,6,6],[2,1,2,7],[3,1,3,7],[4,1,4,7],[5,2,5,3],[5,5,5,6]]}
[]
[]
[null,"PLAN ANUAL DE ADQUISIONES"]
[null,2021]
[]
[null,"Entidad","Fondo de Desarrollo Local de Antonio Nariño",null,"Sector"]
[null,"Responsable diligenciamiento","Blanca Cecilia Cuervo",null,"Número contacto y correo electrónico","Blanca.cuervo@gobiernobogota.gov.co"]
[]
[]
[null,"A continuación registre la información del Plan Anual de Adquisiciones vigencia 2021,  diligencie el presupuesto total,  el presupuesto programado y contratado del 1 de septiembre al 31 de diciembre de 2021, igualmente la fecha de la primera y ultima públicación del PAA en SECOP, y el número de modificaciones realizadas."]
[]
[null,"Presupuesto Total PAA","Presupuesto programado\nSeptiembre 1 a 31 de diciembre de 2021","Presupuesto contratado\nSeptiembre 1 a 31 de diciembre de 2021","Fecha Primera Publicación\nD/M/A","Última fecha de modificación\nD/M/A","Número modificaciones"]
[null,22783786315,860254119,794143494,"12 enero.","22 diciembre.",2]

{"sheet":"3. CONSOLIDADO","index":2,"n_rows":46,"n_cols":20,"rows_kept":46,"cut":false,"hidden":false,"merged":[[26,2,26,11],[59,2,61,5],[28,2,30,2],[29,3,29,4],[29,5,29,6],[29,7,29,8],[28,3,28,8],[11,21,11,22],[1,4,1,18],[2,4,2,18],[7,2,8,16],[10,2,12,2],[10,3,12,3],[10,4,10,8],[10,9,10,16],[11,4,11,5],[11,6,11,8],[11,19,11,20],[11,11,11,12],[11,13,11,14],[11,17,11,18],[9,2,9,16],[4,2,5,16],[16,2,16,16],[17,17,17,19],[19,2,21,2],[19,3,21,3],[11,9,11,10],[17,2,17,16],[11,15,11,16],[19,4,19,17],[19,18,20,19],[20,4,20,5],[20,6,20,7],[20,8,20,9],[20,10,20,11],[20,12,20,13],[20,14,20,15],[20,16,20,17]]}
[]
[null,null,null,null,"GESTIÓN CONTRACTUAL "]
[null,null,null,null,"Período de Evaluación: Septiembre 1 a 31 de diciembre de 2021"]
[]
[null,null,"La información consolidada que registra en esta hoja debe coincidir con la información que reporta en las hojas 1 \"INFORMACION ACUMULADA\" y 2 \"INFORMACION II CUATRIMESTRE\". En relación con las adiciones a contratos de años anteriores con cargo al periodo a reportar deben registrarse en filas independientes en los numerales 1 (información general, naturaleza jurídica) y 2 (modalidad). Ej. vigencia =2019; No. Contratos Adicionados:3; Número de adiciones: 4"]
[]
[]
[null,null,"1. Diligenciar en Información General el total de contratos que la entidad suscribió del 1 de septiembre al 31 de diciembre de 2021 y el valor total de ellos, igual el número de contratos que presentaron adiciones, el número de adiciones y el valor total de ellas. Respecto a la Naturaleza jurídica del contratista, diligenciar el número total de contratos suscritos y su valor por: personas naturales, jurídicas, consorcios y uniones temporales"]
[]
[]
[null,null,"Entidad","Vigencia","Información General",null,null,null,null,"Naturaleza jurídica del contratista"]
[null,null,null,null,"Contratos Suscritos",null,"Adiciones",null,null,"Contratos suscritos con personas naturales",null,"Contratos suscritos con personas jurídicas",null,"Contratos suscritos con uniones temporales",null,"Contratos suscritos con consorcios"]
[null,null,null,null,"Número Contratos","Valor Total","Número Contratos Adicionados","Número de Adiciones","Valor Total","Número Contratos y/o adiciones","Valor Total","Número Contratos y/o adiciones","Valor Total","Número Contratos y/o adiciones","Valor Total","Número Contratos y/o adiciones","Valor Total"]
[null,null,"Fondo de Desarrollo Local de Antonio Nariño",2021,70,3396681009,19,19,132440533,47,314689102,22,1863468609,1,"1,218,523,298"]
[]
[]
[]
[null,null,"2. Registrar el número y valor total de los contratos y/o adiciones que se suscribieron del 1 de septiembre al 31 de diciembre de 2021 por cada modalidad. Igualmente en la tipología de contratos de prestación de servicios profesionales y de apoyo a la gestión."]
[]
[null,null,"Entidad","Vigencia","Modalidad",null,null,null,null,null,null,null,null,null,null,null,null,null,"Contratos realizados mediante la tipología de contratos de prestación de servicios profesionales y de apoyo a la gestión"]
[null,null,null,null,"Concurso de méritos",null,"Contratación directa",null,"Contratación mínima cuantia",null,"Selección abreviada",null,"Licitación pública",null,"Régimen privado",null,"Régimen especial"]
[null,null,null,null,"Número Contratos","Valor Total","Número Contratos","Valor Total","Número Contratos","Valor Total","Número Contratos","Valor Total","Número Contratos","Valor Total","Número Contratos","Valor Total","Número Contratos","Valor Total","Número Contratos","Valor Total"]
[null,null,"FONFO DE DESARROLLO LOCAL DE CANTONIO NARIÑO ",2021,1,"183,540,840",47,314689102,7,146351133,14,1533576636,1,"1,218,523,298","N/A",null,"N/A"]
[]
[]
[]
[null,null,"3. Detalle cada uno de los procesos de selección adelantados en el cuatrimestre por la entidad de acuerdo a cada modalidad de selección (licitación pública, selección abreviada o concurso de méritos), y diligencie el número de proponentes que se presentaron en cada uno de ellos"]
[]
[null,null,"Entidad","Proponentes (que se presentaron a los proceso de selección)"]
[null,null,null,"Concurso de méritos",null,"Selección abreviada",null,"Licitación pública"]
[null,null,null,"Número del proceso contractual en SECOP","Número de proponentes","Número del proceso contractual en SECOP","Número de proponentes","Número del proceso contractual en SECOP","Número de proponentes"]
[]
[null,null,null,"FDLAN-CMA-001-2022",28,"FDLAN-SAMC-004-2021",3,"FDLAN-LP-001-2021",47]
[null,null,null,null,null,"\nFDLAN-SAMC-005-2021",3]
[null,null,null,null,null,"FDLAN-SAMC-007-2021 ",5]
[null,null,null,null,null,"FDLAN-SAMC-008-2021 ",15]
[null,null,null,null,null,"FDLAN-SAMC-010-2021",1]
[null,null,null,null,null,"FDLAN-SAMC-012-2021",2]
[null,null,null,null,null,"FDLAN-SAMC-013-2021",5]
[null,null,null,null,null,"FDLAN-SAMC-014-2021",3]
[null,null,null,null,null,"FDLAN-SAMC-015-2021",1]
[null,null,null,null,null,"FDLAN-SAMC-016-2021",6]
[null,null,null,null,null,"FDLAN-SIE-001-2021",1]
[null,null,null,null,null,"FDLAN-SIE-003-2021",3]
[null,null,null,null,null,"FDLAN-SIE-004-2021",1]
[null,null,null,null,null,"FDLAN-SIE-005-2021",4]

{"sheet":"Proposito_programa","index":3,"n_rows":59,"n_cols":5,"rows_kept":59,"cut":false,"hidden":false,"merged":[]}
[]
[null,"PDD","No. Programa","Programa","Propósito"]
["Acuerdo 761 2020","Un Nuevo Contrato Social y Ambiental para la Bogotá del Siglo XXI",1,"Subsidios y transferencias para la equidad","Propósito 1: Hacer un nuevo contrato social para incrementar la inclusión social, productiva y política"]
["Pag. 51","Un Nuevo Contrato Social y Ambiental para la Bogotá del Siglo XXI",{"$f":"+C3+1","v":2},"Igualdad de oportunidades y desarrollo de capacidades para las mujeres","Propósito 1: Hacer un nuevo contrato social para incrementar la inclusión social, productiva y política"]
[null,"Un Nuevo Contrato Social y Ambiental para la Bogotá del Siglo XXI",{"$f":"+C4+1","v":3},"Movilidad social integral","Propósito 1: Hacer un nuevo contrato social para incrementar la inclusión social, productiva y política"]
[null,"Un Nuevo Contrato Social y Ambiental para la Bogotá del Siglo XXI",4,"Prevención de la exclusión por razones étnicas, religiosas, sociales, políticas y de orientación sexual","Propósito 1: Hacer un nuevo contrato social para incrementar la inclusión social, productiva y política"]
[null,"Un Nuevo Contrato Social y Ambiental para la Bogotá del Siglo XXI",5,"Promoción de la igualdad, el desarrollo de capacidades y el reconocimiento de las mujeres","Propósito 1: Hacer un nuevo contrato social para incrementar la inclusión social, productiva y política"]
[null,"Un Nuevo Contrato Social y Ambiental para la Bogotá del Siglo XXI",6,"Sistema Distrital de Cuidado","Propósito 1: Hacer un nuevo contrato social para incrementar la inclusión social, productiva y política"]
[null,"Un Nuevo Contrato Social y Ambiental para la Bogotá del Siglo XXI",7,"Mejora de la gestión de instituciones de salud","Propósito 1: Hacer un nuevo contrato social para incrementar la inclusión social, productiva y política"]
[null,"Un Nuevo Contrato Social y Ambiental para la Bogotá del Siglo XXI",8,"Prevención y atención de maternidad temprana","Propósito 1: Hacer un nuevo contrato social para incrementar la inclusión social, productiva y política"]
[null,"Un Nuevo Contrato Social y Ambiental para la Bogotá del Siglo XXI",9,"Prevención y cambios para mejorar la salud de la población","Propósito 1: Hacer un nuevo contrato social para incrementar la inclusión social, productiva y política"]
[null,"Un Nuevo Contrato Social y Ambiental para la Bogotá del Siglo XXI",10,"Salud para la vida y el bienestar","Propósito 1: Hacer un nuevo contrato social para incrementar la inclusión social, productiva y política"]
[null,"Un Nuevo Contrato Social y Ambiental para la Bogotá del Siglo XXI",11,"Salud y bienestar para niñas y niños","Propósito 1: Hacer un nuevo contrato social para incrementar la inclusión social, productiva y política"]
[null,"Un Nuevo Contrato Social y Ambiental para la Bogotá del Siglo XXI",12,"Educación inicial: Bases sólidas para la vida.","Propósito 1: Hacer un nuevo contrato social para incrementar la inclusión social, productiva y política"]
[null,"Un Nuevo Contrato Social y Ambiental para la Bogotá del Siglo XXI",13,"Educación para todos y todas: acceso y permanencia con equidad y énfasis en educación rural","Propósito 1: Hacer un nuevo contrato social para incrementar la inclusión social, productiva y política"]
[null,"Un Nuevo Contrato Social y Ambiental para la Bogotá del Siglo XXI",14,"Formación integral: más y mejor tiempo en los colegios","Propósito 1: Hacer un nuevo contrato social para incrementar la inclusión social, productiva y política"]
[null,"Un Nuevo Contrato Social y Ambiental para la Bogotá del Siglo XXI",15,"Plan Distrital de Lectura, Escritura y Oralidad: \"Leer para la vida\"","Propósito 1: Hacer un nuevo contrato social para incrementar la inclusión social, productiva y política"]
[null,"Un Nuevo Contrato Social y Ambiental para la Bogotá del Siglo XXI",16,"Transformación pedagógica y mejoramiento de la gestión educativa. Es con los maestros y maestras.","Propósito 1: Hacer un nuevo contrato social para incrementar la inclusión social, productiva y política"]
[null,"Un Nuevo Contrato Social y Ambiental para la Bogotá del Siglo XXI",17,"Jóvenes con capacidades: Proyecto de vida para la ciudadanía, la innovación y el trabajo del siglo XXI","Propósito 1: Hacer un nuevo contrato social para incrementar la inclusión social, productiva y política"]
[null,"Un Nuevo Contrato Social y Ambiental para la Bogotá del Siglo XXI",18,"Cierre de brechas para la inclusión productiva urbano rural","Propósito 1: Hacer un nuevo contrato social para incrementar la inclusión social, productiva y política"]
[null,"Un Nuevo Contrato Social y Ambiental para la Bogotá del Siglo XXI",19,"Vivienda y entornos dignos en el territorio urbano y rural","Propósito 1: Hacer un nuevo contrato social para incrementar la inclusión social, productiva y política"]
[null,"Un Nuevo Contrato Social y Ambiental para la Bogotá del Siglo XXI",20,"Bogotá, referente en cultura, deporte, recreación y actividad física, con parques para el desarrollo y la salud","Propósito 1: Hacer un nuevo contrato social para incrementar la inclusión social, productiva y política"]
[null,"Un Nuevo Contrato Social y Ambiental para la Bogotá del Siglo XXI",21,"Creación y vida cotidiana: Apropiación ciudadana del arte, la cultura y el patrimonio, para la democracia cultural","Propósito 1: Hacer un nuevo contrato social para incrementar la inclusión social, productiva y política"]
[null,"Un Nuevo Contrato Social y Ambiental para la Bogotá del Siglo XXI",22,"Transformación cultural para la conciencia ambiental y el cuidado de la fauna doméstica","Propósito 1: Hacer un nuevo contrato social para incrementar la inclusión social, productiva y política"]
[null,"Un Nuevo Contrato Social y Ambiental para la Bogotá del Siglo XXI",23,"Bogotá rural","Propósito 1: Hacer un nuevo contrato social para incrementar la inclusión social, productiva y política"]
[null,"Un Nuevo Contrato Social y Ambiental para la Bogotá del Siglo XXI",24,"Bogotá región emprendedora e innovadora","Propósito 1: Hacer un nuevo contrato social para incrementar la inclusión social, productiva y política"]
[null,"Un Nuevo Contrato Social y Ambiental para la Bogotá del Siglo XXI",25,"Bogotá región productiva y competitiva","Propósito 1: Hacer un nuevo contrato social para incrementar la inclusión social, productiva y política"]
[null,"Un Nuevo Contrato Social y Ambiental para la Bogotá del Siglo XXI",26,"Bogotá - región, el mejor destino para visitar","Propósito 1: Hacer un nuevo contrato social para incrementar la inclusión social, productiva y política"]
[null,"Un Nuevo Contrato Social y Ambiental para la Bogotá del Siglo XXI",27,"Cambio cultural para la gestión de la crisis climática","Propósito 2 : Cambiar Nuestros Hábitos de Vida para Reverdecer a Bogotá y Adaptarnos y Mitigar la Crisis Climática"]
[null,"Un Nuevo Contrato Social y Ambiental para la Bogotá del Siglo XXI",{"$f":"+C29+1","v":28},"Bogotá protectora de sus recursos naturales","Propósito 2 : Cambiar Nuestros Hábitos de Vida para Reverdecer a Bogotá y Adaptarnos y Mitigar la Crisis Climática"]
[null,"Un Nuevo Contrato Social y Ambiental para la Bogotá del Siglo XXI",{"$f":"+C30+1","v":29},"Asentamientos y entornos protectores","Propósito 2 : Cambiar Nuestros Hábitos de Vida para Reverdecer a Bogotá y Adaptarnos y Mitigar la Crisis Climática"]
[null,"Un Nuevo Contrato Social y Ambiental para la Bogotá del Siglo XXI",30,"Eficiencia en la atención de emergencias","Propósito 2 : Cambiar Nuestros Hábitos de Vida para Reverdecer a Bogotá y Adaptarnos y Mitigar la Crisis Climática"]
[null,"Un Nuevo Contrato Social y Ambiental para la Bogotá del Siglo XXI",31," Protección y valoración del patrimonio tangible e intangible en Bogotá y la región","Propósito 2 : Cambiar Nuestros Hábitos de Vida para Reverdecer a Bogotá y Adaptarnos y Mitigar la Crisis Climática"]
[null,"Un Nuevo Contrato Social y Ambiental para la Bogotá del Siglo XXI",32,"Revitalización urbana para la competitividad","Propósito 2 : Cambiar Nuestros Hábitos de Vida para Reverdecer a Bogotá y Adaptarnos y Mitigar la Crisis Climática"]
[null,"Un Nuevo Contrato Social y Ambiental para la Bogotá del Siglo XXI",33,"Más árboles y más y mejor espacio público","Propósito 2 : Cambiar Nuestros Hábitos de Vida para Reverdecer a Bogotá y Adaptarnos y Mitigar la Crisis Climática"]
[null,"Un Nuevo Contrato Social y Ambiental para la Bogotá del Siglo XXI",34,"Bogotá protectora de los animales","Propósito 2 : Cambiar Nuestros Hábitos de Vida para Reverdecer a Bogotá y Adaptarnos y Mitigar la Crisis Climática"]
[null,"Un Nuevo Contrato Social y Ambiental para la Bogotá del Siglo XXI",35,"Manejo y prevención de contaminación","Propósito 2 : Cambiar Nuestros Hábitos de Vida para Reverdecer a Bogotá y Adaptarnos y Mitigar la Crisis Climática"]
[null,"Un Nuevo Contrato Social y Ambiental para la Bogotá del Siglo XXI",36,"Manejo y saneamiento de los cuerpos de agua","Propósito 2 : Cambiar Nuestros Hábitos de Vida para Reverdecer a Bogotá y Adaptarnos y Mitigar la Crisis Climática"]
[null,"Un Nuevo Contrato Social y Ambiental para la Bogotá del Siglo XXI",37,"Provisión y mejoramiento de servicios públicos","Propósito 2 : Cambiar Nuestros Hábitos de Vida para Reverdecer a Bogotá y Adaptarnos y Mitigar la Crisis Climática"]
[null,"Un Nuevo Contrato Social y Ambiental para la Bogotá del Siglo XXI",38,"Ecoeficiencia, reciclaje, manejo de residuos e inclusión de la población recicladora","Propósito 2 : Cambiar Nuestros Hábitos de Vida para Reverdecer a Bogotá y Adaptarnos y Mitigar la Crisis Climática"]
[null,"Un Nuevo Contrato Social y Ambiental para la Bogotá del Siglo XXI",39,"Bogotá territorio de paz y atención integral a las víctimas del conflicto armado","Propósito 3: Inspirar confianza y legitimidad para vivir sin miedo y ser epicentro de cultura ciudadana, paz y reconciliación"]
[null,"Un Nuevo Contrato Social y Ambiental para la Bogotá del Siglo XXI",{"$f":"+C41+1","v":40},"Más mujeres viven una vida libre de violencias, se sienten seguras y acceden con confianza al sistema de justicia","Propósito 3: Inspirar confianza y legitimidad para vivir sin miedo y ser epicentro de cultura ciudadana, paz y reconciliación"]
[null,"Un Nuevo Contrato Social y Ambiental para la Bogotá del Siglo XXI",{"$f":"+C42+1","v":41},"Sin machismo ni violencias contra las mujeres, las niñas y los niños","Propósito 3: Inspirar confianza y legitimidad para vivir sin miedo y ser epicentro de cultura ciudadana, paz y reconciliación"]
[null,"Un Nuevo Contrato Social y Ambiental para la Bogotá del Siglo XXI",42,"Conciencia y cultura ciudadana para la seguridad, la convivencia y la construcción de confianza","Propósito 3: Inspirar confianza y legitimidad para vivir sin miedo y ser epicentro de cultura ciudadana, paz y reconciliación"]
[null,"Un Nuevo Contrato Social y Ambiental para la Bogotá del Siglo XXI",43,"Cultura ciudadana para la confianza, la convivencia y la participación desde la vida cotidiana","Propósito 3: Inspirar confianza y legitimidad para vivir sin miedo y ser epicentro de cultura ciudadana, paz y reconciliación"]
[null,"Un Nuevo Contrato Social y Ambiental para la Bogotá del Siglo XXI",44,"Autoconciencia, respeto y cuidado en el espacio público","Propósito 3: Inspirar confianza y legitimidad para vivir sin miedo y ser epicentro de cultura ciudadana, paz y reconciliación"]
[null,"Un Nuevo Contrato Social y Ambiental para la Bogotá del Siglo XXI",45,"Espacio público más seguro y construido colectivamente","Propósito 3: Inspirar confianza y legitimidad para vivir sin miedo y ser epicentro de cultura ciudadana, paz y reconciliación"]
[null,"Un Nuevo Contrato Social y Ambiental para la Bogotá del Siglo XXI",46,"Atención a jóvenes y adultos infractores con impacto en su proyecto de vida","Propósito 3: Inspirar confianza y legitimidad para vivir sin miedo y ser epicentro de cultura ciudadana, paz y reconciliación"]
[null,"Un Nuevo Contrato Social y Ambiental para la Bogotá del Siglo XXI",47,"Calidad de Vida y Derechos de la Población privada de la libertad","Propósito 3: Inspirar confianza y legitimidad para vivir sin miedo y ser epicentro de cultura ciudadana, paz y reconciliación"]
[null,"Un Nuevo Contrato Social y Ambiental para la Bogotá del Siglo XXI",48,"Plataforma institucional para la seguridad y justicia","Propósito 3: Inspirar confianza y legitimidad para vivir sin miedo y ser epicentro de cultura ciudadana, paz y reconciliación"]
[null,"Un Nuevo Contrato Social y Ambiental para la Bogotá del Siglo XXI",49,"Movilidad segura, sostenible y accesible","Propósito 4: Hacer de Bogotá Región un modelo de movilidad multimodal, incluyente y sostenible"]
[null,"Un Nuevo Contrato Social y Ambiental para la Bogotá del Siglo XXI",{"$f":"+C51+1","v":50},"Red de metros","Propósito 4: Hacer de Bogotá Región un modelo de movilidad multimodal, incluyente y sostenible"]
[null,"Un Nuevo Contrato Social y Ambiental para la Bogotá del Siglo XXI",51,"Gobierno Abierto","Propósito 5: Construir Bogotá - Región con gobierno abierto, transparente y ciudadanía consciente"]
[null,"Un Nuevo Contrato Social y Ambiental para la Bogotá del Siglo XXI",{"$f":"+C53+1","v":52},"Integración regional, distrital y local","Propósito 5: Construir Bogotá - Región con gobierno abierto, transparente y ciudadanía consciente"]
[null,"Un Nuevo Contrato Social y Ambiental para la Bogotá del Siglo XXI",{"$f":"+C54+1","v":53},"Información para la toma de decisiones","Propósito 5: Construir Bogotá - Región con gobierno abierto, transparente y ciudadanía consciente"]
[null,"Un Nuevo Contrato Social y Ambiental para la Bogotá del Siglo XXI",54,"Transformación digital y gestión de TIC para un territorio inteligente","Propósito 5: Construir Bogotá - Región con gobierno abierto, transparente y ciudadanía consciente"]
[null,"Un Nuevo Contrato Social y Ambiental para la Bogotá del Siglo XXI",55,"Fortalecimiento de cultura ciudadana y su institucionalidad","Propósito 5: Construir Bogotá - Región con gobierno abierto, transparente y ciudadanía consciente"]
[null,"Un Nuevo Contrato Social y Ambiental para la Bogotá del Siglo XXI",56,"Gestión pública efectiva","Propósito 5: Construir Bogotá - Región con gobierno abierto, transparente y ciudadanía consciente"]
[null,"Un Nuevo Contrato Social y Ambiental para la Bogotá del Siglo XXI",57,"Gestión pública local","Propósito 5: Construir Bogotá - Región con gobierno abierto, transparente y ciudadanía consciente"]

{"sheet":"Hoja1","index":4,"n_rows":0,"n_cols":0,"rows_kept":0,"cut":false,"hidden":false,"merged":[]}

{"sheet":"4. INSTRUCTIVO","index":5,"n_rows":105,"n_cols":4,"rows_kept":105,"cut":false,"hidden":false,"merged":[[1,1,1,3],[2,1,2,3],[9,1,9,3],[3,1,3,3],[4,1,4,3],[5,1,5,3],[7,1,7,3],[6,1,6,3],[57,1,60,1],[59,2,60,2],[63,1,68,1],[8,1,8,3],[12,1,12,3],[23,1,23,3],[52,1,54,1],[52,2,54,2],[33,2,34,2],[29,2,30,2],[27,1,28,1],[24,1,25,1],[24,2,25,2],[29,1,51,1],[10,1,10,3],[76,1,77,1],[76,2,77,2],[71,1,71,3],[103,1,103,3],[85,1,85,3],[86,1,87,1],[86,2,87,2],[100,1,100,3],[94,1,94,3],[72,1,74,1],[72,2,74,2],[79,2,82,2],[79,1,82,1]]}
[]
[null,"INSTRUCTIVO FORMATO"]
[null,"Recomendamos leer cuidadosamente y poner en práctica las instrucciones que se explican en este instructivo. De la calidad de la información que se registre, depende en gran medida la calidad del informe de rendición de cuentas de la Gestión Contractual que presenta el Alcalde Mayor, consolidado por la Veeduría Distrital.\nEn este formato se deberán relacionar:\nHoja 1. \"INFORMACION ACUMULADA\", diligenciar en esta hoja la totalidad de la información contractual desde el 1 de enero al 31 de diciembre de 2021.\nHoja 2. “PLAN ANUAL DE ADQUISICIONES – PAA”, se pide información sobre el Plan Anual de Adquisiciones y sus modificaciones, por lo cual se deberá precisar el presupuesto total del plan; el programado del 1 de septiembre al 31 de diciembre de 2021; el efectivamente contratado en este período; la primera fecha de publicación del PAA; la última fecha de modificación y el número total de modificaciones realizadas durante este mismo período. \nHoja 3. “CONSOLIDADO”, se pide totalizar la información reportada en la hoja 1, sólo respecto a los contratos y adiciones suscritas entre el 1 de septiembre y el 31 de diciembre de 2021, por lo cual debe coincidir. Es así que en el numeral 1, se debe diligenciar el total de contratos suscritos por la entidad entre el 1 de septiembre y el 31 de diciembre de 2021, periodo de evaluación y su valor; el número total de contratos adicionados, el número total de adiciones y su valor; el número total de contratos celebrados con personas naturales, jurídicas, uniones temporales y consorcios, y su valor; en el numeral 2, se debe registrar en el periodo mencionado, el número total de contratos celebrados según la modalidad de selección y el valor total por cada modalidad; igualmente, es necesario precisar que se deberán relacionar los contratos celebrados mediante la tipología de prestación de servicios profesionales y de apoyo a la gestión y el valor total de ellos. En el numeral 3, se deberá indicar en las modalidades de licitación pública, concurso de méritos y selección abreviada, el número de procesos de selección en los que se presentaron 1 o más proponentes.\nHoja 4.“INSTRUCTIVO”, se dan las instrucciones para el diligenciamiento de la información, explicando paso a paso cada uno de los datos de la base y la manera de diligenciarla para efectos de que la información reportada sea veraz y no presente inconsistencias."]
[null,"La base en Excel a diligenciar NO debe modificarse, debe utilizar versión Excel 2010 o posteriores, la versión 2007 no habilita los macros. El formato está controlado y algunas celdas tienen opciones de selección y solo se debe escoger una de ellas.  El nombre de las hojas no se debe modificar o renombrar debido a que tiene macros. No incluya columnas con otro tipo de información que la Veeduría Distrital no está solicitando o que cambie el formato de celda establecido. Debe diliigencar la totalidad de las celdas, no combinarlas, registrar la información contractual en filas independientes. Las celdas donde se requieren relacionar valores, deben diligenciarse sin puntos, tildes, comas, ni caracteres especiales."]
[null,"Para insertar una o varias filas, en el encabezado del formato, se encuentra un botón denominado \"Insertar Filas\" en el cual se debe hacer click  y digite el número de filas a insertar. Si usted no sigue este procedimiento las filas que inserte no tomarán el formato de las filas anteriores. Se recomienda que antes de iniciar el registro de información inserte las filas que requiera, sin embargo, en cualquier momento que necesite puede hacer este paso"]
[null,"Si requiere insertar una o varias filas realícelo después de la fila A14 para que tomen el formato de las filas anteriores."]
[null,"Si necesita pegar información debe hacerlo por secciones debido a que hay columnas formuladas que están protegidas que no permiten realizar esta opción. Utilice la opción de pegado especial valores para no borrar las listas desplegables ni los formatos de las columnas. Si al pegar quedan textos en rojo,  verifique y ajuste la información, el dato que adiciono no se encuentra en la lista desplegable o no corresponde con el criterio definido en el columna."]
[null,"En primer lugar, diligencie toda la información correspondiente a los contratos suscritos con cargo la vigencia 2021."]
[null,"Una vez incluidos todos los contratos  de la vigencia 2021, a continuación diligencie el formato completo con la información correspondiente a las adiciones efectuadas con cargo a la vigencia 2021 de contratos suscritos en vigencias anteriores. La información general del contrato como: modalidad de selección, tipología contractual, objeto, entre otros, debe corresponder a la información del contrato adicionado o modificado. Respecto al valor, sólo se diligencia el valor en la columna adición, es decir, la columna de valor inicial debe quedar en blanco. No olvide registrar el número de adiciones realizadas en la columna correspondiente."]
[null,"La información que se registre en esta base de datos debe coincidir con los reportes en BOGDATA  y adicionalmente con SECOP.  Es así que la sumatoria del valor final de los contratos y adiciones, por eje/pilar/propósito, programa y proyecto registrada por la Entidad, debe coincidir con la ejecución presupuestal de la entidad, reporte de BOGDATA con corte a 31 de diciembre de 2021, es decir, se debe verificar su coincidencia por rubro con el total del compromiso acumulado; igualmente respecto al valor acumulado de los giros."]
[null,"En caso de haber realizado apropiaciones presupuestales en la vigencia a través de resoluciones, caja menor, honorarios ediles, servicios públicos, debe relacionar dicha información en una sola fila al final de la base, indicando de que se trata la apropiación y número de proyecto si hay lugar a ello. En el tipo de contrato se registra con la opción \"Otros gastos\"."]
[]
[null,"ENCABEZADO DEL FORMATO"]
[null,1,"Entidad","Indique el nombre completo de la Entidad."]
[null,2,"Sector","Seleccione el sector al cual pertenece la Entidad."]
[null,3,"Presupuesto Disponible Inversión Directa","Indique el valor total del presupuesto disponible de inversión directa, de acuerdo con el Informe de ejecución presupuestal de la entidad (BOGDATA), a 31 de diciembre de 2021."]
[null,4,"Presupuesto Comprometido de Inversión Directa ","Escriba el valor total del presupuesto comprometido de inversión directa, de acuerdo con el Informe de ejecución presupuestal de la entidad (BOGDATA), a 31 de diciembre de 2021."]
[null,5,"Presupuesto Disponible Funcionamiento","Indique el valor total del presupuesto de funcionamiento disponible, de acuerdo con el con el Informe de ejecución presupuestal de la entidad (BOGDATA), a 31 de diciembre de 2021."]
[null,6,"Presupuesto Comprometido funcionamiento ","Escriba el monto del presupuesto de funcionamiento, comprometido mediante contratos, de acuerdo con el Informe de ejecución presupuestal de la entidad (BOGDATA), a 31 de diciembre de 2021."]
[null,7,"Presupuesto Disponible Operación","Coloque el monto del presupuesto de operación disponible, de acuerdo con el Informe de ejecución presupuestal de la entidad (BOGDATA), a 31 de diciembre de 2021. Los gastos de operación corresponden solamente a aquellas entidades de régimen de contratación  privado."]
[null,8,"Presupuesto Comprometido operación mediante contratos","Escriba el monto del presupuesto de operación comprometido mediante contratos a 31 de diciembre de 2021."]
[null,9,"Nombre de quien diligencia el formato","Indique el nombre completo, cargo, número de teléfono con extensión y correo electrónico del profesional que diligencia el formato y que posteriormente realizará los ajustes y aclaraciones a que haya lugar por solicitud de la Veeduría Distrital."]
[]
[null,"1- INFORMACIÓN GENERAL"]
[null,1,"Número de Contrato","En estricto orden consecutivo registre el número del contrato, sin incluir los contratos que fueron anulados, ni comodatos."]
[null,null,null,"Una vez terminado el registro de los contratos celebrados con cargo a la vigencia 2021, en las siguientes filas registre la información correspondiente a las adiciones efectuadas con cargo a la vigencia 2021 de contratos suscritos en vigencias anteriores, especificando el año de suscripción en la columna dos."]
[null,2,"Año","Registre el año de celebración del contrato."]
[null,3,"Número de proceso en el SECOP","Relacione el número de proceso de selección con el cual se encuentra publicado el contrato en el SECOP, mas no el link o enlace. Ejemplo IDU-CMA-DTDP-240-2021"]
[null,null,"Link proceso SECOP","Registre el enlace del proceso en SECOP. Ejemplo  https://community.secop.gov.co/Public/xxxxxx"]
[null,4,"Tipo de Contrato","En esta columna seleccione de la lista, el tipo de contrato que corresponde al contrato suscrito. El formato no permite incluir tipo de contratos diferentes a los señaladas en la lista desplegable.  Se debe escoger de las tipologías contractuales que se relacionan a continuación:  "]
[null,null,null,"Para las adiciones a contratos suscritos en la vigencia 2021 y adiciones a contratos sucritos de años anteriores se debe diligenciar la tipología del contrato adicionado o modificado"]
[null,null,"Obra ","Son contratos de obra los que celebren las entidades estatales para la construcción, mantenimiento, instalación y, en general, para la realización de cualquier otro trabajo material sobre bienes inmuebles, cualquiera que sea la modalidad de ejecución y pago. Numeral 1 del artículo 32 de la Ley 80 de 1993"]
[null,null,"Consultoría","Aquellos que celebran las entidades estatales, referidos a los estudios necesarios para la ejecución de proyectos de inversión, de diagnósticos, prefactibilidad o factibilidad para programas o proyectos específicos, así como  las asesorías técnicas de coordinación, control y supervisión. Numeral 2 del artículo 32 de la Ley 80 de 1993"]
[null,null,"Interventoría","Son también  contratos de consultoría los que tienen por objeto la Interventoría, asesoría, gerencia de obras o de proyectos, dirección, programación y la ejecución de diseños, planos, anteproyectos y proyectos. Numeral 2 del artículo 32 de la Ley 80 de 1993"]
[null,null,null,"El contrato de Interventoría tiene por objeto la  supervisión, seguimiento y vigilancia a la ejecución material de un contrato principal"]
[null,null,"Contrato de Prestación de servicios","Son contratos de prestación de servicios los que celebren las entidades estatales para desarrollar actividades relacionadas con la administración o funcionamiento de la entidad. Numeral 3 del artículo 32 de la Ley 80 de 1993"]
[null,null,"Contrato de Prestación de servicios profesionales y de apoyo a la gestión","Corresponden a aquellos de naturaleza intelectual diferentes a los de consultoría que se derivan del cumplimiento de las funciones de la entidad estatal; así como los relacionados con actividades operativas, logísticas, o asistenciales. Art. 2.2.1.2.1.4.9. del Decreto 1082 de 2015"]
[null,null,"Compraventa de bienes muebles","Son aquellos contratos donde se transfiere el dominio de un bien mueble (aquellos susceptibles de ser trasladadas de un lugar a otro sin alterar ni su forma ni su esencia, tal es el caso del mobiliario y equipo de oficina, maquinaria, automóviles, etc.), cuya ejecución se agota de manera instantánea. Artículo 660, Código Civil"]
[null,null,"Compraventa de bienes inmuebles","Son aquellos contratos donde se transfiere el dominio de un bien inmueble (todos aquellos bienes considerados bienes raíces, por tener de común la circunstancia de estar íntimamente ligados al suelo, unidos de modo inseparable, física o jurídicamente, al terreno). Artículo 656, Código Civil"]
[null,null,"Arrendamiento de bienes muebles","Es un contrato que tiene por objeto, conceder el uso y goce de un bien mueble a cambio de un precio determinado. Artículo 1974, Código Civil"]
[null,null,"Arrendamiento de bienes inmuebles","Es un contrato que tiene por objeto, conceder el uso y goce de un bien inmueble a cambio de un precio determinado. Artículo 2.2.1.2.1.4.11 del Decreto 1082 de 2015"]
[null,null,"Seguros","El seguro es un contrato, en virtud del cual una persona jurídica llamada asegurador, asume, a cambio de una prima, un riesgo que le es trasladado por una persona natural o jurídica llamado tomador y en el cual éste tiene un interés asegurable, con el fin de indemnizarlo, en el evento de que ocurra la realización del riesgo amparado, de conformidad con el Título V, del Libro Cuarto del Código de Comercio"]
[null,null,"Suministro","El suministro es el contrato por el cual una parte se obliga, a cambio de una contraprestación, a cumplir en favor de otra, en forma independiente, prestaciones periódicas o continuadas de cosas o servicios. Artículo 968, Código de Comercio"]
[null,null,"Empréstitos","Son contratos de empréstito los que tienen por objeto proveer a la entidad estatal contratante de recursos en moneda nacional o extranjera con plazo para su pago. Artículo 7, Decreto 2681 de 1993"]
[null,null,"Fiducia mercantil o encargo fiduciario","Son contratos que tienen por objeto la administración o el manejo de los recursos vinculados a los contratos que tales entidades celebren. Numeral 5 del artículo 32 de la Ley 80 de 1993"]
[null,null,"Concesión","Este contrato tiene por objeto otorgar a una persona llamada concesionario la prestación, operación, explotación, organización o gestión, total o parcial, de un servicio público, o la construcción, explotación o conservación total o parcial, de una obra o bien destinados al servicio o uso público, así como todas aquellas actividades necesarias para la adecuada prestación o funcionamiento de la obra o servicio por cuenta y riesgo del concesionario, y bajo la vigilancia y control de la entidad concedente, a cambio de una remuneración que puede consistir en derechos, tarifas, tasas, valorización, o en la participación que se le otorgue en la explotación del bien, obra o servicio, o en una suma periódica, única o porcentual, y en general, en cualquier otra modalidad de contraprestación que las partes acuerden. Numeral 4 del artículo 32 de la Ley 80 de 1993"]
[null,null,"Convenios de cooperación","Son aquellos mediante los cuales se formaliza la asistencia, ayuda, auxilio, soporte o colaboración entre entidades de una misma nación, de distintos países o por parte de organizaciones internacionales de naturaleza pública o privada a favor de entidades públicas. Artículo 20 de la Ley 1150 de 2007"]
[null,null,"Convenios/Contratos interadministrativos","El convenio interadministrativo es el negocio jurídico en el cual están presentes dos entidades públicas en desarrollo de relaciones interadministrativas cuyo objeto es coordinar, cooperar, colaborar o distribuir competencias en la realización de funciones administrativas de interés común a los sujetos negociales. Artículo 95 de la Ley 489 de 1998"]
[null,null,"Convenios de Apoyo y/o Convenios de Asociación","Los contratos que en desarrollo de lo dispuesto en el segundo inciso del artículo 355 de la Constitución Política celebren la Nación, los Departamentos, Distritos y Municipios con entidades privadas sin ánimo de lucro y de reconocida idoneidad, con el propósito de impulsar programas y actividades de interés público. Reglamentado mediante Decreto 92 de 2017"]
[null,null,"Asociaciones Público Privadas","Los contratos con personas naturales o jurídicas que se celebran en desarrollo de lo dispuesto en la Ley 1508 de 2012"]
[null,null,"Otros","Los demás tipos de contratos que no se encuentren definidos en las anteriores tipologías"]
[null,null,"Otros gastos","Incluye los gastos no contractuales, estos se registran al final de la base, no cuentan con número de contrato, tipo, proceso o modalidad.  Estos gastos en los que no media un acuerdo de voluntades, en caso de ser del rubro de inversiòn, se deben discriminar por programa y proyecto. En el caso de ser del rubro de funcionamiento no requieren ser discriminados sino totalizados en una sola fila."]
[null,5,"Modalidad de Selección","Al ubicarse en la celda, se despliega una lista de modalidades de selección, de las cuales debe seleccionar la indicada"]
[null,null,null,"Para las adiciones a contratos suscritos en vigencias anteriores se debe diligenciar la modalidad de selección del contrato adicionado o modificado"]
[null,null,null,"La modalidad régimen especial se refiere a todos los contratos realizados en cumplimiento del Decreto 92 de 2017, convenios de asociación con ESAL. Régimen privado es para todas aquellas entidades que no se rigen por el Estatuto General de Contratación Pública (Ley 80 de 1993 y normas complementarias), caso en el que todos sus contratos deben ser identificados con esta modalidad"]
[null,6,"Procedimiento o causal","Esta columna solo se habilita y debe ser diligenciada, para las modalidades de selección abreviada y contratación directa. Al ubicarse en la celda, se despliega una lista de procedimientos o causales, de las cuales debe seleccionar la indicada. El formato no permite incluir procedimientos o causales diferentes a las señaladas en la lista desplegable.  "]
[null,7,"Objeto","Registre el objeto del contrato"]
[null,8,"Afectación ","Registre la afectación según la clasificación de cuentas del presupuesto de gastos. Funcionamiento, Inversión y Operación, esta última aplica únicamente para entidades de régimen privado. La celda solamente permite registrar estas tres opciones."]
[null,null,"Planes de Desarrollo Distrital","Seleccionar el PDD de acuerdo con los diferentes contratos suscritos, automáticamente en la columna K se activan  los números de programa de acuerdo al PDD."]
[null,null,"Número Programa","Si en la columna anterior “Afectación”,  indicó funcionamiento u operación deje en blanco el número de programa, es decir esta columna solamente aplica para gastos de Inversión."]
[null,null,null,"Identifíquelo de acuerdo con el código presupuestal del Plan de Desarrollo  \"Un Nuevo Contrato Social y Ambiental para la Bogotá del Siglo XXI\". Si un mismo contrato afecta más de un código presupuestal discrimine el contrato por cada código que afecte en filas separadas. Si se registra el número del programa, automáticamente en la columna L y M se despliega el nombre del programa y el  propósito según corresponda. "]
[null,9,"Número Proyecto","Indique el código presupuestal con el que se identifica el proyecto. Si un mismo contrato afecta más de un proyecto, discriminar el contrato por cada proyecto que afecte en filas separadas."]
[null,10,"Número de proponentes","Diligencie el número de proponentes que participaron en el proceso de selección adelantado que dio como resultado el contrato que se está diligenciando"]
[null,11,"Número de Identificación del contratista","Indicar el número de identificación del contratista persona natural o jurídica o contratistas plurales (uniones temporales y consorcios) con quien se suscribió el contrato, sin comas, tildes, puntos ni caracteres especiales, y si es NIT sin dígito de verificación"]
[null,null,"Nombre del Contratista","Indicar el nombre del contratista, persona natural o jurídica  o contratistas plurales (uniones temporales y consorcios) en mayúscula sostenida, sin comas, tildes, puntos ni caracteres especiales. Si se trata de personas jurídicas, diligenciar razón social y tipo societario, sin comas, tildes, puntos ni caracteres especiales. Si se trata de personas naturales diligenciar primero los nombres seguidos de los apellidos en la misma columna (nombre 1, nombre 2, apellido 1 y apellido 2)"]
[null,null,"Naturaleza Jurídica","Seleccione la naturaleza jurídica que corresponde al contratista, según las opciones"]
[null,null,"Número  de Identificación de los integrantes del Consorcio o U.T.\n(NIT sin digito de verificación)","Diligenciar este numeral sólo en los casos en que el contratista sea un Consorcio o Union Temporal, relacione en filas independientes (si son varios integrantes puede insertar filas adicionales), cada uno de los números de identificación de los integrantes de los consorcios o uniones temporales sin comas, tildes, puntos ni caracteres especiales, y si es NIT sin dígito de verificación. "]
[null,null,"Nombre del Integrante del Consorcio o U.T.","Diligenciar este numeral sólo en los casos en que el contratista sea un Consorcio o Union Temporal, relacione en filas independientes cada uno de los nombres de los integrantes de los consorcios o uniones temporales, si es persona jurídica la Razón social, es decir el nombre legal de la Empresa; si es persona natural relacione los nombres seguidos de los apellidos en mayúscula sostenida, sin comas, tildes, puntos ni caracteres especiales. Igualmente en el nombre relacione el Tipo societario de cada uno de ellos, entre los cuales se encuentra Sociedades por Acciones Simplificadas (SAS), Sociedad de Responsabilidad Limitada (LTDA), Sociedad en Comandita simple (SCS), Sociedad en Comandita por Acciones (SCA), Sociedad Colectiva, a manera de ejemplo: SOCIEDAD 1 LTDA"]
[null,null,"% Participación","Registre el porcentaje de participación de cada integrante del consorcio o unión temporal, registre sólo números, sin caracteres especiales"]
[]
[]
[null,"2- INFORMACIÓN FINANCIERA"]
[null,12,"Valor Inicial ","Registre el valor inicial del contrato con cargo al segundo cuatrimestre de la vigencia 2021. Esta columna sólo debe contener información numérica"]
[null,null,null,"En el caso de adiciones a contratos de años anteriores, no diligencie esta columna, registrar el valor en la columna 15 \"Valor Total Adiciones\".\nEn caso de adiciones a contratos suscritos en el primer cuatrimestre del 2021, no diligencie esta columna, registrar el valor en la columna 15 \"Valor Total Adiciones\""]
[null,null,null,"Excluya las reservas de apropiación y cuentas por pagar"]
[null,13,"Valor total reducciones (En valor negativo)","Registre el valor de la reducción del contrato en caso de haberse realizado, en negativo, durante la vigencia 2021"]
[null,14,"Número de adiciones ","Diligencie esta columna solo en el caso de adiciones al valor inicial que aumenten el valor del contrato con cargo a la vigencia."]
[null,null,null,"Registre en esta celda el número de adiciones que se realizaron al contrato"]
[null,15,"Valor total de adiciones","Registre el valor total de las adiciones que se realizaron al contrato,  el formato de celda no permite guiones, comas o texto. Esta columna solo debe contener información numérica."]
[null,16,"Valor Final","Esta columna se encuentra formulada por favor no modifique ni quite la fórmula; la fórmula suma las columnas valor inicial, valor de reducciones y valor de adiciones"]
[null,null,null,"La sumatoria de la columna 16 (valor final) para los contratos de Inversión Directa, de funcionamiento y/o operación, cuando aplique, deberán coincidir con el valor del rubro registrado en el encabezado 4, Presupuesto comprometido de inversión según BOGDATA, con el encabezado 6, Presupuesto Comprometido Funcionamiento según BOGDATA y con el encabezado 8, Presupuesto Comprometido Operación mediante contratos, respectivamente. A la vez, estos valores deben coincidir con los informes de ejecución presupuestal del BOGDATA.  "]
[null,null,null,"Si los valores no coinciden debe especificarse al final del formato en qué está representada la diferencia Otros gastos(discriminando los conceptos por Programa y Proyecto de inversión, si es el caso), con sus respectivos valores."]
[null,null,null,"Las bases donde dichos valores no coincidan serán devueltas por la Veeduría Distrital a cada entidad para los respectivos ajustes."]
[null,17,"Giros","Registre el valor total de los giros que se realizaron al contrato,  el formato de celda no permite guiones, comas o texto. Esta columna solo debe contener información numérica."]
[]
[null,"3- PLAZOS"]
[null,18,"Fecha de suscripción","Relacionar la fecha en que se suscribió el contrato original. La celda solo admite el formato Día/Mes/Año, por ejemplo: 17/02/2021"]
[null,null,null,"Para las adiciones a contratos de años anteriores se debe registrar en esta columna la fecha de suscripción de la adición en la vigencia 2021"]
[null,19,"Fecha de inicio","Indicar la fecha de inicio del contrato. Para las adiciones a contratos de años anteriores se debe diligenciar la fecha de inicio de la adición en la vigencia 2021. La celda solo admite el formato Día/Mes/Año así  13/03/2021."]
[null,20,"Fecha de terminación","Indicar la fecha efectiva de terminación del contrato. La celda solo admite el formato Día/Mes/Año así  15/02/2021."]
[null,21,"Plazo en días","Esta columna contiene el plazo inicial del contrato con el número total de días a ejecutar (sólo número de días, no mes, no texto). "]
[null,22,"Número de prórrogas","Registre en esta celda el número de prórrogas que se realizaron al contrato en la vigencia 2021."]
[null,23,"Prórroga en días","En caso de presentarse este evento, indicar en días, el tiempo por el cual se prorrogó el contrato a partir de la fecha inicial de terminación (sólo número de días, no mes, no texto)."]
[]
[null,"4- CESIÓN"]
[null,24,"Número  de Identificación del cesionario\n(NIT con digito de verificación)","Indicar el número de identificación del cesionario persona natural o jurídica con quien se suscribió la cesión, con digito de verificación (DV), el formato de celda no permite guiones o comas, solo números. Si hay más de una cesión adicione una fila y registre número de contrato, año, número proceso contractual SECOP y demás información que corresponda."]
[null,25,"Nombre cesionario","Indicar el nombre del cesionario, persona natural o jurídica."]
[null,26,"Fecha cesión","Relacionar la fecha en que se suscribió la cesión del contrato. La celda solo admite el formato Día/Mes/Año así  17/02/2021."]
[null,27,"Valor cesión","Registre el valor correspondiente a la cesión con cargo a la vigencia 2021, el formato de celda no permite guiones, comas o texto. Esta columna solo debe contener información numérica."]
[]
[null,"5- ESTADO A 31 DE DICIEMBRE DE 2021"]
[null,28,"Estado","Marque con una X en la respectiva columna si el contrato se encuentra a 31 de diciembre de 2021 Celebrado o por Iniciar, En Ejecución, Terminado o Liquidado."]
[]
[null,"5- PORCENTAJE DE AVANCE Y/O CUMPLIMIENTO"]
[null,29,"% Avance y/o cumplimiento","Indica el porcentaje de avance o de cumplimiento en términos presupuestales a 31 de diciembre de 2021, es decir lo efectivamente pagado al contratista. Si no se ha iniciado la ejecución, el % de avance es 0%. La celda se encuentra formulada y protegida. Es la relación entre el valor de los giros y el valor final del contrato. Si el porcentaje de avance no coincide, se debe revisar los valores que se registraron en estas columnas.  Este porcentaje no debe ser superior al 100%"]

{"sheet":"Tipo","index":6,"n_rows":40,"n_cols":5,"rows_kept":40,"cut":false,"hidden":true,"merged":[]}
[null,"Tipo","Modalidad de Selección","afectacion","Naturaleza Jurídica"]
[1,"Obra pública","Concurso de méritos","Funcionamiento","Persona Natural"]
[2,"Consultoría","Contratación directa","Inversión","Persona Jurídica"]
[3,"Interventoría","Contratación mínima cuantia","Operación","Unión Temporal"]
[4,"Contratos de prestación de servicios","Selección abreviada",null,"Consorcio"]
[5,"Contratos de prestación de servicios profesionales y de apoyo a la gestión","Licitación pública"]
[6,"Compraventa de bienes muebles","Régimen privado"]
[7,"Compraventa de bienes inmuebles","Régimen especial"]
[8,"Arrendamiento de bienes muebles"]
[9,"Arrendamiento de bienes inmuebles"]
[10,"Seguros","Selección abreviada"]
[11,"Suministro","Subasta inversa "]
[12,"Empréstitos","Bolsas de productos"]
[13,"Fiducia mercantil o encargo fiduciario","Acuerdo marco de precios "]
[14,"Concesión ","Selección abreviada por menor cuantía "]
[15,"Convenios de cooperacion"]
[16,"Contratos interadministrativos","contratacion directa"]
[17,"Convenios de apoyo y/o convenios de asociación ","Urgencia manifiesta"]
[18,"Asociaciones público privadas","Contratación de empréstitos"]
[19,"Otros","Contratos interadministrativos"]
[20,"Otros gastos","Contratación de bienes y servicios en el sector Defensa y en el Departamento Administrativo de Seguridad, DAS"]
[null,"SECTOR","Contratos para el desarrollo de actividades científicas y tecnológicas"]
[1,"Gestión Pública","Contratos de encargo fiduciario que celebren las entidades territoriales cuando inician el Acuerdo de Reestructuración de Pasivos"]
[{"$f":"+A23+1","v":2},"Gobierno","Cuando no exista pluralidad de oferentes en el mercado"]
[{"$f":"+A24+1","v":3},"Hacienda","Prestación de servicios profesionales y de apoyo a la gestión, o para la ejecución de trabajos artísticos que sólo puedan encomendarse a determinadas personas naturales;"]
[4,"Planeación","El arrendamiento o adquisición de inmuebles"]
[5,"Desarrollo Económico, Industria y Turismo","Contratación de bienes y servicios de la Dirección Nacional de Inteligencia (DNI)"]
[6,"Educación"]
[7,"Salud"]
[8,"Integración Social","Decreto 92 de 2017"]
[9,"Cultura, Recreación y Deporte","No aplica"]
[10,"Ambiente"]
[11,"Movilidad","SECOP I"]
[12,"Hábitat","SECOP II"]
[13,"Mujeres"]
[14,"Seguridad, Convivencia y Justicia","Bogotá Mejor para Todos"]
[15,"Gestión Juridíca","Un Nuevo Contrato Social y Ambiental para la Bogotá del Siglo XXI"]
[16,"descentralizado territorialmente"]
[]
[null,"16 - AL"]

{"sheet":"Eje_Pilar_Prop1","index":7,"n_rows":104,"n_cols":5,"rows_kept":104,"cut":false,"hidden":true,"merged":[]}
[]
[null,"PDD","No. Programa","Programa","Pilar /Eje / propósito"]
[null,"Bogotá Mejor para Todos",1,"Prevención y atención de la maternidad y la paternidad tempranas","Pilar 1 Igualdad de Calidad de Vida"]
[null,"Bogotá Mejor para Todos",2,"Desarrollo integral desde la gestación hasta la adolescencia","Pilar 1 Igualdad de Calidad de Vida"]
[null,"Bogotá Mejor para Todos",3,"Igualdad y autonomía para una Bogotá incluyente","Pilar 1 Igualdad de Calidad de Vida"]
[null,"Bogotá Mejor para Todos",4,"Familias protegidas y adaptadas al cambio climático","Pilar 1 Igualdad de Calidad de Vida"]
[null,"Bogotá Mejor para Todos",5,"Desarrollo integral para la felicidad y el ejercicio de la ciudadanía","Pilar 1 Igualdad de Calidad de Vida"]
[null,"Bogotá Mejor para Todos",6,"Calidad educativa para todos","Pilar 1 Igualdad de Calidad de Vida"]
[null,"Bogotá Mejor para Todos",7,"Inclusión educativa para la equidad","Pilar 1 Igualdad de Calidad de Vida"]
[null,"Bogotá Mejor para Todos",8,"Acceso con calidad a la educación superior","Pilar 1 Igualdad de Calidad de Vida"]
[null,"Bogotá Mejor para Todos",9,"Atención integral y eficiente en salud","Pilar 1 Igualdad de Calidad de Vida"]
[null,"Bogotá Mejor para Todos",10,"Modernización de la infraestructura física y tecnológica en salud","Pilar 1 Igualdad de Calidad de Vida"]
[null,"Bogotá Mejor para Todos",11,"Mejores oportunidades para el desarrollo a través de la cultura, la recreación y el deporte","Pilar 1 Igualdad de Calidad de Vida"]
[null,"Bogotá Mejor para Todos",12,"Mujeres protagonistas, activas y empoderadas en el cierre de brechas de género","Pilar 1 Igualdad de Calidad de Vida"]
[null,"Bogotá Mejor para Todos",13,"Infraestructura para el desarrollo del hábitat","Pilar 2 Democracía Urbana"]
[null,"Bogotá Mejor para Todos",14,"Intervenciones integrales del hábitat","Pilar 2 Democracía Urbana"]
[null,"Bogotá Mejor para Todos",15,"Recuperación, incorporación, vida urbana y control de la ilegalidad","Pilar 2 Democracía Urbana"]
[null,"Bogotá Mejor para Todos",16,"Integración social para una ciudad de oportunidades","Pilar 2 Democracía Urbana"]
[null,"Bogotá Mejor para Todos",17,"Espacio público, derecho de todos","Pilar 2 Democracía Urbana"]
[null,"Bogotá Mejor para Todos",18,"Mejor movilidad para todos","Pilar 2 Democracía Urbana"]
[null,"Bogotá Mejor para Todos",19,"Seguridad y convivencia para todos","Pilar 3 Construcción de Comunidad y Cultura Ciudadana"]
[null,"Bogotá Mejor para Todos",20,"Fortalecimiento del Sistema de Protección Integral a Mujeres Víctimas de Violencia - SOFIA","Pilar 3 Construcción de Comunidad y Cultura Ciudadana"]
[null,"Bogotá Mejor para Todos",21,"Justicia para todos: consolidación del Sistema Distrital de Justicia","Pilar 3 Construcción de Comunidad y Cultura Ciudadana"]
[null,"Bogotá Mejor para Todos",22,"Bogotá vive los derechos humanos","Pilar 3 Construcción de Comunidad y Cultura Ciudadana"]
[null,"Bogotá Mejor para Todos",23,"Bogotá mejor para las víctimas, la paz y la reconciliación","Pilar 3 Construcción de Comunidad y Cultura Ciudadana"]
[null,"Bogotá Mejor para Todos",24,"Equipo por la educación para el reencuentro, la reconciliación y la paz","Pilar 3 Construcción de Comunidad y Cultura Ciudadana"]
[null,"Bogotá Mejor para Todos",25,"Cambio cultural y construcción del tejido social para la vida","Pilar 3 Construcción de Comunidad y Cultura Ciudadana"]
[null,"Bogotá Mejor para Todos",26,"Información relevante e integral para la planeación territorial","Eje Transversal 1 Nuevo Ordenamiento Territorial"]
[null,"Bogotá Mejor para Todos",27,"Proyectos urbanos integrales con visión de ciudad","Eje Transversal 1 Nuevo Ordenamiento Territorial"]
[null,"Bogotá Mejor para Todos",28,"Suelo para reducir el déficit habitacional de suelo urbanizable, vivienda y soportes urbanos","Eje Transversal 1 Nuevo Ordenamiento Territorial"]
[null,"Bogotá Mejor para Todos",29,"Articulación regional y planeación integral del transporte","Eje Transversal 1 Nuevo Ordenamiento Territorial"]
[null,"Bogotá Mejor para Todos",30,"Financiación para el Desarrollo Territorial","Eje Transversal 1 Nuevo Ordenamiento Territorial"]
[null,"Bogotá Mejor para Todos",31,"Fundamentar el desarrollo económico en la generación y uso del conocimiento para mejorar la competitividad de la Ciudad Región","Eje Transversal 2 Desarrollo Económico basado en el conocimiento"]
[null,"Bogotá Mejor para Todos",32,"Generar alternativas de ingreso y empleo de mejor calidad","Eje Transversal 2 Desarrollo Económico basado en el conocimiento"]
[null,"Bogotá Mejor para Todos",33,"Elevar la eficiencia de los mercados de la ciudad","Eje Transversal 2 Desarrollo Económico basado en el conocimiento"]
[null,"Bogotá Mejor para Todos",34,"Mejorar y fortalecer el recaudo tributario de la ciudad e impulsar el uso de mecanismos de vinculación de capital privado","Eje Transversal 2 Desarrollo Económico basado en el conocimiento"]
[null,"Bogotá Mejor para Todos",35,"Bogotá, ciudad inteligente","Eje Transversal 2 Desarrollo Económico basado en el conocimiento"]
[null,"Bogotá Mejor para Todos",36,"Bogotá, una ciudad digital","Eje Transversal 2 Desarrollo Económico basado en el conocimiento"]
[null,"Bogotá Mejor para Todos",37,"Consolidar el turismo como factor de desarrollo, confianza y felicidad para Bogotá Región","Eje Transversal 2 Desarrollo Económico basado en el conocimiento"]
[null,"Bogotá Mejor para Todos",38,"Recuperación y manejo de la Estructura Ecológica Principal","Eje Transversal 3 Sostenibilidad Ambiental basada en la eficiencia energética"]
[null,"Bogotá Mejor para Todos",39,"Ambiente sano para la equidad y disfrute del ciudadano","Eje Transversal 3 Sostenibilidad Ambiental basada en la eficiencia energética"]
[null,"Bogotá Mejor para Todos",40,"Gestión de la huella ambiental urbana","Eje Transversal 3 Sostenibilidad Ambiental basada en la eficiencia energética"]
[null,"Bogotá Mejor para Todos",41,"Desarrollo rural sostenible","Eje Transversal 3 Sostenibilidad Ambiental basada en la eficiencia energética"]
[null,"Bogotá Mejor para Todos",42,"Transparencia, gestión pública y servicio a la ciudadanía","Eje Transversal 4 Gobierno Legitimo, Fortalecimiento Local y Eficiencia"]
[null,"Bogotá Mejor para Todos",43,"Modernización institucional","Eje Transversal 4 Gobierno Legitimo, Fortalecimiento Local y Eficiencia"]
[null,"Bogotá Mejor para Todos",44,"Gobierno y ciudadanía digital","Eje Transversal 4 Gobierno Legitimo, Fortalecimiento Local y Eficiencia"]
[null,"Bogotá Mejor para Todos",45,"Gobernanza e influencia local, regional e internacional","Eje Transversal 4 Gobierno Legitimo, Fortalecimiento Local y Eficiencia"]
["Acuerdo 761 2020","Un Nuevo Contrato Social y Ambiental para la Bogotá del Siglo XXI","1.","Subsidios y transferencias para la equidad","Propósito 1: Hacer un nuevo contrato social para incrementar la inclusión social, productiva y política"]
["Pag. 51","Un Nuevo Contrato Social y Ambiental para la Bogotá del Siglo XXI","2.","Igualdad de oportunidades y desarrollo de capacidades para las mujeres","Propósito 1: Hacer un nuevo contrato social para incrementar la inclusión social, productiva y política"]
[null,"Un Nuevo Contrato Social y Ambiental para la Bogotá del Siglo XXI","3.","Movilidad social integral","Propósito 1: Hacer un nuevo contrato social para incrementar la inclusión social, productiva y política"]
[null,"Un Nuevo Contrato Social y Ambiental para la Bogotá del Siglo XXI","4.","Prevención de la exclusión por razones étnicas, religiosas, sociales, políticas y de orientación sexual","Propósito 1: Hacer un nuevo contrato social para incrementar la inclusión social, productiva y política"]
[null,"Un Nuevo Contrato Social y Ambiental para la Bogotá del Siglo XXI","5.","Promoción de la igualdad, el desarrollo de capacidades y el reconocimiento de las mujeres","Propósito 1: Hacer un nuevo contrato social para incrementar la inclusión social, productiva y política"]
[null,"Un Nuevo Contrato Social y Ambiental para la Bogotá del Siglo XXI","6.","Sistema Distrital de Cuidado","Propósito 1: Hacer un nuevo contrato social para incrementar la inclusión social, productiva y política"]
[null,"Un Nuevo Contrato Social y Ambiental para la Bogotá del Siglo XXI","7.","Mejora de la gestión de instituciones de salud","Propósito 1: Hacer un nuevo contrato social para incrementar la inclusión social, productiva y política"]
[null,"Un Nuevo Contrato Social y Ambiental para la Bogotá del Siglo XXI","8.","Prevención y atención de maternidad temprana","Propósito 1: Hacer un nuevo contrato social para incrementar la inclusión social, productiva y política"]
[null,"Un Nuevo Contrato Social y Ambiental para la Bogotá del Siglo XXI","9.","Prevención y cambios para mejorar la salud de la población","Propósito 1: Hacer un nuevo contrato social para incrementar la inclusión social, productiva y política"]
[null,"Un Nuevo Contrato Social y Ambiental para la Bogotá del Siglo XXI","10.","Salud para la vida y el bienestar","Propósito 1: Hacer un nuevo contrato social para incrementar la inclusión social, productiva y política"]
[null,"Un Nuevo Contrato Social y Ambiental para la Bogotá del Siglo XXI","11.","Salud y bienestar para niñas y niños","Propósito 1: Hacer un nuevo contrato social para incrementar la inclusión social, productiva y política"]
[null,"Un Nuevo Contrato Social y Ambiental para la Bogotá del Siglo XXI","12.","Educación inicial: Bases sólidas para la vida.","Propósito 1: Hacer un nuevo contrato social para incrementar la inclusión social, productiva y política"]
[null,"Un Nuevo Contrato Social y Ambiental para la Bogotá del Siglo XXI","13.","Educación para todos y todas: acceso y permanencia con equidad y énfasis en educación rural","Propósito 1: Hacer un nuevo contrato social para incrementar la inclusión social, productiva y política"]
[null,"Un Nuevo Contrato Social y Ambiental para la Bogotá del Siglo XXI","14.","Formación integral: más y mejor tiempo en los colegios","Propósito 1: Hacer un nuevo contrato social para incrementar la inclusión social, productiva y política"]
[null,"Un Nuevo Contrato Social y Ambiental para la Bogotá del Siglo XXI","15.","Plan Distrital de Lectura, Escritura y Oralidad: \"Leer para la vida\"","Propósito 1: Hacer un nuevo contrato social para incrementar la inclusión social, productiva y política"]
[null,"Un Nuevo Contrato Social y Ambiental para la Bogotá del Siglo XXI","16.","Transformación pedagógica y mejoramiento de la gestión educativa. Es con los maestros y maestras.","Propósito 1: Hacer un nuevo contrato social para incrementar la inclusión social, productiva y política"]
[null,"Un Nuevo Contrato Social y Ambiental para la Bogotá del Siglo XXI","17.","Jóvenes con capacidades: Proyecto de vida para la ciudadanía, la innovación y el trabajo del siglo XXI","Propósito 1: Hacer un nuevo contrato social para incrementar la inclusión social, productiva y política"]
[null,"Un Nuevo Contrato Social y Ambiental para la Bogotá del Siglo XXI","18.","Cierre de brechas para la inclusión productiva urbano rural","Propósito 1: Hacer un nuevo contrato social para incrementar la inclusión social, productiva y política"]
[null,"Un Nuevo Contrato Social y Ambiental para la Bogotá del Siglo XXI","19.","Vivienda y entornos dignos en el territorio urbano y rural","Propósito 1: Hacer un nuevo contrato social para incrementar la inclusión social, productiva y política"]
[null,"Un Nuevo Contrato Social y Ambiental para la Bogotá del Siglo XXI","20.","Bogotá, referente en cultura, deporte, recreación y actividad física, con parques para el desarrollo y la salud","Propósito 1: Hacer un nuevo contrato social para incrementar la inclusión social, productiva y política"]
[null,"Un Nuevo Contrato Social y Ambiental para la Bogotá del Siglo XXI","21.","Creación y vida cotidiana: Apropiación ciudadana del arte, la cultura y el patrimonio, para la democracia cultural","Propósito 1: Hacer un nuevo contrato social para incrementar la inclusión social, productiva y política"]
[null,"Un Nuevo Contrato Social y Ambiental para la Bogotá del Siglo XXI","22.","Transformación cultural para la conciencia ambiental y el cuidado de la fauna doméstica","Propósito 1: Hacer un nuevo contrato social para incrementar la inclusión social, productiva y política"]
[null,"Un Nuevo Contrato Social y Ambiental para la Bogotá del Siglo XXI","23.","Bogotá rural","Propósito 1: Hacer un nuevo contrato social para incrementar la inclusión social, productiva y política"]
[null,"Un Nuevo Contrato Social y Ambiental para la Bogotá del Siglo XXI","24.","Bogotá región emprendedora e innovadora","Propósito 1: Hacer un nuevo contrato social para incrementar la inclusión social, productiva y política"]
[null,"Un Nuevo Contrato Social y Ambiental para la Bogotá del Siglo XXI","25.","Bogotá región productiva y competitiva","Propósito 1: Hacer un nuevo contrato social para incrementar la inclusión social, productiva y política"]
[null,"Un Nuevo Contrato Social y Ambiental para la Bogotá del Siglo XXI","26.","Bogotá - región, el mejor destino para visitar","Propósito 1: Hacer un nuevo contrato social para incrementar la inclusión social, productiva y política"]
[null,"Un Nuevo Contrato Social y Ambiental para la Bogotá del Siglo XXI","27.","Cambio cultural para la gestión de la crisis climática","Propósito 2 : Cambiar Nuestros Hábitos de Vida para Reverdecer a Bogotá y Adaptarnos y Mitigar la Crisis Climática"]
[null,"Un Nuevo Contrato Social y Ambiental para la Bogotá del Siglo XXI","28.","Bogotá protectora de sus recursos naturales","Propósito 2 : Cambiar Nuestros Hábitos de Vida para Reverdecer a Bogotá y Adaptarnos y Mitigar la Crisis Climática"]
[null,"Un Nuevo Contrato Social y Ambiental para la Bogotá del Siglo XXI","29.","Asentamientos y entornos protectores","Propósito 2 : Cambiar Nuestros Hábitos de Vida para Reverdecer a Bogotá y Adaptarnos y Mitigar la Crisis Climática"]
[null,"Un Nuevo Contrato Social y Ambiental para la Bogotá del Siglo XXI","30.","Eficiencia en la atención de emergencias","Propósito 2 : Cambiar Nuestros Hábitos de Vida para Reverdecer a Bogotá y Adaptarnos y Mitigar la Crisis Climática"]
[null,"Un Nuevo Contrato Social y Ambiental para la Bogotá del Siglo XXI","31."," Protección y valoración del patrimonio tangible e intangible en Bogotá y la región","Propósito 2 : Cambiar Nuestros Hábitos de Vida para Reverdecer a Bogotá y Adaptarnos y Mitigar la Crisis Climática"]
[null,"Un Nuevo Contrato Social y Ambiental para la Bogotá del Siglo XXI","32.","Revitalización urbana para la competitividad","Propósito 2 : Cambiar Nuestros Hábitos de Vida para Reverdecer a Bogotá y Adaptarnos y Mitigar la Crisis Climática"]
[null,"Un Nuevo Contrato Social y Ambiental para la Bogotá del Siglo XXI","33.","Más árboles y más y mejor espacio público","Propósito 2 : Cambiar Nuestros Hábitos de Vida para Reverdecer a Bogotá y Adaptarnos y Mitigar la Crisis Climática"]
[null,"Un Nuevo Contrato Social y Ambiental para la Bogotá del Siglo XXI","34.","Bogotá protectora de los animales","Propósito 2 : Cambiar Nuestros Hábitos de Vida para Reverdecer a Bogotá y Adaptarnos y Mitigar la Crisis Climática"]
[null,"Un Nuevo Contrato Social y Ambiental para la Bogotá del Siglo XXI","35.","Manejo y prevención de contaminación","Propósito 2 : Cambiar Nuestros Hábitos de Vida para Reverdecer a Bogotá y Adaptarnos y Mitigar la Crisis Climática"]
[null,"Un Nuevo Contrato Social y Ambiental para la Bogotá del Siglo XXI","36.","Manejo y saneamiento de los cuerpos de agua","Propósito 2 : Cambiar Nuestros Hábitos de Vida para Reverdecer a Bogotá y Adaptarnos y Mitigar la Crisis Climática"]
[null,"Un Nuevo Contrato Social y Ambiental para la Bogotá del Siglo XXI","37.","Provisión y mejoramiento de servicios públicos","Propósito 2 : Cambiar Nuestros Hábitos de Vida para Reverdecer a Bogotá y Adaptarnos y Mitigar la Crisis Climática"]
[null,"Un Nuevo Contrato Social y Ambiental para la Bogotá del Siglo XXI","38.","Ecoeficiencia, reciclaje, manejo de residuos e inclusión de la población recicladora","Propósito 2 : Cambiar Nuestros Hábitos de Vida para Reverdecer a Bogotá y Adaptarnos y Mitigar la Crisis Climática"]
[null,"Un Nuevo Contrato Social y Ambiental para la Bogotá del Siglo XXI","39.","Bogotá territorio de paz y atención integral a las víctimas del conflicto armado","Propósito 3: Inspirar confianza y legitimidad para vivir sin miedo y ser epicentro de cultura ciudadana, paz y reconciliación"]
[null,"Un Nuevo Contrato Social y Ambiental para la Bogotá del Siglo XXI","40.","Más mujeres viven una vida libre de violencias, se sienten seguras y acceden con confianza al sistema de justicia","Propósito 3: Inspirar confianza y legitimidad para vivir sin miedo y ser epicentro de cultura ciudadana, paz y reconciliación"]
[null,"Un Nuevo Contrato Social y Ambiental para la Bogotá del Siglo XXI","41.","Sin machismo ni violencias contra las mujeres, las niñas y los niños","Propósito 3: Inspirar confianza y legitimidad para vivir sin miedo y ser epicentro de cultura ciudadana, paz y reconciliación"]
[null,"Un Nuevo Contrato Social y Ambiental para la Bogotá del Siglo XXI","42.","Conciencia y cultura ciudadana para la seguridad, la convivencia y la construcción de confianza","Propósito 3: Inspirar confianza y legitimidad para vivir sin miedo y ser epicentro de cultura ciudadana, paz y reconciliación"]
[null,"Un Nuevo Contrato Social y Ambiental para la Bogotá del Siglo XXI","43.","Cultura ciudadana para la confianza, la convivencia y la participación desde la vida cotidiana","Propósito 3: Inspirar confianza y legitimidad para vivir sin miedo y ser epicentro de cultura ciudadana, paz y reconciliación"]
[null,"Un Nuevo Contrato Social y Ambiental para la Bogotá del Siglo XXI","44.","Autoconciencia, respeto y cuidado en el espacio público","Propósito 3: Inspirar confianza y legitimidad para vivir sin miedo y ser epicentro de cultura ciudadana, paz y reconciliación"]
[null,"Un Nuevo Contrato Social y Ambiental para la Bogotá del Siglo XXI","45.","Espacio público más seguro y construido colectivamente","Propósito 3: Inspirar confianza y legitimidad para vivir sin miedo y ser epicentro de cultura ciudadana, paz y reconciliación"]
[null,"Un Nuevo Contrato Social y Ambiental para la Bogotá del Siglo XXI","46.","Atención a jóvenes y adultos infractores con impacto en su proyecto de vida","Propósito 3: Inspirar confianza y legitimidad para vivir sin miedo y ser epicentro de cultura ciudadana, paz y reconciliación"]
[null,"Un Nuevo Contrato Social y Ambiental para la Bogotá del Siglo XXI","47.","Calidad de Vida y Derechos de la Población privada de la libertad","Propósito 3: Inspirar confianza y legitimidad para vivir sin miedo y ser epicentro de cultura ciudadana, paz y reconciliación"]
[null,"Un Nuevo Contrato Social y Ambiental para la Bogotá del Siglo XXI","48.","Plataforma institucional para la seguridad y justicia","Propósito 3: Inspirar confianza y legitimidad para vivir sin miedo y ser epicentro de cultura ciudadana, paz y reconciliación"]
[null,"Un Nuevo Contrato Social y Ambiental para la Bogotá del Siglo XXI","49.","Movilidad segura, sostenible y accesible","Propósito 4: Hacer de Bogotá Región un modelo de movilidad multimodal, incluyente y sostenible"]
[null,"Un Nuevo Contrato Social y Ambiental para la Bogotá del Siglo XXI","50.","Red de metros","Propósito 4: Hacer de Bogotá Región un modelo de movilidad multimodal, incluyente y sostenible"]
[null,"Un Nuevo Contrato Social y Ambiental para la Bogotá del Siglo XXI","51.","Gobierno Abierto","Propósito 5: Construir Bogotá - Región con gobierno abierto, transparente y ciudadanía consciente"]
[null,"Un Nuevo Contrato Social y Ambiental para la Bogotá del Siglo XXI","52.","Integración regional, distrital y local","Propósito 5: Construir Bogotá - Región con gobierno abierto, transparente y ciudadanía consciente"]
[null,"Un Nuevo Contrato Social y Ambiental para la Bogotá del Siglo XXI","53.","Información para la toma de decisiones","Propósito 5: Construir Bogotá - Región con gobierno abierto, transparente y ciudadanía consciente"]
[null,"Un Nuevo Contrato Social y Ambiental para la Bogotá del Siglo XXI","54.","Transformación digital y gestión de TIC para un territorio inteligente","Propósito 5: Construir Bogotá - Región con gobierno abierto, transparente y ciudadanía consciente"]
[null,"Un Nuevo Contrato Social y Ambiental para la Bogotá del Siglo XXI","55.","Fortalecimiento de cultura ciudadana y su institucionalidad","Propósito 5: Construir Bogotá - Región con gobierno abierto, transparente y ciudadanía consciente"]
[null,"Un Nuevo Contrato Social y Ambiental para la Bogotá del Siglo XXI","56.","Gestión pública efectiva","Propósito 5: Construir Bogotá - Región con gobierno abierto, transparente y ciudadanía consciente"]
[null,"Un Nuevo Contrato Social y Ambiental para la Bogotá del Siglo XXI","57.","Gestión pública local","Propósito 5: Construir Bogotá - Región con gobierno abierto, transparente y ciudadanía consciente"]